Workbook

Sheet Summary
B2: Key Ratios | L2: Operational Graph
C3: 2017 | D3: =C3+1 -> 2018 | E3: 2019 | F3: 2020 | G3: 2021 | H3: 2022 | I3: 2023
B4: Debt/EBITDA | C4: ='Detailed Analysis'!N552 -> 2.152231391 | D4: ='Detailed Analysis'!O552 -> 2.595566977 | E4: ='Detailed Analysis'!P552 -> 3.278630438 | F4: ='Detailed Analysis'!Q552 -> 2.68769519 | G4: ='Detailed Analysis'!R552 -> 2.118233997 | H4: ='Detailed Analysis'!S552 -> 1.553596998 | I4: ='Detailed Analysis'!T552 -> 0.9910758538
B5: Debt to Capital | C5: ='Detailed Analysis'!N553 -> 0.6396338555 | D5: ='Detailed Analysis'!O553 -> 0.6299080167 | E5: ='Detailed Analysis'!P553 -> 0.6494863133 | F5: ='Detailed Analysis'!Q553 -> 0.5842506538 | G5: ='Detailed Analysis'!R553 -> 0.5035117931 | H5: ='Detailed Analysis'!S553 -> 0.4046052273 | I5: ='Detailed Analysis'!T553 -> 0.2840953094
B6: Interest Coverage- EBITDA | C6: ='Detailed Analysis'!O554 -> 6.673616522 | D6: ='Detailed Analysis'!P554 -> 5.676460316 | E6: ='Detailed Analysis'!Q554 -> 4.551697091 | F6: ='Detailed Analysis'!R554 -> 5.467760115 | G6: ='Detailed Analysis'!S554 -> 6.881016863 | H6: ='Detailed Analysis'!T554 -> 9.361335198 | I6: ='Detailed Analysis'!U554 -> 14.6493317
B8: Loan Life Coverage | C8: ='Detailed Analysis'!M556 -> 3.480026011
B9: EBITDA Margin | C9: ='Detailed Analysis'!N493 -> 0.3661319583 | D9: ='Detailed Analysis'!O493 -> 0.3669243117 | E9: ='Detailed Analysis'!P493 -> 0.369884464 | F9: ='Detailed Analysis'!Q493 -> 0.3755471871 | G9: ='Detailed Analysis'!R493 -> 0.3798277518 | H9: ='Detailed Analysis'!S493 -> 0.3874788334 | I9: ='Detailed Analysis'!T493 -> 0.3941130095
B10: Return on Invested Capital | C10: ='Detailed Analysis'!N557 -> 0.2662058274 | D10: ='Detailed Analysis'!O557 -> 0.2013724332 | E10: ='Detailed Analysis'!P557 -> 0.1570575561 | F10: ='Detailed Analysis'!Q557 -> 0.1687863192 | G10: ='Detailed Analysis'!R557 -> 0.1860679654 | H10: ='Detailed Analysis'!S557 -> 0.206266147 | I10: ='Detailed Analysis'!T557 -> 0.2304098712
B11: Project IRR | C11: ='Detailed Analysis'!I353 -> 0.3706692604 | L11: Cash Flow Graph

Sheet Sensitivities
H2: IRR | I2: ='Detailed Analysis'!I353 -> 0.3706692604
B3: Code Number | C3: 1
D4: Euro Inflation | E4: Productivity Sensitivity - Base | F4: Productivity Growth Sensitivity | G4: Sensitivity Factor for Phase 1 Capital Expenditure | H4: Sensitivity Factor for Phase 2 Capital Expenditure | I4: Sensitivity Factor for Maint Capital Expenditure | J4: Tractor Oil Quantity | K4: Fertilizer Quantity | L4: Salary Cost Factor | M4: Horticulture Price Scenario | N4: Fruits Price Scenario | O4: Maize Price Scenario | P4: Animal Price Scenario | Q4: Dairy Price Scenario | R4: Fertilizer Prices Scenario | S4: Fertilizer Prices Scenario | T4: Fertilizer Prices Scenario | U4: Salary Cost Factor
B5: Base Case | D5: 1 | E5: 0.75 | F5: 1 | G5: 1 | H5: 1 | I5: 1 | J5: 0.015 | K5: 0.07 | L5: 1 | M5: 1 | N5: 1 | O5: 1 | P5: 1 | Q5: 1 | R5: 1
B6: Low Case | D6: 2 | E6: 0.65 | F6: 0.9 | G6: 1.1 | H6: 1.15 | I6: 1.2 | J6: 0.02 | K6: 0.075 | L6: 1.2 | M6: 2 | N6: 2 | O6: 2 | P6: 2 | Q6: 2 | R6: 2
B7: High Case | D7: 3 | E7: 0.85 | F7: 1.1 | G7: 0.95 | H7: 0.95 | I7: 0.95 | J7: 0.01 | K7: 0.065 | L7: 0.9 | M7: 3 | N7: 3 | O7: 3 | P7: 3 | Q7: 3 | R7: 3
B8: Inflation Senstivity | D8: =D6 -> 2 | E8: =E5 -> 0.75 | F8: =F5 -> 1 | G8: 1 | H8: 1 | I8: 1 | J8: 0.015 | K8: 0.07 | L8: 1 | M8: 1 | N8: 1 | O8: 1 | P8: 1 | Q8: 1 | R8: 1 | S8: 0 | T8: 0 | U8: 0
B9: Base Productivity Sensitivity | D9: =D5 -> 1 | E9: =E5 -> 0.75 | F9: 1 | G9: 1 | H9: 1 | I9: 1 | J9: 0.015 | K9: 0.07 | L9: 1 | M9: 1 | N9: 1 | O9: 1 | P9: 1 | Q9: 1 | R9: 1
B10: Commodity Price Sensitivity | D10: =D5 -> 1 | E10: =E5 -> 0.75 | F10: 1 | G10: 1 | H10: 1 | I10: 1 | J10: 0.015 | K10: 0.07 | L10: 1 | M10: =M6 -> 2 | N10: =N6 -> 2 | O10: =O6 -> 2 | P10: 2 | Q10: 2 | R10: 2
B11: Expense Sensitivity | D11: =D5 -> 1 | E11: =E5 -> 0.75 | F11: 1 | G11: 1 | H11: 1 | I11: 1 | J11: =J6 -> 0.02 | K11: =K6 -> 0.075 | L11: 1.2 | M11: 1 | N11: 1 | O11: 1 | P11: 1 | Q11: 1 | R11: 1
B12: Cap Exp Sensitiviy | D12: =D5 -> 1 | E12: =E5 -> 0.75 | F12: 1 | G12: 1 | H12: 1 | I12: 1 | J12: 0.015 | K12: 0.07 | L12: =L6 -> 1.2 | M12: 1 | N12: 1 | O12: 1 | P12: 1 | Q12: 1 | R12: 1
B21: =INDEX(B5:B19,$C$3) -> Base Case | D21: =INDEX(D5:D19,$C$3) -> 1 | E21: 0.75 | F21: 1 | G21: 1 | H21: =INDEX(H5:H19,$C$3) -> 1 | I21: 1 | J21: 0.015 | K21: 0.07 | L21: 1 | M21: 1 | N21: 1 | O21: 1 | P21: 1 | Q21: 1 | R21: 1

Sheet Inputs
A2: Timing Inputs | P2: Questions/Comments
B3: Start of Model | F3: Date | G3: 2017-01-01
B4: End of Expansion | F4: Date | G4: 2026-01-01
A6: Capacity and Production Inputs | L6: ='Expected Production'!B52 -> 3435 | P6: <------ This is from expected production sheet
C7: Total Land Capacity of Farms | F7: 1 | G7: =G3 -> 2017-01-01 | H7: 2025-01-01 | I7: Growth | K7: Input | L7: Percent
D8: Fazenda Kibala I (6000 ha) | F8: Ha | G8: =CHOOSE($F$7,K8,L8) -> 6000 | H8: =G8 -> 6000 | I8: =(H8/G8)^(1/9)-1 -> 0 | K8: 6000 | L8: =K8/$K$13*$L$6 -> 2823.287671 | P8: Is this really 6,000 or is it 600
D9: Fazenda Kibala II (600 ha) | F9: Ha | G9: =CHOOSE($F$7,K9,L9) -> 600 | H9: =G9 -> 600 | I9: =(H9/G9)^(1/9)-1 -> 0 | K9: 600 | L9: =K9/$K$13*$L$6 -> 282.3287671 | P9: Note the difference between ha in the expected production sheet
D10: Fazenda Caxito (450 ha) | F10: Ha | G10: =CHOOSE($F$7,K10,L10) -> 450 | H10: =G10 -> 450 | I10: =(H10/G10)^(1/9)-1 -> 0 | K10: 450 | L10: =K10/$K$13*$L$6 -> 211.7465753
D11: Fazenda Bom Jesus (250 ha) | F11: Ha | G11: =CHOOSE($F$7,K11,L11) -> 250 | H11: =G11 -> 250 | I11: =(H11/G11)^(1/9)-1 -> 0 | K11: 250 | L11: =K11/$K$13*$L$6 -> 117.6369863
D12: Fazenda Bumba Longa yield (trading)
E13: Total | F13: Ha | G13: =SUM(G8:G11) -> 7300 | H13: =SUM(H8:H11) -> 7300 | I13: =(H13/G13)^(1/9)-1 -> 0 | K13: =SUM(K8:K11) -> 7300 | L13: =SUM(L8:L11) -> 3435
C15: Capacity of All Farms | F15: 2 | G15: =G7 -> 2017-01-01 | H15: 2025-01-01 | I15: Growth | K15: Input | L15: Percent
D16: Fazenda Kibala I (6000 ha) | F16: Ha | G16: =CHOOSE($F$15,K16,L16) -> 2823.287671 | H16: =G16*$J$16 -> 6000 | I16: =(H16/G16)^(1/9)-1 -> 0.08736999916 | J16: =G13/G21 -> 2.125181951 | K16: 6000 | L16: =K16/$K$13*$L$6 -> 2823.287671 | P16: Is this really 6,000 or is it 600
D17: Fazenda Kibala II (600 ha) | F17: Ha | G17: =CHOOSE($F$15,K17,L17) -> 282.3287671 | H17: =G17*$J$16 -> 600 | I17: =(H17/G17)^(1/9)-1 -> 0.08736999916 | K17: 600 | L17: =K17/$K$13*$L$6 -> 282.3287671 | P17: Note the difference between ha in the expected production sheet
D18: Fazenda Caxito (450 ha) | F18: Ha | G18: =CHOOSE($F$15,K18,L18) -> 211.7465753 | H18: =G18*$J$16 -> 450 | I18: =(H18/G18)^(1/9)-1 -> 0.08736999916 | K18: 450 | L18: =K18/$K$13*$L$6 -> 211.7465753
D19: Fazenda Bom Jesus (250 ha) | F19: Ha | G19: =CHOOSE($F$15,K19,L19) -> 117.6369863 | H19: =G19*$J$16 -> 250 | I19: =(H19/G19)^(1/9)-1 -> 0.08736999916 | K19: 250 | L19: =K19/$K$13*$L$6 -> 117.6369863
D20: Fazenda Bumba Longa yield (trading)
E21: Total | F21: Ha | G21: =SUM(G16:G19) -> 3435 | H21: =SUM(H16:H19) -> 7300 | I21: =(H21/G21)^(1/9)-1 -> 0.08736999916 | K21: =SUM(K16:K19) -> 7300 | L21: =SUM(L16:L19) -> 3435
C23: Productivity of Farms | G23: =G7 -> 2017-01-01 | H23: 2025-01-01
D24: Fazenda Kibala I (600 ha) | F24: Tons/Ha | G24: 75.8224163 | H24: 118.504973 | I24: =(H24/G24)^(1/9)-1 -> 0.0508694646 | K24: =G24/$G$29 -> 2.125181951 | P24: Increase in productivity comes from expected production sheet
D25: Fazenda Kibala II (600 ha) | F25: Tons/Ha | G25: =G24 -> 75.8224163 | H25: =H24 -> 118.504973 | I25: =(H25/G25)^(1/9)-1 -> 0.0508694646 | K25: =G25/$G$29 -> 2.125181951 | P25: Increase in productivity expected to occur on proportional basis until 2025
D26: Fazenda Caxito yield (classical) | F26: Tons/Ha | G26: =G24 -> 75.8224163 | H26: =H25 -> 118.504973 | I26: =(H26/G26)^(1/9)-1 -> 0.0508694646 | K26: =G26/$G$29 -> 2.125181951
D27: Fazenda Bom Jesus (SRI/SD) | F27: Tons/Ha | G27: =G24 -> 75.8224163 | H27: =H26 -> 118.504973 | I27: =(H27/G27)^(1/9)-1 -> 0.0508694646 | K27: =G27/$G$29 -> 2.125181951
D28: Fazenda Bumba Longa yield (trading) | F28: Tons/Ha | G28: =G24 -> 75.8224163 | H28: =H27 -> 118.504973 | I28: =(H28/G28)^(1/9)-1 -> 0.0508694646 | K28: =G28/$G$29 -> 2.125181951
E29: Weighted Average | G29: =G39/G13 -> 35.67808219 | H29: =H39/H13 -> 118.504973
C31: Production Increase Sensitiviy | F31: Sensitivity
C33: Production of All Farms | G33: =G23 -> 2017-01-01 | H33: =H23 -> 2025-01-01 | I33: Annual Gr
D34: Fazenda Kibala I (6,000 ha) | F34: Tons | G34: =G24*G16 -> 214068.4932 | H34: =H24*H16 -> 711029.8379 | I34: =(H34/G34)^(1/9)-1 -> 0.1426839288 | P34: These are derived from the expected production sheet
D35: Fazenda Kibala II (600 ha) | F35: Tons | G35: =G25*G17 -> 21406.84932 | H35: =H25*H17 -> 71102.98379 | I35: 0.1426839288
D36: Fazenda Bom Jesus | F36: Tons | G36: =G26*G18 -> 16055.13699 | H36: =H26*H18 -> 53327.23784 | I36: 0.1426839288
D37: Fazenda Caxito | F37: Tons | G37: =G27*G19 -> 8919.520548 | H37: =H27*H19 -> 29626.24325 | I37: 0.1426839288
D38: Fazenda Bumba Longa yield (trading) | F38: Tons | G38: =G28*G20 -> 0 | H38: =H28*H20 -> 0
E39: Total | F39: Tons | G39: =SUM(G34:G38) -> 260450 | H39: =SUM(H34:H38) -> 865086.3028 | I39: 0.1426839288
G40: ='Expected Production'!D2 -> 260450 | H40: ='Expected Production'!H2 -> 865086.3028 | I40: 0.1426839288 | K40: =G40-G39 -> 0
E42: Other Production Information | G42: =Expansion!B14 -> 3400 | H42: =Expansion!D14 -> 8059 | I42: =Expansion!F14 -> 0.08194067544 | K42: =HYPERLINK(Expansion!A16,"Source") -> Source | P42: Other information is completely different
I44: =G120 -> 232 | J44: =G121 -> 208
C45: Production Share by Product and Price per ton | G45: Percent | H45: Price AOA | I45: Price Euro | J45: Price USD | P45: This is directly from the expected production sheet
D46: Horticulture
E47: Pumpkin | G47: ='Expected Production'!I15 -> 0.01842964101 | H47: ='Expected Production'!E15 -> 80000 | I47: =H47/$I$44 -> 344.8275862 | J47: =H47/$J$44 -> 384.6153846
E48: Lettuce | G48: ='Expected Production'!I16 -> 0.01919754271 | H48: ='Expected Production'!E16 -> 195000 | I48: 840.5172414 | J48: 937.5
E49: French Garlic | G49: ='Expected Production'!I17 -> 0.007679017086 | H49: ='Expected Production'!E17 -> 300000 | I49: 1293.103448 | J49: 1442.307692
E50: Potato | G50: ='Expected Production'!I18 -> 0.08638894222 | H50: ='Expected Production'!E18 -> 66700 | I50: 287.5 | J50: 320.6730769
E51: Bringel | G51: ='Expected Production'!I19 -> 0.004607410251 | H51: ='Expected Production'!E19 -> 60000 | I51: 258.6206897 | J51: 288.4615385
E52: Beetroot | G52: ='Expected Production'!I20 -> 0.02457285467 | H52: ='Expected Production'!E20 -> 120000 | I52: 517.2413793 | J52: 576.9230769
E53: Brocolli | G53: ='Expected Production'!I21 -> 0.01209445191 | H53: ='Expected Production'!E21 -> 267000 | I53: 1150.862069 | J53: 1283.653846
E54: Onion | G54: ='Expected Production'!I22 -> 0.02495680553 | H54: ='Expected Production'!E22 -> 70000 | I54: 301.7241379 | J54: 336.5384615
E55: Carrot | G55: ='Expected Production'!I23 -> 0.0671913995 | H55: ='Expected Production'!E23 -> 90000 | I55: 387.9310345 | J55: 432.6923077
E56: Courgettes | G56: ='Expected Production'!I24 -> 0.00671913995 | H56: ='Expected Production'!E24 -> 100000 | I56: 431.0344828 | J56: 480.7692308
E57: Cabbage | G57: ='Expected Production'!I25 -> 0.06450374352 | H57: ='Expected Production'!E25 -> 87000 | I57: 375 | J57: 418.2692308
E58: Green Beans | G58: ='Expected Production'!I26 -> 0.001439815704 | H58: ='Expected Production'!E26 -> 410000 | I58: 1767.241379 | J58: 1971.153846
E59: Colliflower | G59: ='Expected Production'!I27 -> 0.005759262814 | H59: ='Expected Production'!E27 -> 300000 | I59: 1293.103448 | J59: 1442.307692
E60: Okra | G60: ='Expected Production'!I28 -> 0.001535803417 | H60: ='Expected Production'!E28 -> 267000 | I60: 1150.862069 | J60: 1283.653846
E61: Turnip | G61: ='Expected Production'!I29 -> 0.004607410251 | H61: ='Expected Production'!E29 -> 125000 | I61: 538.7931034 | J61: 600.9615385
E62: Cucumber | G62: ='Expected Production'!I30 -> 0.02956421578 | H62: ='Expected Production'!E30 -> 80000 | I62: 344.8275862 | J62: 384.6153846
E63: Peppers | G63: ='Expected Production'!I31 -> 0.07679017086 | H63: ='Expected Production'!E31 -> 250000 | I63: 1077.586207 | J63: 1201.923077
E64: Kale | G64: ='Expected Production'!I32 -> 0.00940679593 | H64: ='Expected Production'!E32 -> 200000 | I64: 862.0689655 | J64: 961.5384615
E65: Tomatoes | G65: ='Expected Production'!I33 -> 0.1151852563 | H65: ='Expected Production'!E33 -> 250000 | I65: 1077.586207 | J65: 1201.923077
E66: Total/Weighted Average Horticulture | G66: =SUM(G47:G65) -> 0.5806296794 | H66: =SUMPRODUCT(H47:H65,G47:G65)/G66 -> 153902.7939 | I66: =SUMPRODUCT(I47:I65,G47:G65)/G66 -> 663.3741114 | J66: =SUMPRODUCT(J47:J65,G47:G65)/G66 -> 739.9172781
D68: Fruits
E69: Pineapple | G69: ='Expected Production'!I36 -> 0.02150124784 | H69: ='Expected Production'!E36 -> 100000 | I69: =H69/$I$44 -> 431.0344828 | J69: =H69/$J$44 -> 480.7692308
E70: Banana | G70: ='Expected Production'!I37 -> 0.2150124784 | H70: ='Expected Production'!E37 -> 73000 | I70: 314.6551724 | J70: 350.9615385
E71: Lemon | G71: ='Expected Production'!I38 -> 0.004319447111 | H71: ='Expected Production'!E38 -> 300000 | I71: 1293.103448 | J71: 1442.307692
E72: Paw-paw | G72: ='Expected Production'!I39 -> 0.01075062392 | H72: ='Expected Production'!E39 -> 120000 | I72: 517.2413793 | J72: 576.9230769
E73: Mango | G73: ='Expected Production'!I40 -> 0.00806296794 | H73: ='Expected Production'!E40 -> 300000 | I73: 1293.103448 | J73: 1442.307692
E74: Watermelon | G74: ='Expected Production'!I41 -> 0.02073334613 | H74: ='Expected Production'!E41 -> 130000 | I74: 560.3448276 | J74: 625
E75: Melon | G75: ='Expected Production'!I42 -> 0.01919754271 | H75: ='Expected Production'!E42 -> 245000 | I75: 1056.034483 | J75: 1177.884615
E76: Cantaloupe | G76: ='Expected Production'!I43 -> 0.002303705126 | H76: ='Expected Production'!E43 -> 180000 | I76: 775.862069 | J76: 865.3846154
E77: Strawberry | G77: ='Expected Production'!I44 -> 0.003071606834 | H77: ='Expected Production'!E44 -> 800000 | I77: 3448.275862 | J77: 3846.153846
E78: Grapes | G78: ='Expected Production'!I45 -> 0.01151852563 | H78: ='Expected Production'!E45 -> 370000 | I78: 1594.827586 | J78: 1778.846154
E79: Total/Weighted Average Fruits | G79: =SUM(G69:G78) -> 0.3164714916 | H79: =SUMPRODUCT(H69:H78,G69:G78)/G79 -> 118125.5687 | I79: =SUMPRODUCT(G69:G78,I69:I78)/G79 -> 509.161934 | J79: =SUMPRODUCT(J69:J78,G69:G78)/G79 -> 567.911388
D81: Maize and Forages
E82: Maize | G82: ='Expected Production'!I48 -> 0.01075062392 | H82: ='Expected Production'!E48 -> 2500 | I82: =H82/$I$44 -> 10.77586207 | J82: =H82/$J$44 -> 12.01923077
E83: Forages | G83: ='Expected Production'!I49 -> 0.09214820503 | H83: ='Expected Production'!E49 -> 1000 | I83: =H83/$I$44 -> 4.310344828 | J83: =H83/$J$44 -> 4.807692308
E84: Total/Weighted Average Maize and Forages | G84: =SUM(G82:G83) -> 0.1028988289 | I84: =SUMPRODUCT(I82:I83,G82:G83)/G84 -> 4.985846629 | J84: =SUMPRODUCT(J82:J83,G82:G83)/G84 -> 5.561136625
C86: Abbatoir Capacity
D87: Total Capacity | F87: Cattle/yr | G87: 200 | P87: Need similar information for other animals
D88: Year | G88: 2017 | H88: 2018 | I88: 2019 | J88: 2020 | K88: 2021 | L88: 2022
D89: Percent of Total Capacity | G89: 0 | H89: 0.55 | I89: 0.65 | J89: 0.75 | K89: 0.85 | L89: 0.9
P90: Need real Numbers
F91: Existing | G91: Life | H91: Feed Cost (€) | I91: Price (€) | J91: Weight | K91: Price per | M91: New Animals
C92: Production and Prices by Animal Product | F92: Balance | G92: Years | H92: per Animal | I92: per Animal | J92: kg | K92: kg | L92: 2017 | M92: =L92+1 -> 2018 | N92: =M92+1 -> 2019 | O92: =N92+1 -> 2020 | P92: =O92+1 -> 2021
D93: Cows | F93: =Animals!D3 -> 930 | G93: 3 | H93: =Animals!L23 -> 1344.827586 | I93: =K93*J93 -> 2481.296552 | J93: 680 | K93: =4.07*G122 -> 3.648965517 | L93: 180 | M93: 190 | N93: 195 | O93: 198 | P93: 200
D94: Sheep | F94: =Animals!D4 -> 170 | G94: 2 | H94: =Animals!L25 -> 224.137931 | I94: =J94*K94 -> 328 | J94: 82 | K94: 4 | L94: 120 | M94: 150 | N94: 170 | O94: 190 | P94: 200
D95: Goats | F95: =Animals!D5 -> 335 | G95: 2 | H95: =Animals!L27 -> 268.9655172 | I95: =J95*K95 -> 328 | J95: 82 | K95: 4 | L95: 130 | M95: 150 | N95: 190 | O95: 210 | P95: 220
D96: Pigs | F96: =Animals!D6 -> 60 | G96: 3 | H96: =Animals!L29 -> 179.3103448 | I96: =J96*K96 -> 798 | J96: 266 | K96: 3 | L96: 30 | M96: 50 | N96: 60 | O96: 80 | P96: 90
G98: 2017 | H98: =G98+1 -> 2018 | I98: =H98+1 -> 2019 | J98: =I98+1 -> 2020 | K98: =J98+1 -> 2021
C99: Dairy Production | F99: Gallons/Day | G99: 0 | H99: 0 | I99: 3000 | J99: 7000 | K99: =Dairy!B8 -> 10000 | P99: Nothing on the Price or the operating costs
C100: Dairy Price | F100: Euro/Gallon | G100: 3.15 | P100: No documentation
C101: Dairy Operating Cost | F101: Euro/Gallon | G101: 1.5
C103: Chips and Fries Production | F103: Units | G103: 2019 | H103: Price/Unit | I103: Cost/Unit
G104: Production | H104: (€) | I104: (€) | P104: How much is the increase in production with new cap exp
D105: Plain fried Chips 45g | F105: =Chips!C5 -> 15070 | G105: =F105 -> 15070 | H105: =Chips!H5 -> 0.2155172414 | I105: =Chips!I5 -> 0
D106: Plain fried Chips 100g | F106: =Chips!C6 -> 12140 | G106: 12140 | H106: =Chips!H6 -> 0.4310344828 | I106: =Chips!I6 -> 0 | P106: Are there added costs not included below for fries production
D107: Plain fried Chips 100g | F107: =Chips!C7 -> 74226 | G107: 74226 | H107: =Chips!H7 -> 0.4310344828 | I107: =Chips!I7 -> 0
D108: Plain fried Chips 170g | F108: =Chips!C8 -> 1770 | G108: 1770 | H108: =Chips!H8 -> 0.6465517241 | I108: =Chips!I8 -> 0
D109: Plain fried Chips 170g | F109: =Chips!C9 -> 15001 | G109: 15001 | H109: =Chips!H9 -> 0.6465517241 | I109: =Chips!I9 -> 0
D110: Pre-Fried Chips 2,5Kg | F110: =Chips!C10 -> 2075 | G110: 2075 | H110: =Chips!H10 -> 3.448275862 | I110: =Chips!I10 -> 0
E111: Total/Weighted Average | F111: =SUM(F105:F110) -> 120282 | G111: =SUM(G105:G110) -> 120282 | H111: =SUMPRODUCT(H105:H110*$G$105:$G$110/$G$105:$G$110) -> 5.818965517 | I111: =SUMPRODUCT(I105:I110*$G$105:$G$110/$G$105:$G$110) -> 0
C113: Cereal Production from Cereal Production Project
C114: Biological Coffee Production from Coffee Production Project
C115: Seafood Production from Seafood Production Project
C116: Dehydrated fruits and tomato derivatives production Project
A118: Economic hypotheses:
C119: Current
E120: FX Euros/AOA | G120: 232
E121: FX USD/AO | G121: 208
E122: USD/Euro | G122: =G121/G120 -> 0.8965517241
G123: 2017 | H123: 2018 | I123: 2019 | J123: 2020 | K123: 2021 | L123: 2022 | M123: 2023 | N123: 2024
E124: Inflation in AOA (%) | G124: 1.6 | H124: 1 | I124: 0.5 | J124: 0.25 | K124: 0.1 | L124: 0.1 | M124: 0.1 | N124: 0.1
E125: Inflation in USD (%) | G125: 0.02 | H125: 0.02 | I125: 0.02 | J125: 0.02 | K125: 0.02 | L125: 0.02 | M125: 0.02 | N125: 0.02
E126: Inflation in Euro (%) | G126: ='Economic Analysis'!J9 -> 0.005 | H126: ='Economic Analysis'!K9 -> 0.005 | I126: ='Economic Analysis'!L9 -> 0.005 | J126: ='Economic Analysis'!M9 -> 0.0075 | K126: ='Economic Analysis'!N9 -> 0.0075 | L126: ='Economic Analysis'!O9 -> 0.0075 | M126: ='Economic Analysis'!P9 -> 0.0075 | N126: ='Economic Analysis'!Q9 -> 0.0075
D128: Real Change in Commodity Prices | G128: 2016 | H128: 2017 | I128: 2018 | J128: 2019 | K128: 2020 | L128: 2021 | M128: 2022 | N128: 2023 | O128: 2024
E129: Horticulture Price Scenario | G129: 0 | H129: 0 | I129: 0 | J129: 0 | K129: 0 | L129: 0 | M129: 0 | N129: 0 | O129: 0
E130: Fruits Price Scenario | G130: 0 | H130: 0 | I130: 0 | J130: 0 | K130: 0 | L130: 0 | M130: 0 | N130: 0 | O130: 0
E131: Maize Price Scenario | G131: 0 | H131: 0 | I131: 0 | J131: 0 | K131: 0 | L131: 0 | M131: 0 | N131: 0 | O131: 0
E132: Animal Price Scenario | G132: 0 | H132: 0 | I132: 0 | J132: 0 | K132: 0 | L132: 0 | M132: 0 | N132: 0 | O132: 0
E133: Dairy Price Scenario | G133: 0 | H133: 0 | I133: 0 | J133: 0 | K133: 0 | L133: 0 | M133: 0 | N133: 0 | O133: 0
E134: Fertilizer Prices Scenario | G134: 0.01 | H134: 0.03 | I134: 0.05 | J134: 0.05 | K134: 0.03 | L134: 0.01 | M134: 0.01 | N134: 0.01 | O134: 0.01
A136: Capital Expenditure Assumptions | I136: =G122 -> 0.8965517241
H137: Amount | I137: Amount
C138: Phase 1 | H138: USD Mil | I138: Euro Mil | J138: Start | K138: Finish
D139: Horticulture and Fruits production Project | H139: =Expansion!R3 -> 125 | I139: =H139*$I$136 -> 112.0689655 | J139: =Expansion!H3 -> 2017 | K139: =Expansion!I3 -> 2019
D140: Milk production Project | H140: =Expansion!R4 -> 10 | I140: =H140*$I$136 -> 8.965517241 | J140: =Expansion!H4 -> 2017 | K140: =Expansion!I4 -> 2019
D141: Chips and Fries Production Project | H141: =Expansion!R5 -> 7 | I141: 6.275862069 | J141: =Expansion!H5 -> 2017 | K141: =Expansion!I5 -> 2019
D142: Piggery production Project | H142: =Expansion!R6 -> 5 | I142: 4.482758621 | J142: =Expansion!H6 -> 2017 | K142: =Expansion!I6 -> 2019
D143: Sheeps and Goats breeding Project | H143: =Expansion!R7 -> 1.8 | I143: 1.613793103 | J143: =Expansion!H7 -> 2017 | K143: =Expansion!I7 -> 2019
D144: Frozen and Jams production Factory Project | H144: =Expansion!R8 -> 2.5 | I144: 2.24137931 | J144: =Expansion!H8 -> 2017 | K144: =Expansion!I8 -> 2019
D145: Feeds production Factory Project | H145: =Expansion!R17 -> 4.5 | I145: 4.034482759 | J145: =Expansion!H17 -> 2017 | K145: =Expansion!I17 -> 2019
D147: Abbatoir | H147: 10 | I147: 8.965517241 | J147: 2017 | K147: 2017
D149: Logistics warehouse for Cold storage | I149: 60 | J149: 2017 | K149: 2017
D151: Depreciation Life | G151: Years | H151: 25
C153: Phase 2
D154: Limestone Production Factory for Agriculture | H154: =Expansion!R18 -> 6 | I154: 5.379310345 | J154: =Expansion!H18 -> 2018 | K154: =Expansion!I18 -> 2019
D155: Cereal and Vegetables Production Project | H155: =Expansion!R19 -> 15 | I155: 13.44827586 | J155: =Expansion!H19 -> 2016 | K155: =Expansion!I19 -> 2019
D156: Biological Coffee production Project | H156: =Expansion!R20 -> 4.5 | I156: 4.034482759 | J156: =Expansion!H20 -> 2019 | K156: =Expansion!I20 -> 2025
D157: Seafood and Fishery production Project | H157: =Expansion!R21 -> 2.5 | I157: 2.24137931 | J157: =Expansion!H21 -> 2019 | K157: =Expansion!I21 -> 2025
D158: Industrial dehydrated fruits and tomato derivatives production Project | H158: =Expansion!R22 -> 6 | I158: 5.379310345 | J158: =Expansion!H22 -> 2019 | K158: =Expansion!I22 -> 2025
D159: Furniture production Capacity Expansion Project | H159: =Expansion!R23 -> 25 | I159: 22.4137931 | J159: =Expansion!H23 -> 2019 | K159: =Expansion!I23 -> 2025
D161: Depreciation Life | G161: Years | H161: 25
C163: Maintenance Capital Expenditures in Euro 000's | H163: Life | I163: Balance | J163: Acc Dep | K163: Base | L163: 2016 | M163: =L163+1 -> 2017 | N163: =M163+1 -> 2018 | O163: =N163+1 -> 2019 | P163: =O163+1 -> 2020
C164: Misc Other Maintenance Capital Expenditures | H164: ='Existing Assets'!K31 -> 7.76585714 | I164: ='Existing Assets'!F40/1000 -> 3977.650878 | J164: ='Existing Assets'!L40/1000 -> 439.2143215 | K164: ='Existing Assets'!K40/1000 -> 512.1972767 | L164: =K164/2 -> 256.0986383 | M164: =L164 -> 256.0986383 | N164: =M164*2.5 -> 640.2465959 | O164: =N164*1.7 -> 1088.419213 | P164: =O164 -> 1088.419213
C165: Plows/Other Capital Expenditures | H165: ='Existing Assets'!K32 -> 8.032915361 | I165: ='Existing Assets'!F41/1000 -> 435.9217725 | J165: ='Existing Assets'!L41/1000 -> 58.36224368 | K165: ='Existing Assets'!K41/1000 -> 54.26694456 | L165: =K165/2 -> 27.13347228 | M165: =L165 -> 27.13347228 | N165: =M165*2.5 -> 67.8336807 | O165: =N165*1.7 -> 115.3172572 | P165: =O165 -> 115.3172572
C166: Potato Capital Expenditures | H166: ='Existing Assets'!K33 -> 6.096774194 | I166: ='Existing Assets'!F42/1000 -> 3860.846412 | J166: ='Existing Assets'!L42/1000 -> 940.4963475 | K166: ='Existing Assets'!K42/1000 -> 633.2605226 | L166: =K166/2 -> 316.6302613 | M166: =L166 -> 316.6302613 | N166: =M166*2.5 -> 791.5756533 | O166: 1345.678611 | P166: =O166 -> 1345.678611
C167: Vehicles Capital Expenditures | H167: ='Existing Assets'!K34 -> 3.872340426 | I167: ='Existing Assets'!F43/1000 -> 3733.328396 | J167: =SUM(J164:J166) -> 1438.072913 | K167: ='Existing Assets'!K43/1000 -> 964.1012891 | L167: =K167 -> 964.1012891 | M167: =L167 -> 964.1012891 | N167: 1638.972191 | O167: 2786.252725 | P167: =O167 -> 2786.252725
A169: Operating Expense
G170: AOA/t | H170: Euro/t
B171: Transport costs to Luanda AOA/t) | G171: 12000 | H171: =G171/I44 -> 51.72413793
B173: Machinary Oil Prices for Tractors | G173: Liters/Ton | H173: Euros/l | I173: AOA / kg
E174: Ngol Transtatic 30 Tambor 200Lt | G174: =Sensitivities!J21 -> 0.015 | H174: 389.6551724 | I174: 90400 | O174: The liters per ton are not documented | Q174: We still need the relationship between tractor oil and the amount of production
E175: Ngol Multimax 2 Tambor 180Kg | G175: =G174 -> 0.015 | H175: 531.25 | I175: 123250
E176: Ngol Transfluid DIII TBR 200 LT | G176: =G175 -> 0.015 | H176: 476.7241379 | I176: 110600
E177: Ngol Lube 85W140 Tambor 200 LT | G177: =G176 -> 0.015 | H177: 351.2931034 | I177: 81500
G179: Tons per
C180: Fertilisers prices : | G180: Ton of Prod | H180: Euros/t | I180: AOA / kg
E181: Urea Fertiliser | G181: =Sensitivities!K21 -> 0.07 | H181: 298 | I181: 69136 | O181: There is no documentation on the quantity. This must be verified
E182: Solutek Fertiliser | G182: =G181 -> 0.07 | H182: 358 | I182: 83056
E183: Monoamine sulphate | G183: =G182 -> 0.07 | H183: 1106 | I183: 256592
E184: Nitrate Magnesium | G184: =G183 -> 0.07 | H184: 530 | I184: 122960
E185: Calcium Nitrate | G185: =G184 -> 0.07 | H185: 358 | I185: 83056
E186: Potassium chloride fertiliser | G186: =G185 -> 0.07 | H186: 460 | I186: 106720
E187: Rate of subsidies on fertilisers (%)
C189: Herbicids prices: | G189: Volumes | H189: Euros/t or kg | I189: AOA / kg | O189: This is the type of information needed
E190: Touchdown 4.25 EUR/Lt – 12L/ha | G190: 12 | H190: 4.25 | I190: 986
E191: Clorfos 5.90 EUR/Lt – 2,5L/ha | G191: 2.5 | H191: 5.9 | I191: 1368.8
E192: Monceren 24.60 EUR/Kg - 5Kg/ Ton of potatoes | G192: 5 | H192: 24.6 | I192: 5707.2
E193: Nemacur 18.45 EUR/Lt – 25L/ha | G193: 25 | H193: 18.45 | I193: 4280.4
C195: Animal Pharmaceuticals and Feedstuffs prices: | G195: Quantity | H195: Euros/t | I195: AOA / kg
E196: Dexavex 50ml | G196: ='Pharm and Feedstuff Quantity'!K3 -> 0.0008075099173 | H196: 13.57758621 | I196: 3150 | O196: The Quantities need to be verified
E197: Forticlina Retard 100ml | G197: ='Pharm and Feedstuff Quantity'!K4 -> 0.004575889532 | H197: 11.42241379 | I197: 2650
E198: Adex-3 Forte 100ml | G198: ='Pharm and Feedstuff Quantity'!K5 -> 0.001318932865 | H198: 21.98275862 | I198: 5100
E199: B-Complex B 100ml | G199: ='Pharm and Feedstuff Quantity'!K6 -> 0.001345849862 | H199: 10.12931034 | I199: 2350
E200: Febrivex-P 1Kg | G200: ='Pharm and Feedstuff Quantity'!K7 -> 5.383399449e-05 | H200: 16.37931034 | I200: 3800
E201: Fluvex 250ml | G201: ='Pharm and Feedstuff Quantity'!K8 -> 0.0005652569421 | H201: 42.24137931 | I201: 9800
E202: Quinoflox 250ml | G202: ='Pharm and Feedstuff Quantity'!K9 -> 0.0002960869697 | H202: 36.20689655 | I202: 8400
D204: Energy, water and lease | G204: Quantity | H204: Euro | I204: AOA
E205: Gasoil price H.T. (euros/l) | G205: ='Pharm and Feedstuff Quantity'!K13 -> 0.03697873339 | H205: ='Pharm and Feedstuff Quantity'!D13 -> 0.5818965517 | I205: 135
E206: Electricity price H.T. (euros/kWh) | G206: ='Pharm and Feedstuff Quantity'!K14 -> 0.2230114545 | H206: ='Pharm and Feedstuff Quantity'!D14 -> 0.05172413793 | I206: 12
E207: water royalties, 1 harvest (euros/year/ha) | G207: ='Pharm and Feedstuff Quantity'!K15 -> 0.1807768606 | H207: ='Pharm and Feedstuff Quantity'!D15 -> 0.05172413793 | I207: 10
D208: =D203+1 -> 1
C209: Annual wages : Cost to company | G209: Euros | H209: AOA/hr | O209: (including taxes, healthcare, transport and local bonus)
C210: EXPATRIATE MANAGERS AND DIRECTORS
E211: Technical Director | G211: 141897.2414 | H211: 32920160 | I211: 1 | J211: 3
E212: Deputy Technical Director | G212: 94971.72414 | H212: 22033440 | I212: 1 | J212: 3
E213: Construction site manager | G213: 83800.68966 | H213: 19441760 | I213: 1 | J213: 3
E214: Civil engineering machines driver | G214: 72629.65517 | H214: 16850080 | I214: 1 | J214: 3
C216: FARM EXPATRIATE DIRECTORS AND MANAGERS
E217: Farm Director | G217: 116753.4483 | H217: 27086800 | I217: 5 | J217: 8
E218: Crop Manager | G218: 83800.68966 | H218: 19441760 | I218: 5 | J218: 8
E219: Chief Mechanic | G219: 83800.68966 | H219: 19441760 | I219: 3 | J219: 7
E220: Driver of agricultural machinery | G220: 61458.62069 | H220: 14258400 | I220: 25 | J220: 70
E221: FARM & CIVIL ENGINEERING LOCAL STAFF
E222: civil engineer topographer | G222: 22413.7931 | H222: 5200000 | I222: 3 | J222: 4
E223: Deputy Crop Managers | G223: 18491.37931 | H223: 4290000 | I223: =I218 -> 5 | J223: =J218 -> 8
E224: Deputies chief mechanic, irrigation | G224: 18491.37931 | H224: 4290000 | I224: 2 | J224: 4
E225: Mechanic, Civil engineering machines Drivers | G225: 11206.89655 | H225: 2600000 | I225: 12 | J225: 30
E226: Farm machines drivers | G226: 9525.862069 | H226: 2210000 | I226: 12 | J226: 30
E227: Irrigation technicians, team managers, drivers | G227: 7284.482759 | H227: 1690000 | I227: 5 | J227: 10
E228: skilled farm and civil engineering workers | G228: 6500 | H228: 1508000 | I228: 5 | J228: 10
E229: Labourers | G229: 5171.982759 | H229: 1199900 | I229: 22.15683589 | J229: 196.7315282
C231: LOCAL ADMINISTRATIVE MANAGERS & STAFF
... 53 more rows

Sheet Detailed Analysis
B2: Period | N2: 1 | O2: 2 | P2: 3 | Q2: 4 | R2: 5 | S2: 6 | T2: 7 | U2: 8 | V2: 9 | W2: 10 | X2: 11 | Y2: 12 | Z2: 13 | AA2: 14 | AB2: 15 | AC2: 16 | AD2: 17 | AE2: 18 | AF2: 19 | AG2: 20 | AH2: 21 | AI2: 22 | AJ2: 23 | AK2: 24 | AL2: 25 | AM2: 26 | AN2: 27 | AO2: 28 | AP2: 29 | AQ2: 30 | AR2: 31 | AS2: 32 | AT2: 33 | AU2: 34 | AV2: 35 | AW2: 36 | AX2: 37 | AY2: 38 | AZ2: 39 | BA2: 40 | BB2: 41 | BC2: 42 | BD2: 43 | BE2: 44 | BF2: 45 | BG2: 46 | BH2: 47 | BI2: 48 | BJ2: 49 | BK2: 50 | BL2: 51 | BM2: 52 | BN2: 53 | BO2: 54 | BP2: 55
B3: Start of Period | N3: =M4+1 -> 2017-01-01 | O3: =N4+1 -> 2018-01-01 | P3: 2019-01-01 | Q3: 2020-01-01 | R3: 2021-01-01 | S3: 2022-01-01 | T3: 2023-01-01 | U3: 2024-01-01 | V3: 2025-01-01 | W3: 2026-01-01 | X3: 2027-01-01 | Y3: 2028-01-01 | Z3: 2029-01-01 | AA3: 2030-01-01 | AB3: 2031-01-01 | AC3: 2032-01-01 | AD3: 2033-01-01 | AE3: 2034-01-01 | AF3: 2035-01-01 | AG3: 2036-01-01 | AH3: 2037-01-01 | AI3: 2038-01-01 | AJ3: 2039-01-01 | AK3: 2040-01-01 | AL3: 2041-01-01 | AM3: 2042-01-01 | AN3: 2043-01-01 | AO3: 2044-01-01 | AP3: 2045-01-01 | AQ3: 2046-01-01 | AR3: 2047-01-01 | AS3: 2048-01-01 | AT3: 2049-01-01 | AU3: 2050-01-01 | AV3: 2051-01-01 | AW3: 2052-01-01 | AX3: 2053-01-01 | AY3: 2054-01-01 | AZ3: 2055-01-01 | BA3: 2056-01-01 | BB3: 2057-01-01 | BC3: 2058-01-01 | BD3: 2059-01-01 | BE3: 2060-01-01 | BF3: 2061-01-01 | BG3: 2062-01-01 | BH3: 2063-01-01 | BI3: 2064-01-01 | BJ3: 2065-01-01 | BK3: 2066-01-01 | BL3: 2067-01-01 | BM3: 2068-01-01 | BN3: 2069-01-01 | BO3: 2070-01-01 | BP3: 2071-01-01
B4: End of Period | M4: =Inputs!G3-1 -> 2016-12-31 | N4: =EDATE(N3,12)-1 -> 2017-12-31 | O4: =EDATE(O3,12)-1 -> 2018-12-31 | P4: 2019-12-31 | Q4: 2020-12-31 | R4: 2021-12-31 | S4: 2022-12-31 | T4: 2023-12-31 | U4: 2024-12-31 | V4: 2025-12-31 | W4: 2026-12-31 | X4: 2027-12-31 | Y4: 2028-12-31 | Z4: 2029-12-31 | AA4: 2030-12-31 | AB4: 2031-12-31 | AC4: 2032-12-31 | AD4: 2033-12-31 | AE4: 2034-12-31 | AF4: 2035-12-31 | AG4: 2036-12-31 | AH4: 2037-12-31 | AI4: 2038-12-31 | AJ4: 2039-12-31 | AK4: 2040-12-31 | AL4: 2041-12-31 | AM4: 2042-12-31 | AN4: 2043-12-31 | AO4: 2044-12-31 | AP4: 2045-12-31 | AQ4: 2046-12-31 | AR4: =EDATE(AR3,12)-1 -> 2047-12-31 | AS4: 2048-12-31 | AT4: 2049-12-31 | AU4: 2050-12-31 | AV4: 2051-12-31 | AW4: 2052-12-31 | AX4: 2053-12-31 | AY4: 2054-12-31 | AZ4: 2055-12-31 | BA4: 2056-12-31 | BB4: 2057-12-31 | BC4: 2058-12-31 | BD4: 2059-12-31 | BE4: 2060-12-31 | BF4: 2061-12-31 | BG4: 2062-12-31 | BH4: 2063-12-31 | BI4: 2064-12-31 | BJ4: 2065-12-31 | BK4: 2066-12-31 | BL4: 2067-12-31 | BM4: 2068-12-31 | BN4: 2069-12-31 | BO4: 2070-12-31 | BP4: 2071-12-31
B5: Year | N5: =YEAR(N4) -> 2017 | O5: =YEAR(O4) -> 2018 | P5: 2019 | Q5: 2020 | R5: 2021 | S5: 2022 | T5: 2023 | U5: 2024 | V5: 2025 | W5: 2026 | X5: 2027 | Y5: 2028 | Z5: 2029 | AA5: 2030 | AB5: 2031 | AC5: 2032 | AD5: 2033 | AE5: 2034 | AF5: 2035 | AG5: 2036 | AH5: 2037 | AI5: 2038 | AJ5: 2039 | AK5: 2040 | AL5: 2041 | AM5: 2042 | AN5: 2043 | AO5: 2044 | AP5: 2045 | AQ5: 2046 | AR5: =YEAR(AR4) -> 2047 | AS5: 2048 | AT5: 2049 | AU5: 2050 | AV5: 2051 | AW5: 2052 | AX5: 2053 | AY5: 2054 | AZ5: 2055 | BA5: 2056 | BB5: 2057 | BC5: 2058 | BD5: 2059 | BE5: 2060 | BF5: 2061 | BG5: 2062 | BH5: 2063 | BI5: 2064 | BJ5: 2065 | BK5: 2066 | BL5: 2067 | BM5: 2068 | BN5: 2069 | BO5: 2070 | BP5: 2071
B6: Growth Period | G6: Switch | H6: =YEAR(Inputs!G4)-1 -> 2025 | N6: =N5<=$H$6 -> TRUE | O6: =O5<=$H$6 -> TRUE | P6: TRUE | Q6: TRUE | R6: TRUE | S6: TRUE | T6: TRUE | U6: TRUE | V6: TRUE | W6: =W5<=$H$6 -> FALSE | X6: FALSE | Y6: FALSE | Z6: FALSE | AA6: FALSE | AB6: FALSE | AC6: FALSE | AD6: FALSE | AE6: FALSE | AF6: FALSE | AG6: FALSE | AH6: FALSE | AI6: FALSE | AJ6: FALSE | AK6: FALSE | AL6: FALSE | AM6: FALSE | AN6: FALSE | AO6: FALSE | AP6: FALSE | AQ6: FALSE | AR6: FALSE | AS6: FALSE | AT6: FALSE | AU6: FALSE | AV6: FALSE | AW6: FALSE | AX6: FALSE | AY6: FALSE | AZ6: FALSE | BA6: FALSE | BB6: FALSE | BC6: FALSE | BD6: FALSE | BE6: FALSE | BF6: FALSE | BG6: FALSE | BH6: FALSE | BI6: FALSE | BJ6: FALSE | BK6: FALSE | BL6: FALSE | BM6: FALSE | BN6: FALSE | BO6: FALSE | BP6: FALSE
A7: Capacity and Production
B9: Capacity in hectors
C10: Fazenda Kibala I (6000 ha) | G10: Ha | H10: =Inputs!G8 -> 6000 | I10: Current | J10: =Inputs!H8 -> 6000 | K10: Projected | L10: =Inputs!I8 -> 0 | M10: =H10 -> 6000 | N10: =M10*(1+$L10*N$6) -> 6000 | O10: =N10*(1+$L$10*O$6) -> 6000 | P10: 6000 | Q10: 6000 | R10: 6000 | S10: 6000 | T10: 6000 | U10: 6000 | V10: 6000 | W10: 6000 | X10: 6000 | Y10: 6000 | Z10: 6000 | AA10: 6000 | AB10: 6000 | AC10: 6000 | AD10: 6000 | AE10: 6000 | AF10: 6000 | AG10: 6000 | AH10: 6000 | AI10: 6000 | AJ10: 6000 | AK10: 6000 | AL10: 6000 | AM10: 6000 | AN10: 6000 | AO10: 6000 | AP10: 6000 | AQ10: 6000 | AR10: 6000 | AS10: 6000 | AT10: 6000 | AU10: =AT10*(1+$L$10*AU$6) -> 6000 | AV10: 6000 | AW10: 6000 | AX10: 6000 | AY10: 6000 | AZ10: 6000 | BA10: 6000 | BB10: 6000 | BC10: 6000 | BD10: 6000 | BE10: 6000 | BF10: 6000 | BG10: 6000 | BH10: 6000 | BI10: 6000 | BJ10: 6000 | BK10: 6000 | BL10: 6000 | BM10: 6000 | BN10: 6000 | BO10: 6000 | BP10: 6000
C11: Fazenda Kibala II (600 ha) | G11: Ha | H11: =Inputs!G9 -> 600 | I11: Current | J11: =Inputs!H9 -> 600 | K11: Projected | L11: =Inputs!I9 -> 0 | M11: =H11 -> 600 | N11: =M11*(1+$L$10*N$6) -> 600 | O11: =N11*(1+$L$10*O$6) -> 600 | P11: 600 | Q11: 600 | R11: 600 | S11: 600 | T11: 600 | U11: 600 | V11: 600 | W11: 600 | X11: 600 | Y11: 600 | Z11: 600 | AA11: 600 | AB11: 600 | AC11: 600 | AD11: 600 | AE11: 600 | AF11: 600 | AG11: 600 | AH11: 600 | AI11: 600 | AJ11: 600 | AK11: 600 | AL11: 600 | AM11: 600 | AN11: 600 | AO11: 600 | AP11: 600 | AQ11: 600 | AR11: 600 | AS11: 600 | AT11: 600 | AU11: =AT11*(1+$L$10*AU$6) -> 600 | AV11: 600 | AW11: 600 | AX11: 600 | AY11: 600 | AZ11: 600 | BA11: 600 | BB11: 600 | BC11: 600 | BD11: 600 | BE11: 600 | BF11: 600 | BG11: 600 | BH11: 600 | BI11: 600 | BJ11: 600 | BK11: 600 | BL11: 600 | BM11: 600 | BN11: 600 | BO11: 600 | BP11: 600
C12: Fazenda Caxito yield (classical) | G12: Ha | H12: =Inputs!G10 -> 450 | I12: Current | J12: =Inputs!H10 -> 450 | K12: Projected | L12: =Inputs!I10 -> 0 | M12: =H12 -> 450 | N12: =M12*(1+$L$10*N$6) -> 450 | O12: =N12*(1+$L$10*O$6) -> 450 | P12: 450 | Q12: 450 | R12: 450 | S12: 450 | T12: 450 | U12: 450 | V12: 450 | W12: 450 | X12: 450 | Y12: 450 | Z12: 450 | AA12: 450 | AB12: 450 | AC12: 450 | AD12: 450 | AE12: 450 | AF12: 450 | AG12: 450 | AH12: 450 | AI12: 450 | AJ12: 450 | AK12: 450 | AL12: 450 | AM12: 450 | AN12: 450 | AO12: 450 | AP12: 450 | AQ12: 450 | AR12: 450 | AS12: 450 | AT12: 450 | AU12: =AT12*(1+$L$10*AU$6) -> 450 | AV12: 450 | AW12: 450 | AX12: 450 | AY12: 450 | AZ12: 450 | BA12: 450 | BB12: 450 | BC12: 450 | BD12: 450 | BE12: 450 | BF12: 450 | BG12: 450 | BH12: 450 | BI12: 450 | BJ12: 450 | BK12: 450 | BL12: 450 | BM12: 450 | BN12: 450 | BO12: 450 | BP12: 450
C13: Fazenda Bom Jesus (SRI/SD) | G13: Ha | H13: =Inputs!G11 -> 250 | I13: Current | J13: =Inputs!H11 -> 250 | K13: Projected | L13: =Inputs!I11 -> 0 | M13: =H13 -> 250 | N13: =M13*(1+$L$10*N$6) -> 250 | O13: =N13*(1+$L$10*O$6) -> 250 | P13: 250 | Q13: 250 | R13: 250 | S13: 250 | T13: 250 | U13: 250 | V13: 250 | W13: 250 | X13: 250 | Y13: 250 | Z13: 250 | AA13: 250 | AB13: 250 | AC13: 250 | AD13: 250 | AE13: 250 | AF13: 250 | AG13: 250 | AH13: 250 | AI13: 250 | AJ13: 250 | AK13: 250 | AL13: 250 | AM13: 250 | AN13: 250 | AO13: 250 | AP13: 250 | AQ13: 250 | AR13: 250 | AS13: 250 | AT13: 250 | AU13: =AT13*(1+$L$10*AU$6) -> 250 | AV13: 250 | AW13: 250 | AX13: 250 | AY13: 250 | AZ13: 250 | BA13: 250 | BB13: 250 | BC13: 250 | BD13: 250 | BE13: 250 | BF13: 250 | BG13: 250 | BH13: 250 | BI13: 250 | BJ13: 250 | BK13: 250 | BL13: 250 | BM13: 250 | BN13: 250 | BO13: 250 | BP13: 250
C14: Fazenda Bumba Longa yield (trading) | G14: Ha | H14: =Inputs!G12 -> 0 | I14: Current | J14: =Inputs!H12 -> 0 | K14: Projected | L14: =Inputs!I12 -> 0 | M14: =H14 -> 0 | N14: =M14*(1+$L$10*N$6) -> 0 | O14: =N14*(1+$L$10*O$6) -> 0 | P14: 0 | Q14: 0 | R14: 0 | S14: 0 | T14: 0 | U14: 0 | V14: 0 | W14: 0 | X14: 0 | Y14: 0 | Z14: 0 | AA14: 0 | AB14: 0 | AC14: 0 | AD14: 0 | AE14: 0 | AF14: 0 | AG14: 0 | AH14: 0 | AI14: 0 | AJ14: 0 | AK14: 0 | AL14: 0 | AM14: 0 | AN14: 0 | AO14: 0 | AP14: 0 | AQ14: 0 | AR14: 0 | AS14: 0 | AT14: 0 | AU14: =AT14*(1+$L$10*AU$6) -> 0 | AV14: 0 | AW14: 0 | AX14: 0 | AY14: 0 | AZ14: 0 | BA14: 0 | BB14: 0 | BC14: 0 | BD14: 0 | BE14: 0 | BF14: 0 | BG14: 0 | BH14: 0 | BI14: 0 | BJ14: 0 | BK14: 0 | BL14: 0 | BM14: 0 | BN14: 0 | BO14: 0 | BP14: 0
D15: Total | H15: =SUM(H10:H14) -> 7300 | J15: =SUM(J10:J14) -> 7300 | L15: =Inputs!I13 -> 0 | M15: =SUM(M10:M14) -> 7300 | N15: =SUM(N10:N14) -> 7300 | O15: 7300 | P15: 7300 | Q15: 7300 | R15: 7300 | S15: 7300 | T15: 7300 | U15: 7300 | V15: 7300 | W15: 7300 | X15: 7300 | Y15: 7300 | Z15: 7300 | AA15: 7300 | AB15: 7300 | AC15: 7300 | AD15: 7300 | AE15: 7300 | AF15: 7300 | AG15: 7300 | AH15: 7300 | AI15: 7300 | AJ15: 7300 | AK15: 7300 | AL15: 7300 | AM15: 7300 | AN15: 7300 | AO15: 7300 | AP15: 7300 | AQ15: 7300 | AR15: 7300 | AS15: 7300 | AT15: 7300 | AU15: 7300 | AV15: 7300 | AW15: 7300 | AX15: 7300 | AY15: 7300 | AZ15: 7300 | BA15: 7300 | BB15: 7300 | BC15: 7300 | BD15: 7300 | BE15: 7300 | BF15: 7300 | BG15: 7300 | BH15: 7300 | BI15: 7300 | BJ15: 7300 | BK15: 7300 | BL15: 7300 | BM15: 7300 | BN15: 7300 | BO15: 7300 | BP15: 7300
B17: Land Productively Used
C18: Fazenda Kibala I (6000 ha) | G18: Ha | H18: =Inputs!G16 -> 2823.287671 | I18: Current | J18: =Inputs!H16 -> 6000 | K18: Projected | L18: =Inputs!I16 -> 0.08736999916 | M18: =H18 -> 2823.287671 | N18: =M18*(1+$L18*N$6) -> 3069.958313 | O18: =N18*(1+$L18*O$6) -> 3338.180568 | P18: 3629.837401 | Q18: 3946.976292 | R18: 4291.823607 | S18: 4666.800232 | T18: 5074.538565 | U18: 5517.900995 | V18: 6000 | W18: 6000 | X18: 6000 | Y18: 6000 | Z18: 6000 | AA18: 6000 | AB18: 6000 | AC18: 6000 | AD18: 6000 | AE18: 6000 | AF18: 6000 | AG18: 6000 | AH18: 6000 | AI18: 6000 | AJ18: 6000 | AK18: 6000 | AL18: 6000 | AM18: 6000 | AN18: 6000 | AO18: 6000 | AP18: 6000 | AQ18: 6000 | AR18: 6000 | AS18: 6000 | AT18: 6000 | AU18: 6000 | AV18: 6000 | AW18: 6000 | AX18: 6000 | AY18: 6000 | AZ18: 6000 | BA18: 6000 | BB18: 6000 | BC18: 6000 | BD18: 6000 | BE18: 6000 | BF18: 6000 | BG18: 6000 | BH18: 6000 | BI18: 6000 | BJ18: 6000 | BK18: 6000 | BL18: 6000 | BM18: 6000 | BN18: 6000 | BO18: 6000 | BP18: 6000
C19: Fazenda Kibala II (600 ha) | G19: Ha | H19: =Inputs!G17 -> 282.3287671 | I19: Current | J19: =Inputs!H17 -> 600 | K19: Projected | L19: =Inputs!I17 -> 0.08736999916 | M19: =H19 -> 282.3287671 | N19: =M19*(1+$L19*N$6) -> 306.9958313 | O19: 333.8180568 | P19: 362.9837401 | Q19: 394.6976292 | R19: 429.1823607 | S19: 466.6800232 | T19: 507.4538565 | U19: 551.7900995 | V19: 600 | W19: 600 | X19: 600 | Y19: 600 | Z19: 600 | AA19: 600 | AB19: 600 | AC19: 600 | AD19: 600 | AE19: 600 | AF19: 600 | AG19: 600 | AH19: 600 | AI19: 600 | AJ19: 600 | AK19: 600 | AL19: 600 | AM19: 600 | AN19: 600 | AO19: 600 | AP19: 600 | AQ19: 600 | AR19: 600 | AS19: 600 | AT19: 600 | AU19: 600 | AV19: 600 | AW19: 600 | AX19: 600 | AY19: 600 | AZ19: 600 | BA19: 600 | BB19: 600 | BC19: 600 | BD19: 600 | BE19: 600 | BF19: 600 | BG19: 600 | BH19: 600 | BI19: 600 | BJ19: 600 | BK19: 600 | BL19: 600 | BM19: 600 | BN19: 600 | BO19: 600 | BP19: 600
C20: Fazenda Caxito yield (classical) | G20: Ha | H20: =Inputs!G18 -> 211.7465753 | I20: Current | J20: =Inputs!H18 -> 450 | K20: Projected | L20: =Inputs!I18 -> 0.08736999916 | M20: =H20 -> 211.7465753 | N20: =M20*(1+$L20*N$6) -> 230.2468735 | O20: 250.3635426 | P20: 272.2378051 | Q20: 296.0232219 | R20: 321.8867705 | S20: 350.0100174 | T20: 380.5903923 | U20: 413.8425746 | V20: 450 | W20: 450 | X20: 450 | Y20: 450 | Z20: 450 | AA20: 450 | AB20: 450 | AC20: 450 | AD20: 450 | AE20: 450 | AF20: 450 | AG20: 450 | AH20: 450 | AI20: 450 | AJ20: 450 | AK20: 450 | AL20: 450 | AM20: 450 | AN20: 450 | AO20: 450 | AP20: 450 | AQ20: 450 | AR20: 450 | AS20: 450 | AT20: 450 | AU20: 450 | AV20: 450 | AW20: 450 | AX20: 450 | AY20: 450 | AZ20: 450 | BA20: 450 | BB20: 450 | BC20: 450 | BD20: 450 | BE20: 450 | BF20: 450 | BG20: 450 | BH20: 450 | BI20: 450 | BJ20: 450 | BK20: 450 | BL20: 450 | BM20: 450 | BN20: 450 | BO20: 450 | BP20: 450
C21: Fazenda Bom Jesus (SRI/SD) | G21: Ha | H21: =Inputs!G19 -> 117.6369863 | I21: Current | J21: =Inputs!H19 -> 250 | K21: Projected | L21: =Inputs!I19 -> 0.08736999916 | M21: =H21 -> 117.6369863 | N21: =M21*(1+$L21*N$6) -> 127.9149297 | O21: 139.090857 | P21: 151.2432251 | Q21: 164.4573455 | R21: 178.8259836 | S21: 194.4500097 | T21: 211.4391069 | U21: 229.9125414 | V21: 250 | W21: 250 | X21: 250 | Y21: 250 | Z21: 250 | AA21: 250 | AB21: 250 | AC21: 250 | AD21: 250 | AE21: 250 | AF21: 250 | AG21: 250 | AH21: 250 | AI21: 250 | AJ21: 250 | AK21: 250 | AL21: 250 | AM21: 250 | AN21: 250 | AO21: 250 | AP21: 250 | AQ21: 250 | AR21: 250 | AS21: 250 | AT21: 250 | AU21: 250 | AV21: 250 | AW21: 250 | AX21: 250 | AY21: 250 | AZ21: 250 | BA21: 250 | BB21: 250 | BC21: 250 | BD21: 250 | BE21: 250 | BF21: 250 | BG21: 250 | BH21: 250 | BI21: 250 | BJ21: 250 | BK21: 250 | BL21: 250 | BM21: 250 | BN21: 250 | BO21: 250 | BP21: 250
C22: Fazenda Bumba Longa yield (trading) | G22: Ha | H22: =Inputs!G20 -> 0 | I22: Current | J22: =Inputs!H20 -> 0 | K22: Projected | L22: =Inputs!I20 -> 0 | M22: =H22 -> 0 | N22: =M22*(1+$L22*N$6) -> 0 | O22: 0 | P22: 0 | Q22: 0 | R22: 0 | S22: 0 | T22: 0 | U22: 0 | V22: 0 | W22: 0 | X22: 0 | Y22: 0 | Z22: 0 | AA22: 0 | AB22: 0 | AC22: 0 | AD22: 0 | AE22: 0 | AF22: 0 | AG22: 0 | AH22: 0 | AI22: 0 | AJ22: 0 | AK22: 0 | AL22: 0 | AM22: 0 | AN22: 0 | AO22: 0 | AP22: 0 | AQ22: 0 | AR22: 0 | AS22: 0 | AT22: 0 | AU22: 0 | AV22: 0 | AW22: 0 | AX22: 0 | AY22: 0 | AZ22: 0 | BA22: 0 | BB22: 0 | BC22: 0 | BD22: 0 | BE22: 0 | BF22: 0 | BG22: 0 | BH22: 0 | BI22: 0 | BJ22: 0 | BK22: 0 | BL22: 0 | BM22: 0 | BN22: 0 | BO22: 0 | BP22: 0
D23: Total | H23: =SUM(H18:H22) -> 3435 | J23: =SUM(J18:J22) -> 7300 | L23: =Inputs!I21 -> 0.08736999916 | M23: =SUM(M18:M22) -> 3435 | N23: =SUM(N18:N22) -> 3735.115947 | O23: 4061.453024 | P23: 4416.302172 | Q23: 4802.154489 | R23: 5221.718722 | S23: 5677.940283 | T23: 6174.02192 | U23: 6713.44621 | V23: 7300 | W23: 7300 | X23: 7300 | Y23: 7300 | Z23: 7300 | AA23: 7300 | AB23: 7300 | AC23: 7300 | AD23: 7300 | AE23: 7300 | AF23: 7300 | AG23: 7300 | AH23: 7300 | AI23: 7300 | AJ23: 7300 | AK23: 7300 | AL23: 7300 | AM23: 7300 | AN23: 7300 | AO23: 7300 | AP23: 7300 | AQ23: 7300 | AR23: 7300 | AS23: 7300 | AT23: 7300 | AU23: 7300 | AV23: 7300 | AW23: 7300 | AX23: 7300 | AY23: 7300 | AZ23: 7300 | BA23: 7300 | BB23: 7300 | BC23: 7300 | BD23: 7300 | BE23: 7300 | BF23: 7300 | BG23: 7300 | BH23: 7300 | BI23: 7300 | BJ23: 7300 | BK23: 7300 | BL23: 7300 | BM23: 7300 | BN23: 7300 | BO23: 7300 | BP23: 7300
B25: Productivity of Agriculture (Tons/Ha) | H25: =Sensitivities!$E$21 -> 0.75 | L25: =Sensitivities!$F$21 -> 1
C26: =C10 -> Fazenda Kibala I (6000 ha) | G26: Tons/Ha | H26: =Inputs!G24 -> 75.8224163 | I26: Current | J26: =Inputs!H24 -> 118.504973 | K26: Projected | L26: =Inputs!I24*$L$25 -> 0.0508694646 | M26: =H26*$H$25 -> 56.86681223 | N26: =M26*(1+$L26*N$6) -> 59.75959652 | O26: =N26*(1+$L26*O$6) -> 62.7995352 | P26: 65.99411393 | Q26: 69.35119917 | R26: 72.87905754 | S26: 76.58637618 | T26: 80.48228413 | U26: 84.57637484 | V26: 88.87872974 | W26: 88.87872974 | X26: 88.87872974 | Y26: 88.87872974 | Z26: 88.87872974 | AA26: 88.87872974 | AB26: 88.87872974 | AC26: 88.87872974 | AD26: 88.87872974 | AE26: 88.87872974 | AF26: 88.87872974 | AG26: 88.87872974 | AH26: 88.87872974 | AI26: 88.87872974 | AJ26: 88.87872974 | AK26: 88.87872974 | AL26: 88.87872974 | AM26: 88.87872974 | AN26: 88.87872974 | AO26: 88.87872974 | AP26: 88.87872974 | AQ26: 88.87872974 | AR26: 88.87872974 | AS26: 88.87872974 | AT26: 88.87872974 | AU26: 88.87872974 | AV26: 88.87872974 | AW26: 88.87872974 | AX26: 88.87872974 | AY26: 88.87872974 | AZ26: 88.87872974 | BA26: 88.87872974 | BB26: 88.87872974 | BC26: 88.87872974 | BD26: 88.87872974 | BE26: 88.87872974 | BF26: 88.87872974 | BG26: 88.87872974 | BH26: 88.87872974 | BI26: 88.87872974 | BJ26: 88.87872974 | BK26: 88.87872974 | BL26: 88.87872974 | BM26: 88.87872974 | BN26: 88.87872974 | BO26: 88.87872974 | BP26: 88.87872974
C27: =C11 -> Fazenda Kibala II (600 ha) | G27: Tons/Ha | H27: =Inputs!G25 -> 75.8224163 | I27: Current | J27: =Inputs!H25 -> 118.504973 | K27: Projected | L27: =Inputs!I25*$L$25 -> 0.0508694646 | M27: =H27*$H$25 -> 56.86681223 | N27: =M27*(1+$L27*N$6) -> 59.75959652 | O27: 62.7995352 | P27: 65.99411393 | Q27: 69.35119917 | R27: 72.87905754 | S27: 76.58637618 | T27: 80.48228413 | U27: 84.57637484 | V27: 88.87872974 | W27: 88.87872974 | X27: 88.87872974 | Y27: 88.87872974 | Z27: 88.87872974 | AA27: 88.87872974 | AB27: 88.87872974 | AC27: 88.87872974 | AD27: 88.87872974 | AE27: 88.87872974 | AF27: 88.87872974 | AG27: 88.87872974 | AH27: 88.87872974 | AI27: 88.87872974 | AJ27: 88.87872974 | AK27: 88.87872974 | AL27: 88.87872974 | AM27: 88.87872974 | AN27: 88.87872974 | AO27: 88.87872974 | AP27: 88.87872974 | AQ27: 88.87872974 | AR27: 88.87872974 | AS27: 88.87872974 | AT27: 88.87872974 | AU27: 88.87872974 | AV27: 88.87872974 | AW27: 88.87872974 | AX27: 88.87872974 | AY27: 88.87872974 | AZ27: 88.87872974 | BA27: 88.87872974 | BB27: 88.87872974 | BC27: 88.87872974 | BD27: 88.87872974 | BE27: 88.87872974 | BF27: 88.87872974 | BG27: 88.87872974 | BH27: 88.87872974 | BI27: 88.87872974 | BJ27: 88.87872974 | BK27: 88.87872974 | BL27: 88.87872974 | BM27: 88.87872974 | BN27: 88.87872974 | BO27: 88.87872974 | BP27: 88.87872974
C28: =C12 -> Fazenda Caxito yield (classical) | G28: Tons/Ha | H28: =Inputs!G26 -> 75.8224163 | I28: Current | J28: =Inputs!H26 -> 118.504973 | K28: Projected | L28: =Inputs!I26*$L$25 -> 0.0508694646 | M28: 56.86681223 | N28: 59.75959652 | O28: 62.7995352 | P28: 65.99411393 | Q28: 69.35119917 | R28: 72.87905754 | S28: 76.58637618 | T28: 80.48228413 | U28: 84.57637484 | V28: 88.87872974 | W28: 88.87872974 | X28: 88.87872974 | Y28: 88.87872974 | Z28: 88.87872974 | AA28: 88.87872974 | AB28: 88.87872974 | AC28: 88.87872974 | AD28: 88.87872974 | AE28: 88.87872974 | AF28: 88.87872974 | AG28: 88.87872974 | AH28: 88.87872974 | AI28: 88.87872974 | AJ28: 88.87872974 | AK28: 88.87872974 | AL28: 88.87872974 | AM28: 88.87872974 | AN28: 88.87872974 | AO28: 88.87872974 | AP28: 88.87872974 | AQ28: 88.87872974 | AR28: 88.87872974 | AS28: 88.87872974 | AT28: 88.87872974 | AU28: 88.87872974 | AV28: 88.87872974 | AW28: 88.87872974 | AX28: 88.87872974 | AY28: 88.87872974 | AZ28: 88.87872974 | BA28: 88.87872974 | BB28: 88.87872974 | BC28: 88.87872974 | BD28: 88.87872974 | BE28: 88.87872974 | BF28: 88.87872974 | BG28: 88.87872974 | BH28: 88.87872974 | BI28: 88.87872974 | BJ28: 88.87872974 | BK28: 88.87872974 | BL28: 88.87872974 | BM28: 88.87872974 | BN28: 88.87872974 | BO28: 88.87872974 | BP28: 88.87872974
C29: =C13 -> Fazenda Bom Jesus (SRI/SD) | G29: Tons/Ha | H29: =Inputs!G27 -> 75.8224163 | I29: Current | J29: =Inputs!H27 -> 118.504973 | K29: Projected | L29: =Inputs!I27*$L$25 -> 0.0508694646 | M29: 56.86681223 | N29: 59.75959652 | O29: 62.7995352 | P29: 65.99411393 | Q29: 69.35119917 | R29: 72.87905754 | S29: 76.58637618 | T29: 80.48228413 | U29: 84.57637484 | V29: 88.87872974 | W29: 88.87872974 | X29: 88.87872974 | Y29: 88.87872974 | Z29: 88.87872974 | AA29: 88.87872974 | AB29: 88.87872974 | AC29: 88.87872974 | AD29: 88.87872974 | AE29: 88.87872974 | AF29: 88.87872974 | AG29: 88.87872974 | AH29: 88.87872974 | AI29: 88.87872974 | AJ29: 88.87872974 | AK29: 88.87872974 | AL29: 88.87872974 | AM29: 88.87872974 | AN29: 88.87872974 | AO29: 88.87872974 | AP29: 88.87872974 | AQ29: 88.87872974 | AR29: 88.87872974 | AS29: 88.87872974 | AT29: 88.87872974 | AU29: 88.87872974 | AV29: 88.87872974 | AW29: 88.87872974 | AX29: 88.87872974 | AY29: 88.87872974 | AZ29: 88.87872974 | BA29: 88.87872974 | BB29: 88.87872974 | BC29: 88.87872974 | BD29: 88.87872974 | BE29: 88.87872974 | BF29: 88.87872974 | BG29: 88.87872974 | BH29: 88.87872974 | BI29: 88.87872974 | BJ29: 88.87872974 | BK29: 88.87872974 | BL29: 88.87872974 | BM29: 88.87872974 | BN29: 88.87872974 | BO29: 88.87872974 | BP29: 88.87872974
C30: =C14 -> Fazenda Bumba Longa yield (trading) | G30: Tons/Ha | H30: =Inputs!G28 -> 75.8224163 | I30: Current | J30: =Inputs!H28 -> 118.504973 | K30: Projected | L30: =Inputs!I28*$L$25 -> 0.0508694646 | M30: 56.86681223 | N30: 59.75959652 | O30: 62.7995352 | P30: 65.99411393 | Q30: 69.35119917 | R30: 72.87905754 | S30: 76.58637618 | T30: 80.48228413 | U30: 84.57637484 | V30: 88.87872974 | W30: 88.87872974 | X30: 88.87872974 | Y30: 88.87872974 | Z30: 88.87872974 | AA30: 88.87872974 | AB30: 88.87872974 | AC30: 88.87872974 | AD30: 88.87872974 | AE30: 88.87872974 | AF30: 88.87872974 | AG30: 88.87872974 | AH30: 88.87872974 | AI30: 88.87872974 | AJ30: 88.87872974 | AK30: 88.87872974 | AL30: 88.87872974 | AM30: 88.87872974 | AN30: 88.87872974 | AO30: 88.87872974 | AP30: 88.87872974 | AQ30: 88.87872974 | AR30: 88.87872974 | AS30: 88.87872974 | AT30: 88.87872974 | AU30: 88.87872974 | AV30: 88.87872974 | AW30: 88.87872974 | AX30: 88.87872974 | AY30: 88.87872974 | AZ30: 88.87872974 | BA30: 88.87872974 | BB30: 88.87872974 | BC30: 88.87872974 | BD30: 88.87872974 | BE30: 88.87872974 | BF30: 88.87872974 | BG30: 88.87872974 | BH30: 88.87872974 | BI30: 88.87872974 | BJ30: 88.87872974 | BK30: 88.87872974 | BL30: 88.87872974 | BM30: 88.87872974 | BN30: 88.87872974 | BO30: 88.87872974 | BP30: 88.87872974
B32: Total Production (Tons)
C33: =C26 -> Fazenda Kibala I (6000 ha) | G33: Tons | M33: =M18*M26 -> 160551.3699 | N33: =N18*N26 -> 183459.4701 | O33: 209636.1881 | P33: 239547.903 | Q33: 273727.539 | R33: 312784.0596 | S33: 357413.3181 | T33: 408410.4546 | U33: 466684.0628 | V33: 533272.3784 | W33: 533272.3784 | X33: 533272.3784 | Y33: 533272.3784 | Z33: 533272.3784 | AA33: 533272.3784 | AB33: 533272.3784 | AC33: 533272.3784 | AD33: 533272.3784 | AE33: 533272.3784 | AF33: 533272.3784 | AG33: 533272.3784 | AH33: 533272.3784 | AI33: 533272.3784 | AJ33: 533272.3784 | AK33: 533272.3784 | AL33: 533272.3784 | AM33: 533272.3784 | AN33: 533272.3784 | AO33: 533272.3784 | AP33: 533272.3784 | AQ33: 533272.3784 | AR33: 533272.3784 | AS33: 533272.3784 | AT33: 533272.3784 | AU33: 533272.3784 | AV33: 533272.3784 | AW33: 533272.3784 | AX33: 533272.3784 | AY33: 533272.3784 | AZ33: 533272.3784 | BA33: 533272.3784 | BB33: 533272.3784 | BC33: 533272.3784 | BD33: 533272.3784 | BE33: 533272.3784 | BF33: 533272.3784 | BG33: 533272.3784 | BH33: 533272.3784 | BI33: 533272.3784 | BJ33: 533272.3784 | BK33: 533272.3784 | BL33: 533272.3784 | BM33: 533272.3784 | BN33: 533272.3784 | BO33: 533272.3784 | BP33: 533272.3784
C34: =C27 -> Fazenda Kibala II (600 ha) | G34: Tons | M34: =M19*M27 -> 16055.13699 | N34: 18345.94701 | O34: 20963.61881 | P34: 23954.7903 | Q34: 27372.7539 | R34: 31278.40596 | S34: 35741.33181 | T34: 40841.04546 | U34: 46668.40628 | V34: 53327.23784 | W34: 53327.23784 | X34: 53327.23784 | Y34: 53327.23784 | Z34: 53327.23784 | AA34: 53327.23784 | AB34: 53327.23784 | AC34: 53327.23784 | AD34: 53327.23784 | AE34: 53327.23784 | AF34: 53327.23784 | AG34: 53327.23784 | AH34: 53327.23784 | AI34: 53327.23784 | AJ34: 53327.23784 | AK34: 53327.23784 | AL34: 53327.23784 | AM34: 53327.23784 | AN34: 53327.23784 | AO34: 53327.23784 | AP34: 53327.23784 | AQ34: 53327.23784 | AR34: 53327.23784 | AS34: 53327.23784 | AT34: 53327.23784 | AU34: 53327.23784 | AV34: 53327.23784 | AW34: 53327.23784 | AX34: 53327.23784 | AY34: 53327.23784 | AZ34: 53327.23784 | BA34: 53327.23784 | BB34: 53327.23784 | BC34: 53327.23784 | BD34: 53327.23784 | BE34: 53327.23784 | BF34: 53327.23784 | BG34: 53327.23784 | BH34: 53327.23784 | BI34: 53327.23784 | BJ34: 53327.23784 | BK34: 53327.23784 | BL34: 53327.23784 | BM34: 53327.23784 | BN34: 53327.23784 | BO34: 53327.23784 | BP34: 53327.23784
C35: =C28 -> Fazenda Caxito yield (classical) | G35: Tons | M35: 12041.35274 | N35: 13759.46026 | O35: 15722.71411 | P35: 17966.09273 | Q35: 20529.56542 | R35: 23458.80447 | S35: 26805.99886 | T35: 30630.78409 | U35: 35001.30471 | V35: 39995.42838 | W35: 39995.42838 | X35: 39995.42838 | Y35: 39995.42838 | Z35: 39995.42838 | AA35: 39995.42838 | AB35: 39995.42838 | AC35: 39995.42838 | AD35: 39995.42838 | AE35: 39995.42838 | AF35: 39995.42838 | AG35: 39995.42838 | AH35: 39995.42838 | AI35: 39995.42838 | AJ35: 39995.42838 | AK35: 39995.42838 | AL35: 39995.42838 | AM35: 39995.42838 | AN35: 39995.42838 | AO35: 39995.42838 | AP35: 39995.42838 | AQ35: 39995.42838 | AR35: 39995.42838 | AS35: 39995.42838 | AT35: 39995.42838 | AU35: 39995.42838 | AV35: 39995.42838 | AW35: 39995.42838 | AX35: 39995.42838 | AY35: 39995.42838 | AZ35: 39995.42838 | BA35: 39995.42838 | BB35: 39995.42838 | BC35: 39995.42838 | BD35: 39995.42838 | BE35: 39995.42838 | BF35: 39995.42838 | BG35: 39995.42838 | BH35: 39995.42838 | BI35: 39995.42838 | BJ35: 39995.42838 | BK35: 39995.42838 | BL35: 39995.42838 | BM35: 39995.42838 | BN35: 39995.42838 | BO35: 39995.42838 | BP35: 39995.42838
C36: =C29 -> Fazenda Bom Jesus (SRI/SD) | G36: Tons | M36: 6689.640411 | N36: 7644.144587 | O36: 8734.84117 | P36: 9981.162625 | Q36: 11405.31412 | R36: 13032.66915 | S36: 14892.22159 | T36: 17017.10227 | U36: 19445.16928 | V36: 22219.68244 | W36: 22219.68244 | X36: 22219.68244 | Y36: 22219.68244 | Z36: 22219.68244 | AA36: 22219.68244 | AB36: 22219.68244 | AC36: 22219.68244 | AD36: 22219.68244 | AE36: 22219.68244 | AF36: 22219.68244 | AG36: 22219.68244 | AH36: 22219.68244 | AI36: 22219.68244 | AJ36: 22219.68244 | AK36: 22219.68244 | AL36: 22219.68244 | AM36: 22219.68244 | AN36: 22219.68244 | AO36: 22219.68244 | AP36: 22219.68244 | AQ36: 22219.68244 | AR36: 22219.68244 | AS36: 22219.68244 | AT36: 22219.68244 | AU36: 22219.68244 | AV36: 22219.68244 | AW36: 22219.68244 | AX36: 22219.68244 | AY36: 22219.68244 | AZ36: 22219.68244 | BA36: 22219.68244 | BB36: 22219.68244 | BC36: 22219.68244 | BD36: 22219.68244 | BE36: 22219.68244 | BF36: 22219.68244 | BG36: 22219.68244 | BH36: 22219.68244 | BI36: 22219.68244 | BJ36: 22219.68244 | BK36: 22219.68244 | BL36: 22219.68244 | BM36: 22219.68244 | BN36: 22219.68244 | BO36: 22219.68244 | BP36: 22219.68244
C37: =C30 -> Fazenda Bumba Longa yield (trading) | G37: Tons | M37: 0 | N37: 0 | O37: 0 | P37: 0 | Q37: 0 | R37: 0 | S37: 0 | T37: 0 | U37: 0 | V37: 0 | W37: 0 | X37: 0 | Y37: 0 | Z37: 0 | AA37: 0 | AB37: 0 | AC37: 0 | AD37: 0 | AE37: 0 | AF37: 0 | AG37: 0 | AH37: 0 | AI37: 0 | AJ37: 0 | AK37: 0 | AL37: 0 | AM37: 0 | AN37: 0 | AO37: 0 | AP37: 0 | AQ37: 0 | AR37: 0 | AS37: 0 | AT37: 0 | AU37: 0 | AV37: 0 | AW37: 0 | AX37: 0 | AY37: 0 | AZ37: 0 | BA37: 0 | BB37: 0 | BC37: 0 | BD37: 0 | BE37: 0 | BF37: 0 | BG37: 0 | BH37: 0 | BI37: 0 | BJ37: 0 | BK37: 0 | BL37: 0 | BM37: 0 | BN37: 0 | BO37: 0 | BP37: 0
D38: Total | G38: Tons | M38: =SUM(M33:M37) -> 195337.5 | N38: =SUM(N33:N37) -> 223209.0219 | O38: 255057.3622 | P38: 291449.9487 | Q38: 333035.1724 | R38: 380553.9392 | S38: 434852.8704 | T38: 496899.3864 | U38: 567798.9431 | V38: 648814.7271 | W38: 648814.7271 | X38: 648814.7271 | Y38: 648814.7271 | Z38: 648814.7271 | AA38: 648814.7271 | AB38: 648814.7271 | AC38: 648814.7271 | AD38: 648814.7271 | AE38: 648814.7271 | AF38: 648814.7271 | AG38: 648814.7271 | AH38: 648814.7271 | AI38: 648814.7271 | AJ38: 648814.7271 | AK38: 648814.7271 | AL38: 648814.7271 | AM38: 648814.7271 | AN38: 648814.7271 | AO38: 648814.7271 | AP38: 648814.7271 | AQ38: 648814.7271 | AR38: 648814.7271 | AS38: 648814.7271 | AT38: 648814.7271 | AU38: 648814.7271 | AV38: 648814.7271 | AW38: 648814.7271 | AX38: 648814.7271 | AY38: 648814.7271 | AZ38: 648814.7271 | BA38: 648814.7271 | BB38: 648814.7271 | BC38: 648814.7271 | BD38: 648814.7271 | BE38: 648814.7271 | BF38: 648814.7271 | BG38: 648814.7271 | BH38: 648814.7271 | BI38: 648814.7271 | BJ38: 648814.7271 | BK38: 648814.7271 | BL38: 648814.7271 | BM38: 648814.7271 | BN38: 648814.7271 | BO38: 648814.7271 | BP38: 648814.7271
B40: Production by Agricultural Product
C41: Horticulture | H41: Percent | I41: Price AOA | J41: Price USD
D42: Pumpkin | G42: Tons | H42: =Inputs!G47 -> 0.01842964101 | I42: =Inputs!H47 -> 80000 | M42: =M$38*$H42 -> 3600 | N42: =N$38*$H42 -> 4113.662144 | O42: =O$38*$H42 -> 4700.61562 | P42: 5371.317925 | Q42: 6137.71867 | R42: 7013.472483 | S42: 8014.182292 | T42: 9157.677308 | U42: 10464.33069 | V42: 11957.4225 | W42: 11957.4225 | X42: 11957.4225 | Y42: 11957.4225 | Z42: 11957.4225 | AA42: 11957.4225 | AB42: 11957.4225 | AC42: 11957.4225 | AD42: 11957.4225 | AE42: 11957.4225 | AF42: 11957.4225 | AG42: 11957.4225 | AH42: 11957.4225 | AI42: 11957.4225 | AJ42: 11957.4225 | AK42: 11957.4225 | AL42: 11957.4225 | AM42: 11957.4225 | AN42: 11957.4225 | AO42: 11957.4225 | AP42: 11957.4225 | AQ42: 11957.4225 | AR42: 11957.4225 | AS42: 11957.4225 | AT42: 11957.4225 | AU42: 11957.4225 | AV42: 11957.4225 | AW42: 11957.4225 | AX42: 11957.4225 | AY42: 11957.4225 | AZ42: 11957.4225 | BA42: 11957.4225 | BB42: 11957.4225 | BC42: 11957.4225 | BD42: 11957.4225 | BE42: 11957.4225 | BF42: 11957.4225 | BG42: 11957.4225 | BH42: 11957.4225 | BI42: 11957.4225 | BJ42: 11957.4225 | BK42: 11957.4225 | BL42: 11957.4225 | BM42: 11957.4225 | BN42: 11957.4225 | BO42: 11957.4225 | BP42: 11957.4225
D43: Lettuce | G43: Tons | H43: =Inputs!G48 -> 0.01919754271 | I43: =Inputs!H48 -> 195000 | M43: =M$38*$H43 -> 3750 | N43: 4285.064733 | O43: 4896.474605 | P43: 5595.122839 | Q43: 6393.456947 | R43: 7305.700504 | S43: 8348.106554 | T43: 9539.247196 | U43: 10900.34446 | V43: 12455.64844 | W43: 12455.64844 | X43: 12455.64844 | Y43: 12455.64844 | Z43: 12455.64844 | AA43: 12455.64844 | AB43: 12455.64844 | AC43: 12455.64844 | AD43: 12455.64844 | AE43: 12455.64844 | AF43: 12455.64844 | AG43: 12455.64844 | AH43: 12455.64844 | AI43: 12455.64844 | AJ43: 12455.64844 | AK43: 12455.64844 | AL43: 12455.64844 | AM43: 12455.64844 | AN43: 12455.64844 | AO43: 12455.64844 | AP43: 12455.64844 | AQ43: 12455.64844 | AR43: 12455.64844 | AS43: 12455.64844 | AT43: 12455.64844 | AU43: 12455.64844 | AV43: 12455.64844 | AW43: 12455.64844 | AX43: 12455.64844 | AY43: 12455.64844 | AZ43: 12455.64844 | BA43: 12455.64844 | BB43: 12455.64844 | BC43: 12455.64844 | BD43: 12455.64844 | BE43: 12455.64844 | BF43: 12455.64844 | BG43: 12455.64844 | BH43: 12455.64844 | BI43: 12455.64844 | BJ43: 12455.64844 | BK43: 12455.64844 | BL43: 12455.64844 | BM43: 12455.64844 | BN43: 12455.64844 | BO43: 12455.64844 | BP43: 12455.64844
D44: French Garlic | G44: Tons | H44: =Inputs!G49 -> 0.007679017086 | I44: =Inputs!H49 -> 300000 | M44: 1500 | N44: 1714.025893 | O44: 1958.589842 | P44: 2238.049135 | Q44: 2557.382779 | R44: 2922.280201 | S44: 3339.242622 | T44: 3815.698878 | U44: 4360.137786 | V44: 4982.259375 | W44: 4982.259375 | X44: 4982.259375 | Y44: 4982.259375 | Z44: 4982.259375 | AA44: 4982.259375 | AB44: 4982.259375 | AC44: 4982.259375 | AD44: 4982.259375 | AE44: 4982.259375 | AF44: 4982.259375 | AG44: 4982.259375 | AH44: 4982.259375 | AI44: 4982.259375 | AJ44: 4982.259375 | AK44: 4982.259375 | AL44: 4982.259375 | AM44: 4982.259375 | AN44: 4982.259375 | AO44: 4982.259375 | AP44: 4982.259375 | AQ44: 4982.259375 | AR44: 4982.259375 | AS44: 4982.259375 | AT44: 4982.259375 | AU44: 4982.259375 | AV44: 4982.259375 | AW44: 4982.259375 | AX44: 4982.259375 | AY44: 4982.259375 | AZ44: 4982.259375 | BA44: 4982.259375 | BB44: 4982.259375 | BC44: 4982.259375 | BD44: 4982.259375 | BE44: 4982.259375 | BF44: 4982.259375 | BG44: 4982.259375 | BH44: 4982.259375 | BI44: 4982.259375 | BJ44: 4982.259375 | BK44: 4982.259375 | BL44: 4982.259375 | BM44: 4982.259375 | BN44: 4982.259375 | BO44: 4982.259375 | BP44: 4982.259375
D45: Potato | G45: Tons | H45: =Inputs!G50 -> 0.08638894222 | I45: =Inputs!H50 -> 66700 | M45: 16875 | N45: 19282.7913 | O45: 22034.13572 | P45: 25178.05277 | Q45: 28770.55626 | R45: 32875.65227 | S45: 37566.47949 | T45: 42926.61238 | U45: 49051.55009 | V45: 56050.41797 | W45: 56050.41797 | X45: 56050.41797 | Y45: 56050.41797 | Z45: 56050.41797 | AA45: 56050.41797 | AB45: 56050.41797 | AC45: 56050.41797 | AD45: 56050.41797 | AE45: 56050.41797 | AF45: 56050.41797 | AG45: 56050.41797 | AH45: 56050.41797 | AI45: 56050.41797 | AJ45: 56050.41797 | AK45: 56050.41797 | AL45: 56050.41797 | AM45: 56050.41797 | AN45: 56050.41797 | AO45: 56050.41797 | AP45: 56050.41797 | AQ45: 56050.41797 | AR45: 56050.41797 | AS45: 56050.41797 | AT45: 56050.41797 | AU45: 56050.41797 | AV45: 56050.41797 | AW45: 56050.41797 | AX45: 56050.41797 | AY45: 56050.41797 | AZ45: 56050.41797 | BA45: 56050.41797 | BB45: 56050.41797 | BC45: 56050.41797 | BD45: 56050.41797 | BE45: 56050.41797 | BF45: 56050.41797 | BG45: 56050.41797 | BH45: 56050.41797 | BI45: 56050.41797 | BJ45: 56050.41797 | BK45: 56050.41797 | BL45: 56050.41797 | BM45: 56050.41797 | BN45: 56050.41797 | BO45: 56050.41797 | BP45: 56050.41797
D46: Bringel | G46: Tons | H46: =Inputs!G51 -> 0.004607410251 | I46: =Inputs!H51 -> 60000 | M46: 900 | N46: 1028.415536 | O46: 1175.153905 | P46: 1342.829481 | Q46: 1534.429667 | R46: 1753.368121 | S46: 2003.545573 | T46: 2289.419327 | U46: 2616.082671 | V46: 2989.355625 | W46: 2989.355625 | X46: 2989.355625 | Y46: 2989.355625 | Z46: 2989.355625 | AA46: 2989.355625 | AB46: 2989.355625 | AC46: 2989.355625 | AD46: 2989.355625 | AE46: 2989.355625 | AF46: 2989.355625 | AG46: 2989.355625 | AH46: 2989.355625 | AI46: 2989.355625 | AJ46: 2989.355625 | AK46: 2989.355625 | AL46: 2989.355625 | AM46: 2989.355625 | AN46: 2989.355625 | AO46: 2989.355625 | AP46: 2989.355625 | AQ46: 2989.355625 | AR46: 2989.355625 | AS46: 2989.355625 | AT46: 2989.355625 | AU46: 2989.355625 | AV46: 2989.355625 | AW46: 2989.355625 | AX46: 2989.355625 | AY46: 2989.355625 | AZ46: 2989.355625 | BA46: 2989.355625 | BB46: 2989.355625 | BC46: 2989.355625 | BD46: 2989.355625 | BE46: 2989.355625 | BF46: 2989.355625 | BG46: 2989.355625 | BH46: 2989.355625 | BI46: 2989.355625 | BJ46: 2989.355625 | BK46: 2989.355625 | BL46: 2989.355625 | BM46: 2989.355625 | BN46: 2989.355625 | BO46: 2989.355625 | BP46: 2989.355625
D47: Beetroot | G47: Tons | H47: =Inputs!G52 -> 0.02457285467 | I47: =Inputs!H52 -> 120000 | M47: 4800 | N47: 5484.882858 | O47: 6267.487494 | P47: 7161.757233 | Q47: 8183.624893 | R47: 9351.296645 | S47: 10685.57639 | T47: 12210.23641 | U47: 13952.44091 | V47: 15943.23 | W47: 15943.23 | X47: 15943.23 | Y47: 15943.23 | Z47: 15943.23 | AA47: 15943.23 | AB47: 15943.23 | AC47: 15943.23 | AD47: 15943.23 | AE47: 15943.23 | AF47: 15943.23 | AG47: 15943.23 | AH47: 15943.23 | AI47: 15943.23 | AJ47: 15943.23 | AK47: 15943.23 | AL47: 15943.23 | AM47: 15943.23 | AN47: 15943.23 | AO47: 15943.23 | AP47: 15943.23 | AQ47: 15943.23 | AR47: 15943.23 | AS47: 15943.23 | AT47: 15943.23 | AU47: 15943.23 | AV47: 15943.23 | AW47: 15943.23 | AX47: 15943.23 | AY47: 15943.23 | AZ47: 15943.23 | BA47: 15943.23 | BB47: 15943.23 | BC47: 15943.23 | BD47: 15943.23 | BE47: 15943.23 | BF47: 15943.23 | BG47: 15943.23 | BH47: 15943.23 | BI47: 15943.23 | BJ47: 15943.23 | BK47: 15943.23 | BL47: 15943.23 | BM47: 15943.23 | BN47: 15943.23 | BO47: 15943.23 | BP47: 15943.23
D48: Brocolli | G48: Tons | H48: =Inputs!G53 -> 0.01209445191 | I48: =Inputs!H53 -> 267000 | M48: 2362.5 | N48: 2699.590782 | O48: 3084.779001 | P48: 3524.927388 | Q48: 4027.877877 | R48: 4602.591317 | S48: 5259.307129 | T48: 6009.725733 | U48: 6867.217012 | V48: 7847.058516 | W48: 7847.058516 | X48: 7847.058516 | Y48: 7847.058516 | Z48: 7847.058516 | AA48: 7847.058516 | AB48: 7847.058516 | AC48: =AC$38*$H48 -> 7847.058516 | AD48: 7847.058516 | AE48: 7847.058516 | AF48: 7847.058516 | AG48: 7847.058516 | AH48: 7847.058516 | AI48: 7847.058516 | AJ48: 7847.058516 | AK48: 7847.058516 | AL48: 7847.058516 | AM48: 7847.058516 | AN48: 7847.058516 | AO48: 7847.058516 | AP48: 7847.058516 | AQ48: 7847.058516 | AR48: 7847.058516 | AS48: 7847.058516 | AT48: 7847.058516 | AU48: 7847.058516 | AV48: 7847.058516 | AW48: 7847.058516 | AX48: 7847.058516 | AY48: 7847.058516 | AZ48: 7847.058516 | BA48: 7847.058516 | BB48: 7847.058516 | BC48: 7847.058516 | BD48: 7847.058516 | BE48: 7847.058516 | BF48: 7847.058516 | BG48: 7847.058516 | BH48: 7847.058516 | BI48: 7847.058516 | BJ48: 7847.058516 | BK48: 7847.058516 | BL48: 7847.058516 | BM48: 7847.058516 | BN48: 7847.058516 | BO48: 7847.058516 | BP48: 7847.058516
D49: Onion | G49: Tons | H49: =Inputs!G54 -> 0.02495680553 | I49: =Inputs!H54 -> 70000 | M49: 4875 | N49: 5570.584153 | O49: 6365.416986 | P49: 7273.65969 | Q49: 8311.494032 | R49: 9497.410655 | S49: 10852.53852 | T49: 12401.02135 | U49: 14170.4478 | V49: 16192.34297 | W49: 16192.34297 | X49: 16192.34297 | Y49: 16192.34297 | Z49: 16192.34297 | AA49: 16192.34297 | AB49: 16192.34297 | AC49: 16192.34297 | AD49: 16192.34297 | AE49: 16192.34297 | AF49: 16192.34297 | AG49: 16192.34297 | AH49: 16192.34297 | AI49: 16192.34297 | AJ49: 16192.34297 | AK49: 16192.34297 | AL49: 16192.34297 | AM49: 16192.34297 | AN49: 16192.34297 | AO49: 16192.34297 | AP49: 16192.34297 | AQ49: 16192.34297 | AR49: 16192.34297 | AS49: 16192.34297 | AT49: 16192.34297 | AU49: 16192.34297 | AV49: 16192.34297 | AW49: 16192.34297 | AX49: 16192.34297 | AY49: 16192.34297 | AZ49: 16192.34297 | BA49: 16192.34297 | BB49: 16192.34297 | BC49: 16192.34297 | BD49: 16192.34297 | BE49: 16192.34297 | BF49: 16192.34297 | BG49: 16192.34297 | BH49: 16192.34297 | BI49: 16192.34297 | BJ49: 16192.34297 | BK49: 16192.34297 | BL49: 16192.34297 | BM49: 16192.34297 | BN49: 16192.34297 | BO49: 16192.34297 | BP49: 16192.34297
D50: Carrot | G50: Tons | H50: =Inputs!G55 -> 0.0671913995 | I50: =Inputs!H55 -> 90000 | M50: 13125 | N50: 14997.72657 | O50: 17137.66112 | P50: 19582.92993 | Q50: 22377.09932 | R50: 25569.95176 | S50: 29218.37294 | T50: 33387.36519 | U50: 38151.20562 | V50: 43594.76953 | W50: 43594.76953 | X50: 43594.76953 | Y50: 43594.76953 | Z50: 43594.76953 | AA50: 43594.76953 | AB50: 43594.76953 | AC50: 43594.76953 | AD50: 43594.76953 | AE50: 43594.76953 | AF50: 43594.76953 | AG50: 43594.76953 | AH50: 43594.76953 | AI50: 43594.76953 | AJ50: 43594.76953 | AK50: 43594.76953 | AL50: 43594.76953 | AM50: 43594.76953 | AN50: 43594.76953 | AO50: 43594.76953 | AP50: 43594.76953 | AQ50: 43594.76953 | AR50: 43594.76953 | AS50: 43594.76953 | AT50: 43594.76953 | AU50: 43594.76953 | AV50: 43594.76953 | AW50: 43594.76953 | AX50: 43594.76953 | AY50: 43594.76953 | AZ50: 43594.76953 | BA50: 43594.76953 | BB50: 43594.76953 | BC50: 43594.76953 | BD50: 43594.76953 | BE50: 43594.76953 | BF50: 43594.76953 | BG50: 43594.76953 | BH50: 43594.76953 | BI50: 43594.76953 | BJ50: 43594.76953 | BK50: 43594.76953 | BL50: 43594.76953 | BM50: 43594.76953 | BN50: 43594.76953 | BO50: 43594.76953 | BP50: 43594.76953
D51: Courgettes | G51: Tons | H51: =Inputs!G56 -> 0.00671913995 | I51: =Inputs!H56 -> 100000 | M51: 1312.5 | N51: 1499.772657 | O51: 1713.766112 | P51: 1958.292993 | Q51: 2237.709932 | R51: 2556.995176 | S51: 2921.837294 | T51: 3338.736519 | U51: 3815.120562 | V51: 4359.476953 | W51: 4359.476953 | X51: 4359.476953 | Y51: 4359.476953 | Z51: 4359.476953 | AA51: 4359.476953 | AB51: 4359.476953 | AC51: 4359.476953 | AD51: 4359.476953 | AE51: 4359.476953 | AF51: 4359.476953 | AG51: 4359.476953 | AH51: 4359.476953 | AI51: 4359.476953 | AJ51: 4359.476953 | AK51: 4359.476953 | AL51: 4359.476953 | AM51: 4359.476953 | AN51: 4359.476953 | AO51: 4359.476953 | AP51: 4359.476953 | AQ51: 4359.476953 | AR51: 4359.476953 | AS51: 4359.476953 | AT51: 4359.476953 | AU51: 4359.476953 | AV51: 4359.476953 | AW51: 4359.476953 | AX51: 4359.476953 | AY51: 4359.476953 | AZ51: 4359.476953 | BA51: 4359.476953 | BB51: 4359.476953 | BC51: 4359.476953 | BD51: 4359.476953 | BE51: 4359.476953 | BF51: 4359.476953 | BG51: 4359.476953 | BH51: 4359.476953 | BI51: 4359.476953 | BJ51: 4359.476953 | BK51: 4359.476953 | BL51: 4359.476953 | BM51: 4359.476953 | BN51: 4359.476953 | BO51: 4359.476953 | BP51: 4359.476953
D52: Cabbage | G52: Tons | H52: =Inputs!G57 -> 0.06450374352 | I52: =Inputs!H57 -> 87000 | M52: 12600 | N52: 14397.8175 | O52: 16452.15467 | P52: 18799.61274 | Q52: 21482.01534 | R52: 24547.15369 | S52: 28049.63802 | T52: 32051.87058 | U52: 36625.1574 | V52: 41850.97875 | W52: 41850.97875 | X52: 41850.97875 | Y52: 41850.97875 | Z52: 41850.97875 | AA52: 41850.97875 | AB52: 41850.97875 | AC52: 41850.97875 | AD52: 41850.97875 | AE52: 41850.97875 | AF52: 41850.97875 | AG52: 41850.97875 | AH52: 41850.97875 | AI52: 41850.97875 | AJ52: 41850.97875 | AK52: 41850.97875 | AL52: 41850.97875 | AM52: 41850.97875 | AN52: 41850.97875 | AO52: 41850.97875 | AP52: 41850.97875 | AQ52: 41850.97875 | AR52: 41850.97875 | AS52: 41850.97875 | AT52: 41850.97875 | AU52: 41850.97875 | AV52: 41850.97875 | AW52: 41850.97875 | AX52: 41850.97875 | AY52: 41850.97875 | AZ52: 41850.97875 | BA52: 41850.97875 | BB52: 41850.97875 | BC52: 41850.97875 | BD52: 41850.97875 | BE52: 41850.97875 | BF52: 41850.97875 | BG52: 41850.97875 | BH52: 41850.97875 | BI52: 41850.97875 | BJ52: 41850.97875 | BK52: 41850.97875 | BL52: 41850.97875 | BM52: 41850.97875 | BN52: 41850.97875 | BO52: 41850.97875 | BP52: 41850.97875
D53: Green Beans | G53: Tons | H53: =Inputs!G58 -> 0.001439815704 | I53: =Inputs!H58 -> 410000 | M53: 281.25 | N53: 321.379855 | O53: 367.2355953 | P53: 419.6342129 | Q53: 479.5092711 | R53: 547.9275378 | S53: 626.1079916 | T53: 715.4435397 | U53: 817.5258348 | V53: 934.1736328 | W53: 934.1736328 | X53: 934.1736328 | Y53: 934.1736328 | Z53: 934.1736328 | AA53: 934.1736328 | AB53: 934.1736328 | AC53: 934.1736328 | AD53: 934.1736328 | AE53: 934.1736328 | AF53: 934.1736328 | AG53: 934.1736328 | AH53: 934.1736328 | AI53: 934.1736328 | AJ53: 934.1736328 | AK53: 934.1736328 | AL53: 934.1736328 | AM53: 934.1736328 | AN53: 934.1736328 | AO53: 934.1736328 | AP53: 934.1736328 | AQ53: 934.1736328 | AR53: 934.1736328 | AS53: 934.1736328 | AT53: 934.1736328 | AU53: 934.1736328 | AV53: 934.1736328 | AW53: 934.1736328 | AX53: 934.1736328 | AY53: 934.1736328 | AZ53: 934.1736328 | BA53: 934.1736328 | BB53: 934.1736328 | BC53: 934.1736328 | BD53: 934.1736328 | BE53: 934.1736328 | BF53: 934.1736328 | BG53: 934.1736328 | BH53: 934.1736328 | BI53: 934.1736328 | BJ53: 934.1736328 | BK53: 934.1736328 | BL53: 934.1736328 | BM53: 934.1736328 | BN53: 934.1736328 | BO53: 934.1736328 | BP53: 934.1736328
D54: Colliflower | G54: Tons | H54: =Inputs!G59 -> 0.005759262814 | I54: =Inputs!H59 -> 300000 | M54: 1125 | N54: 1285.51942 | O54: 1468.942381 | P54: 1678.536852 | Q54: 1918.037084 | R54: 2191.710151 | S54: 2504.431966 | T54: 2861.774159 | U54: 3270.103339 | V54: 3736.694531 | W54: 3736.694531 | X54: 3736.694531 | Y54: 3736.694531 | Z54: 3736.694531 | AA54: 3736.694531 | AB54: 3736.694531 | AC54: 3736.694531 | AD54: 3736.694531 | AE54: 3736.694531 | AF54: 3736.694531 | AG54: 3736.694531 | AH54: 3736.694531 | AI54: 3736.694531 | AJ54: 3736.694531 | AK54: 3736.694531 | AL54: 3736.694531 | AM54: 3736.694531 | AN54: 3736.694531 | AO54: 3736.694531 | AP54: 3736.694531 | AQ54: 3736.694531 | AR54: =AR$38*$H54 -> 3736.694531 | AS54: 3736.694531 | AT54: 3736.694531 | AU54: 3736.694531 | AV54: 3736.694531 | AW54: 3736.694531 | AX54: 3736.694531 | AY54: 3736.694531 | AZ54: 3736.694531 | BA54: 3736.694531 | BB54: 3736.694531 | BC54: 3736.694531 | BD54: 3736.694531 | BE54: 3736.694531 | BF54: 3736.694531 | BG54: 3736.694531 | BH54: 3736.694531 | BI54: 3736.694531 | BJ54: 3736.694531 | BK54: 3736.694531 | BL54: 3736.694531 | BM54: 3736.694531 | BN54: 3736.694531 | BO54: 3736.694531 | BP54: 3736.694531
D55: Okra | G55: Tons | H55: =Inputs!G60 -> 0.001535803417 | I55: =Inputs!H60 -> 267000 | M55: 300 | N55: 342.8051786 | O55: 391.7179684 | P55: 447.6098271 | Q55: 511.4765558 | R55: 584.4560403 | S55: 667.8485243 | T55: 763.1397757 | U55: 872.0275571 | V55: 996.451875 | W55: 996.451875 | X55: 996.451875 | Y55: 996.451875 | Z55: 996.451875 | AA55: 996.451875 | AB55: 996.451875 | AC55: =AC$38*$H55 -> 996.451875 | AD55: 996.451875 | AE55: 996.451875 | AF55: 996.451875 | AG55: 996.451875 | AH55: 996.451875 | AI55: 996.451875 | AJ55: 996.451875 | AK55: 996.451875 | AL55: 996.451875 | AM55: 996.451875 | AN55: 996.451875 | AO55: 996.451875 | AP55: 996.451875 | AQ55: 996.451875 | AR55: 996.451875 | AS55: 996.451875 | AT55: 996.451875 | AU55: 996.451875 | AV55: 996.451875 | AW55: 996.451875 | AX55: 996.451875 | AY55: 996.451875 | AZ55: 996.451875 | BA55: 996.451875 | BB55: 996.451875 | BC55: 996.451875 | BD55: 996.451875 | BE55: 996.451875 | BF55: 996.451875 | BG55: 996.451875 | BH55: 996.451875 | BI55: 996.451875 | BJ55: 996.451875 | BK55: 996.451875 | BL55: 996.451875 | BM55: 996.451875 | BN55: 996.451875 | BO55: 996.451875 | BP55: 996.451875
D56: Turnip | G56: Tons | H56: =Inputs!G61 -> 0.004607410251 | I56: =Inputs!H61 -> 125000 | M56: 900 | N56: 1028.415536 | O56: 1175.153905 | P56: 1342.829481 | Q56: 1534.429667 | R56: 1753.368121 | S56: 2003.545573 | T56: 2289.419327 | U56: 2616.082671 | V56: 2989.355625 | W56: 2989.355625 | X56: 2989.355625 | Y56: 2989.355625 | Z56: 2989.355625 | AA56: 2989.355625 | AB56: 2989.355625 | AC56: 2989.355625 | AD56: 2989.355625 | AE56: 2989.355625 | AF56: 2989.355625 | AG56: 2989.355625 | AH56: 2989.355625 | AI56: 2989.355625 | AJ56: 2989.355625 | AK56: 2989.355625 | AL56: 2989.355625 | AM56: 2989.355625 | AN56: 2989.355625 | AO56: 2989.355625 | AP56: 2989.355625 | AQ56: 2989.355625 | AR56: 2989.355625 | AS56: 2989.355625 | AT56: 2989.355625 | AU56: 2989.355625 | AV56: 2989.355625 | AW56: 2989.355625 | AX56: 2989.355625 | AY56: 2989.355625 | AZ56: 2989.355625 | BA56: 2989.355625 | BB56: 2989.355625 | BC56: 2989.355625 | BD56: 2989.355625 | BE56: 2989.355625 | BF56: 2989.355625 | BG56: 2989.355625 | BH56: 2989.355625 | BI56: 2989.355625 | BJ56: 2989.355625 | BK56: 2989.355625 | BL56: 2989.355625 | BM56: 2989.355625 | BN56: 2989.355625 | BO56: 2989.355625 | BP56: 2989.355625
D57: Cucumber | G57: Tons | H57: =Inputs!G62 -> 0.02956421578 | I57: =Inputs!H62 -> 80000 | M57: 5775 | N57: 6598.999689 | O57: 7540.570891 | P57: 8616.489171 | Q57: 9845.923699 | R57: 11250.77878 | S57: 12856.08409 | T57: 14690.44068 | U57: 16786.53047 | V57: 19181.69859 | W57: 19181.69859 | X57: 19181.69859 | Y57: 19181.69859 | Z57: 19181.69859 | AA57: 19181.69859 | AB57: 19181.69859 | AC57: 19181.69859 | AD57: 19181.69859 | AE57: 19181.69859 | AF57: 19181.69859 | AG57: 19181.69859 | AH57: 19181.69859 | AI57: 19181.69859 | AJ57: 19181.69859 | AK57: 19181.69859 | AL57: 19181.69859 | AM57: 19181.69859 | AN57: 19181.69859 | AO57: 19181.69859 | AP57: 19181.69859 | AQ57: 19181.69859 | AR57: 19181.69859 | AS57: 19181.69859 | AT57: 19181.69859 | AU57: 19181.69859 | AV57: 19181.69859 | AW57: 19181.69859 | AX57: 19181.69859 | AY57: 19181.69859 | AZ57: 19181.69859 | BA57: 19181.69859 | BB57: 19181.69859 | BC57: 19181.69859 | BD57: 19181.69859 | BE57: 19181.69859 | BF57: 19181.69859 | BG57: 19181.69859 | BH57: 19181.69859 | BI57: 19181.69859 | BJ57: 19181.69859 | BK57: 19181.69859 | BL57: 19181.69859 | BM57: 19181.69859 | BN57: 19181.69859 | BO57: 19181.69859 | BP57: 19181.69859
D58: Peppers | G58: Tons | H58: =Inputs!G63 -> 0.07679017086 | I58: =Inputs!H63 -> 250000 | M58: 15000 | N58: 17140.25893 | O58: 19585.89842 | P58: 22380.49135 | Q58: 25573.82779 | R58: 29222.80201 | S58: 33392.42622 | T58: 38156.98878 | U58: 43601.37786 | V58: 49822.59375 | W58: 49822.59375 | X58: 49822.59375 | Y58: 49822.59375 | Z58: =Z$38*$H58 -> 49822.59375 | AA58: 49822.59375 | AB58: 49822.59375 | AC58: 49822.59375 | AD58: 49822.59375 | AE58: 49822.59375 | AF58: 49822.59375 | AG58: 49822.59375 | AH58: 49822.59375 | AI58: 49822.59375 | AJ58: 49822.59375 | AK58: 49822.59375 | AL58: 49822.59375 | AM58: 49822.59375 | AN58: 49822.59375 | AO58: 49822.59375 | AP58: 49822.59375 | AQ58: 49822.59375 | AR58: 49822.59375 | AS58: 49822.59375 | AT58: 49822.59375 | AU58: 49822.59375 | AV58: 49822.59375 | AW58: 49822.59375 | AX58: 49822.59375 | AY58: 49822.59375 | AZ58: 49822.59375 | BA58: 49822.59375 | BB58: 49822.59375 | BC58: 49822.59375 | BD58: 49822.59375 | BE58: 49822.59375 | BF58: 49822.59375 | BG58: 49822.59375 | BH58: 49822.59375 | BI58: 49822.59375 | BJ58: 49822.59375 | BK58: 49822.59375 | BL58: 49822.59375 | BM58: 49822.59375 | BN58: 49822.59375 | BO58: 49822.59375 | BP58: 49822.59375
D59: Kale | G59: Tons | H59: =Inputs!G64 -> 0.00940679593 | I59: =Inputs!H64 -> 200000 | M59: 1837.5 | N59: =N$38*$H59 -> 2099.681719 | O59: 2399.272556 | P59: 2741.610191 | Q59: 3132.793904 | R59: 3579.793247 | S59: 4090.572212 | T59: 4674.231126 | U59: 5341.168787 | V59: 6103.267734 | W59: 6103.267734 | X59: 6103.267734 | Y59: 6103.267734 | Z59: 6103.267734 | AA59: 6103.267734 | AB59: 6103.267734 | AC59: 6103.267734 | AD59: 6103.267734 | AE59: 6103.267734 | AF59: 6103.267734 | AG59: 6103.267734 | AH59: 6103.267734 | AI59: 6103.267734 | AJ59: 6103.267734 | AK59: 6103.267734 | AL59: 6103.267734 | AM59: 6103.267734 | AN59: 6103.267734 | AO59: 6103.267734 | AP59: 6103.267734 | AQ59: 6103.267734 | AR59: 6103.267734 | AS59: 6103.267734 | AT59: 6103.267734 | AU59: 6103.267734 | AV59: 6103.267734 | AW59: 6103.267734 | AX59: 6103.267734 | AY59: 6103.267734 | AZ59: 6103.267734 | BA59: 6103.267734 | BB59: 6103.267734 | BC59: 6103.267734 | BD59: 6103.267734 | BE59: 6103.267734 | BF59: 6103.267734 | BG59: 6103.267734 | BH59: 6103.267734 | BI59: 6103.267734 | BJ59: 6103.267734 | BK59: 6103.267734 | BL59: 6103.267734 | BM59: 6103.267734 | BN59: 6103.267734 | BO59: 6103.267734 | BP59: 6103.267734
D60: Tomatoes | G60: Tons | H60: =Inputs!G65 -> 0.1151852563 | I60: =Inputs!H65 -> 250000 | M60: 22500 | N60: 25710.3884 | O60: 29378.84763 | P60: 33570.73703 | Q60: 38360.74168 | R60: 43834.20302 | S60: 50088.63933 | T60: 57235.48317 | U60: 65402.06678 | V60: 74733.89063 | W60: 74733.89063 | X60: 74733.89063 | Y60: 74733.89063 | Z60: 74733.89063 | AA60: 74733.89063 | AB60: 74733.89063 | AC60: 74733.89063 | AD60: 74733.89063 | AE60: 74733.89063 | AF60: 74733.89063 | AG60: 74733.89063 | AH60: 74733.89063 | AI60: 74733.89063 | AJ60: 74733.89063 | AK60: 74733.89063 | AL60: 74733.89063 | AM60: 74733.89063 | AN60: 74733.89063 | AO60: 74733.89063 | AP60: 74733.89063 | AQ60: 74733.89063 | AR60: 74733.89063 | AS60: 74733.89063 | AT60: 74733.89063 | AU60: 74733.89063 | AV60: 74733.89063 | AW60: 74733.89063 | AX60: 74733.89063 | AY60: 74733.89063 | AZ60: 74733.89063 | BA60: 74733.89063 | BB60: 74733.89063 | BC60: 74733.89063 | BD60: 74733.89063 | BE60: 74733.89063 | BF60: 74733.89063 | BG60: 74733.89063 | BH60: 74733.89063 | BI60: 74733.89063 | BJ60: 74733.89063 | BK60: 74733.89063 | BL60: 74733.89063 | BM60: 74733.89063 | BN60: 74733.89063 | BO60: 74733.89063 | BP60: 74733.89063
E61: Total Horticulture | G61: Tons | H61: =SUM(H42:H60) -> 0.5806296794 | M61: =SUM(M42:M60) -> 113418.75 | N61: =SUM(N42:N60) -> 129601.7829 | O61: 148093.8744 | P61: 169224.4903 | Q61: 193370.1054 | R61: 220960.9117 | S61: 252488.4827 | T61: 288514.5314 | U61: 329680.9183 | V61: 376721.087 | W61: 376721.087 | X61: 376721.087 | Y61: 376721.087 | Z61: 376721.087 | AA61: 376721.087 | AB61: 376721.087 | AC61: 376721.087 | AD61: 376721.087 | AE61: 376721.087 | AF61: 376721.087 | AG61: 376721.087 | AH61: 376721.087 | AI61: 376721.087 | AJ61: 376721.087 | AK61: 376721.087 | AL61: 376721.087 | AM61: 376721.087 | AN61: 376721.087 | AO61: 376721.087 | AP61: 376721.087 | AQ61: 376721.087 | AR61: 376721.087 | AS61: 376721.087 | AT61: 376721.087 | AU61: 376721.087 | AV61: 376721.087 | AW61: 376721.087 | AX61: 376721.087 | AY61: 376721.087 | AZ61: 376721.087 | BA61: 376721.087 | BB61: 376721.087 | BC61: 376721.087 | BD61: 376721.087 | BE61: 376721.087 | BF61: 376721.087 | BG61: 376721.087 | BH61: 376721.087 | BI61: 376721.087 | BJ61: 376721.087 | BK61: 376721.087 | BL61: 376721.087 | BM61: 376721.087 | BN61: 376721.087 | BO61: 376721.087 | BP61: 376721.087
C63: Fruits
D64: Pineapple | G64: Tons | H64: =Inputs!G69 -> 0.02150124784 | M64: =M$38*$H64 -> 4200 | N64: 4799.272501 | O64: 5484.051557 | P64: 6266.537579 | Q64: 7160.671781 | R64: 8182.384564 | S64: 9349.879341 | T64: 10683.95686 | U64: 12208.3858 | V64: 13950.32625 | W64: 13950.32625 | X64: 13950.32625 | Y64: 13950.32625 | Z64: 13950.32625 | AA64: 13950.32625 | AB64: 13950.32625 | AC64: =AC$38*$H64 -> 13950.32625 | AD64: 13950.32625 | AE64: 13950.32625 | AF64: 13950.32625 | AG64: 13950.32625 | AH64: 13950.32625 | AI64: 13950.32625 | AJ64: 13950.32625 | AK64: 13950.32625 | AL64: 13950.32625 | AM64: 13950.32625 | AN64: 13950.32625 | AO64: 13950.32625 | AP64: 13950.32625 | AQ64: 13950.32625 | AR64: 13950.32625 | AS64: 13950.32625 | AT64: 13950.32625 | AU64: 13950.32625 | AV64: 13950.32625 | AW64: 13950.32625 | AX64: 13950.32625 | AY64: 13950.32625 | AZ64: 13950.32625 | BA64: 13950.32625 | BB64: 13950.32625 | BC64: 13950.32625 | BD64: 13950.32625 | BE64: 13950.32625 | BF64: 13950.32625 | BG64: 13950.32625 | BH64: 13950.32625 | BI64: 13950.32625 | BJ64: 13950.32625 | BK64: 13950.32625 | BL64: 13950.32625 | BM64: 13950.32625 | BN64: 13950.32625 | BO64: 13950.32625 | BP64: 13950.32625
D65: Banana | G65: Tons | H65: =Inputs!G70 -> 0.2150124784 | M65: 42000 | N65: 47992.72501 | O65: 54840.51557 | P65: 62665.37579 | Q65: 71606.71781 | R65: 81823.84564 | S65: 93498.79341 | T65: 106839.5686 | U65: 122083.858 | V65: 139503.2625 | W65: 139503.2625 | X65: 139503.2625 | Y65: 139503.2625 | Z65: 139503.2625 | AA65: 139503.2625 | AB65: 139503.2625 | AC65: 139503.2625 | AD65: 139503.2625 | AE65: 139503.2625 | AF65: 139503.2625 | AG65: 139503.2625 | AH65: 139503.2625 | AI65: 139503.2625 | AJ65: 139503.2625 | AK65: 139503.2625 | AL65: 139503.2625 | AM65: 139503.2625 | AN65: 139503.2625 | AO65: 139503.2625 | AP65: 139503.2625 | AQ65: 139503.2625 | AR65: 139503.2625 | AS65: 139503.2625 | AT65: 139503.2625 | AU65: 139503.2625 | AV65: 139503.2625 | AW65: 139503.2625 | AX65: 139503.2625 | AY65: 139503.2625 | AZ65: 139503.2625 | BA65: 139503.2625 | BB65: 139503.2625 | BC65: 139503.2625 | BD65: 139503.2625 | BE65: 139503.2625 | BF65: 139503.2625 | BG65: 139503.2625 | BH65: 139503.2625 | BI65: 139503.2625 | BJ65: 139503.2625 | BK65: 139503.2625 | BL65: 139503.2625 | BM65: 139503.2625 | BN65: 139503.2625 | BO65: 139503.2625 | BP65: 139503.2625
D66: Lemon | G66: Tons | H66: =Inputs!G71 -> 0.004319447111 | M66: 843.75 | N66: 964.139565 | O66: 1101.706786 | P66: 1258.902639 | Q66: 1438.527813 | R66: 1643.782613 | S66: 1878.323975 | T66: 2146.330619 | U66: 2452.577504 | V66: 2802.520898 | W66: 2802.520898 | X66: 2802.520898 | Y66: 2802.520898 | Z66: 2802.520898 | AA66: 2802.520898 | AB66: 2802.520898 | AC66: 2802.520898 | AD66: 2802.520898 | AE66: 2802.520898 | AF66: 2802.520898 | AG66: 2802.520898 | AH66: 2802.520898 | AI66: 2802.520898 | AJ66: 2802.520898 | AK66: 2802.520898 | AL66: 2802.520898 | AM66: 2802.520898 | AN66: 2802.520898 | AO66: 2802.520898 | AP66: 2802.520898 | AQ66: 2802.520898 | AR66: 2802.520898 | AS66: 2802.520898 | AT66: 2802.520898 | AU66: 2802.520898 | AV66: 2802.520898 | AW66: 2802.520898 | AX66: 2802.520898 | AY66: 2802.520898 | AZ66: 2802.520898 | BA66: 2802.520898 | BB66: 2802.520898 | BC66: 2802.520898 | BD66: 2802.520898 | BE66: 2802.520898 | BF66: 2802.520898 | BG66: 2802.520898 | BH66: 2802.520898 | BI66: 2802.520898 | BJ66: 2802.520898 | BK66: 2802.520898 | BL66: 2802.520898 | BM66: 2802.520898 | BN66: 2802.520898 | BO66: 2802.520898 | BP66: 2802.520898
D67: Paw-paw | G67: Tons | H67: =Inputs!G72 -> 0.01075062392 | M67: 2100 | N67: 2399.636251 | O67: 2742.025779 | P67: 3133.26879 | Q67: 3580.335891 | R67: 4091.192282 | S67: 4674.93967 | T67: 5341.97843 | U67: 6104.1929 | V67: 6975.163125 | W67: 6975.163125 | X67: 6975.163125 | Y67: 6975.163125 | Z67: 6975.163125 | AA67: 6975.163125 | AB67: 6975.163125 | AC67: 6975.163125 | AD67: 6975.163125 | AE67: 6975.163125 | AF67: 6975.163125 | AG67: 6975.163125 | AH67: 6975.163125 | AI67: 6975.163125 | AJ67: 6975.163125 | AK67: 6975.163125 | AL67: 6975.163125 | AM67: 6975.163125 | AN67: 6975.163125 | AO67: 6975.163125 | AP67: 6975.163125 | AQ67: 6975.163125 | AR67: 6975.163125 | AS67: 6975.163125 | AT67: 6975.163125 | AU67: 6975.163125 | AV67: 6975.163125 | AW67: 6975.163125 | AX67: 6975.163125 | AY67: 6975.163125 | AZ67: 6975.163125 | BA67: 6975.163125 | BB67: 6975.163125 | BC67: 6975.163125 | BD67: 6975.163125 | BE67: 6975.163125 | BF67: 6975.163125 | BG67: 6975.163125 | BH67: 6975.163125 | BI67: 6975.163125 | BJ67: 6975.163125 | BK67: 6975.163125 | BL67: 6975.163125 | BM67: 6975.163125 | BN67: 6975.163125 | BO67: 6975.163125 | BP67: 6975.163125
D68: Mango | G68: Tons | H68: =Inputs!G73 -> 0.00806296794 | M68: 1575 | N68: 1799.727188 | O68: 2056.519334 | P68: 2349.951592 | Q68: 2685.251918 | R68: 3068.394211 | S68: 3506.204753 | T68: 4006.483822 | U68: 4578.144675 | V68: 5231.372344 | W68: 5231.372344 | X68: 5231.372344 | Y68: 5231.372344 | Z68: 5231.372344 | AA68: 5231.372344 | AB68: 5231.372344 | AC68: 5231.372344 | AD68: 5231.372344 | AE68: 5231.372344 | AF68: 5231.372344 | AG68: 5231.372344 | AH68: 5231.372344 | AI68: 5231.372344 | AJ68: 5231.372344 | AK68: 5231.372344 | AL68: 5231.372344 | AM68: 5231.372344 | AN68: 5231.372344 | AO68: 5231.372344 | AP68: 5231.372344 | AQ68: 5231.372344 | AR68: 5231.372344 | AS68: 5231.372344 | AT68: 5231.372344 | AU68: 5231.372344 | AV68: 5231.372344 | AW68: 5231.372344 | AX68: 5231.372344 | AY68: 5231.372344 | AZ68: 5231.372344 | BA68: 5231.372344 | BB68: 5231.372344 | BC68: 5231.372344 | BD68: 5231.372344 | BE68: 5231.372344 | BF68: 5231.372344 | BG68: 5231.372344 | BH68: 5231.372344 | BI68: 5231.372344 | BJ68: 5231.372344 | BK68: 5231.372344 | BL68: 5231.372344 | BM68: 5231.372344 | BN68: 5231.372344 | BO68: 5231.372344 | BP68: 5231.372344
D69: Watermelon | G69: Tons | H69: =Inputs!G74 -> 0.02073334613 | M69: 4050 | N69: 4627.869912 | O69: 5288.192573 | P69: 6042.732666 | Q69: 6904.933503 | R69: 7890.156544 | S69: 9015.955079 | T69: 10302.38697 | U69: 11772.37202 | V69: 13452.10031 | W69: 13452.10031 | X69: 13452.10031 | Y69: 13452.10031 | Z69: 13452.10031 | AA69: 13452.10031 | AB69: 13452.10031 | AC69: 13452.10031 | AD69: 13452.10031 | AE69: 13452.10031 | AF69: 13452.10031 | AG69: 13452.10031 | AH69: 13452.10031 | AI69: 13452.10031 | AJ69: 13452.10031 | AK69: 13452.10031 | AL69: 13452.10031 | AM69: 13452.10031 | AN69: 13452.10031 | AO69: 13452.10031 | AP69: 13452.10031 | AQ69: 13452.10031 | AR69: 13452.10031 | AS69: 13452.10031 | AT69: 13452.10031 | AU69: 13452.10031 | AV69: 13452.10031 | AW69: 13452.10031 | AX69: 13452.10031 | AY69: 13452.10031 | AZ69: 13452.10031 | BA69: 13452.10031 | BB69: 13452.10031 | BC69: 13452.10031 | BD69: 13452.10031 | BE69: 13452.10031 | BF69: 13452.10031 | BG69: 13452.10031 | BH69: 13452.10031 | BI69: 13452.10031 | BJ69: 13452.10031 | BK69: 13452.10031 | BL69: 13452.10031 | BM69: 13452.10031 | BN69: 13452.10031 | BO69: 13452.10031 | BP69: 13452.10031
D70: Melon | G70: Tons | H70: =Inputs!G75 -> 0.01919754271 | M70: 3750 | N70: 4285.064733 | O70: 4896.474605 | P70: 5595.122839 | Q70: 6393.456947 | R70: 7305.700504 | S70: 8348.106554 | T70: 9539.247196 | U70: 10900.34446 | V70: 12455.64844 | W70: 12455.64844 | X70: 12455.64844 | Y70: 12455.64844 | Z70: 12455.64844 | AA70: 12455.64844 | AB70: 12455.64844 | AC70: 12455.64844 | AD70: 12455.64844 | AE70: 12455.64844 | AF70: 12455.64844 | AG70: 12455.64844 | AH70: 12455.64844 | AI70: 12455.64844 | AJ70: 12455.64844 | AK70: 12455.64844 | AL70: 12455.64844 | AM70: 12455.64844 | AN70: 12455.64844 | AO70: 12455.64844 | AP70: 12455.64844 | AQ70: 12455.64844 | AR70: =AR$38*$H70 -> 12455.64844 | AS70: 12455.64844 | AT70: 12455.64844 | AU70: 12455.64844 | AV70: 12455.64844 | AW70: 12455.64844 | AX70: 12455.64844 | AY70: 12455.64844 | AZ70: 12455.64844 | BA70: 12455.64844 | BB70: 12455.64844 | BC70: 12455.64844 | BD70: 12455.64844 | BE70: 12455.64844 | BF70: 12455.64844 | BG70: 12455.64844 | BH70: 12455.64844 | BI70: 12455.64844 | BJ70: 12455.64844 | BK70: 12455.64844 | BL70: 12455.64844 | BM70: 12455.64844 | BN70: 12455.64844 | BO70: 12455.64844 | BP70: 12455.64844
D71: Cantaloupe | G71: Tons | H71: =Inputs!G76 -> 0.002303705126 | M71: 450 | N71: 514.207768 | O71: 587.5769525 | P71: 671.4147406 | Q71: 767.2148337 | R71: 876.6840604 | S71: 1001.772787 | T71: 1144.709663 | U71: 1308.041336 | V71: 1494.677813 | W71: 1494.677813 | X71: 1494.677813 | Y71: 1494.677813 | Z71: 1494.677813 | AA71: 1494.677813 | AB71: 1494.677813 | AC71: =AC$38*$H71 -> 1494.677813 | AD71: 1494.677813 | AE71: 1494.677813 | AF71: 1494.677813 | AG71: 1494.677813 | AH71: 1494.677813 | AI71: 1494.677813 | AJ71: 1494.677813 | AK71: 1494.677813 | AL71: 1494.677813 | AM71: 1494.677813 | AN71: 1494.677813 | AO71: 1494.677813 | AP71: 1494.677813 | AQ71: 1494.677813 | AR71: 1494.677813 | AS71: 1494.677813 | AT71: 1494.677813 | AU71: 1494.677813 | AV71: 1494.677813 | AW71: 1494.677813 | AX71: 1494.677813 | AY71: 1494.677813 | AZ71: 1494.677813 | BA71: 1494.677813 | BB71: 1494.677813 | BC71: 1494.677813 | BD71: 1494.677813 | BE71: 1494.677813 | BF71: 1494.677813 | BG71: 1494.677813 | BH71: 1494.677813 | BI71: 1494.677813 | BJ71: 1494.677813 | BK71: 1494.677813 | BL71: 1494.677813 | BM71: 1494.677813 | BN71: 1494.677813 | BO71: 1494.677813 | BP71: 1494.677813
D72: Strawberry | G72: Tons | H72: =Inputs!G77 -> 0.003071606834 | M72: 600 | N72: 685.6103573 | O72: 783.4359367 | P72: 895.2196542 | Q72: 1022.953112 | R72: 1168.912081 | S72: 1335.697049 | T72: 1526.279551 | U72: 1744.055114 | V72: 1992.90375 | W72: 1992.90375 | X72: 1992.90375 | Y72: 1992.90375 | Z72: 1992.90375 | AA72: 1992.90375 | AB72: 1992.90375 | AC72: 1992.90375 | AD72: 1992.90375 | AE72: 1992.90375 | AF72: 1992.90375 | AG72: 1992.90375 | AH72: 1992.90375 | AI72: 1992.90375 | AJ72: 1992.90375 | AK72: 1992.90375 | AL72: 1992.90375 | AM72: 1992.90375 | AN72: 1992.90375 | AO72: 1992.90375 | AP72: 1992.90375 | AQ72: 1992.90375 | AR72: 1992.90375 | AS72: 1992.90375 | AT72: 1992.90375 | AU72: 1992.90375 | AV72: 1992.90375 | AW72: 1992.90375 | AX72: 1992.90375 | AY72: 1992.90375 | AZ72: 1992.90375 | BA72: 1992.90375 | BB72: 1992.90375 | BC72: 1992.90375 | BD72: 1992.90375 | BE72: 1992.90375 | BF72: 1992.90375 | BG72: 1992.90375 | BH72: 1992.90375 | BI72: 1992.90375 | BJ72: 1992.90375 | BK72: 1992.90375 | BL72: 1992.90375 | BM72: 1992.90375 | BN72: 1992.90375 | BO72: 1992.90375 | BP72: 1992.90375
D73: Grapes | G73: Tons | H73: =Inputs!G78 -> 0.01151852563 | M73: 2250 | N73: 2571.03884 | O73: 2937.884763 | P73: 3357.073703 | Q73: 3836.074168 | R73: 4383.420302 | S73: 5008.863933 | T73: 5723.548317 | U73: 6540.206678 | V73: 7473.389063 | W73: 7473.389063 | X73: 7473.389063 | Y73: 7473.389063 | Z73: 7473.389063 | AA73: 7473.389063 | AB73: 7473.389063 | AC73: 7473.389063 | AD73: 7473.389063 | AE73: 7473.389063 | AF73: 7473.389063 | AG73: 7473.389063 | AH73: 7473.389063 | AI73: 7473.389063 | AJ73: 7473.389063 | AK73: 7473.389063 | AL73: 7473.389063 | AM73: 7473.389063 | AN73: 7473.389063 | AO73: 7473.389063 | AP73: 7473.389063 | AQ73: 7473.389063 | AR73: 7473.389063 | AS73: 7473.389063 | AT73: 7473.389063 | AU73: 7473.389063 | AV73: 7473.389063 | AW73: 7473.389063 | AX73: 7473.389063 | AY73: 7473.389063 | AZ73: 7473.389063 | BA73: 7473.389063 | BB73: 7473.389063 | BC73: 7473.389063 | BD73: 7473.389063 | BE73: 7473.389063 | BF73: 7473.389063 | BG73: 7473.389063 | BH73: 7473.389063 | BI73: 7473.389063 | BJ73: 7473.389063 | BK73: 7473.389063 | BL73: 7473.389063 | BM73: 7473.389063 | BN73: 7473.389063 | BO73: 7473.389063 | BP73: 7473.389063
E74: Total Fruits | G74: Tons | H74: =SUM(H64:H73) -> 0.3164714916 | M74: =SUM(M64:M73) -> 61818.75 | N74: =SUM(N64:N73) -> 70639.29213 | O74: 80718.38386 | P74: 92235.59999 | Q74: 105396.1378 | R74: 120434.4728 | S74: 137618.5365 | T74: 157254.49 | U74: 179692.1785 | V74: 205331.3645 | W74: 205331.3645 | X74: 205331.3645 | Y74: 205331.3645 | Z74: 205331.3645 | AA74: 205331.3645 | AB74: 205331.3645 | AC74: 205331.3645 | AD74: 205331.3645 | AE74: 205331.3645 | AF74: 205331.3645 | AG74: 205331.3645 | AH74: 205331.3645 | AI74: 205331.3645 | AJ74: 205331.3645 | AK74: 205331.3645 | AL74: 205331.3645 | AM74: 205331.3645 | AN74: 205331.3645 | AO74: 205331.3645 | AP74: 205331.3645 | AQ74: 205331.3645 | AR74: 205331.3645 | AS74: 205331.3645 | AT74: 205331.3645 | AU74: 205331.3645 | AV74: 205331.3645 | AW74: 205331.3645 | AX74: 205331.3645 | AY74: 205331.3645 | AZ74: 205331.3645 | BA74: 205331.3645 | BB74: 205331.3645 | BC74: 205331.3645 | BD74: 205331.3645 | BE74: 205331.3645 | BF74: 205331.3645 | BG74: 205331.3645 | BH74: 205331.3645 | BI74: 205331.3645 | BJ74: 205331.3645 | BK74: 205331.3645 | BL74: 205331.3645 | BM74: 205331.3645 | BN74: 205331.3645 | BO74: 205331.3645 | BP74: 205331.3645
C76: Maize and Forages
D77: Maize | G77: Tons | H77: =Inputs!G82 -> 0.01075062392 | M77: =M$38*$H77 -> 2100 | N77: 2399.636251 | O77: 2742.025779 | P77: 3133.26879 | Q77: 3580.335891 | R77: 4091.192282 | S77: 4674.93967 | T77: 5341.97843 | U77: 6104.1929 | V77: 6975.163125 | W77: 6975.163125 | X77: 6975.163125 | Y77: 6975.163125 | Z77: 6975.163125 | AA77: 6975.163125 | AB77: 6975.163125 | AC77: =AC$38*$H77 -> 6975.163125 | AD77: 6975.163125 | AE77: 6975.163125 | AF77: 6975.163125 | AG77: 6975.163125 | AH77: 6975.163125 | AI77: 6975.163125 | AJ77: 6975.163125 | AK77: 6975.163125 | AL77: 6975.163125 | AM77: 6975.163125 | AN77: 6975.163125 | AO77: 6975.163125 | AP77: 6975.163125 | AQ77: 6975.163125 | AR77: 6975.163125 | AS77: 6975.163125 | AT77: 6975.163125 | AU77: 6975.163125 | AV77: 6975.163125 | AW77: 6975.163125 | AX77: 6975.163125 | AY77: 6975.163125 | AZ77: 6975.163125 | BA77: 6975.163125 | BB77: 6975.163125 | BC77: 6975.163125 | BD77: 6975.163125 | BE77: 6975.163125 | BF77: 6975.163125 | BG77: 6975.163125 | BH77: 6975.163125 | BI77: 6975.163125 | BJ77: 6975.163125 | BK77: 6975.163125 | BL77: 6975.163125 | BM77: 6975.163125 | BN77: 6975.163125 | BO77: 6975.163125 | BP77: 6975.163125
D78: Forages | G78: Tons | H78: =Inputs!G83 -> 0.09214820503 | M78: 18000 | N78: 20568.31072 | O78: 23503.0781 | P78: 26856.58963 | Q78: 30688.59335 | R78: 35067.36242 | S78: 40070.91146 | T78: 45788.38654 | U78: 52321.65343 | V78: 59787.1125 | W78: 59787.1125 | X78: 59787.1125 | Y78: 59787.1125 | Z78: 59787.1125 | AA78: 59787.1125 | AB78: 59787.1125 | AC78: 59787.1125 | AD78: 59787.1125 | AE78: 59787.1125 | AF78: 59787.1125 | AG78: 59787.1125 | AH78: 59787.1125 | AI78: 59787.1125 | AJ78: 59787.1125 | AK78: 59787.1125 | AL78: 59787.1125 | AM78: 59787.1125 | AN78: 59787.1125 | AO78: 59787.1125 | AP78: 59787.1125 | AQ78: 59787.1125 | AR78: 59787.1125 | AS78: 59787.1125 | AT78: 59787.1125 | AU78: 59787.1125 | AV78: 59787.1125 | AW78: 59787.1125 | AX78: 59787.1125 | AY78: 59787.1125 | AZ78: 59787.1125 | BA78: 59787.1125 | BB78: 59787.1125 | BC78: 59787.1125 | BD78: 59787.1125 | BE78: 59787.1125 | BF78: 59787.1125 | BG78: 59787.1125 | BH78: 59787.1125 | BI78: 59787.1125 | BJ78: 59787.1125 | BK78: 59787.1125 | BL78: 59787.1125 | BM78: 59787.1125 | BN78: 59787.1125 | BO78: 59787.1125 | BP78: 59787.1125
E79: Total Maize and Forages | G79: Tons | H79: =SUM(H77:H78) -> 0.1028988289 | M79: =SUM(M77:M78) -> 20100 | N79: =SUM(N77:N78) -> 22967.94697 | O79: 26245.10388 | P79: 29989.85841 | Q79: 34268.92924 | R79: 39158.5547 | S79: 44745.85113 | T79: 51130.36497 | U79: 58425.84633 | V79: 66762.27563 | W79: 66762.27563 | X79: 66762.27563 | Y79: 66762.27563 | Z79: 66762.27563 | AA79: 66762.27563 | AB79: 66762.27563 | AC79: 66762.27563 | AD79: 66762.27563 | AE79: 66762.27563 | AF79: 66762.27563 | AG79: 66762.27563 | AH79: 66762.27563 | AI79: 66762.27563 | AJ79: 66762.27563 | AK79: 66762.27563 | AL79: 66762.27563 | AM79: 66762.27563 | AN79: 66762.27563 | AO79: 66762.27563 | AP79: 66762.27563 | AQ79: 66762.27563 | AR79: 66762.27563 | AS79: 66762.27563 | AT79: 66762.27563 | AU79: 66762.27563 | AV79: 66762.27563 | AW79: 66762.27563 | AX79: 66762.27563 | AY79: 66762.27563 | AZ79: 66762.27563 | BA79: 66762.27563 | BB79: 66762.27563 | BC79: 66762.27563 | BD79: 66762.27563 | BE79: 66762.27563 | BF79: 66762.27563 | BG79: 66762.27563 | BH79: 66762.27563 | BI79: 66762.27563 | BJ79: 66762.27563 | BK79: 66762.27563 | BL79: 66762.27563 | BM79: 66762.27563 | BN79: 66762.27563 | BO79: 66762.27563 | BP79: 66762.27563
B81: Capacity of Abbatoir | G81: Cattle | H81: =Inputs!G87 -> 200 | N81: =LOOKUP(N5,Inputs!88:88,Inputs!89:89)*$H$81 -> 0 | O81: =LOOKUP(O5,Inputs!88:88,Inputs!89:89)*$H$81 -> 110 | P81: =LOOKUP(P5,Inputs!88:88,Inputs!89:89)*$H$81 -> 130 | Q81: =LOOKUP(Q5,Inputs!88:88,Inputs!89:89)*$H$81 -> 150 | R81: =LOOKUP(R5,Inputs!88:88,Inputs!89:89)*$H$81 -> 170 | S81: =LOOKUP(S5,Inputs!88:88,Inputs!89:89)*$H$81 -> 180 | T81: =LOOKUP(T5,Inputs!88:88,Inputs!89:89)*$H$81 -> 180 | U81: =LOOKUP(U5,Inputs!88:88,Inputs!89:89)*$H$81 -> 180 | V81: =LOOKUP(V5,Inputs!88:88,Inputs!89:89)*$H$81 -> 180 | W81: =LOOKUP(W5,Inputs!88:88,Inputs!89:89)*$H$81 -> 180 | X81: =LOOKUP(X5,Inputs!88:88,Inputs!89:89)*$H$81 -> 180 | Y81: =LOOKUP(Y5,Inputs!88:88,Inputs!89:89)*$H$81 -> 180 | Z81: =LOOKUP(Z5,Inputs!88:88,Inputs!89:89)*$H$81 -> 180 | AA81: =LOOKUP(AA5,Inputs!88:88,Inputs!89:89)*$H$81 -> 180 | AB81: =LOOKUP(AB5,Inputs!88:88,Inputs!89:89)*$H$81 -> 180 | AC81: =LOOKUP(AC5,Inputs!88:88,Inputs!89:89)*$H$81 -> 180 | AD81: =LOOKUP(AD5,Inputs!88:88,Inputs!89:89)*$H$81 -> 180 | AE81: =LOOKUP(AE5,Inputs!88:88,Inputs!89:89)*$H$81 -> 180 | AF81: =LOOKUP(AF5,Inputs!88:88,Inputs!89:89)*$H$81 -> 180 | AG81: =LOOKUP(AG5,Inputs!88:88,Inputs!89:89)*$H$81 -> 180 | AH81: =LOOKUP(AH5,Inputs!88:88,Inputs!89:89)*$H$81 -> 180 | AI81: =LOOKUP(AI5,Inputs!88:88,Inputs!89:89)*$H$81 -> 180 | AJ81: =LOOKUP(AJ5,Inputs!88:88,Inputs!89:89)*$H$81 -> 180 | AK81: =LOOKUP(AK5,Inputs!88:88,Inputs!89:89)*$H$81 -> 180 | AL81: =LOOKUP(AL5,Inputs!88:88,Inputs!89:89)*$H$81 -> 180 | AM81: =LOOKUP(AM5,Inputs!88:88,Inputs!89:89)*$H$81 -> 180 | AN81: =LOOKUP(AN5,Inputs!88:88,Inputs!89:89)*$H$81 -> 180 | AO81: =LOOKUP(AO5,Inputs!88:88,Inputs!89:89)*$H$81 -> 180 | AP81: =LOOKUP(AP5,Inputs!88:88,Inputs!89:89)*$H$81 -> 180 | AQ81: =LOOKUP(AQ5,Inputs!88:88,Inputs!89:89)*$H$81 -> 180 | AR81: =LOOKUP(AR5,Inputs!88:88,Inputs!89:89)*$H$81 -> 180 | AS81: =LOOKUP(AS5,Inputs!88:88,Inputs!89:89)*$H$81 -> 180 | AT81: =LOOKUP(AT5,Inputs!88:88,Inputs!89:89)*$H$81 -> 180 | AU81: =LOOKUP(AU5,Inputs!88:88,Inputs!89:89)*$H$81 -> 180 | AV81: =LOOKUP(AV5,Inputs!88:88,Inputs!89:89)*$H$81 -> 180 | AW81: =LOOKUP(AW5,Inputs!88:88,Inputs!89:89)*$H$81 -> 180 | AX81: =LOOKUP(AX5,Inputs!88:88,Inputs!89:89)*$H$81 -> 180 | AY81: =LOOKUP(AY5,Inputs!88:88,Inputs!89:89)*$H$81 -> 180 | AZ81: =LOOKUP(AZ5,Inputs!88:88,Inputs!89:89)*$H$81 -> 180 | BA81: =LOOKUP(BA5,Inputs!88:88,Inputs!89:89)*$H$81 -> 180 | BB81: =LOOKUP(BB5,Inputs!88:88,Inputs!89:89)*$H$81 -> 180 | BC81: =LOOKUP(BC5,Inputs!88:88,Inputs!89:89)*$H$81 -> 180 | BD81: =LOOKUP(BD5,Inputs!88:88,Inputs!89:89)*$H$81 -> 180 | BE81: =LOOKUP(BE5,Inputs!88:88,Inputs!89:89)*$H$81 -> 180 | BF81: =LOOKUP(BF5,Inputs!88:88,Inputs!89:89)*$H$81 -> 180 | BG81: =LOOKUP(BG5,Inputs!88:88,Inputs!89:89)*$H$81 -> 180 | BH81: =LOOKUP(BH5,Inputs!88:88,Inputs!89:89)*$H$81 -> 180 | BI81: =LOOKUP(BI5,Inputs!88:88,Inputs!89:89)*$H$81 -> 180 | BJ81: =LOOKUP(BJ5,Inputs!88:88,Inputs!89:89)*$H$81 -> 180 | BK81: =LOOKUP(BK5,Inputs!88:88,Inputs!89:89)*$H$81 -> 180 | BL81: =LOOKUP(BL5,Inputs!88:88,Inputs!89:89)*$H$81 -> 180 | BM81: =LOOKUP(BM5,Inputs!88:88,Inputs!89:89)*$H$81 -> 180 | BN81: =LOOKUP(BN5,Inputs!88:88,Inputs!89:89)*$H$81 -> 180 | BO81: =LOOKUP(BO5,Inputs!88:88,Inputs!89:89)*$H$81 -> 180 | BP81: =LOOKUP(BP5,Inputs!88:88,Inputs!89:89)*$H$81 -> 180
K83: 9
B84: Production by Animal Product
C85: Cows | G85: Number | I85: 2016 | J85: =Inputs!G92 -> Years | K85: Increase | M85: 1 | N85: =M85+1 -> 2 | O85: =N85+1 -> 3 | P85: 4 | Q85: 5 | R85: 6 | S85: 7 | T85: 8 | U85: 9 | V85: 10 | W85: 11 | X85: 12 | Y85: 13 | Z85: 14 | AA85: 15 | AB85: 16 | AC85: 17 | AD85: 18 | AE85: 19 | AF85: 20 | AG85: 21 | AH85: 22 | AI85: 23 | AJ85: 24 | AK85: 25 | AL85: 26 | AM85: 27 | AN85: 28 | AO85: 29 | AP85: 30 | AQ85: 31 | AR85: 32 | AS85: 33 | AT85: 34 | AU85: 35 | AV85: 36 | AW85: 37 | AX85: 38 | AY85: 39 | AZ85: 40 | BA85: 41 | BB85: 42 | BC85: 43 | BD85: 44 | BE85: 45 | BF85: 46 | BG85: 47 | BH85: 48 | BI85: 49 | BJ85: 50 | BK85: 51 | BL85: 52 | BM85: 53 | BN85: 54 | BO85: 55 | BP85: 56
D86: Begining of Period | J86: =Inputs!G93 -> 3 | N86: =M89 -> 930 | O86: =N89 -> 800 | P86: 680 | Q86: 695 | R86: 703 | S86: 708 | T86: 710 | U86: 710 | V86: 710 | W86: 710 | X86: 710 | Y86: 710 | Z86: 710 | AA86: 710 | AB86: 710 | AC86: 710 | AD86: 710 | AE86: 710 | AF86: 710 | AG86: 710 | AH86: 710 | AI86: 710 | AJ86: 710 | AK86: 710 | AL86: 710 | AM86: 710 | AN86: 710 | AO86: 710 | AP86: 710 | AQ86: 710 | AR86: 710 | AS86: 710 | AT86: 710 | AU86: 710 | AV86: 710 | AW86: 710 | AX86: 710 | AY86: 710 | AZ86: 710 | BA86: 710 | BB86: 710 | BC86: 710 | BD86: 710 | BE86: 710 | BF86: 710 | BG86: 710 | BH86: 710 | BI86: 710 | BJ86: 710 | BK86: 710 | BL86: 710 | BM86: 710 | BN86: 710 | BO86: 710 | BP86: 710
D87: Add: New Acquisitions | N87: =LOOKUP(N5,Inputs!92:92,Inputs!93:93) -> 180 | O87: =LOOKUP(O5,Inputs!92:92,Inputs!93:93) -> 190 | P87: =LOOKUP(P5,Inputs!92:92,Inputs!93:93) -> 195 | Q87: =LOOKUP(Q5,Inputs!92:92,Inputs!93:93) -> 198 | R87: =LOOKUP(R5,Inputs!92:92,Inputs!93:93) -> 200 | S87: =LOOKUP(S5,Inputs!92:92,Inputs!93:93) -> 200 | T87: =LOOKUP(T5,Inputs!92:92,Inputs!93:93) -> 200 | U87: =LOOKUP(U5,Inputs!92:92,Inputs!93:93) -> 200 | V87: =LOOKUP(V5,Inputs!92:92,Inputs!93:93) -> 200 | W87: =LOOKUP(W5,Inputs!92:92,Inputs!93:93) -> 200 | X87: =LOOKUP(X5,Inputs!92:92,Inputs!93:93) -> 200 | Y87: =LOOKUP(Y5,Inputs!92:92,Inputs!93:93) -> 200 | Z87: =LOOKUP(Z5,Inputs!92:92,Inputs!93:93) -> 200 | AA87: =LOOKUP(AA5,Inputs!92:92,Inputs!93:93) -> 200 | AB87: =LOOKUP(AB5,Inputs!92:92,Inputs!93:93) -> 200 | AC87: =LOOKUP(AC5,Inputs!92:92,Inputs!93:93) -> 200 | AD87: =LOOKUP(AD5,Inputs!92:92,Inputs!93:93) -> 200 | AE87: =LOOKUP(AE5,Inputs!92:92,Inputs!93:93) -> 200 | AF87: =LOOKUP(AF5,Inputs!92:92,Inputs!93:93) -> 200 | AG87: =LOOKUP(AG5,Inputs!92:92,Inputs!93:93) -> 200 | AH87: =LOOKUP(AH5,Inputs!92:92,Inputs!93:93) -> 200 | AI87: =LOOKUP(AI5,Inputs!92:92,Inputs!93:93) -> 200 | AJ87: =LOOKUP(AJ5,Inputs!92:92,Inputs!93:93) -> 200 | AK87: =LOOKUP(AK5,Inputs!92:92,Inputs!93:93) -> 200 | AL87: =LOOKUP(AL5,Inputs!92:92,Inputs!93:93) -> 200 | AM87: =LOOKUP(AM5,Inputs!92:92,Inputs!93:93) -> 200 | AN87: =LOOKUP(AN5,Inputs!92:92,Inputs!93:93) -> 200 | AO87: =LOOKUP(AO5,Inputs!92:92,Inputs!93:93) -> 200 | AP87: =LOOKUP(AP5,Inputs!92:92,Inputs!93:93) -> 200 | AQ87: =LOOKUP(AQ5,Inputs!92:92,Inputs!93:93) -> 200 | AR87: =LOOKUP(AR5,Inputs!92:92,Inputs!93:93) -> 200 | AS87: =LOOKUP(AS5,Inputs!92:92,Inputs!93:93) -> 200 | AT87: =LOOKUP(AT5,Inputs!92:92,Inputs!93:93) -> 200 | AU87: =LOOKUP(AU5,Inputs!92:92,Inputs!93:93) -> 200 | AV87: =LOOKUP(AV5,Inputs!92:92,Inputs!93:93) -> 200 | AW87: =LOOKUP(AW5,Inputs!92:92,Inputs!93:93) -> 200 | AX87: =LOOKUP(AX5,Inputs!92:92,Inputs!93:93) -> 200 | AY87: =LOOKUP(AY5,Inputs!92:92,Inputs!93:93) -> 200 | AZ87: =LOOKUP(AZ5,Inputs!92:92,Inputs!93:93) -> 200 | BA87: =LOOKUP(BA5,Inputs!92:92,Inputs!93:93) -> 200 | BB87: =LOOKUP(BB5,Inputs!92:92,Inputs!93:93) -> 200 | BC87: =LOOKUP(BC5,Inputs!92:92,Inputs!93:93) -> 200 | BD87: =LOOKUP(BD5,Inputs!92:92,Inputs!93:93) -> 200 | BE87: =LOOKUP(BE5,Inputs!92:92,Inputs!93:93) -> 200 | BF87: =LOOKUP(BF5,Inputs!92:92,Inputs!93:93) -> 200 | BG87: =LOOKUP(BG5,Inputs!92:92,Inputs!93:93) -> 200 | BH87: =LOOKUP(BH5,Inputs!92:92,Inputs!93:93) -> 200 | BI87: =LOOKUP(BI5,Inputs!92:92,Inputs!93:93) -> 200 | BJ87: =LOOKUP(BJ5,Inputs!92:92,Inputs!93:93) -> 200 | BK87: =LOOKUP(BK5,Inputs!92:92,Inputs!93:93) -> 200 | BL87: =LOOKUP(BL5,Inputs!92:92,Inputs!93:93) -> 200 | BM87: =LOOKUP(BM5,Inputs!92:92,Inputs!93:93) -> 200 | BN87: =LOOKUP(BN5,Inputs!92:92,Inputs!93:93) -> 200 | BO87: =LOOKUP(BO5,Inputs!92:92,Inputs!93:93) -> 200 | BP87: =LOOKUP(BP5,Inputs!92:92,Inputs!93:93) -> 200
D88: Less: Number Sold | N88: =IF(N$85<=$J$86,$I$89/$J$86,OFFSET(N87,0,-$J$86+1)) -> 310 | O88: =IF(O85<=$J$86,$I$89/$J$86,OFFSET(O87,0,-$J$86+1)) -> 310 | P88: 180 | Q88: 190 | R88: 195 | S88: 198 | T88: 200 | U88: 200 | V88: 200 | W88: 200 | X88: 200 | Y88: 200 | Z88: 200 | AA88: 200 | AB88: 200 | AC88: 200 | AD88: 200 | AE88: 200 | AF88: 200 | AG88: 200 | AH88: 200 | AI88: 200 | AJ88: 200 | AK88: 200 | AL88: 200 | AM88: 200 | AN88: 200 | AO88: 200 | AP88: 200 | AQ88: 200 | AR88: 200 | AS88: 200 | AT88: 200 | AU88: =IF(AU85<=$J$86,$I$89/$J$86,OFFSET(AU87,0,-$J$86+1)) -> 200 | AV88: 200 | AW88: 200 | AX88: 200 | AY88: 200 | AZ88: 200 | BA88: 200 | BB88: 200 | BC88: 200 | BD88: 200 | BE88: 200 | BF88: 200 | BG88: 200 | BH88: 200 | BI88: 200 | BJ88: 200 | BK88: 200 | BL88: 200 | BM88: 200 | BN88: 200 | BO88: 200 | BP88: 200
D89: End of Period | I89: =Inputs!F93 -> 930 | M89: =I89 -> 930 | N89: =N86+N87-N88 -> 800 | O89: =O86+O87-O88 -> 680 | P89: 695 | Q89: 703 | R89: 708 | S89: 710 | T89: 710 | U89: 710 | V89: 710 | W89: 710 | X89: 710 | Y89: 710 | Z89: 710 | AA89: 710 | AB89: 710 | AC89: 710 | AD89: 710 | AE89: 710 | AF89: 710 | AG89: 710 | AH89: 710 | AI89: 710 | AJ89: 710 | AK89: 710 | AL89: 710 | AM89: 710 | AN89: 710 | AO89: 710 | AP89: 710 | AQ89: 710 | AR89: 710 | AS89: 710 | AT89: 710 | AU89: 710 | AV89: 710 | AW89: 710 | AX89: 710 | AY89: 710 | AZ89: 710 | BA89: 710 | BB89: 710 | BC89: 710 | BD89: 710 | BE89: 710 | BF89: 710 | BG89: 710 | BH89: 710 | BI89: 710 | BJ89: 710 | BK89: 710 | BL89: 710 | BM89: 710 | BN89: 710 | BO89: 710 | BP89: 710
C91: Sheep | G91: Number | I91: =Inputs!F94 -> 170 | J91: =Inputs!G94 -> 2
D92: Begining of Period | N92: =M95 -> 170 | O92: =N95 -> 205 | P92: 235 | Q92: 255 | R92: 275 | S92: 285 | T92: 285 | U92: 285 | V92: 285 | W92: 285 | X92: 285 | Y92: 285 | Z92: 285 | AA92: 285 | AB92: 285 | AC92: 285 | AD92: 285 | AE92: 285 | AF92: 285 | AG92: 285 | AH92: 285 | AI92: 285 | AJ92: 285 | AK92: 285 | AL92: 285 | AM92: 285 | AN92: 285 | AO92: 285 | AP92: 285 | AQ92: 285 | AR92: 285 | AS92: 285 | AT92: 285 | AU92: 285 | AV92: 285 | AW92: 285 | AX92: 285 | AY92: 285 | AZ92: 285 | BA92: 285 | BB92: 285 | BC92: 285 | BD92: 285 | BE92: 285 | BF92: 285 | BG92: 285 | BH92: 285 | BI92: 285 | BJ92: 285 | BK92: 285 | BL92: 285 | BM92: 285 | BN92: 285 | BO92: 285 | BP92: 285
D93: Add: New Acquisitions | N93: =LOOKUP(N5,Inputs!92:92,Inputs!94:94) -> 120 | O93: =LOOKUP(O5,Inputs!92:92,Inputs!94:94) -> 150 | P93: =LOOKUP(P5,Inputs!92:92,Inputs!94:94) -> 170 | Q93: =LOOKUP(Q5,Inputs!92:92,Inputs!94:94) -> 190 | R93: =LOOKUP(R5,Inputs!92:92,Inputs!94:94) -> 200 | S93: =LOOKUP(S5,Inputs!92:92,Inputs!94:94) -> 200 | T93: =LOOKUP(T5,Inputs!92:92,Inputs!94:94) -> 200 | U93: =LOOKUP(U5,Inputs!92:92,Inputs!94:94) -> 200 | V93: =LOOKUP(V5,Inputs!92:92,Inputs!94:94) -> 200 | W93: =LOOKUP(W5,Inputs!92:92,Inputs!94:94) -> 200 | X93: =LOOKUP(X5,Inputs!92:92,Inputs!94:94) -> 200 | Y93: =LOOKUP(Y5,Inputs!92:92,Inputs!94:94) -> 200 | Z93: =LOOKUP(Z5,Inputs!92:92,Inputs!94:94) -> 200 | AA93: =LOOKUP(AA5,Inputs!92:92,Inputs!94:94) -> 200 | AB93: =LOOKUP(AB5,Inputs!92:92,Inputs!94:94) -> 200 | AC93: =LOOKUP(AC5,Inputs!92:92,Inputs!94:94) -> 200 | AD93: =LOOKUP(AD5,Inputs!92:92,Inputs!94:94) -> 200 | AE93: =LOOKUP(AE5,Inputs!92:92,Inputs!94:94) -> 200 | AF93: =LOOKUP(AF5,Inputs!92:92,Inputs!94:94) -> 200 | AG93: =LOOKUP(AG5,Inputs!92:92,Inputs!94:94) -> 200 | AH93: =LOOKUP(AH5,Inputs!92:92,Inputs!94:94) -> 200 | AI93: =LOOKUP(AI5,Inputs!92:92,Inputs!94:94) -> 200 | AJ93: =LOOKUP(AJ5,Inputs!92:92,Inputs!94:94) -> 200 | AK93: =LOOKUP(AK5,Inputs!92:92,Inputs!94:94) -> 200 | AL93: =LOOKUP(AL5,Inputs!92:92,Inputs!94:94) -> 200 | AM93: =LOOKUP(AM5,Inputs!92:92,Inputs!94:94) -> 200 | AN93: =LOOKUP(AN5,Inputs!92:92,Inputs!94:94) -> 200 | AO93: =LOOKUP(AO5,Inputs!92:92,Inputs!94:94) -> 200 | AP93: =LOOKUP(AP5,Inputs!92:92,Inputs!94:94) -> 200 | AQ93: =LOOKUP(AQ5,Inputs!92:92,Inputs!94:94) -> 200 | AR93: =LOOKUP(AR5,Inputs!92:92,Inputs!94:94) -> 200 | AS93: =LOOKUP(AS5,Inputs!92:92,Inputs!94:94) -> 200 | AT93: =LOOKUP(AT5,Inputs!92:92,Inputs!94:94) -> 200 | AU93: =LOOKUP(AU5,Inputs!92:92,Inputs!94:94) -> 200 | AV93: =LOOKUP(AV5,Inputs!92:92,Inputs!94:94) -> 200 | AW93: =LOOKUP(AW5,Inputs!92:92,Inputs!94:94) -> 200 | AX93: =LOOKUP(AX5,Inputs!92:92,Inputs!94:94) -> 200 | AY93: =LOOKUP(AY5,Inputs!92:92,Inputs!94:94) -> 200 | AZ93: =LOOKUP(AZ5,Inputs!92:92,Inputs!94:94) -> 200 | BA93: =LOOKUP(BA5,Inputs!92:92,Inputs!94:94) -> 200 | BB93: =LOOKUP(BB5,Inputs!92:92,Inputs!94:94) -> 200 | BC93: =LOOKUP(BC5,Inputs!92:92,Inputs!94:94) -> 200 | BD93: =LOOKUP(BD5,Inputs!92:92,Inputs!94:94) -> 200 | BE93: =LOOKUP(BE5,Inputs!92:92,Inputs!94:94) -> 200 | BF93: =LOOKUP(BF5,Inputs!92:92,Inputs!94:94) -> 200 | BG93: =LOOKUP(BG5,Inputs!92:92,Inputs!94:94) -> 200 | BH93: =LOOKUP(BH5,Inputs!92:92,Inputs!94:94) -> 200 | BI93: =LOOKUP(BI5,Inputs!92:92,Inputs!94:94) -> 200 | BJ93: =LOOKUP(BJ5,Inputs!92:92,Inputs!94:94) -> 200 | BK93: =LOOKUP(BK5,Inputs!92:92,Inputs!94:94) -> 200 | BL93: =LOOKUP(BL5,Inputs!92:92,Inputs!94:94) -> 200 | BM93: =LOOKUP(BM5,Inputs!92:92,Inputs!94:94) -> 200 | BN93: =LOOKUP(BN5,Inputs!92:92,Inputs!94:94) -> 200 | BO93: =LOOKUP(BO5,Inputs!92:92,Inputs!94:94) -> 200 | BP93: =LOOKUP(BP5,Inputs!92:92,Inputs!94:94) -> 200
D94: Less: Number Sold | N94: =IF(N$85<=$J$91,$I$91/$J$91,OFFSET(N93,0,-$J$91+1)) -> 85 | O94: =IF(O$85<=$J$91,$I$91/$J$91,OFFSET(O93,0,-$J$91+1)) -> 120 | P94: 150 | Q94: 170 | R94: 190 | S94: 200 | T94: 200 | U94: 200 | V94: 200 | W94: 200 | X94: 200 | Y94: 200 | Z94: 200 | AA94: 200 | AB94: 200 | AC94: 200 | AD94: 200 | AE94: 200 | AF94: 200 | AG94: 200 | AH94: 200 | AI94: 200 | AJ94: 200 | AK94: 200 | AL94: 200 | AM94: 200 | AN94: 200 | AO94: 200 | AP94: 200 | AQ94: 200 | AR94: 200 | AS94: 200 | AT94: 200 | AU94: 200 | AV94: 200 | AW94: 200 | AX94: 200 | AY94: 200 | AZ94: 200 | BA94: 200 | BB94: 200 | BC94: 200 | BD94: 200 | BE94: 200 | BF94: 200 | BG94: 200 | BH94: 200 | BI94: 200 | BJ94: 200 | BK94: 200 | BL94: 200 | BM94: 200 | BN94: 200 | BO94: 200 | BP94: 200
D95: End of Period | M95: =I91 -> 170 | N95: =N92+N93-N94 -> 205 | O95: =O92+O93-O94 -> 235 | P95: 255 | Q95: 275 | R95: 285 | S95: 285 | T95: 285 | U95: 285 | V95: 285 | W95: 285 | X95: 285 | Y95: 285 | Z95: 285 | AA95: 285 | AB95: 285 | AC95: 285 | AD95: 285 | AE95: 285 | AF95: 285 | AG95: 285 | AH95: 285 | AI95: 285 | AJ95: 285 | AK95: 285 | AL95: 285 | AM95: 285 | AN95: 285 | AO95: 285 | AP95: 285 | AQ95: 285 | AR95: 285 | AS95: 285 | AT95: 285 | AU95: 285 | AV95: 285 | AW95: 285 | AX95: 285 | AY95: 285 | AZ95: 285 | BA95: 285 | BB95: 285 | BC95: 285 | BD95: 285 | BE95: 285 | BF95: 285 | BG95: 285 | BH95: 285 | BI95: 285 | BJ95: 285 | BK95: 285 | BL95: 285 | BM95: 285 | BN95: 285 | BO95: 285 | BP95: 285
C97: Goats | G97: Number | I97: =Inputs!F95 -> 335 | J97: =Inputs!G95 -> 2
D98: Begining of Period | N98: =M101 -> 335 | O98: =N101 -> 297.5 | P98: 317.5 | Q98: 357.5 | R98: 377.5 | S98: 387.5 | T98: 387.5 | U98: 387.5 | V98: 387.5 | W98: 387.5 | X98: 387.5 | Y98: 387.5 | Z98: 387.5 | AA98: 387.5 | AB98: 387.5 | AC98: 387.5 | AD98: 387.5 | AE98: 387.5 | AF98: 387.5 | AG98: 387.5 | AH98: 387.5 | AI98: 387.5 | AJ98: 387.5 | AK98: 387.5 | AL98: 387.5 | AM98: 387.5 | AN98: 387.5 | AO98: 387.5 | AP98: 387.5 | AQ98: 387.5 | AR98: 387.5 | AS98: 387.5 | AT98: 387.5 | AU98: 387.5 | AV98: 387.5 | AW98: 387.5 | AX98: 387.5 | AY98: 387.5 | AZ98: 387.5 | BA98: 387.5 | BB98: 387.5 | BC98: 387.5 | BD98: 387.5 | BE98: 387.5 | BF98: 387.5 | BG98: 387.5 | BH98: 387.5 | BI98: 387.5 | BJ98: 387.5 | BK98: 387.5 | BL98: 387.5 | BM98: 387.5 | BN98: 387.5 | BO98: 387.5 | BP98: 387.5
D99: Add: New Acquisitions | N99: =LOOKUP(N5,Inputs!92:92,Inputs!95:95) -> 130 | O99: =LOOKUP(O5,Inputs!92:92,Inputs!95:95) -> 150 | P99: =LOOKUP(P5,Inputs!92:92,Inputs!95:95) -> 190 | Q99: =LOOKUP(Q5,Inputs!92:92,Inputs!95:95) -> 210 | R99: =LOOKUP(R5,Inputs!92:92,Inputs!95:95) -> 220 | S99: =LOOKUP(S5,Inputs!92:92,Inputs!95:95) -> 220 | T99: =LOOKUP(T5,Inputs!92:92,Inputs!95:95) -> 220 | U99: =LOOKUP(U5,Inputs!92:92,Inputs!95:95) -> 220 | V99: =LOOKUP(V5,Inputs!92:92,Inputs!95:95) -> 220 | W99: =LOOKUP(W5,Inputs!92:92,Inputs!95:95) -> 220 | X99: =LOOKUP(X5,Inputs!92:92,Inputs!95:95) -> 220 | Y99: =LOOKUP(Y5,Inputs!92:92,Inputs!95:95) -> 220 | Z99: =LOOKUP(Z5,Inputs!92:92,Inputs!95:95) -> 220 | AA99: =LOOKUP(AA5,Inputs!92:92,Inputs!95:95) -> 220 | AB99: =LOOKUP(AB5,Inputs!92:92,Inputs!95:95) -> 220 | AC99: =LOOKUP(AC5,Inputs!92:92,Inputs!95:95) -> 220 | AD99: =LOOKUP(AD5,Inputs!92:92,Inputs!95:95) -> 220 | AE99: =LOOKUP(AE5,Inputs!92:92,Inputs!95:95) -> 220 | AF99: =LOOKUP(AF5,Inputs!92:92,Inputs!95:95) -> 220 | AG99: =LOOKUP(AG5,Inputs!92:92,Inputs!95:95) -> 220 | AH99: =LOOKUP(AH5,Inputs!92:92,Inputs!95:95) -> 220 | AI99: =LOOKUP(AI5,Inputs!92:92,Inputs!95:95) -> 220 | AJ99: =LOOKUP(AJ5,Inputs!92:92,Inputs!95:95) -> 220 | AK99: =LOOKUP(AK5,Inputs!92:92,Inputs!95:95) -> 220 | AL99: =LOOKUP(AL5,Inputs!92:92,Inputs!95:95) -> 220 | AM99: =LOOKUP(AM5,Inputs!92:92,Inputs!95:95) -> 220 | AN99: =LOOKUP(AN5,Inputs!92:92,Inputs!95:95) -> 220 | AO99: =LOOKUP(AO5,Inputs!92:92,Inputs!95:95) -> 220 | AP99: =LOOKUP(AP5,Inputs!92:92,Inputs!95:95) -> 220 | AQ99: =LOOKUP(AQ5,Inputs!92:92,Inputs!95:95) -> 220 | AR99: =LOOKUP(AR5,Inputs!92:92,Inputs!95:95) -> 220 | AS99: =LOOKUP(AS5,Inputs!92:92,Inputs!95:95) -> 220 | AT99: =LOOKUP(AT5,Inputs!92:92,Inputs!95:95) -> 220 | AU99: =LOOKUP(AU5,Inputs!92:92,Inputs!95:95) -> 220 | AV99: =LOOKUP(AV5,Inputs!92:92,Inputs!95:95) -> 220 | AW99: =LOOKUP(AW5,Inputs!92:92,Inputs!95:95) -> 220 | AX99: =LOOKUP(AX5,Inputs!92:92,Inputs!95:95) -> 220 | AY99: =LOOKUP(AY5,Inputs!92:92,Inputs!95:95) -> 220 | AZ99: =LOOKUP(AZ5,Inputs!92:92,Inputs!95:95) -> 220 | BA99: =LOOKUP(BA5,Inputs!92:92,Inputs!95:95) -> 220 | BB99: =LOOKUP(BB5,Inputs!92:92,Inputs!95:95) -> 220 | BC99: =LOOKUP(BC5,Inputs!92:92,Inputs!95:95) -> 220 | BD99: =LOOKUP(BD5,Inputs!92:92,Inputs!95:95) -> 220 | BE99: =LOOKUP(BE5,Inputs!92:92,Inputs!95:95) -> 220 | BF99: =LOOKUP(BF5,Inputs!92:92,Inputs!95:95) -> 220 | BG99: =LOOKUP(BG5,Inputs!92:92,Inputs!95:95) -> 220 | BH99: =LOOKUP(BH5,Inputs!92:92,Inputs!95:95) -> 220 | BI99: =LOOKUP(BI5,Inputs!92:92,Inputs!95:95) -> 220 | BJ99: =LOOKUP(BJ5,Inputs!92:92,Inputs!95:95) -> 220 | BK99: =LOOKUP(BK5,Inputs!92:92,Inputs!95:95) -> 220 | BL99: =LOOKUP(BL5,Inputs!92:92,Inputs!95:95) -> 220 | BM99: =LOOKUP(BM5,Inputs!92:92,Inputs!95:95) -> 220 | BN99: =LOOKUP(BN5,Inputs!92:92,Inputs!95:95) -> 220 | BO99: =LOOKUP(BO5,Inputs!92:92,Inputs!95:95) -> 220 | BP99: =LOOKUP(BP5,Inputs!92:92,Inputs!95:95) -> 220
D100: Less: Number Sold | N100: =IF(N$85<=$J$97,$I$97/$J$97,OFFSET(N99,0,-$J$97+1)) -> 167.5 | O100: =IF(O$85<=$J$97,$I$97/$J$97,OFFSET(O99,0,-$J$97+1)) -> 130 | P100: 150 | Q100: 190 | R100: 210 | S100: 220 | T100: 220 | U100: 220 | V100: 220 | W100: 220 | X100: 220 | Y100: 220 | Z100: 220 | AA100: 220 | AB100: 220 | AC100: 220 | AD100: 220 | AE100: 220 | AF100: 220 | AG100: 220 | AH100: 220 | AI100: 220 | AJ100: 220 | AK100: 220 | AL100: 220 | AM100: 220 | AN100: 220 | AO100: 220 | AP100: 220 | AQ100: 220 | AR100: 220 | AS100: 220 | AT100: 220 | AU100: 220 | AV100: 220 | AW100: 220 | AX100: 220 | AY100: 220 | AZ100: 220 | BA100: 220 | BB100: 220 | BC100: 220 | BD100: 220 | BE100: 220 | BF100: 220 | BG100: 220 | BH100: 220 | BI100: 220 | BJ100: 220 | BK100: 220 | BL100: 220 | BM100: 220 | BN100: 220 | BO100: 220 | BP100: 220
D101: End of Period | M101: =I97 -> 335 | N101: =N98+N99-N100 -> 297.5 | O101: =O98+O99-O100 -> 317.5 | P101: 357.5 | Q101: 377.5 | R101: 387.5 | S101: 387.5 | T101: 387.5 | U101: 387.5 | V101: 387.5 | W101: 387.5 | X101: 387.5 | Y101: 387.5 | Z101: 387.5 | AA101: 387.5 | AB101: 387.5 | AC101: 387.5 | AD101: 387.5 | AE101: 387.5 | AF101: 387.5 | AG101: 387.5 | AH101: 387.5 | AI101: 387.5 | AJ101: 387.5 | AK101: 387.5 | AL101: 387.5 | AM101: 387.5 | AN101: 387.5 | AO101: 387.5 | AP101: 387.5 | AQ101: 387.5 | AR101: 387.5 | AS101: 387.5 | AT101: 387.5 | AU101: 387.5 | AV101: 387.5 | AW101: 387.5 | AX101: 387.5 | AY101: 387.5 | AZ101: 387.5 | BA101: 387.5 | BB101: 387.5 | BC101: 387.5 | BD101: 387.5 | BE101: 387.5 | BF101: 387.5 | BG101: 387.5 | BH101: 387.5 | BI101: 387.5 | BJ101: 387.5 | BK101: 387.5 | BL101: 387.5 | BM101: 387.5 | BN101: 387.5 | BO101: 387.5 | BP101: 387.5
C103: Pigs | G103: Number | I103: =Inputs!F96 -> 60 | J103: =Inputs!G96 -> 3
D104: Begining of Period | N104: =M107 -> 60 | O104: =N107 -> 70 | P104: 100 | Q104: 130 | R104: 160 | S104: 190 | T104: 200 | U104: 200 | V104: 200 | W104: 200 | X104: 200 | Y104: 200 | Z104: 200 | AA104: 200 | AB104: 200 | AC104: 200 | AD104: 200 | AE104: 200 | AF104: 200 | AG104: 200 | AH104: 200 | AI104: 200 | AJ104: 200 | AK104: 200 | AL104: 200 | AM104: 200 | AN104: 200 | AO104: 200 | AP104: 200 | AQ104: 200 | AR104: 200 | AS104: 200 | AT104: 200 | AU104: 200 | AV104: 200 | AW104: 200 | AX104: 200 | AY104: 200 | AZ104: 200 | BA104: 200 | BB104: 200 | BC104: 200 | BD104: 200 | BE104: 200 | BF104: 200 | BG104: 200 | BH104: 200 | BI104: 200 | BJ104: 200 | BK104: 200 | BL104: 200 | BM104: 200 | BN104: 200 | BO104: 200 | BP104: 200
D105: Add: New Acquisitions | N105: =LOOKUP(N5,Inputs!92:92,Inputs!96:96) -> 30 | O105: =LOOKUP(O5,Inputs!92:92,Inputs!96:96) -> 50 | P105: =LOOKUP(P5,Inputs!92:92,Inputs!96:96) -> 60 | Q105: =LOOKUP(Q5,Inputs!92:92,Inputs!96:96) -> 80 | R105: =LOOKUP(R5,Inputs!92:92,Inputs!96:96) -> 90 | S105: =LOOKUP(S5,Inputs!92:92,Inputs!96:96) -> 90 | T105: =LOOKUP(T5,Inputs!92:92,Inputs!96:96) -> 90 | U105: =LOOKUP(U5,Inputs!92:92,Inputs!96:96) -> 90 | V105: =LOOKUP(V5,Inputs!92:92,Inputs!96:96) -> 90 | W105: =LOOKUP(W5,Inputs!92:92,Inputs!96:96) -> 90 | X105: =LOOKUP(X5,Inputs!92:92,Inputs!96:96) -> 90 | Y105: =LOOKUP(Y5,Inputs!92:92,Inputs!96:96) -> 90 | Z105: =LOOKUP(Z5,Inputs!92:92,Inputs!96:96) -> 90 | AA105: =LOOKUP(AA5,Inputs!92:92,Inputs!96:96) -> 90 | AB105: =LOOKUP(AB5,Inputs!92:92,Inputs!96:96) -> 90 | AC105: =LOOKUP(AC5,Inputs!92:92,Inputs!96:96) -> 90 | AD105: =LOOKUP(AD5,Inputs!92:92,Inputs!96:96) -> 90 | AE105: =LOOKUP(AE5,Inputs!92:92,Inputs!96:96) -> 90 | AF105: =LOOKUP(AF5,Inputs!92:92,Inputs!96:96) -> 90 | AG105: =LOOKUP(AG5,Inputs!92:92,Inputs!96:96) -> 90 | AH105: =LOOKUP(AH5,Inputs!92:92,Inputs!96:96) -> 90 | AI105: =LOOKUP(AI5,Inputs!92:92,Inputs!96:96) -> 90 | AJ105: =LOOKUP(AJ5,Inputs!92:92,Inputs!96:96) -> 90 | AK105: =LOOKUP(AK5,Inputs!92:92,Inputs!96:96) -> 90 | AL105: =LOOKUP(AL5,Inputs!92:92,Inputs!96:96) -> 90 | AM105: =LOOKUP(AM5,Inputs!92:92,Inputs!96:96) -> 90 | AN105: =LOOKUP(AN5,Inputs!92:92,Inputs!96:96) -> 90 | AO105: =LOOKUP(AO5,Inputs!92:92,Inputs!96:96) -> 90 | AP105: =LOOKUP(AP5,Inputs!92:92,Inputs!96:96) -> 90 | AQ105: =LOOKUP(AQ5,Inputs!92:92,Inputs!96:96) -> 90 | AR105: =LOOKUP(AR5,Inputs!92:92,Inputs!96:96) -> 90 | AS105: =LOOKUP(AS5,Inputs!92:92,Inputs!96:96) -> 90 | AT105: =LOOKUP(AT5,Inputs!92:92,Inputs!96:96) -> 90 | AU105: =LOOKUP(AU5,Inputs!92:92,Inputs!96:96) -> 90 | AV105: =LOOKUP(AV5,Inputs!92:92,Inputs!96:96) -> 90 | AW105: =LOOKUP(AW5,Inputs!92:92,Inputs!96:96) -> 90 | AX105: =LOOKUP(AX5,Inputs!92:92,Inputs!96:96) -> 90 | AY105: =LOOKUP(AY5,Inputs!92:92,Inputs!96:96) -> 90 | AZ105: =LOOKUP(AZ5,Inputs!92:92,Inputs!96:96) -> 90 | BA105: =LOOKUP(BA5,Inputs!92:92,Inputs!96:96) -> 90 | BB105: =LOOKUP(BB5,Inputs!92:92,Inputs!96:96) -> 90 | BC105: =LOOKUP(BC5,Inputs!92:92,Inputs!96:96) -> 90 | BD105: =LOOKUP(BD5,Inputs!92:92,Inputs!96:96) -> 90 | BE105: =LOOKUP(BE5,Inputs!92:92,Inputs!96:96) -> 90 | BF105: =LOOKUP(BF5,Inputs!92:92,Inputs!96:96) -> 90 | BG105: =LOOKUP(BG5,Inputs!92:92,Inputs!96:96) -> 90 | BH105: =LOOKUP(BH5,Inputs!92:92,Inputs!96:96) -> 90 | BI105: =LOOKUP(BI5,Inputs!92:92,Inputs!96:96) -> 90 | BJ105: =LOOKUP(BJ5,Inputs!92:92,Inputs!96:96) -> 90 | BK105: =LOOKUP(BK5,Inputs!92:92,Inputs!96:96) -> 90 | BL105: =LOOKUP(BL5,Inputs!92:92,Inputs!96:96) -> 90 | BM105: =LOOKUP(BM5,Inputs!92:92,Inputs!96:96) -> 90 | BN105: =LOOKUP(BN5,Inputs!92:92,Inputs!96:96) -> 90 | BO105: =LOOKUP(BO5,Inputs!92:92,Inputs!96:96) -> 90 | BP105: =LOOKUP(BP5,Inputs!92:92,Inputs!96:96) -> 90
D106: Less: Number Sold | N106: =IF(N$85<=$J$103,$I$103/$J$103,OFFSET(N105,0,-$J$103+1)) -> 20 | O106: =IF(O$85<=$J$103,$I$103/$J$103,OFFSET(O105,0,-$J$103+1)) -> 20 | P106: 30 | Q106: 50 | R106: 60 | S106: 80 | T106: 90 | U106: 90 | V106: 90 | W106: 90 | X106: 90 | Y106: 90 | Z106: 90 | AA106: 90 | AB106: 90 | AC106: 90 | AD106: 90 | AE106: 90 | AF106: 90 | AG106: 90 | AH106: 90 | AI106: 90 | AJ106: 90 | AK106: 90 | AL106: 90 | AM106: 90 | AN106: 90 | AO106: 90 | AP106: 90 | AQ106: 90 | AR106: 90 | AS106: 90 | AT106: 90 | AU106: 90 | AV106: 90 | AW106: 90 | AX106: 90 | AY106: 90 | AZ106: 90 | BA106: 90 | BB106: 90 | BC106: 90 | BD106: 90 | BE106: 90 | BF106: 90 | BG106: 90 | BH106: 90 | BI106: 90 | BJ106: 90 | BK106: 90 | BL106: 90 | BM106: 90 | BN106: 90 | BO106: 90 | BP106: 90
D107: End of Period | M107: =I103 -> 60 | N107: =N104+N105-N106 -> 70 | O107: =O104+O105-O106 -> 100 | P107: 130 | Q107: 160 | R107: 190 | S107: 200 | T107: 200 | U107: 200 | V107: 200 | W107: 200 | X107: 200 | Y107: 200 | Z107: 200 | AA107: 200 | AB107: 200 | AC107: 200 | AD107: 200 | AE107: 200 | AF107: 200 | AG107: 200 | AH107: 200 | AI107: 200 | AJ107: 200 | AK107: 200 | AL107: 200 | AM107: 200 | AN107: 200 | AO107: 200 | AP107: 200 | AQ107: 200 | AR107: 200 | AS107: 200 | AT107: 200 | AU107: 200 | AV107: 200 | AW107: 200 | AX107: 200 | AY107: 200 | AZ107: 200 | BA107: 200 | BB107: 200 | BC107: 200 | BD107: 200 | BE107: 200 | BF107: 200 | BG107: 200 | BH107: 200 | BI107: 200 | BJ107: 200 | BK107: 200 | BL107: 200 | BM107: 200 | BN107: 200 | BO107: 200 | BP107: 200
B109: Dairy Production
C110: Per Day | G110: Gallons | N110: =LOOKUP(N5,Inputs!98:98,Inputs!99:99) -> 0 | O110: =LOOKUP(O5,Inputs!98:98,Inputs!99:99) -> 0 | P110: =LOOKUP(P5,Inputs!98:98,Inputs!99:99) -> 3000 | Q110: =LOOKUP(Q5,Inputs!98:98,Inputs!99:99) -> 7000 | R110: =LOOKUP(R5,Inputs!98:98,Inputs!99:99) -> 10000 | S110: =LOOKUP(S5,Inputs!98:98,Inputs!99:99) -> 10000 | T110: =LOOKUP(T5,Inputs!98:98,Inputs!99:99) -> 10000 | U110: =LOOKUP(U5,Inputs!98:98,Inputs!99:99) -> 10000 | V110: =LOOKUP(V5,Inputs!98:98,Inputs!99:99) -> 10000 | W110: =LOOKUP(W5,Inputs!98:98,Inputs!99:99) -> 10000 | X110: =LOOKUP(X5,Inputs!98:98,Inputs!99:99) -> 10000 | Y110: =LOOKUP(Y5,Inputs!98:98,Inputs!99:99) -> 10000 | Z110: =LOOKUP(Z5,Inputs!98:98,Inputs!99:99) -> 10000 | AA110: =LOOKUP(AA5,Inputs!98:98,Inputs!99:99) -> 10000 | AB110: =LOOKUP(AB5,Inputs!98:98,Inputs!99:99) -> 10000 | AC110: =LOOKUP(AC5,Inputs!98:98,Inputs!99:99) -> 10000 | AD110: =LOOKUP(AD5,Inputs!98:98,Inputs!99:99) -> 10000 | AE110: =LOOKUP(AE5,Inputs!98:98,Inputs!99:99) -> 10000 | AF110: =LOOKUP(AF5,Inputs!98:98,Inputs!99:99) -> 10000 | AG110: =LOOKUP(AG5,Inputs!98:98,Inputs!99:99) -> 10000 | AH110: =LOOKUP(AH5,Inputs!98:98,Inputs!99:99) -> 10000 | AI110: =LOOKUP(AI5,Inputs!98:98,Inputs!99:99) -> 10000 | AJ110: =LOOKUP(AJ5,Inputs!98:98,Inputs!99:99) -> 10000 | AK110: =LOOKUP(AK5,Inputs!98:98,Inputs!99:99) -> 10000 | AL110: =LOOKUP(AL5,Inputs!98:98,Inputs!99:99) -> 10000 | AM110: =LOOKUP(AM5,Inputs!98:98,Inputs!99:99) -> 10000 | AN110: =LOOKUP(AN5,Inputs!98:98,Inputs!99:99) -> 10000 | AO110: =LOOKUP(AO5,Inputs!98:98,Inputs!99:99) -> 10000 | AP110: =LOOKUP(AP5,Inputs!98:98,Inputs!99:99) -> 10000 | AQ110: =LOOKUP(AQ5,Inputs!98:98,Inputs!99:99) -> 10000 | AR110: =LOOKUP(AR5,Inputs!98:98,Inputs!99:99) -> 10000 | AS110: =LOOKUP(AS5,Inputs!98:98,Inputs!99:99) -> 10000 | AT110: =LOOKUP(AT5,Inputs!98:98,Inputs!99:99) -> 10000 | AU110: =LOOKUP(AU5,Inputs!98:98,Inputs!99:99) -> 10000 | AV110: =LOOKUP(AV5,Inputs!98:98,Inputs!99:99) -> 10000 | AW110: =LOOKUP(AW5,Inputs!98:98,Inputs!99:99) -> 10000 | AX110: =LOOKUP(AX5,Inputs!98:98,Inputs!99:99) -> 10000 | AY110: =LOOKUP(AY5,Inputs!98:98,Inputs!99:99) -> 10000 | AZ110: =LOOKUP(AZ5,Inputs!98:98,Inputs!99:99) -> 10000 | BA110: =LOOKUP(BA5,Inputs!98:98,Inputs!99:99) -> 10000 | BB110: =LOOKUP(BB5,Inputs!98:98,Inputs!99:99) -> 10000 | BC110: =LOOKUP(BC5,Inputs!98:98,Inputs!99:99) -> 10000 | BD110: =LOOKUP(BD5,Inputs!98:98,Inputs!99:99) -> 10000 | BE110: =LOOKUP(BE5,Inputs!98:98,Inputs!99:99) -> 10000 | BF110: =LOOKUP(BF5,Inputs!98:98,Inputs!99:99) -> 10000 | BG110: =LOOKUP(BG5,Inputs!98:98,Inputs!99:99) -> 10000 | BH110: =LOOKUP(BH5,Inputs!98:98,Inputs!99:99) -> 10000 | BI110: =LOOKUP(BI5,Inputs!98:98,Inputs!99:99) -> 10000 | BJ110: =LOOKUP(BJ5,Inputs!98:98,Inputs!99:99) -> 10000 | BK110: =LOOKUP(BK5,Inputs!98:98,Inputs!99:99) -> 10000 | BL110: =LOOKUP(BL5,Inputs!98:98,Inputs!99:99) -> 10000 | BM110: =LOOKUP(BM5,Inputs!98:98,Inputs!99:99) -> 10000 | BN110: =LOOKUP(BN5,Inputs!98:98,Inputs!99:99) -> 10000 | BO110: =LOOKUP(BO5,Inputs!98:98,Inputs!99:99) -> 10000 | BP110: =LOOKUP(BP5,Inputs!98:98,Inputs!99:99) -> 10000
C111: Days | N111: =N4-M4 -> 365 | O111: 365 | P111: 365 | Q111: 366 | R111: 365 | S111: 365 | T111: 365 | U111: 366 | V111: 365 | W111: 365 | X111: 365 | Y111: 366 | Z111: 365 | AA111: 365 | AB111: 365 | AC111: 366 | AD111: 365 | AE111: 365 | AF111: 365 | AG111: 366 | AH111: 365 | AI111: 365 | AJ111: 365 | AK111: 366 | AL111: 365 | AM111: 365 | AN111: 365 | AO111: 366 | AP111: 365 | AQ111: 365 | AR111: 365 | AS111: 366 | AT111: =AT4-AS4 -> 365 | AU111: 365 | AV111: 365 | AW111: 366 | AX111: 365 | AY111: 365 | AZ111: 365 | BA111: 366 | BB111: 365 | BC111: 365 | BD111: 365 | BE111: 366 | BF111: 365 | BG111: 365 | BH111: 365 | BI111: 366 | BJ111: 365 | BK111: 365 | BL111: 365 | BM111: 366 | BN111: 365 | BO111: 365 | BP111: 365
C112: Per Period | N112: =N110*N111 -> 0 | O112: =O110*O111 -> 0 | P112: 1095000 | Q112: 2562000 | R112: 3650000 | S112: 3650000 | T112: 3650000 | U112: 3660000 | V112: 3650000 | W112: 3650000 | X112: 3650000 | Y112: 3660000 | Z112: 3650000 | AA112: 3650000 | AB112: 3650000 | AC112: 3660000 | AD112: 3650000 | AE112: 3650000 | AF112: 3650000 | AG112: 3660000 | AH112: 3650000 | AI112: 3650000 | AJ112: 3650000 | AK112: 3660000 | AL112: 3650000 | AM112: 3650000 | AN112: 3650000 | AO112: 3660000 | AP112: 3650000 | AQ112: 3650000 | AR112: 3650000 | AS112: 3660000 | AT112: 3650000 | AU112: 3650000 | AV112: 3650000 | AW112: 3660000 | AX112: 3650000 | AY112: 3650000 | AZ112: 3650000 | BA112: 3660000 | BB112: 3650000 | BC112: 3650000 | BD112: 3650000 | BE112: 3660000 | BF112: 3650000 | BG112: 3650000 | BH112: 3650000 | BI112: 3660000 | BJ112: 3650000 | BK112: 3650000 | BL112: 3650000 | BM112: 3660000 | BN112: 3650000 | BO112: 3650000 | BP112: 3650000
J113: =I114-H114 -> 3
B114: Chips and Fries Production | H114: 2016 | I114: =Inputs!G103 -> 2019 | J114: Percent | M114: 0 | N114: =M114+1 -> 1 | O114: =N114+1 -> 2 | P114: 3 | Q114: 4 | R114: 5 | S114: 6 | T114: 7 | U114: 8 | V114: 9 | W114: 10 | X114: 11 | Y114: 12 | Z114: 13 | AA114: 14 | AB114: 15 | AC114: 16 | AD114: 17 | AE114: 18 | AF114: 19 | AG114: 20 | AH114: 21 | AI114: 22 | AJ114: 23 | AK114: 24 | AL114: 25 | AM114: 26 | AN114: 27 | AO114: 28 | AP114: 29 | AQ114: 30 | AR114: 31 | AS114: 32 | AT114: 33 | AU114: 34 | AV114: 35 | AW114: 36 | AX114: 37 | AY114: 38 | AZ114: 39 | BA114: 40 | BB114: 41 | BC114: 42 | BD114: 43 | BE114: 44 | BF114: 45 | BG114: 46 | BH114: 47 | BI114: 48 | BJ114: 49 | BK114: 50 | BL114: 51 | BM114: 52 | BN114: 53 | BO114: 54 | BP114: 55
C115: Plain fried Chips 45g | G115: Units | H115: =Inputs!F105 -> 15070 | I115: =Inputs!G105 -> 15070 | J115: =(I115/H115)^(1/$J$113)-1 -> 0 | M115: =H115 -> 15070 | N115: =IF(N$114<=$J$113,M115*(1+$J115),M115) -> 15070 | O115: =IF(O$114<=$J$113,N115*(1+$J115),N115) -> 15070 | P115: 15070 | Q115: 15070 | R115: 15070 | S115: 15070 | T115: 15070 | U115: 15070 | V115: 15070 | W115: 15070 | X115: 15070 | Y115: 15070 | Z115: 15070 | AA115: 15070 | AB115: 15070 | AC115: 15070 | AD115: 15070 | AE115: 15070 | AF115: 15070 | AG115: 15070 | AH115: 15070 | AI115: 15070 | AJ115: 15070 | AK115: 15070 | AL115: 15070 | AM115: 15070 | AN115: 15070 | AO115: 15070 | AP115: 15070 | AQ115: 15070 | AR115: 15070 | AS115: 15070 | AT115: 15070 | AU115: 15070 | AV115: 15070 | AW115: 15070 | AX115: 15070 | AY115: 15070 | AZ115: 15070 | BA115: 15070 | BB115: 15070 | BC115: 15070 | BD115: 15070 | BE115: 15070 | BF115: 15070 | BG115: 15070 | BH115: 15070 | BI115: 15070 | BJ115: 15070 | BK115: 15070 | BL115: 15070 | BM115: 15070 | BN115: 15070 | BO115: 15070 | BP115: 15070
C116: Plain fried Chips 100g | G116: Units | H116: =Inputs!F106 -> 12140 | I116: =Inputs!G106 -> 12140 | J116: 0 | M116: 12140 | N116: =IF(N$114<=$J$113,M116*(1+$J116),M116) -> 12140 | O116: 12140 | P116: 12140 | Q116: 12140 | R116: 12140 | S116: 12140 | T116: 12140 | U116: 12140 | V116: 12140 | W116: 12140 | X116: 12140 | Y116: 12140 | Z116: 12140 | AA116: 12140 | AB116: 12140 | AC116: 12140 | AD116: 12140 | AE116: 12140 | AF116: 12140 | AG116: 12140 | AH116: 12140 | AI116: 12140 | AJ116: 12140 | AK116: 12140 | AL116: 12140 | AM116: 12140 | AN116: 12140 | AO116: 12140 | AP116: 12140 | AQ116: 12140 | AR116: 12140 | AS116: 12140 | AT116: 12140 | AU116: 12140 | AV116: 12140 | AW116: 12140 | AX116: 12140 | AY116: 12140 | AZ116: 12140 | BA116: 12140 | BB116: 12140 | BC116: 12140 | BD116: 12140 | BE116: 12140 | BF116: 12140 | BG116: 12140 | BH116: 12140 | BI116: 12140 | BJ116: 12140 | BK116: 12140 | BL116: 12140 | BM116: 12140 | BN116: 12140 | BO116: 12140 | BP116: 12140
C117: Plain fried Chips 100g | G117: Units | H117: =Inputs!F107 -> 74226 | I117: =Inputs!G107 -> 74226 | J117: 0 | M117: 74226 | N117: =IF(N$114<=$J$113,M117*(1+$J117),M117) -> 74226 | O117: 74226 | P117: 74226 | Q117: 74226 | R117: 74226 | S117: 74226 | T117: 74226 | U117: 74226 | V117: 74226 | W117: 74226 | X117: 74226 | Y117: 74226 | Z117: 74226 | AA117: 74226 | AB117: 74226 | AC117: 74226 | AD117: 74226 | AE117: 74226 | AF117: 74226 | AG117: 74226 | AH117: 74226 | AI117: 74226 | AJ117: 74226 | AK117: 74226 | AL117: 74226 | AM117: 74226 | AN117: 74226 | AO117: 74226 | AP117: 74226 | AQ117: 74226 | AR117: 74226 | AS117: 74226 | AT117: 74226 | AU117: 74226 | AV117: 74226 | AW117: 74226 | AX117: 74226 | AY117: 74226 | AZ117: 74226 | BA117: 74226 | BB117: 74226 | BC117: 74226 | BD117: 74226 | BE117: 74226 | BF117: 74226 | BG117: 74226 | BH117: 74226 | BI117: 74226 | BJ117: 74226 | BK117: 74226 | BL117: 74226 | BM117: 74226 | BN117: 74226 | BO117: 74226 | BP117: 74226
C118: Plain fried Chips 170g | G118: Units | H118: =Inputs!F108 -> 1770 | I118: =Inputs!G108 -> 1770 | J118: 0 | M118: 1770 | N118: =IF(N$114<=$J$113,M118*(1+$J118),M118) -> 1770 | O118: 1770 | P118: 1770 | Q118: 1770 | R118: 1770 | S118: 1770 | T118: 1770 | U118: 1770 | V118: 1770 | W118: 1770 | X118: 1770 | Y118: 1770 | Z118: 1770 | AA118: 1770 | AB118: 1770 | AC118: 1770 | AD118: 1770 | AE118: 1770 | AF118: 1770 | AG118: 1770 | AH118: 1770 | AI118: 1770 | AJ118: 1770 | AK118: 1770 | AL118: 1770 | AM118: 1770 | AN118: 1770 | AO118: 1770 | AP118: 1770 | AQ118: 1770 | AR118: 1770 | AS118: 1770 | AT118: 1770 | AU118: 1770 | AV118: 1770 | AW118: 1770 | AX118: 1770 | AY118: 1770 | AZ118: 1770 | BA118: 1770 | BB118: 1770 | BC118: 1770 | BD118: 1770 | BE118: 1770 | BF118: 1770 | BG118: 1770 | BH118: 1770 | BI118: 1770 | BJ118: 1770 | BK118: 1770 | BL118: 1770 | BM118: 1770 | BN118: 1770 | BO118: 1770 | BP118: 1770
C119: Plain fried Chips 170g | G119: Units | H119: =Inputs!F109 -> 15001 | I119: =Inputs!G109 -> 15001 | J119: 0 | M119: 15001 | N119: =IF(N$114<=$J$113,M119*(1+$J119),M119) -> 15001 | O119: 15001 | P119: 15001 | Q119: 15001 | R119: 15001 | S119: 15001 | T119: 15001 | U119: 15001 | V119: 15001 | W119: 15001 | X119: 15001 | Y119: 15001 | Z119: 15001 | AA119: 15001 | AB119: 15001 | AC119: 15001 | AD119: 15001 | AE119: 15001 | AF119: 15001 | AG119: 15001 | AH119: 15001 | AI119: 15001 | AJ119: 15001 | AK119: 15001 | AL119: 15001 | AM119: 15001 | AN119: 15001 | AO119: 15001 | AP119: 15001 | AQ119: 15001 | AR119: 15001 | AS119: 15001 | AT119: 15001 | AU119: 15001 | AV119: 15001 | AW119: 15001 | AX119: 15001 | AY119: 15001 | AZ119: 15001 | BA119: 15001 | BB119: 15001 | BC119: 15001 | BD119: 15001 | BE119: 15001 | BF119: 15001 | BG119: 15001 | BH119: 15001 | BI119: 15001 | BJ119: 15001 | BK119: 15001 | BL119: 15001 | BM119: 15001 | BN119: 15001 | BO119: 15001 | BP119: 15001
C120: Pre-Fried Chips 2,5Kg | G120: Units | H120: =Inputs!F110 -> 2075 | I120: =Inputs!G110 -> 2075 | J120: 0 | M120: 2075 | N120: =IF(N$114<=$J$113,M120*(1+$J120),M120) -> 2075 | O120: 2075 | P120: 2075 | Q120: 2075 | R120: 2075 | S120: 2075 | T120: 2075 | U120: 2075 | V120: 2075 | W120: 2075 | X120: 2075 | Y120: 2075 | Z120: 2075 | AA120: 2075 | AB120: 2075 | AC120: 2075 | AD120: 2075 | AE120: 2075 | AF120: 2075 | AG120: 2075 | AH120: 2075 | AI120: 2075 | AJ120: 2075 | AK120: 2075 | AL120: 2075 | AM120: 2075 | AN120: 2075 | AO120: 2075 | AP120: 2075 | AQ120: 2075 | AR120: 2075 | AS120: 2075 | AT120: 2075 | AU120: 2075 | AV120: 2075 | AW120: 2075 | AX120: 2075 | AY120: 2075 | AZ120: 2075 | BA120: 2075 | BB120: 2075 | BC120: 2075 | BD120: 2075 | BE120: 2075 | BF120: 2075 | BG120: 2075 | BH120: 2075 | BI120: 2075 | BJ120: 2075 | BK120: 2075 | BL120: 2075 | BM120: 2075 | BN120: 2075 | BO120: 2075 | BP120: 2075
D121: Total | M121: =SUM(M114:M120) -> 120282 | N121: =SUM(N114:N120) -> 120283 | O121: =SUM(O114:O120) -> 120284 | P121: 120285 | Q121: 120286 | R121: 120287 | S121: 120288 | T121: 120289 | U121: 120290 | V121: 120291 | W121: 120292 | X121: 120293 | Y121: 120294 | Z121: 120295 | AA121: 120296 | AB121: 120297 | AC121: 120298 | AD121: 120299 | AE121: 120300 | AF121: 120301 | AG121: 120302 | AH121: 120303 | AI121: 120304 | AJ121: 120305 | AK121: 120306 | AL121: 120307 | AM121: 120308 | AN121: 120309 | AO121: 120310 | AP121: 120311 | AQ121: 120312 | AR121: 120313 | AS121: 120314 | AT121: 120315 | AU121: 120316 | AV121: 120317 | AW121: 120318 | AX121: 120319 | AY121: 120320 | AZ121: 120321 | BA121: 120322 | BB121: 120323 | BC121: 120324 | BD121: 120325 | BE121: 120326 | BF121: 120327 | BG121: 120328 | BH121: 120329 | BI121: 120330 | BJ121: 120331 | BK121: 120332 | BL121: 120333 | BM121: 120334 | BN121: 120335 | BO121: 120336 | BP121: 120337
B124: Revenues not Modelled
C125: Frozen Jams
C126: Cereal Production from Cereal Production Project
C127: Biological Coffee Production from Coffee Production Project
C128: Seafood Production from Seafood Production Project
C129: Dehydrated fruits and tomato derivatives production Project
A131: General Economic Variables
B132: Base Exchange Rate - AOA to Euro | H132: =Inputs!G120 -> 232 | M132: =$H$132 -> 232 | N132: =$H$132 -> 232 | O132: 232 | P132: 232 | Q132: 232 | R132: 232 | S132: 232 | T132: 232 | U132: 232 | V132: 232 | W132: 232 | X132: 232 | Y132: 232 | Z132: 232 | AA132: 232 | AB132: 232 | AC132: 232 | AD132: 232 | AE132: 232 | AF132: 232 | AG132: 232 | AH132: 232 | AI132: 232 | AJ132: 232 | AK132: 232 | AL132: 232 | AM132: 232 | AN132: 232 | AO132: 232 | AP132: 232 | AQ132: 232 | AR132: 232 | AS132: 232 | AT132: 232 | AU132: 232 | AV132: 232 | AW132: 232 | AX132: 232 | AY132: 232 | AZ132: 232 | BA132: 232 | BB132: 232 | BC132: 232 | BD132: 232 | BE132: 232 | BF132: 232 | BG132: 232 | BH132: 232 | BI132: 232 | BJ132: 232 | BK132: 232 | BL132: 232 | BM132: 232 | BN132: 232 | BO132: 232 | BP132: 232
B133: Base Exchange Rate - AOA to USD | H133: =Inputs!G121 -> 208 | M133: =$H$133 -> 208 | N133: =$H$133 -> 208 | O133: 208 | P133: 208 | Q133: 208 | R133: 208 | S133: 208 | T133: 208 | U133: 208 | V133: 208 | W133: 208 | X133: 208 | Y133: 208 | Z133: 208 | AA133: 208 | AB133: 208 | AC133: 208 | AD133: 208 | AE133: 208 | AF133: 208 | AG133: 208 | AH133: 208 | AI133: 208 | AJ133: 208 | AK133: 208 | AL133: 208 | AM133: 208 | AN133: 208 | AO133: 208 | AP133: 208 | AQ133: 208 | AR133: 208 | AS133: 208 | AT133: 208 | AU133: 208 | AV133: 208 | AW133: 208 | AX133: 208 | AY133: 208 | AZ133: 208 | BA133: 208 | BB133: 208 | BC133: 208 | BD133: 208 | BE133: 208 | BF133: 208 | BG133: 208 | BH133: 208 | BI133: 208 | BJ133: 208 | BK133: 208 | BL133: 208 | BM133: 208 | BN133: 208 | BO133: 208 | BP133: 208
B135: AOA Inflation | N135: =LOOKUP(N5,Inputs!123:123,Inputs!124:124) -> 1.6 | O135: =LOOKUP(O5,Inputs!123:123,Inputs!124:124) -> 1 | P135: =LOOKUP(P5,Inputs!123:123,Inputs!124:124) -> 0.5 | Q135: =LOOKUP(Q5,Inputs!123:123,Inputs!124:124) -> 0.25 | R135: =LOOKUP(R5,Inputs!123:123,Inputs!124:124) -> 0.1 | S135: =LOOKUP(S5,Inputs!123:123,Inputs!124:124) -> 0.1 | T135: =LOOKUP(T5,Inputs!123:123,Inputs!124:124) -> 0.1 | U135: =LOOKUP(U5,Inputs!123:123,Inputs!124:124) -> 0.1 | V135: =LOOKUP(V5,Inputs!123:123,Inputs!124:124) -> 0.1 | W135: =LOOKUP(W5,Inputs!123:123,Inputs!124:124) -> 0.1 | X135: =LOOKUP(X5,Inputs!123:123,Inputs!124:124) -> 0.1 | Y135: =LOOKUP(Y5,Inputs!123:123,Inputs!124:124) -> 0.1 | Z135: =LOOKUP(Z5,Inputs!123:123,Inputs!124:124) -> 0.1 | AA135: =LOOKUP(AA5,Inputs!123:123,Inputs!124:124) -> 0.1 | AB135: =LOOKUP(AB5,Inputs!123:123,Inputs!124:124) -> 0.1 | AC135: =LOOKUP(AC5,Inputs!123:123,Inputs!124:124) -> 0.1 | AD135: =LOOKUP(AD5,Inputs!123:123,Inputs!124:124) -> 0.1 | AE135: =LOOKUP(AE5,Inputs!123:123,Inputs!124:124) -> 0.1 | AF135: =LOOKUP(AF5,Inputs!123:123,Inputs!124:124) -> 0.1 | AG135: =LOOKUP(AG5,Inputs!123:123,Inputs!124:124) -> 0.1 | AH135: =LOOKUP(AH5,Inputs!123:123,Inputs!124:124) -> 0.1 | AI135: =LOOKUP(AI5,Inputs!123:123,Inputs!124:124) -> 0.1 | AJ135: =LOOKUP(AJ5,Inputs!123:123,Inputs!124:124) -> 0.1 | AK135: =LOOKUP(AK5,Inputs!123:123,Inputs!124:124) -> 0.1 | AL135: =LOOKUP(AL5,Inputs!123:123,Inputs!124:124) -> 0.1 | AM135: =LOOKUP(AM5,Inputs!123:123,Inputs!124:124) -> 0.1 | AN135: =LOOKUP(AN5,Inputs!123:123,Inputs!124:124) -> 0.1 | AO135: =LOOKUP(AO5,Inputs!123:123,Inputs!124:124) -> 0.1 | AP135: =LOOKUP(AP5,Inputs!123:123,Inputs!124:124) -> 0.1 | AQ135: =LOOKUP(AQ5,Inputs!123:123,Inputs!124:124) -> 0.1 | AR135: =LOOKUP(AR5,Inputs!123:123,Inputs!124:124) -> 0.1 | AS135: =LOOKUP(AS5,Inputs!123:123,Inputs!124:124) -> 0.1 | AT135: =LOOKUP(AT5,Inputs!123:123,Inputs!124:124) -> 0.1 | AU135: =LOOKUP(AU5,Inputs!123:123,Inputs!124:124) -> 0.1 | AV135: =LOOKUP(AV5,Inputs!123:123,Inputs!124:124) -> 0.1 | AW135: =LOOKUP(AW5,Inputs!123:123,Inputs!124:124) -> 0.1 | AX135: =LOOKUP(AX5,Inputs!123:123,Inputs!124:124) -> 0.1 | AY135: =LOOKUP(AY5,Inputs!123:123,Inputs!124:124) -> 0.1 | AZ135: =LOOKUP(AZ5,Inputs!123:123,Inputs!124:124) -> 0.1 | BA135: =LOOKUP(BA5,Inputs!123:123,Inputs!124:124) -> 0.1 | BB135: =LOOKUP(BB5,Inputs!123:123,Inputs!124:124) -> 0.1 | BC135: =LOOKUP(BC5,Inputs!123:123,Inputs!124:124) -> 0.1 | BD135: =LOOKUP(BD5,Inputs!123:123,Inputs!124:124) -> 0.1 | BE135: =LOOKUP(BE5,Inputs!123:123,Inputs!124:124) -> 0.1 | BF135: =LOOKUP(BF5,Inputs!123:123,Inputs!124:124) -> 0.1 | BG135: =LOOKUP(BG5,Inputs!123:123,Inputs!124:124) -> 0.1 | BH135: =LOOKUP(BH5,Inputs!123:123,Inputs!124:124) -> 0.1 | BI135: =LOOKUP(BI5,Inputs!123:123,Inputs!124:124) -> 0.1 | BJ135: =LOOKUP(BJ5,Inputs!123:123,Inputs!124:124) -> 0.1 | BK135: =LOOKUP(BK5,Inputs!123:123,Inputs!124:124) -> 0.1 | BL135: =LOOKUP(BL5,Inputs!123:123,Inputs!124:124) -> 0.1 | BM135: =LOOKUP(BM5,Inputs!123:123,Inputs!124:124) -> 0.1 | BN135: =LOOKUP(BN5,Inputs!123:123,Inputs!124:124) -> 0.1 | BO135: =LOOKUP(BO5,Inputs!123:123,Inputs!124:124) -> 0.1 | BP135: =LOOKUP(BP5,Inputs!123:123,Inputs!124:124) -> 0.1
B136: Euro Inflation | N136: =LOOKUP(N5,Inputs!123:123,Inputs!126:126) -> 0.005 | O136: =LOOKUP(O5,Inputs!123:123,Inputs!126:126) -> 0.005 | P136: =LOOKUP(P5,Inputs!123:123,Inputs!126:126) -> 0.005 | Q136: =LOOKUP(Q5,Inputs!123:123,Inputs!126:126) -> 0.0075 | R136: =LOOKUP(R5,Inputs!123:123,Inputs!126:126) -> 0.0075 | S136: =LOOKUP(S5,Inputs!123:123,Inputs!126:126) -> 0.0075 | T136: =LOOKUP(T5,Inputs!123:123,Inputs!126:126) -> 0.0075 | U136: =LOOKUP(U5,Inputs!123:123,Inputs!126:126) -> 0.0075 | V136: =LOOKUP(V5,Inputs!123:123,Inputs!126:126) -> 0.0075 | W136: =LOOKUP(W5,Inputs!123:123,Inputs!126:126) -> 0.0075 | X136: =LOOKUP(X5,Inputs!123:123,Inputs!126:126) -> 0.0075 | Y136: =LOOKUP(Y5,Inputs!123:123,Inputs!126:126) -> 0.0075 | Z136: =LOOKUP(Z5,Inputs!123:123,Inputs!126:126) -> 0.0075 | AA136: =LOOKUP(AA5,Inputs!123:123,Inputs!126:126) -> 0.0075 | AB136: =LOOKUP(AB5,Inputs!123:123,Inputs!126:126) -> 0.0075 | AC136: =LOOKUP(AC5,Inputs!123:123,Inputs!126:126) -> 0.0075 | AD136: =LOOKUP(AD5,Inputs!123:123,Inputs!126:126) -> 0.0075 | AE136: =LOOKUP(AE5,Inputs!123:123,Inputs!126:126) -> 0.0075 | AF136: =LOOKUP(AF5,Inputs!123:123,Inputs!126:126) -> 0.0075 | AG136: =LOOKUP(AG5,Inputs!123:123,Inputs!126:126) -> 0.0075 | AH136: =LOOKUP(AH5,Inputs!123:123,Inputs!126:126) -> 0.0075 | AI136: =LOOKUP(AI5,Inputs!123:123,Inputs!126:126) -> 0.0075 | AJ136: =LOOKUP(AJ5,Inputs!123:123,Inputs!126:126) -> 0.0075 | AK136: =LOOKUP(AK5,Inputs!123:123,Inputs!126:126) -> 0.0075 | AL136: =LOOKUP(AL5,Inputs!123:123,Inputs!126:126) -> 0.0075 | AM136: =LOOKUP(AM5,Inputs!123:123,Inputs!126:126) -> 0.0075 | AN136: =LOOKUP(AN5,Inputs!123:123,Inputs!126:126) -> 0.0075 | AO136: =LOOKUP(AO5,Inputs!123:123,Inputs!126:126) -> 0.0075 | AP136: =LOOKUP(AP5,Inputs!123:123,Inputs!126:126) -> 0.0075 | AQ136: =LOOKUP(AQ5,Inputs!123:123,Inputs!126:126) -> 0.0075 | AR136: =LOOKUP(AR5,Inputs!123:123,Inputs!126:126) -> 0.0075 | AS136: =LOOKUP(AS5,Inputs!123:123,Inputs!126:126) -> 0.0075 | AT136: =LOOKUP(AT5,Inputs!123:123,Inputs!126:126) -> 0.0075 | AU136: =LOOKUP(AU5,Inputs!123:123,Inputs!126:126) -> 0.0075 | AV136: =LOOKUP(AV5,Inputs!123:123,Inputs!126:126) -> 0.0075 | AW136: =LOOKUP(AW5,Inputs!123:123,Inputs!126:126) -> 0.0075 | AX136: =LOOKUP(AX5,Inputs!123:123,Inputs!126:126) -> 0.0075 | AY136: =LOOKUP(AY5,Inputs!123:123,Inputs!126:126) -> 0.0075 | AZ136: =LOOKUP(AZ5,Inputs!123:123,Inputs!126:126) -> 0.0075 | BA136: =LOOKUP(BA5,Inputs!123:123,Inputs!126:126) -> 0.0075 | BB136: =LOOKUP(BB5,Inputs!123:123,Inputs!126:126) -> 0.0075 | BC136: =LOOKUP(BC5,Inputs!123:123,Inputs!126:126) -> 0.0075 | BD136: =LOOKUP(BD5,Inputs!123:123,Inputs!126:126) -> 0.0075 | BE136: =LOOKUP(BE5,Inputs!123:123,Inputs!126:126) -> 0.0075 | BF136: =LOOKUP(BF5,Inputs!123:123,Inputs!126:126) -> 0.0075 | BG136: =LOOKUP(BG5,Inputs!123:123,Inputs!126:126) -> 0.0075 | BH136: =LOOKUP(BH5,Inputs!123:123,Inputs!126:126) -> 0.0075 | BI136: =LOOKUP(BI5,Inputs!123:123,Inputs!126:126) -> 0.0075 | BJ136: =LOOKUP(BJ5,Inputs!123:123,Inputs!126:126) -> 0.0075 | BK136: =LOOKUP(BK5,Inputs!123:123,Inputs!126:126) -> 0.0075 | BL136: =LOOKUP(BL5,Inputs!123:123,Inputs!126:126) -> 0.0075 | BM136: =LOOKUP(BM5,Inputs!123:123,Inputs!126:126) -> 0.0075 | BN136: =LOOKUP(BN5,Inputs!123:123,Inputs!126:126) -> 0.0075 | BO136: =LOOKUP(BO5,Inputs!123:123,Inputs!126:126) -> 0.0075 | BP136: =LOOKUP(BP5,Inputs!123:123,Inputs!126:126) -> 0.0075
B137: USD Inflation | N137: =LOOKUP(N5,Inputs!123:123,Inputs!125:125) -> 0.02 | O137: =LOOKUP(O5,Inputs!123:123,Inputs!125:125) -> 0.02 | P137: =LOOKUP(P5,Inputs!123:123,Inputs!125:125) -> 0.02 | Q137: =LOOKUP(Q5,Inputs!123:123,Inputs!125:125) -> 0.02 | R137: =LOOKUP(R5,Inputs!123:123,Inputs!125:125) -> 0.02 | S137: =LOOKUP(S5,Inputs!123:123,Inputs!125:125) -> 0.02 | T137: =LOOKUP(T5,Inputs!123:123,Inputs!125:125) -> 0.02 | U137: =LOOKUP(U5,Inputs!123:123,Inputs!125:125) -> 0.02 | V137: =LOOKUP(V5,Inputs!123:123,Inputs!125:125) -> 0.02 | W137: =LOOKUP(W5,Inputs!123:123,Inputs!125:125) -> 0.02 | X137: =LOOKUP(X5,Inputs!123:123,Inputs!125:125) -> 0.02 | Y137: =LOOKUP(Y5,Inputs!123:123,Inputs!125:125) -> 0.02 | Z137: =LOOKUP(Z5,Inputs!123:123,Inputs!125:125) -> 0.02 | AA137: =LOOKUP(AA5,Inputs!123:123,Inputs!125:125) -> 0.02 | AB137: =LOOKUP(AB5,Inputs!123:123,Inputs!125:125) -> 0.02 | AC137: =LOOKUP(AC5,Inputs!123:123,Inputs!125:125) -> 0.02 | AD137: =LOOKUP(AD5,Inputs!123:123,Inputs!125:125) -> 0.02 | AE137: =LOOKUP(AE5,Inputs!123:123,Inputs!125:125) -> 0.02 | AF137: =LOOKUP(AF5,Inputs!123:123,Inputs!125:125) -> 0.02 | AG137: =LOOKUP(AG5,Inputs!123:123,Inputs!125:125) -> 0.02 | AH137: =LOOKUP(AH5,Inputs!123:123,Inputs!125:125) -> 0.02 | AI137: =LOOKUP(AI5,Inputs!123:123,Inputs!125:125) -> 0.02 | AJ137: =LOOKUP(AJ5,Inputs!123:123,Inputs!125:125) -> 0.02 | AK137: =LOOKUP(AK5,Inputs!123:123,Inputs!125:125) -> 0.02 | AL137: =LOOKUP(AL5,Inputs!123:123,Inputs!125:125) -> 0.02 | AM137: =LOOKUP(AM5,Inputs!123:123,Inputs!125:125) -> 0.02 | AN137: =LOOKUP(AN5,Inputs!123:123,Inputs!125:125) -> 0.02 | AO137: =LOOKUP(AO5,Inputs!123:123,Inputs!125:125) -> 0.02 | AP137: =LOOKUP(AP5,Inputs!123:123,Inputs!125:125) -> 0.02 | AQ137: =LOOKUP(AQ5,Inputs!123:123,Inputs!125:125) -> 0.02 | AR137: =LOOKUP(AR5,Inputs!123:123,Inputs!125:125) -> 0.02 | AS137: =LOOKUP(AS5,Inputs!123:123,Inputs!125:125) -> 0.02 | AT137: =LOOKUP(AT5,Inputs!123:123,Inputs!125:125) -> 0.02 | AU137: =LOOKUP(AU5,Inputs!123:123,Inputs!125:125) -> 0.02 | AV137: =LOOKUP(AV5,Inputs!123:123,Inputs!125:125) -> 0.02 | AW137: =LOOKUP(AW5,Inputs!123:123,Inputs!125:125) -> 0.02 | AX137: =LOOKUP(AX5,Inputs!123:123,Inputs!125:125) -> 0.02 | AY137: =LOOKUP(AY5,Inputs!123:123,Inputs!125:125) -> 0.02 | AZ137: =LOOKUP(AZ5,Inputs!123:123,Inputs!125:125) -> 0.02 | BA137: =LOOKUP(BA5,Inputs!123:123,Inputs!125:125) -> 0.02 | BB137: =LOOKUP(BB5,Inputs!123:123,Inputs!125:125) -> 0.02 | BC137: =LOOKUP(BC5,Inputs!123:123,Inputs!125:125) -> 0.02 | BD137: =LOOKUP(BD5,Inputs!123:123,Inputs!125:125) -> 0.02 | BE137: =LOOKUP(BE5,Inputs!123:123,Inputs!125:125) -> 0.02 | BF137: =LOOKUP(BF5,Inputs!123:123,Inputs!125:125) -> 0.02 | BG137: =LOOKUP(BG5,Inputs!123:123,Inputs!125:125) -> 0.02 | BH137: =LOOKUP(BH5,Inputs!123:123,Inputs!125:125) -> 0.02 | BI137: =LOOKUP(BI5,Inputs!123:123,Inputs!125:125) -> 0.02 | BJ137: =LOOKUP(BJ5,Inputs!123:123,Inputs!125:125) -> 0.02 | BK137: =LOOKUP(BK5,Inputs!123:123,Inputs!125:125) -> 0.02 | BL137: =LOOKUP(BL5,Inputs!123:123,Inputs!125:125) -> 0.02 | BM137: =LOOKUP(BM5,Inputs!123:123,Inputs!125:125) -> 0.02 | BN137: =LOOKUP(BN5,Inputs!123:123,Inputs!125:125) -> 0.02 | BO137: =LOOKUP(BO5,Inputs!123:123,Inputs!125:125) -> 0.02 | BP137: =LOOKUP(BP5,Inputs!123:123,Inputs!125:125) -> 0.02
B139: Euro Inflation Index | M139: 1 | N139: =M139*(1+N136) -> 1.005 | O139: =N139*(1+O136) -> 1.010025 | P139: 1.015075125 | Q139: 1.022688188 | R139: 1.03035835 | S139: 1.038086037 | T139: 1.045871683 | U139: 1.05371572 | V139: 1.061618588 | W139: 1.069580728 | X139: 1.077602583 | Y139: 1.085684603 | Z139: 1.093827237 | AA139: 1.102030941 | AB139: 1.110296173 | AC139: 1.118623395 | AD139: 1.12701307 | AE139: 1.135465668 | AF139: 1.143981661 | AG139: 1.152561523 | AH139: 1.161205735 | AI139: 1.169914778 | AJ139: 1.178689138 | AK139: 1.187529307 | AL139: 1.196435777 | AM139: 1.205409045 | AN139: 1.214449613 | AO139: 1.223557985 | AP139: 1.23273467 | AQ139: 1.24198018 | AR139: 1.251295031 | AS139: 1.260679744 | AT139: 1.270134842 | AU139: 1.279660853 | AV139: 1.28925831 | AW139: 1.298927747 | AX139: 1.308669705 | AY139: 1.318484728 | AZ139: 1.328373363 | BA139: 1.338336164 | BB139: 1.348373685 | BC139: 1.358486488 | BD139: 1.368675136 | BE139: 1.3789402 | BF139: 1.389282251 | BG139: 1.399701868 | BH139: 1.410199632 | BI139: 1.420776129 | BJ139: 1.43143195 | BK139: 1.44216769 | BL139: 1.452983948 | BM139: 1.463881327 | BN139: 1.474860437 | BO139: 1.48592189 | BP139: 1.497066305
B140: USD Inflation Index | M140: 1 | N140: =M140*(1+N137) -> 1.02 | O140: =N140*(1+O137) -> 1.0404 | P140: 1.061208 | Q140: 1.08243216 | R140: 1.104080803 | S140: 1.126162419 | T140: 1.148685668 | U140: 1.171659381 | V140: 1.195092569 | W140: 1.21899442 | X140: 1.243374308 | Y140: 1.268241795 | Z140: 1.29360663 | AA140: 1.319478763 | AB140: 1.345868338 | AC140: 1.372785705 | AD140: 1.400241419 | AE140: 1.428246248 | AF140: 1.456811173 | AG140: 1.485947396 | AH140: 1.515666344 | AI140: 1.545979671 | AJ140: 1.576899264 | AK140: 1.608437249 | AL140: 1.640605994 | AM140: 1.673418114 | AN140: 1.706886477 | AO140: 1.741024206 | AP140: 1.77584469 | AQ140: 1.811361584 | AR140: 1.847588816 | AS140: 1.884540592 | AT140: 1.922231404 | AU140: 1.960676032 | AV140: 1.999889553 | AW140: 2.039887344 | AX140: 2.080685091 | AY140: 2.122298792 | AZ140: 2.164744768 | BA140: 2.208039664 | BB140: 2.252200457 | BC140: 2.297244466 | BD140: 2.343189355 | BE140: 2.390053142 | BF140: 2.437854205 | BG140: 2.486611289 | BH140: 2.536343515 | BI140: 2.587070385 | BJ140: 2.638811793 | BK140: 2.691588029 | BL140: 2.74541979 | BM140: 2.800328185 | BN140: 2.856334749 | BO140: 2.913461444 | BP140: 2.971730673
B142: PPP Exchange Rate - AOA to Euro | M142: =M132 -> 232 | N142: =M142*(1+N135)/(1+N136) -> 600.199005 | O142: =N142*(1+O135)/(1+O136) -> 1194.425881 | P142: 1782.725195 | Q142: 2211.81786 | R142: 2414.887986 | S142: 2636.602267 | T142: 2878.672451 | U142: 3142.96744 | V142: 3431.527726 | W142: 3746.58114 | X142: 4090.560054 | Y142: 4466.120158 | Z142: 4876.160966 | AA142: 5323.848201 | AB142: 5812.638235 | AC142: 6346.304772 | AD142: 6928.96799 | AE142: 7565.126341 | AF142: 8259.691291 | AG142: 9018.02523 | AH142: 9845.982882 | AI142: 10749.9565 | AJ142: 11736.92521 | AK142: 12814.50891 | AL142: 13991.0271 | AM142: 15275.56309 | AN142: 16678.03414 | AO142: 18209.26804 | AP142: 19881.0867 | AQ142: 21706.39738 | AR142: 23699.29243 | AS142: 25875.15799 | AT142: 28250.79284 | AU142: 30844.53809 | AV142: 33676.41876 | AW142: 36768.29839 | AX142: 40144.04787 | AY142: 43829.72969 | AZ142: 47853.79916 | BA142: 52247.32415 | BB142: 57044.22488 | BC142: 62281.53585 | BD142: 67999.69174 | BE142: 74242.83962 | BF142: 81059.17973 | BG142: 88501.33768 | BH142: 96626.77066 | BI142: 105498.2111 | BJ142: 115184.1511 | BK142: 125759.371 | BL142: 137305.5167 | BM142: 149911.7304 | BN142: 163675.3384 | BO142: 178702.6027 | BP142: 195109.5414
B143: PPP Exchange Rate - AOA to USD | M143: =M133 -> 208 | N143: =M143*(1+N135)/(1+N137) -> 530.1960784 | O143: 1039.600154 | P143: 1528.823756 | Q143: 1873.558524 | R143: 2020.504291 | S143: 2178.975215 | T143: 2349.875232 | U143: 2534.179172 | V143: 2732.938323 | W143: 2947.286426 | X143: 3178.446146 | Y143: 3427.73604 | Z143: 3696.578082 | AA143: 3986.505775 | AB143: 4299.172895 | AC143: 4636.362926 | AD143: 4999.999234 | AE143: 5392.156036 | AF143: 5815.070235 | AG143: 6271.154175 | AH143: 6763.009405 | AI143: 7293.441515 | AJ143: 7865.476143 | AK143: 8482.376233 | AL143: 9147.660643 | AM143: 9865.124223 | AN143: 10638.85946 | AO143: 11473.27981 | AP143: 12373.14489 | AQ143: 13343.58763 | AR143: 14390.14352 | AS143: 15518.78222 | AT143: =AS143*(1+AT135)/(1+AT137) -> 16735.94161 | AU143: 18048.56449 | AV143: 19464.13817 | AW143: 20990.73724 | AX143: 22637.06958 | AY143: 24412.52601 | AZ143: 26327.23394 | BA143: 28392.11503 | BB143: 30618.94758 | BC143: 33020.43367 | BD143: 35610.2716 | BE143: 38403.23408 | BF143: 41415.25244 | BG143: 44663.50753 | BH143: 48166.52773 | BI143: 51944.29461 | BJ143: 56018.35693 | BK143: 60411.95356 | BL143: 65150.14599 | BM143: 70259.96136 | BN143: 75770.54657 | BO143: 81713.33454 | BP143: 88122.22352
B144: PPP Exchange Rate - USD/Euro | M144: =M142/M143 -> 1.115384615 | N144: =N142/N143 -> 1.132032147 | O144: 1.148928149 | P144: 1.16607633 | Q144: 1.180543779 | R144: 1.195190724 | S144: 1.210019393 | T144: 1.22503204 | U144: 1.240230949 | V144: 1.25561843 | W144: 1.271196822 | X144: 1.286968495 | Y144: 1.302935846 | Z144: 1.319101303 | AA144: 1.335467324 | AB144: 1.352036398 | AC144: 1.368811043 | AD144: 1.38579381 | AE144: 1.402987282 | AF144: 1.420394072 | AG144: 1.438016827 | AH144: 1.455858227 | AI144: 1.473920984 | AJ144: 1.492207845 | AK144: 1.51072159 | AL144: 1.529465034 | AM144: 1.548441027 | AN144: 1.567652454 | AO144: 1.587102237 | AP144: 1.606793331 | AQ144: 1.626728732 | AR144: 1.646911471 | AS144: 1.667344616 | AT144: 1.688031274 | AU144: 1.70897459 | AV144: 1.730177748 | AW144: 1.751643974 | AX144: 1.773376529 | AY144: 1.795378719 | AZ144: 1.817653889 | BA144: 1.840205427 | BB144: 1.863036759 | BC144: 1.886151359 | BD144: 1.909552741 | BE144: 1.933244462 | BF144: 1.957230126 | BG144: 1.981513378 | BH144: 2.006097911 | BI144: 2.030987463 | BJ144: 2.056185819 | BK144: 2.081696809 | BL144: 2.107524313 | BM144: 2.133672257 | BN144: 2.160144618 | BO144: 2.18694542 | BP144: 2.214078737
B146: Horticulture Price Scenario | M146: 1 | N146: =(1+LOOKUP(N$5,Inputs!128:128,Inputs!129:129))*M146 -> 1 | O146: =(1+LOOKUP(O$5,Inputs!128:128,Inputs!129:129))*N146 -> 1 | P146: =(1+LOOKUP(P$5,Inputs!128:128,Inputs!129:129))*O146 -> 1 | Q146: =(1+LOOKUP(Q$5,Inputs!128:128,Inputs!129:129))*P146 -> 1 | R146: =(1+LOOKUP(R$5,Inputs!128:128,Inputs!129:129))*Q146 -> 1 | S146: =(1+LOOKUP(S$5,Inputs!128:128,Inputs!129:129))*R146 -> 1 | T146: =(1+LOOKUP(T$5,Inputs!128:128,Inputs!129:129))*S146 -> 1 | U146: =(1+LOOKUP(U$5,Inputs!128:128,Inputs!129:129))*T146 -> 1 | V146: =(1+LOOKUP(V$5,Inputs!128:128,Inputs!129:129))*U146 -> 1 | W146: =(1+LOOKUP(W$5,Inputs!128:128,Inputs!129:129))*V146 -> 1 | X146: =(1+LOOKUP(X$5,Inputs!128:128,Inputs!129:129))*W146 -> 1 | Y146: =(1+LOOKUP(Y$5,Inputs!128:128,Inputs!129:129))*X146 -> 1 | Z146: =(1+LOOKUP(Z$5,Inputs!128:128,Inputs!129:129))*Y146 -> 1 | AA146: =(1+LOOKUP(AA$5,Inputs!128:128,Inputs!129:129))*Z146 -> 1 | AB146: =(1+LOOKUP(AB$5,Inputs!128:128,Inputs!129:129))*AA146 -> 1 | AC146: =(1+LOOKUP(AC$5,Inputs!128:128,Inputs!129:129))*AB146 -> 1 | AD146: =(1+LOOKUP(AD$5,Inputs!128:128,Inputs!129:129))*AC146 -> 1 | AE146: =(1+LOOKUP(AE$5,Inputs!128:128,Inputs!129:129))*AD146 -> 1 | AF146: =(1+LOOKUP(AF$5,Inputs!128:128,Inputs!129:129))*AE146 -> 1 | AG146: =(1+LOOKUP(AG$5,Inputs!128:128,Inputs!129:129))*AF146 -> 1 | AH146: =(1+LOOKUP(AH$5,Inputs!128:128,Inputs!129:129))*AG146 -> 1 | AI146: =(1+LOOKUP(AI$5,Inputs!128:128,Inputs!129:129))*AH146 -> 1 | AJ146: =(1+LOOKUP(AJ$5,Inputs!128:128,Inputs!129:129))*AI146 -> 1 | AK146: =(1+LOOKUP(AK$5,Inputs!128:128,Inputs!129:129))*AJ146 -> 1 | AL146: =(1+LOOKUP(AL$5,Inputs!128:128,Inputs!129:129))*AK146 -> 1 | AM146: =(1+LOOKUP(AM$5,Inputs!128:128,Inputs!129:129))*AL146 -> 1 | AN146: =(1+LOOKUP(AN$5,Inputs!128:128,Inputs!129:129))*AM146 -> 1 | AO146: =(1+LOOKUP(AO$5,Inputs!128:128,Inputs!129:129))*AN146 -> 1 | AP146: =(1+LOOKUP(AP$5,Inputs!128:128,Inputs!129:129))*AO146 -> 1 | AQ146: =(1+LOOKUP(AQ$5,Inputs!128:128,Inputs!129:129))*AP146 -> 1 | AR146: =(1+LOOKUP(AR$5,Inputs!128:128,Inputs!129:129))*AQ146 -> 1 | AS146: =(1+LOOKUP(AS$5,Inputs!128:128,Inputs!129:129))*AR146 -> 1 | AT146: =(1+LOOKUP(AT$5,Inputs!128:128,Inputs!129:129))*AS146 -> 1 | AU146: =(1+LOOKUP(AU$5,Inputs!128:128,Inputs!129:129))*AT146 -> 1 | AV146: =(1+LOOKUP(AV$5,Inputs!128:128,Inputs!129:129))*AU146 -> 1 | AW146: =(1+LOOKUP(AW$5,Inputs!128:128,Inputs!129:129))*AV146 -> 1 | AX146: =(1+LOOKUP(AX$5,Inputs!128:128,Inputs!129:129))*AW146 -> 1 | AY146: =(1+LOOKUP(AY$5,Inputs!128:128,Inputs!129:129))*AX146 -> 1 | AZ146: =(1+LOOKUP(AZ$5,Inputs!128:128,Inputs!129:129))*AY146 -> 1 | BA146: =(1+LOOKUP(BA$5,Inputs!128:128,Inputs!129:129))*AZ146 -> 1 | BB146: =(1+LOOKUP(BB$5,Inputs!128:128,Inputs!129:129))*BA146 -> 1 | BC146: =(1+LOOKUP(BC$5,Inputs!128:128,Inputs!129:129))*BB146 -> 1 | BD146: =(1+LOOKUP(BD$5,Inputs!128:128,Inputs!129:129))*BC146 -> 1 | BE146: =(1+LOOKUP(BE$5,Inputs!128:128,Inputs!129:129))*BD146 -> 1 | BF146: =(1+LOOKUP(BF$5,Inputs!128:128,Inputs!129:129))*BE146 -> 1 | BG146: =(1+LOOKUP(BG$5,Inputs!128:128,Inputs!129:129))*BF146 -> 1 | BH146: =(1+LOOKUP(BH$5,Inputs!128:128,Inputs!129:129))*BG146 -> 1 | BI146: =(1+LOOKUP(BI$5,Inputs!128:128,Inputs!129:129))*BH146 -> 1 | BJ146: =(1+LOOKUP(BJ$5,Inputs!128:128,Inputs!129:129))*BI146 -> 1 | BK146: =(1+LOOKUP(BK$5,Inputs!128:128,Inputs!129:129))*BJ146 -> 1 | BL146: =(1+LOOKUP(BL$5,Inputs!128:128,Inputs!129:129))*BK146 -> 1 | BM146: =(1+LOOKUP(BM$5,Inputs!128:128,Inputs!129:129))*BL146 -> 1 | BN146: =(1+LOOKUP(BN$5,Inputs!128:128,Inputs!129:129))*BM146 -> 1 | BO146: =(1+LOOKUP(BO$5,Inputs!128:128,Inputs!129:129))*BN146 -> 1 | BP146: =(1+LOOKUP(BP$5,Inputs!128:128,Inputs!129:129))*BO146 -> 1
B147: Fruits Price Scenario | M147: 1 | N147: =(1+LOOKUP(N$5,Inputs!129:129,Inputs!130:130))*M147 -> 1 | O147: =(1+LOOKUP(O$5,Inputs!129:129,Inputs!130:130))*N147 -> 1 | P147: =(1+LOOKUP(P$5,Inputs!129:129,Inputs!130:130))*O147 -> 1 | Q147: =(1+LOOKUP(Q$5,Inputs!129:129,Inputs!130:130))*P147 -> 1 | R147: =(1+LOOKUP(R$5,Inputs!129:129,Inputs!130:130))*Q147 -> 1 | S147: =(1+LOOKUP(S$5,Inputs!129:129,Inputs!130:130))*R147 -> 1 | T147: =(1+LOOKUP(T$5,Inputs!129:129,Inputs!130:130))*S147 -> 1 | U147: =(1+LOOKUP(U$5,Inputs!129:129,Inputs!130:130))*T147 -> 1 | V147: =(1+LOOKUP(V$5,Inputs!129:129,Inputs!130:130))*U147 -> 1 | W147: =(1+LOOKUP(W$5,Inputs!129:129,Inputs!130:130))*V147 -> 1 | X147: =(1+LOOKUP(X$5,Inputs!129:129,Inputs!130:130))*W147 -> 1 | Y147: =(1+LOOKUP(Y$5,Inputs!129:129,Inputs!130:130))*X147 -> 1 | Z147: =(1+LOOKUP(Z$5,Inputs!129:129,Inputs!130:130))*Y147 -> 1 | AA147: =(1+LOOKUP(AA$5,Inputs!129:129,Inputs!130:130))*Z147 -> 1 | AB147: =(1+LOOKUP(AB$5,Inputs!129:129,Inputs!130:130))*AA147 -> 1 | AC147: =(1+LOOKUP(AC$5,Inputs!129:129,Inputs!130:130))*AB147 -> 1 | AD147: =(1+LOOKUP(AD$5,Inputs!129:129,Inputs!130:130))*AC147 -> 1 | AE147: =(1+LOOKUP(AE$5,Inputs!129:129,Inputs!130:130))*AD147 -> 1 | AF147: =(1+LOOKUP(AF$5,Inputs!129:129,Inputs!130:130))*AE147 -> 1 | AG147: =(1+LOOKUP(AG$5,Inputs!129:129,Inputs!130:130))*AF147 -> 1 | AH147: =(1+LOOKUP(AH$5,Inputs!129:129,Inputs!130:130))*AG147 -> 1 | AI147: =(1+LOOKUP(AI$5,Inputs!129:129,Inputs!130:130))*AH147 -> 1 | AJ147: =(1+LOOKUP(AJ$5,Inputs!129:129,Inputs!130:130))*AI147 -> 1 | AK147: =(1+LOOKUP(AK$5,Inputs!129:129,Inputs!130:130))*AJ147 -> 1 | AL147: =(1+LOOKUP(AL$5,Inputs!129:129,Inputs!130:130))*AK147 -> 1 | AM147: =(1+LOOKUP(AM$5,Inputs!129:129,Inputs!130:130))*AL147 -> 1 | AN147: =(1+LOOKUP(AN$5,Inputs!129:129,Inputs!130:130))*AM147 -> 1 | AO147: =(1+LOOKUP(AO$5,Inputs!129:129,Inputs!130:130))*AN147 -> 1 | AP147: =(1+LOOKUP(AP$5,Inputs!129:129,Inputs!130:130))*AO147 -> 1 | AQ147: =(1+LOOKUP(AQ$5,Inputs!129:129,Inputs!130:130))*AP147 -> 1 | AR147: =(1+LOOKUP(AR$5,Inputs!129:129,Inputs!130:130))*AQ147 -> 1 | AS147: =(1+LOOKUP(AS$5,Inputs!129:129,Inputs!130:130))*AR147 -> 1 | AT147: =(1+LOOKUP(AT$5,Inputs!129:129,Inputs!130:130))*AS147 -> 1 | AU147: =(1+LOOKUP(AU$5,Inputs!129:129,Inputs!130:130))*AT147 -> 1 | AV147: =(1+LOOKUP(AV$5,Inputs!129:129,Inputs!130:130))*AU147 -> 1 | AW147: =(1+LOOKUP(AW$5,Inputs!129:129,Inputs!130:130))*AV147 -> 1 | AX147: =(1+LOOKUP(AX$5,Inputs!129:129,Inputs!130:130))*AW147 -> 1 | AY147: =(1+LOOKUP(AY$5,Inputs!129:129,Inputs!130:130))*AX147 -> 1 | AZ147: =(1+LOOKUP(AZ$5,Inputs!129:129,Inputs!130:130))*AY147 -> 1 | BA147: =(1+LOOKUP(BA$5,Inputs!129:129,Inputs!130:130))*AZ147 -> 1 | BB147: =(1+LOOKUP(BB$5,Inputs!129:129,Inputs!130:130))*BA147 -> 1 | BC147: =(1+LOOKUP(BC$5,Inputs!129:129,Inputs!130:130))*BB147 -> 1 | BD147: =(1+LOOKUP(BD$5,Inputs!129:129,Inputs!130:130))*BC147 -> 1 | BE147: =(1+LOOKUP(BE$5,Inputs!129:129,Inputs!130:130))*BD147 -> 1 | BF147: =(1+LOOKUP(BF$5,Inputs!129:129,Inputs!130:130))*BE147 -> 1 | BG147: =(1+LOOKUP(BG$5,Inputs!129:129,Inputs!130:130))*BF147 -> 1 | BH147: =(1+LOOKUP(BH$5,Inputs!129:129,Inputs!130:130))*BG147 -> 1 | BI147: =(1+LOOKUP(BI$5,Inputs!129:129,Inputs!130:130))*BH147 -> 1 | BJ147: =(1+LOOKUP(BJ$5,Inputs!129:129,Inputs!130:130))*BI147 -> 1 | BK147: =(1+LOOKUP(BK$5,Inputs!129:129,Inputs!130:130))*BJ147 -> 1 | BL147: =(1+LOOKUP(BL$5,Inputs!129:129,Inputs!130:130))*BK147 -> 1 | BM147: =(1+LOOKUP(BM$5,Inputs!129:129,Inputs!130:130))*BL147 -> 1 | BN147: =(1+LOOKUP(BN$5,Inputs!129:129,Inputs!130:130))*BM147 -> 1 | BO147: =(1+LOOKUP(BO$5,Inputs!129:129,Inputs!130:130))*BN147 -> 1 | BP147: =(1+LOOKUP(BP$5,Inputs!129:129,Inputs!130:130))*BO147 -> 1
B148: Maize Price Scenario | M148: 1 | N148: =(1+LOOKUP(N$5,Inputs!130:130,Inputs!131:131))*M148 -> 1 | O148: =(1+LOOKUP(O$5,Inputs!130:130,Inputs!131:131))*N148 -> 1 | P148: =(1+LOOKUP(P$5,Inputs!130:130,Inputs!131:131))*O148 -> 1 | Q148: =(1+LOOKUP(Q$5,Inputs!130:130,Inputs!131:131))*P148 -> 1 | R148: =(1+LOOKUP(R$5,Inputs!130:130,Inputs!131:131))*Q148 -> 1 | S148: =(1+LOOKUP(S$5,Inputs!130:130,Inputs!131:131))*R148 -> 1 | T148: =(1+LOOKUP(T$5,Inputs!130:130,Inputs!131:131))*S148 -> 1 | U148: =(1+LOOKUP(U$5,Inputs!130:130,Inputs!131:131))*T148 -> 1 | V148: =(1+LOOKUP(V$5,Inputs!130:130,Inputs!131:131))*U148 -> 1 | W148: =(1+LOOKUP(W$5,Inputs!130:130,Inputs!131:131))*V148 -> 1 | X148: =(1+LOOKUP(X$5,Inputs!130:130,Inputs!131:131))*W148 -> 1 | Y148: =(1+LOOKUP(Y$5,Inputs!130:130,Inputs!131:131))*X148 -> 1 | Z148: =(1+LOOKUP(Z$5,Inputs!130:130,Inputs!131:131))*Y148 -> 1 | AA148: =(1+LOOKUP(AA$5,Inputs!130:130,Inputs!131:131))*Z148 -> 1 | AB148: =(1+LOOKUP(AB$5,Inputs!130:130,Inputs!131:131))*AA148 -> 1 | AC148: =(1+LOOKUP(AC$5,Inputs!130:130,Inputs!131:131))*AB148 -> 1 | AD148: =(1+LOOKUP(AD$5,Inputs!130:130,Inputs!131:131))*AC148 -> 1 | AE148: =(1+LOOKUP(AE$5,Inputs!130:130,Inputs!131:131))*AD148 -> 1 | AF148: =(1+LOOKUP(AF$5,Inputs!130:130,Inputs!131:131))*AE148 -> 1 | AG148: =(1+LOOKUP(AG$5,Inputs!130:130,Inputs!131:131))*AF148 -> 1 | AH148: =(1+LOOKUP(AH$5,Inputs!130:130,Inputs!131:131))*AG148 -> 1 | AI148: =(1+LOOKUP(AI$5,Inputs!130:130,Inputs!131:131))*AH148 -> 1 | AJ148: =(1+LOOKUP(AJ$5,Inputs!130:130,Inputs!131:131))*AI148 -> 1 | AK148: =(1+LOOKUP(AK$5,Inputs!130:130,Inputs!131:131))*AJ148 -> 1 | AL148: =(1+LOOKUP(AL$5,Inputs!130:130,Inputs!131:131))*AK148 -> 1 | AM148: =(1+LOOKUP(AM$5,Inputs!130:130,Inputs!131:131))*AL148 -> 1 | AN148: =(1+LOOKUP(AN$5,Inputs!130:130,Inputs!131:131))*AM148 -> 1 | AO148: =(1+LOOKUP(AO$5,Inputs!130:130,Inputs!131:131))*AN148 -> 1 | AP148: =(1+LOOKUP(AP$5,Inputs!130:130,Inputs!131:131))*AO148 -> 1 | AQ148: =(1+LOOKUP(AQ$5,Inputs!130:130,Inputs!131:131))*AP148 -> 1 | AR148: =(1+LOOKUP(AR$5,Inputs!130:130,Inputs!131:131))*AQ148 -> 1 | AS148: =(1+LOOKUP(AS$5,Inputs!130:130,Inputs!131:131))*AR148 -> 1 | AT148: =(1+LOOKUP(AT$5,Inputs!130:130,Inputs!131:131))*AS148 -> 1 | AU148: =(1+LOOKUP(AU$5,Inputs!130:130,Inputs!131:131))*AT148 -> 1 | AV148: =(1+LOOKUP(AV$5,Inputs!130:130,Inputs!131:131))*AU148 -> 1 | AW148: =(1+LOOKUP(AW$5,Inputs!130:130,Inputs!131:131))*AV148 -> 1 | AX148: =(1+LOOKUP(AX$5,Inputs!130:130,Inputs!131:131))*AW148 -> 1 | AY148: =(1+LOOKUP(AY$5,Inputs!130:130,Inputs!131:131))*AX148 -> 1 | AZ148: =(1+LOOKUP(AZ$5,Inputs!130:130,Inputs!131:131))*AY148 -> 1 | BA148: =(1+LOOKUP(BA$5,Inputs!130:130,Inputs!131:131))*AZ148 -> 1 | BB148: =(1+LOOKUP(BB$5,Inputs!130:130,Inputs!131:131))*BA148 -> 1 | BC148: =(1+LOOKUP(BC$5,Inputs!130:130,Inputs!131:131))*BB148 -> 1 | BD148: =(1+LOOKUP(BD$5,Inputs!130:130,Inputs!131:131))*BC148 -> 1 | BE148: =(1+LOOKUP(BE$5,Inputs!130:130,Inputs!131:131))*BD148 -> 1 | BF148: =(1+LOOKUP(BF$5,Inputs!130:130,Inputs!131:131))*BE148 -> 1 | BG148: =(1+LOOKUP(BG$5,Inputs!130:130,Inputs!131:131))*BF148 -> 1 | BH148: =(1+LOOKUP(BH$5,Inputs!130:130,Inputs!131:131))*BG148 -> 1 | BI148: =(1+LOOKUP(BI$5,Inputs!130:130,Inputs!131:131))*BH148 -> 1 | BJ148: =(1+LOOKUP(BJ$5,Inputs!130:130,Inputs!131:131))*BI148 -> 1 | BK148: =(1+LOOKUP(BK$5,Inputs!130:130,Inputs!131:131))*BJ148 -> 1 | BL148: =(1+LOOKUP(BL$5,Inputs!130:130,Inputs!131:131))*BK148 -> 1 | BM148: =(1+LOOKUP(BM$5,Inputs!130:130,Inputs!131:131))*BL148 -> 1 | BN148: =(1+LOOKUP(BN$5,Inputs!130:130,Inputs!131:131))*BM148 -> 1 | BO148: =(1+LOOKUP(BO$5,Inputs!130:130,Inputs!131:131))*BN148 -> 1 | BP148: =(1+LOOKUP(BP$5,Inputs!130:130,Inputs!131:131))*BO148 -> 1
B149: Animal Price Scenario | M149: 1 | N149: =(1+LOOKUP(N$5,Inputs!131:131,Inputs!132:132))*M149 -> 1 | O149: =(1+LOOKUP(O$5,Inputs!131:131,Inputs!132:132))*N149 -> 1 | P149: =(1+LOOKUP(P$5,Inputs!131:131,Inputs!132:132))*O149 -> 1 | Q149: =(1+LOOKUP(Q$5,Inputs!131:131,Inputs!132:132))*P149 -> 1 | R149: =(1+LOOKUP(R$5,Inputs!131:131,Inputs!132:132))*Q149 -> 1 | S149: =(1+LOOKUP(S$5,Inputs!131:131,Inputs!132:132))*R149 -> 1 | T149: =(1+LOOKUP(T$5,Inputs!131:131,Inputs!132:132))*S149 -> 1 | U149: =(1+LOOKUP(U$5,Inputs!131:131,Inputs!132:132))*T149 -> 1 | V149: =(1+LOOKUP(V$5,Inputs!131:131,Inputs!132:132))*U149 -> 1 | W149: =(1+LOOKUP(W$5,Inputs!131:131,Inputs!132:132))*V149 -> 1 | X149: =(1+LOOKUP(X$5,Inputs!131:131,Inputs!132:132))*W149 -> 1 | Y149: =(1+LOOKUP(Y$5,Inputs!131:131,Inputs!132:132))*X149 -> 1 | Z149: =(1+LOOKUP(Z$5,Inputs!131:131,Inputs!132:132))*Y149 -> 1 | AA149: =(1+LOOKUP(AA$5,Inputs!131:131,Inputs!132:132))*Z149 -> 1 | AB149: =(1+LOOKUP(AB$5,Inputs!131:131,Inputs!132:132))*AA149 -> 1 | AC149: =(1+LOOKUP(AC$5,Inputs!131:131,Inputs!132:132))*AB149 -> 1 | AD149: =(1+LOOKUP(AD$5,Inputs!131:131,Inputs!132:132))*AC149 -> 1 | AE149: =(1+LOOKUP(AE$5,Inputs!131:131,Inputs!132:132))*AD149 -> 1 | AF149: =(1+LOOKUP(AF$5,Inputs!131:131,Inputs!132:132))*AE149 -> 1 | AG149: =(1+LOOKUP(AG$5,Inputs!131:131,Inputs!132:132))*AF149 -> 1 | AH149: =(1+LOOKUP(AH$5,Inputs!131:131,Inputs!132:132))*AG149 -> 1 | AI149: =(1+LOOKUP(AI$5,Inputs!131:131,Inputs!132:132))*AH149 -> 1 | AJ149: =(1+LOOKUP(AJ$5,Inputs!131:131,Inputs!132:132))*AI149 -> 1 | AK149: =(1+LOOKUP(AK$5,Inputs!131:131,Inputs!132:132))*AJ149 -> 1 | AL149: =(1+LOOKUP(AL$5,Inputs!131:131,Inputs!132:132))*AK149 -> 1 | AM149: =(1+LOOKUP(AM$5,Inputs!131:131,Inputs!132:132))*AL149 -> 1 | AN149: =(1+LOOKUP(AN$5,Inputs!131:131,Inputs!132:132))*AM149 -> 1 | AO149: =(1+LOOKUP(AO$5,Inputs!131:131,Inputs!132:132))*AN149 -> 1 | AP149: =(1+LOOKUP(AP$5,Inputs!131:131,Inputs!132:132))*AO149 -> 1 | AQ149: =(1+LOOKUP(AQ$5,Inputs!131:131,Inputs!132:132))*AP149 -> 1 | AR149: =(1+LOOKUP(AR$5,Inputs!131:131,Inputs!132:132))*AQ149 -> 1 | AS149: =(1+LOOKUP(AS$5,Inputs!131:131,Inputs!132:132))*AR149 -> 1 | AT149: =(1+LOOKUP(AT$5,Inputs!131:131,Inputs!132:132))*AS149 -> 1 | AU149: =(1+LOOKUP(AU$5,Inputs!131:131,Inputs!132:132))*AT149 -> 1 | AV149: =(1+LOOKUP(AV$5,Inputs!131:131,Inputs!132:132))*AU149 -> 1 | AW149: =(1+LOOKUP(AW$5,Inputs!131:131,Inputs!132:132))*AV149 -> 1 | AX149: =(1+LOOKUP(AX$5,Inputs!131:131,Inputs!132:132))*AW149 -> 1 | AY149: =(1+LOOKUP(AY$5,Inputs!131:131,Inputs!132:132))*AX149 -> 1 | AZ149: =(1+LOOKUP(AZ$5,Inputs!131:131,Inputs!132:132))*AY149 -> 1 | BA149: =(1+LOOKUP(BA$5,Inputs!131:131,Inputs!132:132))*AZ149 -> 1 | BB149: =(1+LOOKUP(BB$5,Inputs!131:131,Inputs!132:132))*BA149 -> 1 | BC149: =(1+LOOKUP(BC$5,Inputs!131:131,Inputs!132:132))*BB149 -> 1 | BD149: =(1+LOOKUP(BD$5,Inputs!131:131,Inputs!132:132))*BC149 -> 1 | BE149: =(1+LOOKUP(BE$5,Inputs!131:131,Inputs!132:132))*BD149 -> 1 | BF149: =(1+LOOKUP(BF$5,Inputs!131:131,Inputs!132:132))*BE149 -> 1 | BG149: =(1+LOOKUP(BG$5,Inputs!131:131,Inputs!132:132))*BF149 -> 1 | BH149: =(1+LOOKUP(BH$5,Inputs!131:131,Inputs!132:132))*BG149 -> 1 | BI149: =(1+LOOKUP(BI$5,Inputs!131:131,Inputs!132:132))*BH149 -> 1 | BJ149: =(1+LOOKUP(BJ$5,Inputs!131:131,Inputs!132:132))*BI149 -> 1 | BK149: =(1+LOOKUP(BK$5,Inputs!131:131,Inputs!132:132))*BJ149 -> 1 | BL149: =(1+LOOKUP(BL$5,Inputs!131:131,Inputs!132:132))*BK149 -> 1 | BM149: =(1+LOOKUP(BM$5,Inputs!131:131,Inputs!132:132))*BL149 -> 1 | BN149: =(1+LOOKUP(BN$5,Inputs!131:131,Inputs!132:132))*BM149 -> 1 | BO149: =(1+LOOKUP(BO$5,Inputs!131:131,Inputs!132:132))*BN149 -> 1 | BP149: =(1+LOOKUP(BP$5,Inputs!131:131,Inputs!132:132))*BO149 -> 1
B150: Dairy Price Scenario | M150: 1 | N150: =(1+LOOKUP(N$5,Inputs!132:132,Inputs!133:133))*M150 -> 1 | O150: =(1+LOOKUP(O$5,Inputs!132:132,Inputs!133:133))*N150 -> 1 | P150: =(1+LOOKUP(P$5,Inputs!132:132,Inputs!133:133))*O150 -> 1 | Q150: =(1+LOOKUP(Q$5,Inputs!132:132,Inputs!133:133))*P150 -> 1 | R150: =(1+LOOKUP(R$5,Inputs!132:132,Inputs!133:133))*Q150 -> 1 | S150: =(1+LOOKUP(S$5,Inputs!132:132,Inputs!133:133))*R150 -> 1 | T150: =(1+LOOKUP(T$5,Inputs!132:132,Inputs!133:133))*S150 -> 1 | U150: =(1+LOOKUP(U$5,Inputs!132:132,Inputs!133:133))*T150 -> 1 | V150: =(1+LOOKUP(V$5,Inputs!132:132,Inputs!133:133))*U150 -> 1 | W150: =(1+LOOKUP(W$5,Inputs!132:132,Inputs!133:133))*V150 -> 1 | X150: =(1+LOOKUP(X$5,Inputs!132:132,Inputs!133:133))*W150 -> 1 | Y150: =(1+LOOKUP(Y$5,Inputs!132:132,Inputs!133:133))*X150 -> 1 | Z150: =(1+LOOKUP(Z$5,Inputs!132:132,Inputs!133:133))*Y150 -> 1 | AA150: =(1+LOOKUP(AA$5,Inputs!132:132,Inputs!133:133))*Z150 -> 1 | AB150: =(1+LOOKUP(AB$5,Inputs!132:132,Inputs!133:133))*AA150 -> 1 | AC150: =(1+LOOKUP(AC$5,Inputs!132:132,Inputs!133:133))*AB150 -> 1 | AD150: =(1+LOOKUP(AD$5,Inputs!132:132,Inputs!133:133))*AC150 -> 1 | AE150: =(1+LOOKUP(AE$5,Inputs!132:132,Inputs!133:133))*AD150 -> 1 | AF150: =(1+LOOKUP(AF$5,Inputs!132:132,Inputs!133:133))*AE150 -> 1 | AG150: =(1+LOOKUP(AG$5,Inputs!132:132,Inputs!133:133))*AF150 -> 1 | AH150: =(1+LOOKUP(AH$5,Inputs!132:132,Inputs!133:133))*AG150 -> 1 | AI150: =(1+LOOKUP(AI$5,Inputs!132:132,Inputs!133:133))*AH150 -> 1 | AJ150: =(1+LOOKUP(AJ$5,Inputs!132:132,Inputs!133:133))*AI150 -> 1 | AK150: =(1+LOOKUP(AK$5,Inputs!132:132,Inputs!133:133))*AJ150 -> 1 | AL150: =(1+LOOKUP(AL$5,Inputs!132:132,Inputs!133:133))*AK150 -> 1 | AM150: =(1+LOOKUP(AM$5,Inputs!132:132,Inputs!133:133))*AL150 -> 1 | AN150: =(1+LOOKUP(AN$5,Inputs!132:132,Inputs!133:133))*AM150 -> 1 | AO150: =(1+LOOKUP(AO$5,Inputs!132:132,Inputs!133:133))*AN150 -> 1 | AP150: =(1+LOOKUP(AP$5,Inputs!132:132,Inputs!133:133))*AO150 -> 1 | AQ150: =(1+LOOKUP(AQ$5,Inputs!132:132,Inputs!133:133))*AP150 -> 1 | AR150: =(1+LOOKUP(AR$5,Inputs!132:132,Inputs!133:133))*AQ150 -> 1 | AS150: =(1+LOOKUP(AS$5,Inputs!132:132,Inputs!133:133))*AR150 -> 1 | AT150: =(1+LOOKUP(AT$5,Inputs!132:132,Inputs!133:133))*AS150 -> 1 | AU150: =(1+LOOKUP(AU$5,Inputs!132:132,Inputs!133:133))*AT150 -> 1 | AV150: =(1+LOOKUP(AV$5,Inputs!132:132,Inputs!133:133))*AU150 -> 1 | AW150: =(1+LOOKUP(AW$5,Inputs!132:132,Inputs!133:133))*AV150 -> 1 | AX150: =(1+LOOKUP(AX$5,Inputs!132:132,Inputs!133:133))*AW150 -> 1 | AY150: =(1+LOOKUP(AY$5,Inputs!132:132,Inputs!133:133))*AX150 -> 1 | AZ150: =(1+LOOKUP(AZ$5,Inputs!132:132,Inputs!133:133))*AY150 -> 1 | BA150: =(1+LOOKUP(BA$5,Inputs!132:132,Inputs!133:133))*AZ150 -> 1 | BB150: =(1+LOOKUP(BB$5,Inputs!132:132,Inputs!133:133))*BA150 -> 1 | BC150: =(1+LOOKUP(BC$5,Inputs!132:132,Inputs!133:133))*BB150 -> 1 | BD150: =(1+LOOKUP(BD$5,Inputs!132:132,Inputs!133:133))*BC150 -> 1 | BE150: =(1+LOOKUP(BE$5,Inputs!132:132,Inputs!133:133))*BD150 -> 1 | BF150: =(1+LOOKUP(BF$5,Inputs!132:132,Inputs!133:133))*BE150 -> 1 | BG150: =(1+LOOKUP(BG$5,Inputs!132:132,Inputs!133:133))*BF150 -> 1 | BH150: =(1+LOOKUP(BH$5,Inputs!132:132,Inputs!133:133))*BG150 -> 1 | BI150: =(1+LOOKUP(BI$5,Inputs!132:132,Inputs!133:133))*BH150 -> 1 | BJ150: =(1+LOOKUP(BJ$5,Inputs!132:132,Inputs!133:133))*BI150 -> 1 | BK150: =(1+LOOKUP(BK$5,Inputs!132:132,Inputs!133:133))*BJ150 -> 1 | BL150: =(1+LOOKUP(BL$5,Inputs!132:132,Inputs!133:133))*BK150 -> 1 | BM150: =(1+LOOKUP(BM$5,Inputs!132:132,Inputs!133:133))*BL150 -> 1 | BN150: =(1+LOOKUP(BN$5,Inputs!132:132,Inputs!133:133))*BM150 -> 1 | BO150: =(1+LOOKUP(BO$5,Inputs!132:132,Inputs!133:133))*BN150 -> 1 | BP150: =(1+LOOKUP(BP$5,Inputs!132:132,Inputs!133:133))*BO150 -> 1
B151: Fertilizer Prices Scenario | M151: 1 | N151: =(1+LOOKUP(N$5,Inputs!133:133,Inputs!134:134))*M151 -> 1.01 | O151: =(1+LOOKUP(O$5,Inputs!133:133,Inputs!134:134))*N151 -> 1.0201 | P151: =(1+LOOKUP(P$5,Inputs!133:133,Inputs!134:134))*O151 -> 1.030301 | Q151: =(1+LOOKUP(Q$5,Inputs!133:133,Inputs!134:134))*P151 -> 1.04060401 | R151: =(1+LOOKUP(R$5,Inputs!133:133,Inputs!134:134))*Q151 -> 1.05101005 | S151: =(1+LOOKUP(S$5,Inputs!133:133,Inputs!134:134))*R151 -> 1.061520151 | T151: =(1+LOOKUP(T$5,Inputs!133:133,Inputs!134:134))*S151 -> 1.072135352 | U151: =(1+LOOKUP(U$5,Inputs!133:133,Inputs!134:134))*T151 -> 1.082856706 | V151: =(1+LOOKUP(V$5,Inputs!133:133,Inputs!134:134))*U151 -> 1.093685273 | W151: =(1+LOOKUP(W$5,Inputs!133:133,Inputs!134:134))*V151 -> 1.104622125 | X151: =(1+LOOKUP(X$5,Inputs!133:133,Inputs!134:134))*W151 -> 1.115668347 | Y151: =(1+LOOKUP(Y$5,Inputs!133:133,Inputs!134:134))*X151 -> 1.12682503 | Z151: =(1+LOOKUP(Z$5,Inputs!133:133,Inputs!134:134))*Y151 -> 1.13809328 | AA151: =(1+LOOKUP(AA$5,Inputs!133:133,Inputs!134:134))*Z151 -> 1.149474213 | AB151: =(1+LOOKUP(AB$5,Inputs!133:133,Inputs!134:134))*AA151 -> 1.160968955 | AC151: =(1+LOOKUP(AC$5,Inputs!133:133,Inputs!134:134))*AB151 -> 1.172578645 | AD151: =(1+LOOKUP(AD$5,Inputs!133:133,Inputs!134:134))*AC151 -> 1.184304431 | AE151: =(1+LOOKUP(AE$5,Inputs!133:133,Inputs!134:134))*AD151 -> 1.196147476 | AF151: =(1+LOOKUP(AF$5,Inputs!133:133,Inputs!134:134))*AE151 -> 1.20810895 | AG151: =(1+LOOKUP(AG$5,Inputs!133:133,Inputs!134:134))*AF151 -> 1.22019004 | AH151: =(1+LOOKUP(AH$5,Inputs!133:133,Inputs!134:134))*AG151 -> 1.23239194 | AI151: =(1+LOOKUP(AI$5,Inputs!133:133,Inputs!134:134))*AH151 -> 1.24471586 | AJ151: =(1+LOOKUP(AJ$5,Inputs!133:133,Inputs!134:134))*AI151 -> 1.257163018 | AK151: =(1+LOOKUP(AK$5,Inputs!133:133,Inputs!134:134))*AJ151 -> 1.269734649 | AL151: =(1+LOOKUP(AL$5,Inputs!133:133,Inputs!134:134))*AK151 -> 1.282431995 | AM151: =(1+LOOKUP(AM$5,Inputs!133:133,Inputs!134:134))*AL151 -> 1.295256315 | AN151: =(1+LOOKUP(AN$5,Inputs!133:133,Inputs!134:134))*AM151 -> 1.308208878 | AO151: =(1+LOOKUP(AO$5,Inputs!133:133,Inputs!134:134))*AN151 -> 1.321290967 | AP151: =(1+LOOKUP(AP$5,Inputs!133:133,Inputs!134:134))*AO151 -> 1.334503877 | AQ151: =(1+LOOKUP(AQ$5,Inputs!133:133,Inputs!134:134))*AP151 -> 1.347848915 | AR151: =(1+LOOKUP(AR$5,Inputs!133:133,Inputs!134:134))*AQ151 -> 1.361327404 | AS151: =(1+LOOKUP(AS$5,Inputs!133:133,Inputs!134:134))*AR151 -> 1.374940679 | AT151: =(1+LOOKUP(AT$5,Inputs!133:133,Inputs!134:134))*AS151 -> 1.388690085 | AU151: =(1+LOOKUP(AU$5,Inputs!133:133,Inputs!134:134))*AT151 -> 1.402576986 | AV151: =(1+LOOKUP(AV$5,Inputs!133:133,Inputs!134:134))*AU151 -> 1.416602756 | AW151: =(1+LOOKUP(AW$5,Inputs!133:133,Inputs!134:134))*AV151 -> 1.430768784 | AX151: =(1+LOOKUP(AX$5,Inputs!133:133,Inputs!134:134))*AW151 -> 1.445076471 | AY151: =(1+LOOKUP(AY$5,Inputs!133:133,Inputs!134:134))*AX151 -> 1.459527236 | AZ151: =(1+LOOKUP(AZ$5,Inputs!133:133,Inputs!134:134))*AY151 -> 1.474122509 | BA151: =(1+LOOKUP(BA$5,Inputs!133:133,Inputs!134:134))*AZ151 -> 1.488863734 | BB151: =(1+LOOKUP(BB$5,Inputs!133:133,Inputs!134:134))*BA151 -> 1.503752371 | BC151: =(1+LOOKUP(BC$5,Inputs!133:133,Inputs!134:134))*BB151 -> 1.518789895 | BD151: =(1+LOOKUP(BD$5,Inputs!133:133,Inputs!134:134))*BC151 -> 1.533977794 | BE151: =(1+LOOKUP(BE$5,Inputs!133:133,Inputs!134:134))*BD151 -> 1.549317572 | BF151: =(1+LOOKUP(BF$5,Inputs!133:133,Inputs!134:134))*BE151 -> 1.564810747 | BG151: =(1+LOOKUP(BG$5,Inputs!133:133,Inputs!134:134))*BF151 -> 1.580458855 | BH151: =(1+LOOKUP(BH$5,Inputs!133:133,Inputs!134:134))*BG151 -> 1.596263443 | BI151: =(1+LOOKUP(BI$5,Inputs!133:133,Inputs!134:134))*BH151 -> 1.612226078 | BJ151: =(1+LOOKUP(BJ$5,Inputs!133:133,Inputs!134:134))*BI151 -> 1.628348338 | BK151: =(1+LOOKUP(BK$5,Inputs!133:133,Inputs!134:134))*BJ151 -> 1.644631822 | BL151: =(1+LOOKUP(BL$5,Inputs!133:133,Inputs!134:134))*BK151 -> 1.66107814 | BM151: =(1+LOOKUP(BM$5,Inputs!133:133,Inputs!134:134))*BL151 -> 1.677688921 | BN151: =(1+LOOKUP(BN$5,Inputs!133:133,Inputs!134:134))*BM151 -> 1.694465811 | BO151: =(1+LOOKUP(BO$5,Inputs!133:133,Inputs!134:134))*BN151 -> 1.711410469 | BP151: =(1+LOOKUP(BP$5,Inputs!133:133,Inputs!134:134))*BO151 -> 1.728524573
A153: Capital Expenditures
B154: Phase 1 | H154: Amount | I154: Start | J154: End | K154: Years | L154: Sensitivity
C155: Horticulture and Fruits production Project | G155: Euro 000's | H155: =Inputs!I139*1000*L155 -> 112068.9655 | I155: =Inputs!J139 -> 2017 | J155: =Inputs!K139 -> 2019 | K155: =J155-I155+1 -> 3 | L155: =Sensitivities!$G$21 -> 1 | N155: =AND(N$5>=$I155,N$5<=$J155)*$H155/$K155 -> 37356.32184 | O155: =AND(O$5>=$I155,O$5<=$J155)*$H155/$K155 -> 37356.32184 | P155: 37356.32184 | Q155: 0 | R155: 0 | S155: 0 | T155: 0 | U155: 0 | V155: 0 | W155: 0 | X155: 0 | Y155: 0 | Z155: 0 | AA155: 0 | AB155: 0 | AC155: 0 | AD155: 0 | AE155: 0 | AF155: 0 | AG155: 0 | AH155: 0 | AI155: 0 | AJ155: 0 | AK155: 0 | AL155: 0 | AM155: 0 | AN155: 0 | AO155: 0 | AP155: 0 | AQ155: 0 | AR155: 0 | AS155: 0 | AT155: 0 | AU155: 0 | AV155: 0 | AW155: 0 | AX155: 0 | AY155: 0 | AZ155: 0 | BA155: 0 | BB155: 0 | BC155: 0 | BD155: 0 | BE155: 0 | BF155: 0 | BG155: 0 | BH155: 0 | BI155: 0 | BJ155: 0 | BK155: 0 | BL155: 0 | BM155: 0 | BN155: 0 | BO155: 0 | BP155: 0
C156: Milk production Project | G156: Euro 000's | H156: =Inputs!I140*1000*L156 -> 8965.517241 | I156: =Inputs!J140 -> 2017 | J156: =Inputs!K140 -> 2019 | K156: =J156-I156+1 -> 3 | L156: =Sensitivities!$G$21 -> 1 | N156: =AND(N$5>=$I156,N$5<=$J156)*$H156/$K156 -> 2988.505747 | O156: 2988.505747 | P156: 2988.505747 | Q156: 0 | R156: 0 | S156: 0 | T156: 0 | U156: 0 | V156: 0 | W156: 0 | X156: 0 | Y156: 0 | Z156: 0 | AA156: 0 | AB156: 0 | AC156: 0 | AD156: 0 | AE156: 0 | AF156: 0 | AG156: 0 | AH156: 0 | AI156: 0 | AJ156: 0 | AK156: 0 | AL156: 0 | AM156: 0 | AN156: 0 | AO156: 0 | AP156: 0 | AQ156: 0 | AR156: 0 | AS156: 0 | AT156: 0 | AU156: 0 | AV156: 0 | AW156: 0 | AX156: 0 | AY156: 0 | AZ156: 0 | BA156: 0 | BB156: 0 | BC156: 0 | BD156: 0 | BE156: 0 | BF156: 0 | BG156: 0 | BH156: 0 | BI156: 0 | BJ156: 0 | BK156: 0 | BL156: 0 | BM156: 0 | BN156: 0 | BO156: 0 | BP156: 0
C157: Chips and Fries Production Project | G157: Euro 000's | H157: =Inputs!I141*1000*L157 -> 6275.862069 | I157: =Inputs!J141 -> 2017 | J157: =Inputs!K141 -> 2019 | K157: 3 | L157: =Sensitivities!$G$21 -> 1 | N157: 2091.954023 | O157: 2091.954023 | P157: 2091.954023 | Q157: 0 | R157: 0 | S157: 0 | T157: 0 | U157: 0 | V157: 0 | W157: 0 | X157: 0 | Y157: 0 | Z157: 0 | AA157: 0 | AB157: 0 | AC157: 0 | AD157: 0 | AE157: 0 | AF157: 0 | AG157: 0 | AH157: 0 | AI157: 0 | AJ157: 0 | AK157: 0 | AL157: 0 | AM157: 0 | AN157: 0 | AO157: 0 | AP157: 0 | AQ157: 0 | AR157: 0 | AS157: 0 | AT157: 0 | AU157: 0 | AV157: 0 | AW157: 0 | AX157: 0 | AY157: 0 | AZ157: 0 | BA157: 0 | BB157: 0 | BC157: 0 | BD157: 0 | BE157: 0 | BF157: 0 | BG157: 0 | BH157: 0 | BI157: 0 | BJ157: 0 | BK157: 0 | BL157: 0 | BM157: 0 | BN157: 0 | BO157: 0 | BP157: 0
C158: Piggery production Project | G158: Euro 000's | H158: =Inputs!I142*1000*L158 -> 4482.758621 | I158: =Inputs!J142 -> 2017 | J158: =Inputs!K142 -> 2019 | K158: 3 | L158: =Sensitivities!$G$21 -> 1 | N158: 1494.252874 | O158: 1494.252874 | P158: 1494.252874 | Q158: 0 | R158: 0 | S158: 0 | T158: 0 | U158: 0 | V158: 0 | W158: 0 | X158: 0 | Y158: 0 | Z158: 0 | AA158: 0 | AB158: 0 | AC158: 0 | AD158: 0 | AE158: 0 | AF158: 0 | AG158: 0 | AH158: 0 | AI158: 0 | AJ158: 0 | AK158: 0 | AL158: 0 | AM158: 0 | AN158: 0 | AO158: 0 | AP158: 0 | AQ158: 0 | AR158: 0 | AS158: 0 | AT158: 0 | AU158: 0 | AV158: 0 | AW158: 0 | AX158: 0 | AY158: 0 | AZ158: 0 | BA158: 0 | BB158: 0 | BC158: 0 | BD158: 0 | BE158: 0 | BF158: 0 | BG158: 0 | BH158: 0 | BI158: 0 | BJ158: 0 | BK158: 0 | BL158: 0 | BM158: 0 | BN158: 0 | BO158: 0 | BP158: 0
C159: Sheeps and Goats breeding Project | G159: Euro 000's | H159: =Inputs!I143*1000*L159 -> 1613.793103 | I159: =Inputs!J143 -> 2017 | J159: =Inputs!K143 -> 2019 | K159: 3 | L159: =Sensitivities!$G$21 -> 1 | N159: 537.9310345 | O159: 537.9310345 | P159: 537.9310345 | Q159: 0 | R159: 0 | S159: 0 | T159: 0 | U159: 0 | V159: 0 | W159: 0 | X159: 0 | Y159: 0 | Z159: 0 | AA159: 0 | AB159: 0 | AC159: 0 | AD159: 0 | AE159: 0 | AF159: 0 | AG159: 0 | AH159: 0 | AI159: 0 | AJ159: 0 | AK159: 0 | AL159: 0 | AM159: 0 | AN159: 0 | AO159: 0 | AP159: 0 | AQ159: 0 | AR159: 0 | AS159: 0 | AT159: 0 | AU159: 0 | AV159: 0 | AW159: 0 | AX159: 0 | AY159: 0 | AZ159: 0 | BA159: 0 | BB159: 0 | BC159: 0 | BD159: 0 | BE159: 0 | BF159: 0 | BG159: 0 | BH159: 0 | BI159: 0 | BJ159: 0 | BK159: 0 | BL159: 0 | BM159: 0 | BN159: 0 | BO159: 0 | BP159: 0
C160: Frozen and Jams production Factory Project | G160: Euro 000's | H160: =Inputs!I144*1000*L160 -> 2241.37931 | I160: =Inputs!J144 -> 2017 | J160: =Inputs!K144 -> 2019 | K160: 3 | L160: =Sensitivities!$G$21 -> 1 | N160: 747.1264368 | O160: 747.1264368 | P160: 747.1264368 | Q160: 0 | R160: 0 | S160: 0 | T160: 0 | U160: 0 | V160: 0 | W160: 0 | X160: 0 | Y160: 0 | Z160: 0 | AA160: 0 | AB160: 0 | AC160: 0 | AD160: 0 | AE160: 0 | AF160: 0 | AG160: 0 | AH160: 0 | AI160: 0 | AJ160: 0 | AK160: 0 | AL160: 0 | AM160: 0 | AN160: 0 | AO160: 0 | AP160: 0 | AQ160: 0 | AR160: 0 | AS160: 0 | AT160: 0 | AU160: 0 | AV160: 0 | AW160: 0 | AX160: 0 | AY160: 0 | AZ160: 0 | BA160: 0 | BB160: 0 | BC160: 0 | BD160: 0 | BE160: 0 | BF160: 0 | BG160: 0 | BH160: 0 | BI160: 0 | BJ160: 0 | BK160: 0 | BL160: 0 | BM160: 0 | BN160: 0 | BO160: 0 | BP160: 0
C161: Feeds production Factory Project | G161: Euro 000's | H161: =Inputs!I145*1000*L161 -> 4034.482759 | I161: =Inputs!J145 -> 2017 | J161: =Inputs!K145 -> 2019 | K161: 3 | L161: =Sensitivities!$G$21 -> 1 | N161: 1344.827586 | O161: 1344.827586 | P161: 1344.827586 | Q161: 0 | R161: 0 | S161: 0 | T161: 0 | U161: 0 | V161: 0 | W161: 0 | X161: 0 | Y161: 0 | Z161: 0 | AA161: 0 | AB161: 0 | AC161: 0 | AD161: 0 | AE161: 0 | AF161: 0 | AG161: 0 | AH161: 0 | AI161: 0 | AJ161: =AND(AJ$5>=$I161,AJ$5<=$J161)*$H161/$K161 -> 0 | AK161: 0 | AL161: 0 | AM161: 0 | AN161: 0 | AO161: 0 | AP161: 0 | AQ161: 0 | AR161: 0 | AS161: 0 | AT161: 0 | AU161: 0 | AV161: 0 | AW161: 0 | AX161: 0 | AY161: 0 | AZ161: 0 | BA161: 0 | BB161: 0 | BC161: 0 | BD161: 0 | BE161: 0 | BF161: 0 | BG161: 0 | BH161: 0 | BI161: 0 | BJ161: 0 | BK161: 0 | BL161: 0 | BM161: 0 | BN161: 0 | BO161: 0 | BP161: 0
B163: Abbatoir | G163: Euro 000's | H163: =Inputs!I147*1000*L163 -> 8965.517241 | I163: =Inputs!J147 -> 2017 | J163: =Inputs!K147 -> 2017 | K163: 1 | L163: =Sensitivities!$G$21 -> 1 | N163: 8965.517241 | O163: =AND(O$5>=$I163,O$5<=$J163)*$H163 -> 0 | P163: 0 | Q163: 0 | R163: 0 | S163: 0 | T163: 0 | U163: 0 | V163: 0 | W163: 0 | X163: 0 | Y163: 0 | Z163: 0 | AA163: 0 | AB163: 0 | AC163: 0 | AD163: =AND(AD$5>=$I163,AD$5<=$J163)*$H163 -> 0 | AE163: 0 | AF163: 0 | AG163: 0 | AH163: 0 | AI163: 0 | AJ163: 0 | AK163: 0 | AL163: 0 | AM163: 0 | AN163: 0 | AO163: 0 | AP163: 0 | AQ163: 0 | AR163: 0 | AS163: 0 | AT163: 0 | AU163: 0 | AV163: 0 | AW163: 0 | AX163: 0 | AY163: 0 | AZ163: 0 | BA163: 0 | BB163: 0 | BC163: 0 | BD163: 0 | BE163: 0 | BF163: 0 | BG163: 0 | BH163: 0 | BI163: 0 | BJ163: 0 | BK163: 0 | BL163: 0 | BM163: 0 | BN163: 0 | BO163: 0 | BP163: 0
B165: Logistics warehouse for Cold storage | G165: Euro 000's | H165: =Inputs!I149*1000*L165 -> 60000 | I165: =Inputs!J149 -> 2017 | J165: =Inputs!K149 -> 2017 | K165: =J165-I165+1 -> 1 | L165: =Sensitivities!$G$21 -> 1 | N165: 60000 | O165: 0 | P165: 0 | Q165: 0 | R165: 0 | S165: 0 | T165: 0 | U165: 0 | V165: 0 | W165: 0 | X165: 0 | Y165: 0 | Z165: 0 | AA165: 0 | AB165: 0 | AC165: 0 | AD165: =AND(AD$5>=$I165,AD$5<=$J165)*$H165/$K165 -> 0 | AE165: 0 | AF165: 0 | AG165: 0 | AH165: 0 | AI165: 0 | AJ165: 0 | AK165: 0 | AL165: 0 | AM165: 0 | AN165: 0 | AO165: 0 | AP165: 0 | AQ165: 0 | AR165: 0 | AS165: 0 | AT165: 0 | AU165: 0 | AV165: 0 | AW165: 0 | AX165: 0 | AY165: 0 | AZ165: 0 | BA165: 0 | BB165: 0 | BC165: 0 | BD165: 0 | BE165: 0 | BF165: 0 | BG165: 0 | BH165: 0 | BI165: 0 | BJ165: 0 | BK165: 0 | BL165: 0 | BM165: 0 | BN165: 0 | BO165: 0 | BP165: 0
C166: Total Phase 1 | N166: =SUM(N155:N165) -> 115526.4368 | O166: =SUM(O155:O165) -> 46560.91954 | P166: 46560.91954 | Q166: 0 | R166: 0 | S166: 0 | T166: 0 | U166: 0 | V166: 0 | W166: 0 | X166: 0 | Y166: 0 | Z166: 0 | AA166: 0 | AB166: 0 | AC166: 0 | AD166: 0 | AE166: 0 | AF166: 0 | AG166: 0 | AH166: 0 | AI166: 0 | AJ166: 0 | AK166: 0 | AL166: 0 | AM166: 0 | AN166: 0 | AO166: 0 | AP166: 0 | AQ166: 0 | AR166: 0 | AS166: 0 | AT166: 0 | AU166: 0 | AV166: 0 | AW166: 0 | AX166: 0 | AY166: 0 | AZ166: 0 | BA166: 0 | BB166: 0 | BC166: 0 | BD166: 0 | BE166: 0 | BF166: 0 | BG166: 0 | BH166: 0 | BI166: 0 | BJ166: 0 | BK166: 0 | BL166: 0 | BM166: 0 | BN166: 0 | BO166: 0 | BP166: 0
B168: Phase 2
C169: Limestone Production Factory for Agriculture | G169: Euro 000's | H169: =Inputs!I154*1000*L169 -> 5379.310345 | I169: =Inputs!J154 -> 2018 | J169: =Inputs!K154 -> 2019 | K169: =J169-I169+1 -> 2 | L169: =Sensitivities!$H$21 -> 1 | N169: =AND(N$5>=$I169,N$5<=$J169)*$H169 -> 0 | O169: 5379.310345 | P169: 5379.310345 | Q169: 0 | R169: 0 | S169: 0 | T169: 0 | U169: 0 | V169: 0 | W169: 0 | X169: 0 | Y169: 0 | Z169: 0 | AA169: 0 | AB169: 0 | AC169: 0 | AD169: =AND(AD$5>=$I169,AD$5<=$J169)*$H169 -> 0 | AE169: 0 | AF169: 0 | AG169: 0 | AH169: 0 | AI169: 0 | AJ169: 0 | AK169: 0 | AL169: 0 | AM169: 0 | AN169: 0 | AO169: 0 | AP169: 0 | AQ169: 0 | AR169: 0 | AS169: 0 | AT169: 0 | AU169: 0 | AV169: 0 | AW169: 0 | AX169: 0 | AY169: 0 | AZ169: 0 | BA169: 0 | BB169: 0 | BC169: 0 | BD169: 0 | BE169: 0 | BF169: 0 | BG169: 0 | BH169: 0 | BI169: 0 | BJ169: 0 | BK169: 0 | BL169: 0 | BM169: 0 | BN169: 0 | BO169: 0 | BP169: 0
C170: Cereal and Vegetables Production Project | G170: Euro 000's | H170: =Inputs!I155*1000*L170 -> 13448.27586 | I170: =Inputs!J155 -> 2016 | J170: =Inputs!K155 -> 2019 | K170: 4 | L170: =Sensitivities!$H$21 -> 1 | N170: 13448.27586 | O170: 13448.27586 | P170: 13448.27586 | Q170: 0 | R170: 0 | S170: 0 | T170: 0 | U170: 0 | V170: 0 | W170: 0 | X170: 0 | Y170: 0 | Z170: 0 | AA170: 0 | AB170: 0 | AC170: 0 | AD170: 0 | AE170: 0 | AF170: 0 | AG170: 0 | AH170: 0 | AI170: 0 | AJ170: 0 | AK170: 0 | AL170: 0 | AM170: 0 | AN170: 0 | AO170: 0 | AP170: 0 | AQ170: 0 | AR170: 0 | AS170: 0 | AT170: 0 | AU170: 0 | AV170: 0 | AW170: 0 | AX170: 0 | AY170: 0 | AZ170: 0 | BA170: 0 | BB170: 0 | BC170: 0 | BD170: 0 | BE170: 0 | BF170: 0 | BG170: 0 | BH170: 0 | BI170: 0 | BJ170: 0 | BK170: 0 | BL170: 0 | BM170: 0 | BN170: 0 | BO170: 0 | BP170: 0
C171: Biological Coffee production Project | G171: Euro 000's | H171: =Inputs!I156*1000*L171 -> 4034.482759 | I171: =Inputs!J156 -> 2019 | J171: =Inputs!K156 -> 2025 | K171: 7 | L171: =Sensitivities!$H$21 -> 1 | N171: 0 | O171: 0 | P171: 4034.482759 | Q171: 4034.482759 | R171: 4034.482759 | S171: 4034.482759 | T171: 4034.482759 | U171: 4034.482759 | V171: 4034.482759 | W171: 0 | X171: 0 | Y171: 0 | Z171: 0 | AA171: 0 | AB171: 0 | AC171: 0 | AD171: 0 | AE171: 0 | AF171: 0 | AG171: 0 | AH171: 0 | AI171: 0 | AJ171: 0 | AK171: 0 | AL171: 0 | AM171: 0 | AN171: 0 | AO171: 0 | AP171: 0 | AQ171: 0 | AR171: 0 | AS171: 0 | AT171: 0 | AU171: 0 | AV171: 0 | AW171: 0 | AX171: 0 | AY171: 0 | AZ171: 0 | BA171: 0 | BB171: 0 | BC171: 0 | BD171: 0 | BE171: 0 | BF171: 0 | BG171: 0 | BH171: 0 | BI171: 0 | BJ171: 0 | BK171: 0 | BL171: 0 | BM171: 0 | BN171: 0 | BO171: 0 | BP171: 0
C172: Seafood and Fishery production Project | G172: Euro 000's | H172: =Inputs!I157*1000*L172 -> 2241.37931 | I172: =Inputs!J157 -> 2019 | J172: =Inputs!K157 -> 2025 | K172: 7 | L172: =Sensitivities!$H$21 -> 1 | N172: 0 | O172: 0 | P172: 2241.37931 | Q172: 2241.37931 | R172: 2241.37931 | S172: 2241.37931 | T172: 2241.37931 | U172: 2241.37931 | V172: 2241.37931 | W172: 0 | X172: 0 | Y172: 0 | Z172: 0 | AA172: 0 | AB172: 0 | AC172: 0 | AD172: 0 | AE172: 0 | AF172: 0 | AG172: 0 | AH172: 0 | AI172: 0 | AJ172: 0 | AK172: 0 | AL172: 0 | AM172: 0 | AN172: 0 | AO172: 0 | AP172: 0 | AQ172: 0 | AR172: 0 | AS172: 0 | AT172: 0 | AU172: 0 | AV172: 0 | AW172: 0 | AX172: 0 | AY172: 0 | AZ172: 0 | BA172: 0 | BB172: 0 | BC172: 0 | BD172: 0 | BE172: 0 | BF172: 0 | BG172: 0 | BH172: 0 | BI172: 0 | BJ172: 0 | BK172: 0 | BL172: 0 | BM172: 0 | BN172: 0 | BO172: 0 | BP172: 0
C173: Industrial dehydrated fruits and tomato derivatives production Project | G173: Euro 000's | H173: =Inputs!I158*1000*L173 -> 5379.310345 | I173: =Inputs!J158 -> 2019 | J173: =Inputs!K158 -> 2025 | K173: 7 | L173: =Sensitivities!$H$21 -> 1 | N173: 0 | O173: 0 | P173: 5379.310345 | Q173: 5379.310345 | R173: 5379.310345 | S173: 5379.310345 | T173: 5379.310345 | U173: 5379.310345 | V173: 5379.310345 | W173: 0 | X173: 0 | Y173: 0 | Z173: 0 | AA173: 0 | AB173: 0 | AC173: 0 | AD173: 0 | AE173: 0 | AF173: 0 | AG173: 0 | AH173: 0 | AI173: 0 | AJ173: 0 | AK173: 0 | AL173: 0 | AM173: 0 | AN173: 0 | AO173: 0 | AP173: 0 | AQ173: 0 | AR173: 0 | AS173: 0 | AT173: 0 | AU173: 0 | AV173: 0 | AW173: 0 | AX173: 0 | AY173: 0 | AZ173: 0 | BA173: 0 | BB173: 0 | BC173: 0 | BD173: 0 | BE173: 0 | BF173: 0 | BG173: 0 | BH173: 0 | BI173: 0 | BJ173: 0 | BK173: 0 | BL173: 0 | BM173: 0 | BN173: 0 | BO173: 0 | BP173: 0
C174: Furniture production Capacity Expansion Project | G174: Euro 000's | H174: =Inputs!I159*1000*L174 -> 22413.7931 | I174: =Inputs!J159 -> 2019 | J174: =Inputs!K159 -> 2025 | K174: 7 | L174: =Sensitivities!$H$21 -> 1 | N174: 0 | O174: 0 | P174: 22413.7931 | Q174: 22413.7931 | R174: 22413.7931 | S174: 22413.7931 | T174: 22413.7931 | U174: 22413.7931 | V174: 22413.7931 | W174: 0 | X174: 0 | Y174: 0 | Z174: 0 | AA174: 0 | AB174: 0 | AC174: 0 | AD174: 0 | AE174: 0 | AF174: 0 | AG174: 0 | AH174: 0 | AI174: 0 | AJ174: 0 | AK174: 0 | AL174: 0 | AM174: 0 | AN174: 0 | AO174: 0 | AP174: 0 | AQ174: 0 | AR174: 0 | AS174: 0 | AT174: 0 | AU174: 0 | AV174: 0 | AW174: 0 | AX174: 0 | AY174: 0 | AZ174: 0 | BA174: 0 | BB174: 0 | BC174: 0 | BD174: 0 | BE174: 0 | BF174: 0 | BG174: 0 | BH174: 0 | BI174: 0 | BJ174: 0 | BK174: 0 | BL174: 0 | BM174: 0 | BN174: 0 | BO174: 0 | BP174: 0
D175: Total Phase 1 | N175: =SUM(N169:N174) -> 13448.27586 | O175: =SUM(O169:O174) -> 18827.58621 | P175: 52896.55172 | Q175: 34068.96552 | R175: 34068.96552 | S175: 34068.96552 | T175: 34068.96552 | U175: 34068.96552 | V175: 34068.96552 | W175: 0 | X175: 0 | Y175: 0 | Z175: 0 | AA175: 0 | AB175: 0 | AC175: 0 | AD175: 0 | AE175: 0 | AF175: 0 | AG175: 0 | AH175: 0 | AI175: 0 | AJ175: 0 | AK175: 0 | AL175: 0 | AM175: 0 | AN175: 0 | AO175: 0 | AP175: 0 | AQ175: 0 | AR175: 0 | AS175: 0 | AT175: 0 | AU175: 0 | AV175: 0 | AW175: 0 | AX175: 0 | AY175: 0 | AZ175: 0 | BA175: 0 | BB175: 0 | BC175: 0 | BD175: 0 | BE175: 0 | BF175: 0 | BG175: 0 | BH175: 0 | BI175: 0 | BJ175: 0 | BK175: 0 | BL175: 0 | BM175: 0 | BN175: 0 | BO175: 0 | BP175: 0
B177: Maintenance Capital Expenditures
C178: Misc Other Maintenance Capital Expenditures | G178: Euro 000's | L178: =Sensitivities!$I$21 -> 1 | N178: =LOOKUP(N$5,Inputs!$163:$163,Inputs!164:164)*N$139*$L$178 -> 257.3791315 | O178: =LOOKUP(O$5,Inputs!$163:$163,Inputs!164:164)*O$139*$L$178 -> 646.665068 | P178: =LOOKUP(P$5,Inputs!$163:$163,Inputs!164:164)*P$139*$L$178 -> 1104.827269 | Q178: =LOOKUP(Q$5,Inputs!$163:$163,Inputs!164:164)*Q$139*$L$178 -> 1113.113473 | R178: =LOOKUP(R$5,Inputs!$163:$163,Inputs!164:164)*R$139*$L$178 -> 1121.461824 | S178: =LOOKUP(S$5,Inputs!$163:$163,Inputs!164:164)*S$139*$L$178 -> 1129.872788 | T178: =LOOKUP(T$5,Inputs!$163:$163,Inputs!164:164)*T$139*$L$178 -> 1138.346834 | U178: =LOOKUP(U$5,Inputs!$163:$163,Inputs!164:164)*U$139*$L$178 -> 1146.884435 | V178: =LOOKUP(V$5,Inputs!$163:$163,Inputs!164:164)*V$139*$L$178 -> 1155.486068 | W178: =LOOKUP(W$5,Inputs!$163:$163,Inputs!164:164)*W$139*$L$178 -> 1164.152214 | X178: =LOOKUP(X$5,Inputs!$163:$163,Inputs!164:164)*X$139*$L$178 -> 1172.883355 | Y178: =LOOKUP(Y$5,Inputs!$163:$163,Inputs!164:164)*Y$139*$L$178 -> 1181.679981 | Z178: =LOOKUP(Z$5,Inputs!$163:$163,Inputs!164:164)*Z$139*$L$178 -> 1190.54258 | AA178: =LOOKUP(AA$5,Inputs!$163:$163,Inputs!164:164)*AA$139*$L$178 -> 1199.47165 | AB178: =LOOKUP(AB$5,Inputs!$163:$163,Inputs!164:164)*AB$139*$L$178 -> 1208.467687 | AC178: =LOOKUP(AC$5,Inputs!$163:$163,Inputs!164:164)*AC$139*$L$178 -> 1217.531195 | AD178: =LOOKUP(AD$5,Inputs!$163:$163,Inputs!164:164)*AD$139*$L$178 -> 1226.662679 | AE178: =LOOKUP(AE$5,Inputs!$163:$163,Inputs!164:164)*AE$139*$L$178 -> 1235.862649 | AF178: =LOOKUP(AF$5,Inputs!$163:$163,Inputs!164:164)*AF$139*$L$178 -> 1245.131619 | AG178: =LOOKUP(AG$5,Inputs!$163:$163,Inputs!164:164)*AG$139*$L$178 -> 1254.470106 | AH178: =LOOKUP(AH$5,Inputs!$163:$163,Inputs!164:164)*AH$139*$L$178 -> 1263.878632 | AI178: =LOOKUP(AI$5,Inputs!$163:$163,Inputs!164:164)*AI$139*$L$178 -> 1273.357721 | AJ178: =LOOKUP(AJ$5,Inputs!$163:$163,Inputs!164:164)*AJ$139*$L$178 -> 1282.907904 | AK178: =LOOKUP(AK$5,Inputs!$163:$163,Inputs!164:164)*AK$139*$L$178 -> 1292.529714 | AL178: =LOOKUP(AL$5,Inputs!$163:$163,Inputs!164:164)*AL$139*$L$178 -> 1302.223686 | AM178: =LOOKUP(AM$5,Inputs!$163:$163,Inputs!164:164)*AM$139*$L$178 -> 1311.990364 | AN178: =LOOKUP(AN$5,Inputs!$163:$163,Inputs!164:164)*AN$139*$L$178 -> 1321.830292 | AO178: =LOOKUP(AO$5,Inputs!$163:$163,Inputs!164:164)*AO$139*$L$178 -> 1331.744019 | AP178: =LOOKUP(AP$5,Inputs!$163:$163,Inputs!164:164)*AP$139*$L$178 -> 1341.732099 | AQ178: =LOOKUP(AQ$5,Inputs!$163:$163,Inputs!164:164)*AQ$139*$L$178 -> 1351.79509 | AR178: =LOOKUP(AR$5,Inputs!$163:$163,Inputs!164:164)*AR$139*$L$178 -> 1361.933553 | AS178: =LOOKUP(AS$5,Inputs!$163:$163,Inputs!164:164)*AS$139*$L$178 -> 1372.148055 | AT178: =LOOKUP(AT$5,Inputs!$163:$163,Inputs!164:164)*AT$139*$L$178 -> 1382.439165 | AU178: =LOOKUP(AU$5,Inputs!$163:$163,Inputs!164:164)*AU$139*$L$178 -> 1392.807459 | AV178: =LOOKUP(AV$5,Inputs!$163:$163,Inputs!164:164)*AV$139*$L$178 -> 1403.253515 | AW178: =LOOKUP(AW$5,Inputs!$163:$163,Inputs!164:164)*AW$139*$L$178 -> 1413.777916 | AX178: =LOOKUP(AX$5,Inputs!$163:$163,Inputs!164:164)*AX$139*$L$178 -> 1424.381251 | AY178: =LOOKUP(AY$5,Inputs!$163:$163,Inputs!164:164)*AY$139*$L$178 -> 1435.06411 | AZ178: =LOOKUP(AZ$5,Inputs!$163:$163,Inputs!164:164)*AZ$139*$L$178 -> 1445.827091 | BA178: =LOOKUP(BA$5,Inputs!$163:$163,Inputs!164:164)*BA$139*$L$178 -> 1456.670794 | BB178: =LOOKUP(BB$5,Inputs!$163:$163,Inputs!164:164)*BB$139*$L$178 -> 1467.595825 | BC178: =LOOKUP(BC$5,Inputs!$163:$163,Inputs!164:164)*BC$139*$L$178 -> 1478.602794 | BD178: =LOOKUP(BD$5,Inputs!$163:$163,Inputs!164:164)*BD$139*$L$178 -> 1489.692315 | BE178: =LOOKUP(BE$5,Inputs!$163:$163,Inputs!164:164)*BE$139*$L$178 -> 1500.865007 | BF178: =LOOKUP(BF$5,Inputs!$163:$163,Inputs!164:164)*BF$139*$L$178 -> 1512.121494 | BG178: =LOOKUP(BG$5,Inputs!$163:$163,Inputs!164:164)*BG$139*$L$178 -> 1523.462406 | BH178: =LOOKUP(BH$5,Inputs!$163:$163,Inputs!164:164)*BH$139*$L$178 -> 1534.888374 | BI178: =LOOKUP(BI$5,Inputs!$163:$163,Inputs!164:164)*BI$139*$L$178 -> 1546.400037 | BJ178: =LOOKUP(BJ$5,Inputs!$163:$163,Inputs!164:164)*BJ$139*$L$178 -> 1557.998037 | BK178: =LOOKUP(BK$5,Inputs!$163:$163,Inputs!164:164)*BK$139*$L$178 -> 1569.683022 | BL178: =LOOKUP(BL$5,Inputs!$163:$163,Inputs!164:164)*BL$139*$L$178 -> 1581.455645 | BM178: =LOOKUP(BM$5,Inputs!$163:$163,Inputs!164:164)*BM$139*$L$178 -> 1593.316562 | BN178: =LOOKUP(BN$5,Inputs!$163:$163,Inputs!164:164)*BN$139*$L$178 -> 1605.266436 | BO178: =LOOKUP(BO$5,Inputs!$163:$163,Inputs!164:164)*BO$139*$L$178 -> 1617.305935 | BP178: =LOOKUP(BP$5,Inputs!$163:$163,Inputs!164:164)*BP$139*$L$178 -> 1629.435729
C179: Plows/Other Capital Expenditures | G179: Euro 000's | L179: =Sensitivities!$I$21 -> 1 | N179: =LOOKUP(N$5,Inputs!$163:$163,Inputs!165:165)*N$139*$L$179 -> 27.26913964 | O179: =LOOKUP(O$5,Inputs!$163:$163,Inputs!165:165)*O$139*$L$179 -> 68.51371335 | P179: =LOOKUP(P$5,Inputs!$163:$163,Inputs!165:165)*P$139*$L$179 -> 117.0556793 | Q179: =LOOKUP(Q$5,Inputs!$163:$163,Inputs!165:165)*Q$139*$L$179 -> 117.9335968 | R179: =LOOKUP(R$5,Inputs!$163:$163,Inputs!165:165)*R$139*$L$179 -> 118.8180988 | S179: =LOOKUP(S$5,Inputs!$163:$163,Inputs!165:165)*S$139*$L$179 -> 119.7092346 | T179: =LOOKUP(T$5,Inputs!$163:$163,Inputs!165:165)*T$139*$L$179 -> 120.6070538 | U179: =LOOKUP(U$5,Inputs!$163:$163,Inputs!165:165)*U$139*$L$179 -> 121.5116067 | V179: =LOOKUP(V$5,Inputs!$163:$163,Inputs!165:165)*V$139*$L$179 -> 122.4229438 | W179: =LOOKUP(W$5,Inputs!$163:$163,Inputs!165:165)*W$139*$L$179 -> 123.3411159 | X179: =LOOKUP(X$5,Inputs!$163:$163,Inputs!165:165)*X$139*$L$179 -> 124.2661742 | Y179: =LOOKUP(Y$5,Inputs!$163:$163,Inputs!165:165)*Y$139*$L$179 -> 125.1981705 | Z179: =LOOKUP(Z$5,Inputs!$163:$163,Inputs!165:165)*Z$139*$L$179 -> 126.1371568 | AA179: =LOOKUP(AA$5,Inputs!$163:$163,Inputs!165:165)*AA$139*$L$179 -> 127.0831855 | AB179: =LOOKUP(AB$5,Inputs!$163:$163,Inputs!165:165)*AB$139*$L$179 -> 128.0363094 | AC179: =LOOKUP(AC$5,Inputs!$163:$163,Inputs!165:165)*AC$139*$L$179 -> 128.9965817 | AD179: =LOOKUP(AD$5,Inputs!$163:$163,Inputs!165:165)*AD$139*$L$179 -> 129.9640561 | AE179: =LOOKUP(AE$5,Inputs!$163:$163,Inputs!165:165)*AE$139*$L$179 -> 130.9387865 | AF179: =LOOKUP(AF$5,Inputs!$163:$163,Inputs!165:165)*AF$139*$L$179 -> 131.9208274 | AG179: =LOOKUP(AG$5,Inputs!$163:$163,Inputs!165:165)*AG$139*$L$179 -> 132.9102336 | AH179: =LOOKUP(AH$5,Inputs!$163:$163,Inputs!165:165)*AH$139*$L$179 -> 133.9070603 | AI179: =LOOKUP(AI$5,Inputs!$163:$163,Inputs!165:165)*AI$139*$L$179 -> 134.9113633 | AJ179: =LOOKUP(AJ$5,Inputs!$163:$163,Inputs!165:165)*AJ$139*$L$179 -> 135.9231985 | AK179: =LOOKUP(AK$5,Inputs!$163:$163,Inputs!165:165)*AK$139*$L$179 -> 136.9426225 | AL179: =LOOKUP(AL$5,Inputs!$163:$163,Inputs!165:165)*AL$139*$L$179 -> 137.9696922 | AM179: =LOOKUP(AM$5,Inputs!$163:$163,Inputs!165:165)*AM$139*$L$179 -> 139.0044649 | AN179: =LOOKUP(AN$5,Inputs!$163:$163,Inputs!165:165)*AN$139*$L$179 -> 140.0469984 | AO179: =LOOKUP(AO$5,Inputs!$163:$163,Inputs!165:165)*AO$139*$L$179 -> 141.0973508 | AP179: =LOOKUP(AP$5,Inputs!$163:$163,Inputs!165:165)*AP$139*$L$179 -> 142.155581 | AQ179: =LOOKUP(AQ$5,Inputs!$163:$163,Inputs!165:165)*AQ$139*$L$179 -> 143.2217478 | AR179: =LOOKUP(AR$5,Inputs!$163:$163,Inputs!165:165)*AR$139*$L$179 -> 144.2959109 | AS179: =LOOKUP(AS$5,Inputs!$163:$163,Inputs!165:165)*AS$139*$L$179 -> 145.3781303 | AT179: =LOOKUP(AT$5,Inputs!$163:$163,Inputs!165:165)*AT$139*$L$179 -> 146.4684662 | AU179: =LOOKUP(AU$5,Inputs!$163:$163,Inputs!165:165)*AU$139*$L$179 -> 147.5669797 | AV179: =LOOKUP(AV$5,Inputs!$163:$163,Inputs!165:165)*AV$139*$L$179 -> 148.6737321 | AW179: =LOOKUP(AW$5,Inputs!$163:$163,Inputs!165:165)*AW$139*$L$179 -> 149.7887851 | AX179: =LOOKUP(AX$5,Inputs!$163:$163,Inputs!165:165)*AX$139*$L$179 -> 150.912201 | AY179: =LOOKUP(AY$5,Inputs!$163:$163,Inputs!165:165)*AY$139*$L$179 -> 152.0440425 | AZ179: =LOOKUP(AZ$5,Inputs!$163:$163,Inputs!165:165)*AZ$139*$L$179 -> 153.1843728 | BA179: =LOOKUP(BA$5,Inputs!$163:$163,Inputs!165:165)*BA$139*$L$179 -> 154.3332556 | BB179: =LOOKUP(BB$5,Inputs!$163:$163,Inputs!165:165)*BB$139*$L$179 -> 155.490755 | BC179: =LOOKUP(BC$5,Inputs!$163:$163,Inputs!165:165)*BC$139*$L$179 -> 156.6569357 | BD179: =LOOKUP(BD$5,Inputs!$163:$163,Inputs!165:165)*BD$139*$L$179 -> 157.8318627 | BE179: =LOOKUP(BE$5,Inputs!$163:$163,Inputs!165:165)*BE$139*$L$179 -> 159.0156017 | BF179: =LOOKUP(BF$5,Inputs!$163:$163,Inputs!165:165)*BF$139*$L$179 -> 160.2082187 | BG179: =LOOKUP(BG$5,Inputs!$163:$163,Inputs!165:165)*BG$139*$L$179 -> 161.4097803 | BH179: =LOOKUP(BH$5,Inputs!$163:$163,Inputs!165:165)*BH$139*$L$179 -> 162.6203537 | BI179: =LOOKUP(BI$5,Inputs!$163:$163,Inputs!165:165)*BI$139*$L$179 -> 163.8400063 | BJ179: =LOOKUP(BJ$5,Inputs!$163:$163,Inputs!165:165)*BJ$139*$L$179 -> 165.0688064 | BK179: =LOOKUP(BK$5,Inputs!$163:$163,Inputs!165:165)*BK$139*$L$179 -> 166.3068224 | BL179: =LOOKUP(BL$5,Inputs!$163:$163,Inputs!165:165)*BL$139*$L$179 -> 167.5541236 | BM179: =LOOKUP(BM$5,Inputs!$163:$163,Inputs!165:165)*BM$139*$L$179 -> 168.8107795 | BN179: =LOOKUP(BN$5,Inputs!$163:$163,Inputs!165:165)*BN$139*$L$179 -> 170.0768604 | BO179: =LOOKUP(BO$5,Inputs!$163:$163,Inputs!165:165)*BO$139*$L$179 -> 171.3524368 | BP179: =LOOKUP(BP$5,Inputs!$163:$163,Inputs!165:165)*BP$139*$L$179 -> 172.6375801
C180: Potato Capital Expenditures | G180: Euro 000's | L180: =Sensitivities!$I$21 -> 1 | N180: =LOOKUP(N$5,Inputs!$163:$163,Inputs!166:166)*N$139*$L$180 -> 318.2134126 | O180: =LOOKUP(O$5,Inputs!$163:$163,Inputs!166:166)*O$139*$L$180 -> 799.5111992 | P180: =LOOKUP(P$5,Inputs!$163:$163,Inputs!166:166)*P$139*$L$180 -> 1365.964884 | Q180: =LOOKUP(Q$5,Inputs!$163:$163,Inputs!166:166)*Q$139*$L$180 -> 1376.20962 | R180: =LOOKUP(R$5,Inputs!$163:$163,Inputs!166:166)*R$139*$L$180 -> 1386.531193 | S180: =LOOKUP(S$5,Inputs!$163:$163,Inputs!166:166)*S$139*$L$180 -> 1396.930177 | T180: =LOOKUP(T$5,Inputs!$163:$163,Inputs!166:166)*T$139*$L$180 -> 1407.407153 | U180: =LOOKUP(U$5,Inputs!$163:$163,Inputs!166:166)*U$139*$L$180 -> 1417.962707 | V180: =LOOKUP(V$5,Inputs!$163:$163,Inputs!166:166)*V$139*$L$180 -> 1428.597427 | W180: =LOOKUP(W$5,Inputs!$163:$163,Inputs!166:166)*W$139*$L$180 -> 1439.311908 | X180: =LOOKUP(X$5,Inputs!$163:$163,Inputs!166:166)*X$139*$L$180 -> 1450.106747 | Y180: =LOOKUP(Y$5,Inputs!$163:$163,Inputs!166:166)*Y$139*$L$180 -> 1460.982547 | Z180: =LOOKUP(Z$5,Inputs!$163:$163,Inputs!166:166)*Z$139*$L$180 -> 1471.939917 | AA180: =LOOKUP(AA$5,Inputs!$163:$163,Inputs!166:166)*AA$139*$L$180 -> 1482.979466 | AB180: =LOOKUP(AB$5,Inputs!$163:$163,Inputs!166:166)*AB$139*$L$180 -> 1494.101812 | AC180: =LOOKUP(AC$5,Inputs!$163:$163,Inputs!166:166)*AC$139*$L$180 -> 1505.307575 | AD180: =LOOKUP(AD$5,Inputs!$163:$163,Inputs!166:166)*AD$139*$L$180 -> 1516.597382 | AE180: =LOOKUP(AE$5,Inputs!$163:$163,Inputs!166:166)*AE$139*$L$180 -> 1527.971863 | AF180: =LOOKUP(AF$5,Inputs!$163:$163,Inputs!166:166)*AF$139*$L$180 -> 1539.431652 | AG180: =LOOKUP(AG$5,Inputs!$163:$163,Inputs!166:166)*AG$139*$L$180 -> 1550.977389 | AH180: =LOOKUP(AH$5,Inputs!$163:$163,Inputs!166:166)*AH$139*$L$180 -> 1562.609719 | AI180: =LOOKUP(AI$5,Inputs!$163:$163,Inputs!166:166)*AI$139*$L$180 -> 1574.329292 | AJ180: =LOOKUP(AJ$5,Inputs!$163:$163,Inputs!166:166)*AJ$139*$L$180 -> 1586.136762 | AK180: =LOOKUP(AK$5,Inputs!$163:$163,Inputs!166:166)*AK$139*$L$180 -> 1598.032788 | AL180: =LOOKUP(AL$5,Inputs!$163:$163,Inputs!166:166)*AL$139*$L$180 -> 1610.018034 | AM180: =LOOKUP(AM$5,Inputs!$163:$163,Inputs!166:166)*AM$139*$L$180 -> 1622.093169 | AN180: =LOOKUP(AN$5,Inputs!$163:$163,Inputs!166:166)*AN$139*$L$180 -> 1634.258868 | AO180: =LOOKUP(AO$5,Inputs!$163:$163,Inputs!166:166)*AO$139*$L$180 -> 1646.515809 | AP180: =LOOKUP(AP$5,Inputs!$163:$163,Inputs!166:166)*AP$139*$L$180 -> 1658.864678 | AQ180: =LOOKUP(AQ$5,Inputs!$163:$163,Inputs!166:166)*AQ$139*$L$180 -> 1671.306163 | AR180: =LOOKUP(AR$5,Inputs!$163:$163,Inputs!166:166)*AR$139*$L$180 -> 1683.840959 | AS180: =LOOKUP(AS$5,Inputs!$163:$163,Inputs!166:166)*AS$139*$L$180 -> 1696.469766 | AT180: =LOOKUP(AT$5,Inputs!$163:$163,Inputs!166:166)*AT$139*$L$180 -> 1709.19329 | AU180: =LOOKUP(AU$5,Inputs!$163:$163,Inputs!166:166)*AU$139*$L$180 -> 1722.012239 | AV180: =LOOKUP(AV$5,Inputs!$163:$163,Inputs!166:166)*AV$139*$L$180 -> 1734.927331 | AW180: =LOOKUP(AW$5,Inputs!$163:$163,Inputs!166:166)*AW$139*$L$180 -> 1747.939286 | AX180: =LOOKUP(AX$5,Inputs!$163:$163,Inputs!166:166)*AX$139*$L$180 -> 1761.048831 | AY180: =LOOKUP(AY$5,Inputs!$163:$163,Inputs!166:166)*AY$139*$L$180 -> 1774.256697 | AZ180: =LOOKUP(AZ$5,Inputs!$163:$163,Inputs!166:166)*AZ$139*$L$180 -> 1787.563622 | BA180: =LOOKUP(BA$5,Inputs!$163:$163,Inputs!166:166)*BA$139*$L$180 -> 1800.970349 | BB180: =LOOKUP(BB$5,Inputs!$163:$163,Inputs!166:166)*BB$139*$L$180 -> 1814.477627 | BC180: =LOOKUP(BC$5,Inputs!$163:$163,Inputs!166:166)*BC$139*$L$180 -> 1828.086209 | BD180: =LOOKUP(BD$5,Inputs!$163:$163,Inputs!166:166)*BD$139*$L$180 -> 1841.796856 | BE180: =LOOKUP(BE$5,Inputs!$163:$163,Inputs!166:166)*BE$139*$L$180 -> 1855.610332 | BF180: =LOOKUP(BF$5,Inputs!$163:$163,Inputs!166:166)*BF$139*$L$180 -> 1869.52741 | BG180: =LOOKUP(BG$5,Inputs!$163:$163,Inputs!166:166)*BG$139*$L$180 -> 1883.548865 | BH180: =LOOKUP(BH$5,Inputs!$163:$163,Inputs!166:166)*BH$139*$L$180 -> 1897.675482 | BI180: =LOOKUP(BI$5,Inputs!$163:$163,Inputs!166:166)*BI$139*$L$180 -> 1911.908048 | BJ180: =LOOKUP(BJ$5,Inputs!$163:$163,Inputs!166:166)*BJ$139*$L$180 -> 1926.247358 | BK180: =LOOKUP(BK$5,Inputs!$163:$163,Inputs!166:166)*BK$139*$L$180 -> 1940.694213 | BL180: =LOOKUP(BL$5,Inputs!$163:$163,Inputs!166:166)*BL$139*$L$180 -> 1955.24942 | BM180: =LOOKUP(BM$5,Inputs!$163:$163,Inputs!166:166)*BM$139*$L$180 -> 1969.91379 | BN180: =LOOKUP(BN$5,Inputs!$163:$163,Inputs!166:166)*BN$139*$L$180 -> 1984.688144 | BO180: =LOOKUP(BO$5,Inputs!$163:$163,Inputs!166:166)*BO$139*$L$180 -> 1999.573305 | BP180: =LOOKUP(BP$5,Inputs!$163:$163,Inputs!166:166)*BP$139*$L$180 -> 2014.570105
C181: Vehicles Capital Expenditures | G181: Euro 000's | L181: =Sensitivities!$I$21 -> 1 | N181: =LOOKUP(N$5,Inputs!$163:$163,Inputs!167:167)*N$139*$L$181 -> 968.9217955 | O181: =LOOKUP(O$5,Inputs!$163:$163,Inputs!167:167)*O$139*$L$181 -> 1655.402888 | P181: =LOOKUP(P$5,Inputs!$163:$163,Inputs!167:167)*P$139*$L$181 -> 2828.255834 | Q181: =LOOKUP(Q$5,Inputs!$163:$163,Inputs!167:167)*Q$139*$L$181 -> 2849.467752 | R181: =LOOKUP(R$5,Inputs!$163:$163,Inputs!167:167)*R$139*$L$181 -> 2870.838761 | S181: =LOOKUP(S$5,Inputs!$163:$163,Inputs!167:167)*S$139*$L$181 -> 2892.370051 | T181: =LOOKUP(T$5,Inputs!$163:$163,Inputs!167:167)*T$139*$L$181 -> 2914.062827 | U181: =LOOKUP(U$5,Inputs!$163:$163,Inputs!167:167)*U$139*$L$181 -> 2935.918298 | V181: =LOOKUP(V$5,Inputs!$163:$163,Inputs!167:167)*V$139*$L$181 -> 2957.937685 | W181: =LOOKUP(W$5,Inputs!$163:$163,Inputs!167:167)*W$139*$L$181 -> 2980.122218 | X181: =LOOKUP(X$5,Inputs!$163:$163,Inputs!167:167)*X$139*$L$181 -> 3002.473134 | Y181: =LOOKUP(Y$5,Inputs!$163:$163,Inputs!167:167)*Y$139*$L$181 -> 3024.991683 | Z181: =LOOKUP(Z$5,Inputs!$163:$163,Inputs!167:167)*Z$139*$L$181 -> 3047.67912 | AA181: =LOOKUP(AA$5,Inputs!$163:$163,Inputs!167:167)*AA$139*$L$181 -> 3070.536714 | AB181: =LOOKUP(AB$5,Inputs!$163:$163,Inputs!167:167)*AB$139*$L$181 -> 3093.565739 | AC181: =LOOKUP(AC$5,Inputs!$163:$163,Inputs!167:167)*AC$139*$L$181 -> 3116.767482 | AD181: =LOOKUP(AD$5,Inputs!$163:$163,Inputs!167:167)*AD$139*$L$181 -> 3140.143238 | AE181: =LOOKUP(AE$5,Inputs!$163:$163,Inputs!167:167)*AE$139*$L$181 -> 3163.694313 | AF181: =LOOKUP(AF$5,Inputs!$163:$163,Inputs!167:167)*AF$139*$L$181 -> 3187.42202 | AG181: =LOOKUP(AG$5,Inputs!$163:$163,Inputs!167:167)*AG$139*$L$181 -> 3211.327685 | AH181: =LOOKUP(AH$5,Inputs!$163:$163,Inputs!167:167)*AH$139*$L$181 -> 3235.412643 | AI181: =LOOKUP(AI$5,Inputs!$163:$163,Inputs!167:167)*AI$139*$L$181 -> 3259.678238 | AJ181: =LOOKUP(AJ$5,Inputs!$163:$163,Inputs!167:167)*AJ$139*$L$181 -> 3284.125824 | AK181: =LOOKUP(AK$5,Inputs!$163:$163,Inputs!167:167)*AK$139*$L$181 -> 3308.756768 | AL181: =LOOKUP(AL$5,Inputs!$163:$163,Inputs!167:167)*AL$139*$L$181 -> 3333.572444 | AM181: =LOOKUP(AM$5,Inputs!$163:$163,Inputs!167:167)*AM$139*$L$181 -> 3358.574237 | AN181: =LOOKUP(AN$5,Inputs!$163:$163,Inputs!167:167)*AN$139*$L$181 -> 3383.763544 | AO181: =LOOKUP(AO$5,Inputs!$163:$163,Inputs!167:167)*AO$139*$L$181 -> 3409.141771 | AP181: =LOOKUP(AP$5,Inputs!$163:$163,Inputs!167:167)*AP$139*$L$181 -> 3434.710334 | AQ181: =LOOKUP(AQ$5,Inputs!$163:$163,Inputs!167:167)*AQ$139*$L$181 -> 3460.470661 | AR181: =LOOKUP(AR$5,Inputs!$163:$163,Inputs!167:167)*AR$139*$L$181 -> 3486.424191 | AS181: =LOOKUP(AS$5,Inputs!$163:$163,Inputs!167:167)*AS$139*$L$181 -> 3512.572373 | AT181: =LOOKUP(AT$5,Inputs!$163:$163,Inputs!167:167)*AT$139*$L$181 -> 3538.916665 | AU181: =LOOKUP(AU$5,Inputs!$163:$163,Inputs!167:167)*AU$139*$L$181 -> 3565.45854 | AV181: =LOOKUP(AV$5,Inputs!$163:$163,Inputs!167:167)*AV$139*$L$181 -> 3592.19948 | AW181: =LOOKUP(AW$5,Inputs!$163:$163,Inputs!167:167)*AW$139*$L$181 -> 3619.140976 | AX181: =LOOKUP(AX$5,Inputs!$163:$163,Inputs!167:167)*AX$139*$L$181 -> 3646.284533 | AY181: =LOOKUP(AY$5,Inputs!$163:$163,Inputs!167:167)*AY$139*$L$181 -> 3673.631667 | AZ181: =LOOKUP(AZ$5,Inputs!$163:$163,Inputs!167:167)*AZ$139*$L$181 -> 3701.183904 | BA181: =LOOKUP(BA$5,Inputs!$163:$163,Inputs!167:167)*BA$139*$L$181 -> 3728.942784 | BB181: =LOOKUP(BB$5,Inputs!$163:$163,Inputs!167:167)*BB$139*$L$181 -> 3756.909855 | BC181: =LOOKUP(BC$5,Inputs!$163:$163,Inputs!167:167)*BC$139*$L$181 -> 3785.086679 | BD181: =LOOKUP(BD$5,Inputs!$163:$163,Inputs!167:167)*BD$139*$L$181 -> 3813.474829 | BE181: =LOOKUP(BE$5,Inputs!$163:$163,Inputs!167:167)*BE$139*$L$181 -> 3842.07589 | BF181: =LOOKUP(BF$5,Inputs!$163:$163,Inputs!167:167)*BF$139*$L$181 -> 3870.891459 | BG181: =LOOKUP(BG$5,Inputs!$163:$163,Inputs!167:167)*BG$139*$L$181 -> 3899.923145 | BH181: =LOOKUP(BH$5,Inputs!$163:$163,Inputs!167:167)*BH$139*$L$181 -> 3929.172569 | BI181: =LOOKUP(BI$5,Inputs!$163:$163,Inputs!167:167)*BI$139*$L$181 -> 3958.641363 | BJ181: =LOOKUP(BJ$5,Inputs!$163:$163,Inputs!167:167)*BJ$139*$L$181 -> 3988.331173 | BK181: =LOOKUP(BK$5,Inputs!$163:$163,Inputs!167:167)*BK$139*$L$181 -> 4018.243657 | BL181: =LOOKUP(BL$5,Inputs!$163:$163,Inputs!167:167)*BL$139*$L$181 -> 4048.380484 | BM181: =LOOKUP(BM$5,Inputs!$163:$163,Inputs!167:167)*BM$139*$L$181 -> 4078.743338 | BN181: =LOOKUP(BN$5,Inputs!$163:$163,Inputs!167:167)*BN$139*$L$181 -> 4109.333913 | BO181: =LOOKUP(BO$5,Inputs!$163:$163,Inputs!167:167)*BO$139*$L$181 -> 4140.153917 | BP181: =LOOKUP(BP$5,Inputs!$163:$163,Inputs!167:167)*BP$139*$L$181 -> 4171.205072
D182: Total Maintence Expenditures | G182: Euro 000's | N182: =SUM(N178:N181) -> 1571.783479 | O182: =SUM(O178:O181) -> 3170.092868 | P182: 5416.103665 | Q182: 5456.724443 | R182: 5497.649876 | S182: 5538.88225 | T182: 5580.423867 | U182: 5622.277046 | V182: 5664.444124 | W182: 5706.927455 | X182: 5749.729411 | Y182: 5792.852381 | Z182: 5836.298774 | AA182: 5880.071015 | AB182: 5924.171548 | AC182: 5968.602834 | AD182: 6013.367356 | AE182: 6058.467611 | AF182: 6103.906118 | AG182: 6149.685414 | AH182: 6195.808054 | AI182: 6242.276615 | AJ182: 6289.093689 | AK182: 6336.261892 | AL182: 6383.783856 | AM182: 6431.662235 | AN182: 6479.899702 | AO182: 6528.49895 | AP182: 6577.462692 | AQ182: 6626.793662 | AR182: 6676.494614 | AS182: 6726.568324 | AT182: 6777.017586 | AU182: 6827.845218 | AV182: 6879.054057 | AW182: 6930.646963 | AX182: 6982.626815 | AY182: 7034.996516 | AZ182: 7087.75899 | BA182: 7140.917182 | BB182: 7194.474061 | BC182: 7248.432617 | BD182: 7302.795861 | BE182: 7357.56683 | BF182: 7412.748582 | BG182: 7468.344196 | BH182: 7524.356777 | BI182: 7580.789453 | BJ182: 7637.645374 | BK182: 7694.927714 | BL182: 7752.639672 | BM182: 7810.78447 | BN182: 7869.365353 | BO182: 7928.385594 | BP182: 7987.848486
B184: Total Capital Expenditures | G184: Euro 000's | N184: =N166+N175+N182 -> 130546.4961 | O184: =O166+O175+O182 -> 68558.59862 | P184: =P166+P175+P182 -> 104873.5749 | Q184: =Q166+Q175+Q182 -> 39525.68996 | R184: =R166+R175+R182 -> 39566.61539 | S184: =S166+S175+S182 -> 39607.84777 | T184: =T166+T175+T182 -> 39649.38938 | U184: =U166+U175+U182 -> 39691.24256 | V184: =V166+V175+V182 -> 39733.40964 | W184: =W166+W175+W182 -> 5706.927455 | X184: =X166+X175+X182 -> 5749.729411 | Y184: =Y166+Y175+Y182 -> 5792.852381 | Z184: =Z166+Z175+Z182 -> 5836.298774 | AA184: =AA166+AA175+AA182 -> 5880.071015 | AB184: =AB166+AB175+AB182 -> 5924.171548 | AC184: =AC166+AC175+AC182 -> 5968.602834 | AD184: =AD166+AD175+AD182 -> 6013.367356 | AE184: =AE166+AE175+AE182 -> 6058.467611 | AF184: =AF166+AF175+AF182 -> 6103.906118 | AG184: =AG166+AG175+AG182 -> 6149.685414 | AH184: =AH166+AH175+AH182 -> 6195.808054 | AI184: =AI166+AI175+AI182 -> 6242.276615 | AJ184: =AJ166+AJ175+AJ182 -> 6289.093689 | AK184: =AK166+AK175+AK182 -> 6336.261892 | AL184: =AL166+AL175+AL182 -> 6383.783856 | AM184: =AM166+AM175+AM182 -> 6431.662235 | AN184: =AN166+AN175+AN182 -> 6479.899702 | AO184: =AO166+AO175+AO182 -> 6528.49895 | AP184: =AP166+AP175+AP182 -> 6577.462692 | AQ184: =AQ166+AQ175+AQ182 -> 6626.793662 | AR184: =AR166+AR175+AR182 -> 6676.494614 | AS184: =AS166+AS175+AS182 -> 6726.568324 | AT184: =AT166+AT175+AT182 -> 6777.017586 | AU184: =AU166+AU175+AU182 -> 6827.845218 | AV184: =AV166+AV175+AV182 -> 6879.054057 | AW184: =AW166+AW175+AW182 -> 6930.646963 | AX184: =AX166+AX175+AX182 -> 6982.626815 | AY184: =AY166+AY175+AY182 -> 7034.996516 | AZ184: =AZ166+AZ175+AZ182 -> 7087.75899 | BA184: =BA166+BA175+BA182 -> 7140.917182 | BB184: =BB166+BB175+BB182 -> 7194.474061 | BC184: =BC166+BC175+BC182 -> 7248.432617 | BD184: =BD166+BD175+BD182 -> 7302.795861 | BE184: =BE166+BE175+BE182 -> 7357.56683 | BF184: =BF166+BF175+BF182 -> 7412.748582 | BG184: =BG166+BG175+BG182 -> 7468.344196 | BH184: =BH166+BH175+BH182 -> 7524.356777 | BI184: =BI166+BI175+BI182 -> 7580.789453 | BJ184: =BJ166+BJ175+BJ182 -> 7637.645374 | BK184: =BK166+BK175+BK182 -> 7694.927714 | BL184: =BL166+BL175+BL182 -> 7752.639672 | BM184: =BM166+BM175+BM182 -> 7810.78447 | BN184: =BN166+BN175+BN182 -> 7869.365353 | BO184: =BO166+BO175+BO182 -> 7928.385594 | BP184: =BP166+BP175+BP182 -> 7987.848486
B185: Total Capital Expenditures | G185: USD 000's | N185: =N184*N144 -> 147782.8303 | O185: =O184*O144 -> 78768.90382 | P185: =P184*P144 -> 122290.5934 | Q185: =Q184*Q144 -> 46661.80738 | R185: =R184*R144 -> 47289.65169 | S185: =S184*S144 -> 47926.26391 | T185: =T184*T144 -> 48571.77238 | U185: =U184*U144 -> 49226.30744 | V185: =V184*V144 -> 49890.00143 | W185: =W184*W144 -> 7254.628046 | X185: =X184*X144 -> 7399.720607 | Y185: =Y184*Y144 -> 7547.715019 | Z185: =Z184*Z144 -> 7698.66932 | AA185: =AA184*AA144 -> 7852.642706 | AB185: =AB184*AB144 -> 8009.69556 | AC185: =AC184*AC144 -> 8169.889471 | AD185: =AD184*AD144 -> 8333.287261 | AE185: =AE184*AE144 -> 8499.953006 | AF185: =AF184*AF144 -> 8669.952066 | AG185: =AG184*AG144 -> 8843.351107 | AH185: =AH184*AH144 -> 9020.218129 | AI185: =AI184*AI144 -> 9200.622492 | AJ185: =AJ184*AJ144 -> 9384.634942 | AK185: =AK184*AK144 -> 9572.327641 | AL185: =AL184*AL144 -> 9763.774194 | AM185: =AM184*AM144 -> 9959.049677 | AN185: =AN184*AN144 -> 10158.23067 | AO185: =AO184*AO144 -> 10361.39528 | AP185: =AP184*AP144 -> 10568.62319 | AQ185: =AQ184*AQ144 -> 10779.99565 | AR185: =AR184*AR144 -> 10995.59557 | AS185: =AS184*AS144 -> 11215.50748 | AT185: =AT184*AT144 -> 11439.81763 | AU185: =AU184*AU144 -> 11668.61398 | AV185: =AV184*AV144 -> 11901.98626 | AW185: =AW184*AW144 -> 12140.02599 | AX185: =AX184*AX144 -> 12382.8265 | AY185: =AY184*AY144 -> 12630.48304 | AZ185: =AZ184*AZ144 -> 12883.0927 | BA185: =BA184*BA144 -> 13140.75455 | BB185: =BB184*BB144 -> 13403.56964 | BC185: =BC184*BC144 -> 13671.64103 | BD185: =BD184*BD144 -> 13945.07385 | BE185: =BE184*BE144 -> 14223.97533 | BF185: =BF184*BF144 -> 14508.45484 | BG185: =BG184*BG144 -> 14798.62393 | BH185: =BH184*BH144 -> 15094.59641 | BI185: =BI184*BI144 -> 15396.48834 | BJ185: =BJ184*BJ144 -> 15704.41811 | BK185: =BK184*BK144 -> 16018.50647 | BL185: =BL184*BL144 -> 16338.8766 | BM185: =BM184*BM144 -> 16665.65413 | BN185: =BN184*BN144 -> 16998.96721 | BO185: =BO184*BO144 -> 17338.94656 | BP185: =BP184*BP144 -> 17685.72549
B186: Total Capital Expenditures | G186: AOA Millions | N186: =N185*N143/1000 -> 78353.87708 | O186: =O185*O143/1000 -> 81888.16452 | P186: =P185*P143/1000 -> 186960.7643 | Q186: =Q185*Q143/1000 -> 87423.62697 | R186: =R185*R143/1000 -> 95548.94415 | S186: =S185*S143/1000 -> 104430.1412 | T186: =T185*T143/1000 -> 114137.6049 | U186: =U185*U143/1000 -> 124748.283 | V186: =V185*V143/1000 -> 136346.2968 | W186: =W185*W143/1000 -> 21381.46677 | X186: =X185*X143/1000 -> 23519.61345 | Y186: =Y185*Y143/1000 -> 25871.57479 | Z186: =Z185*Z143/1000 -> 28458.73227 | AA186: =AA185*AA143/1000 -> 31304.6055 | AB186: =AB185*AB143/1000 -> 34435.06605 | AC186: =AC185*AC143/1000 -> 37878.57265 | AD186: =AD185*AD143/1000 -> 41666.42992 | AE186: =AE185*AE143/1000 -> 45833.07291 | AF186: =AF185*AF143/1000 -> 50416.3802 | AG186: =AG185*AG143/1000 -> 55458.01822 | AH186: =AH185*AH143/1000 -> 61003.82004 | AI186: =AI185*AI143/1000 -> 67104.20204 | AJ186: =AJ185*AJ143/1000 -> 73814.62225 | AK186: =AK185*AK143/1000 -> 81196.08447 | AL186: =AL185*AL143/1000 -> 89315.69292 | AM186: =AM185*AM143/1000 -> 98247.26221 | AN186: =AN185*AN143/1000 -> 108071.9884 | AO186: =AO185*AO143/1000 -> 118879.1873 | AP186: =AP185*AP143/1000 -> 130767.106 | AQ186: =AQ185*AQ143/1000 -> 143843.8166 | AR186: =AR185*AR143/1000 -> 158228.1983 | AS186: =AS185*AS143/1000 -> 174051.0181 | AT186: =AT185*AT143/1000 -> 191456.1199 | AU186: =AU185*AU143/1000 -> 210601.7319 | AV186: =AV185*AV143/1000 -> 231661.9051 | AW186: =AW185*AW143/1000 -> 254828.0956 | AX186: =AX185*AX143/1000 -> 280310.9052 | AY186: =AY185*AY143/1000 -> 308341.9957 | AZ186: =AZ185*AZ143/1000 -> 339176.1952 | BA186: =BA185*BA143/1000 -> 373093.8148 | BB186: =BB185*BB143/1000 -> 410403.1962 | BC186: =BC185*BC143/1000 -> 451443.5159 | BD186: =BD185*BD143/1000 -> 496587.8674 | BE186: =BE185*BE143/1000 -> 546246.6542 | BF186: =BF185*BF143/1000 -> 600871.3196 | BG186: =BG185*BG143/1000 -> 660958.4516 | BH186: =BH185*BH143/1000 -> 727054.2967 | BI186: =BI185*BI143/1000 -> 799759.7264 | BJ186: =BJ185*BJ143/1000 -> 879735.699 | BK186: =BK185*BK143/1000 -> 967709.2689 | BL186: =BL185*BL143/1000 -> 1064480.196 | BM186: =BM185*BM143/1000 -> 1170928.215 | BN186: =BN185*BN143/1000 -> 1288021.037 | BO186: =BO185*BO143/1000 -> 1416823.141 | BP186: =BP185*BP143/1000 -> 1558505.455
A188: Revenues
B189: Horticulture Production | G189: Tons | M189: =M61 -> 113418.75 | N189: =N61 -> 129601.7829 | O189: =O61 -> 148093.8744 | P189: =P61 -> 169224.4903 | Q189: =Q61 -> 193370.1054 | R189: =R61 -> 220960.9117 | S189: =S61 -> 252488.4827 | T189: =T61 -> 288514.5314 | U189: =U61 -> 329680.9183 | V189: =V61 -> 376721.087 | W189: =W61 -> 376721.087 | X189: =X61 -> 376721.087 | Y189: =Y61 -> 376721.087 | Z189: =Z61 -> 376721.087 | AA189: =AA61 -> 376721.087 | AB189: =AB61 -> 376721.087 | AC189: =AC61 -> 376721.087 | AD189: =AD61 -> 376721.087 | AE189: =AE61 -> 376721.087 | AF189: =AF61 -> 376721.087 | AG189: =AG61 -> 376721.087 | AH189: =AH61 -> 376721.087 | AI189: =AI61 -> 376721.087 | AJ189: =AJ61 -> 376721.087 | AK189: =AK61 -> 376721.087 | AL189: =AL61 -> 376721.087 | AM189: =AM61 -> 376721.087 | AN189: =AN61 -> 376721.087 | AO189: =AO61 -> 376721.087 | AP189: =AP61 -> 376721.087 | AQ189: =AQ61 -> 376721.087 | AR189: =AR61 -> 376721.087 | AS189: =AS61 -> 376721.087 | AT189: =AT61 -> 376721.087 | AU189: =AU61 -> 376721.087 | AV189: =AV61 -> 376721.087 | AW189: =AW61 -> 376721.087 | AX189: =AX61 -> 376721.087 | AY189: =AY61 -> 376721.087 | AZ189: =AZ61 -> 376721.087 | BA189: =BA61 -> 376721.087 | BB189: =BB61 -> 376721.087 | BC189: =BC61 -> 376721.087 | BD189: =BD61 -> 376721.087 | BE189: =BE61 -> 376721.087 | BF189: =BF61 -> 376721.087 | BG189: =BG61 -> 376721.087 | BH189: =BH61 -> 376721.087 | BI189: =BI61 -> 376721.087 | BJ189: =BJ61 -> 376721.087 | BK189: =BK61 -> 376721.087 | BL189: =BL61 -> 376721.087 | BM189: =BM61 -> 376721.087 | BN189: =BN61 -> 376721.087 | BO189: =BO61 -> 376721.087 | BP189: =BP61 -> 376721.087
B190: Weighted Average Horticulture Price with Inflation | G190: Euro/Ton | H190: =Inputs!I66 -> 663.3741114 | M190: =$H190*M$139*M146 -> 663.3741114 | N190: =$H190*N$139*N146 -> 666.690982 | O190: =$H190*O$139*O146 -> 670.0244369 | P190: =$H190*P$139*P146 -> 673.3745591 | Q190: =$H190*Q$139*Q146 -> 678.4248683 | R190: =$H190*R$139*R146 -> 683.5130548 | S190: =$H190*S$139*S146 -> 688.6394027 | T190: =$H190*T$139*T146 -> 693.8041982 | U190: =$H190*U$139*U146 -> 699.0077297 | V190: =$H190*V$139*V146 -> 704.2502877 | W190: =$H190*W$139*W146 -> 709.5321648 | X190: =$H190*X$139*X146 -> 714.8536561 | Y190: =$H190*Y$139*Y146 -> 720.2150585 | Z190: =$H190*Z$139*Z146 -> 725.6166714 | AA190: =$H190*AA$139*AA146 -> 731.0587965 | AB190: =$H190*AB$139*AB146 -> 736.5417374 | AC190: =$H190*AC$139*AC146 -> 742.0658005 | AD190: =$H190*AD$139*AD146 -> 747.631294 | AE190: =$H190*AE$139*AE146 -> 753.2385287 | AF190: =$H190*AF$139*AF146 -> 758.8878176 | AG190: =$H190*AG$139*AG146 -> 764.5794763 | AH190: =$H190*AH$139*AH146 -> 770.3138223 | AI190: =$H190*AI$139*AI146 -> 776.091176 | AJ190: =$H190*AJ$139*AJ146 -> 781.9118598 | AK190: =$H190*AK$139*AK146 -> 787.7761988 | AL190: =$H190*AL$139*AL146 -> 793.6845203 | AM190: =$H190*AM$139*AM146 -> 799.6371542 | AN190: =$H190*AN$139*AN146 -> 805.6344328 | AO190: =$H190*AO$139*AO146 -> 811.6766911 | AP190: =$H190*AP$139*AP146 -> 817.7642663 | AQ190: =$H190*AQ$139*AQ146 -> 823.8974983 | AR190: =$H190*AR$139*AR146 -> 830.0767295 | AS190: =$H190*AS$139*AS146 -> 836.302305 | AT190: =$H190*AT$139*AT146 -> 842.5745722 | AU190: =$H190*AU$139*AU146 -> 848.8938815 | AV190: =$H190*AV$139*AV146 -> 855.2605857 | AW190: =$H190*AW$139*AW146 -> 861.67504 | AX190: =$H190*AX$139*AX146 -> 868.1376028 | AY190: =$H190*AY$139*AY146 -> 874.6486349 | AZ190: =$H190*AZ$139*AZ146 -> 881.2084996 | BA190: =$H190*BA$139*BA146 -> 887.8175634 | BB190: =$H190*BB$139*BB146 -> 894.4761951 | BC190: =$H190*BC$139*BC146 -> 901.1847666 | BD190: =$H190*BD$139*BD146 -> 907.9436523 | BE190: =$H190*BE$139*BE146 -> 914.7532297 | BF190: =$H190*BF$139*BF146 -> 921.6138789 | BG190: =$H190*BG$139*BG146 -> 928.525983 | BH190: =$H190*BH$139*BH146 -> 935.4899279 | BI190: =$H190*BI$139*BI146 -> 942.5061024 | BJ190: =$H190*BJ$139*BJ146 -> 949.5748981 | BK190: =$H190*BK$139*BK146 -> 956.6967099 | BL190: =$H190*BL$139*BL146 -> 963.8719352 | BM190: =$H190*BM$139*BM146 -> 971.1009747 | BN190: =$H190*BN$139*BN146 -> 978.384232 | BO190: =$H190*BO$139*BO146 -> 985.7221137 | BP190: =$H190*BP$139*BP146 -> 993.1150296
C191: Horticulture Revenues | G191: Euro 000's | M191: =PRODUCT(M189:M190)/1000 -> 75239.0625 | N191: =PRODUCT(N189:N190)/1000 -> 86404.33988 | O191: 99226.51481 | P191: 113951.4665 | Q191: 131187.0883 | R191: 151029.6678 | S191: 173873.5179 | T191: 200172.5932 | U191: 230449.5102 | V191: 265305.9339 | W191: 267295.7284 | X191: 269300.4464 | Y191: 271320.1997 | Z191: 273355.1012 | AA191: 275405.2645 | AB191: 277470.8039 | AC191: 279551.835 | AD191: 281648.4737 | AE191: 283760.8373 | AF191: 285889.0436 | AG191: 288033.2114 | AH191: 290193.4605 | AI191: 292369.9114 | AJ191: 294562.6858 | AK191: 296771.9059 | AL191: 298997.6952 | AM191: 301240.1779 | AN191: 303499.4793 | AO191: 305775.7253 | AP191: 308069.0433 | AQ191: 310379.5611 | AR191: 312707.4078 | AS191: 315052.7134 | AT191: 317415.6087 | AU191: 319796.2258 | AV191: 322194.6975 | AW191: 324611.1577 | AX191: 327045.7414 | AY191: 329498.5845 | AZ191: 331969.8238 | BA191: 334459.5975 | BB191: 336968.0445 | BC191: 339495.3048 | BD191: 342041.5196 | BE191: 344606.831 | BF191: 347191.3823 | BG191: 349795.3176 | BH191: 352418.7825 | BI191: 355061.9234 | BJ191: 357724.8878 | BK191: 360407.8245 | BL191: 363110.8831 | BM191: 365834.2148 | BN191: 368577.9714 | BO191: 371342.3062 | BP191: 374127.3735
B193: Fruits Production | G193: Tons | M193: =M74 -> 61818.75 | N193: =N74 -> 70639.29213 | O193: =O74 -> 80718.38386 | P193: =P74 -> 92235.59999 | Q193: =Q74 -> 105396.1378 | R193: =R74 -> 120434.4728 | S193: =S74 -> 137618.5365 | T193: =T74 -> 157254.49 | U193: =U74 -> 179692.1785 | V193: =V74 -> 205331.3645 | W193: =W74 -> 205331.3645 | X193: =X74 -> 205331.3645 | Y193: =Y74 -> 205331.3645 | Z193: =Z74 -> 205331.3645 | AA193: =AA74 -> 205331.3645 | AB193: =AB74 -> 205331.3645 | AC193: =AC74 -> 205331.3645 | AD193: =AD74 -> 205331.3645 | AE193: =AE74 -> 205331.3645 | AF193: =AF74 -> 205331.3645 | AG193: =AG74 -> 205331.3645 | AH193: =AH74 -> 205331.3645 | AI193: =AI74 -> 205331.3645 | AJ193: =AJ74 -> 205331.3645 | AK193: =AK74 -> 205331.3645 | AL193: =AL74 -> 205331.3645 | AM193: =AM74 -> 205331.3645 | AN193: =AN74 -> 205331.3645 | AO193: =AO74 -> 205331.3645 | AP193: =AP74 -> 205331.3645 | AQ193: =AQ74 -> 205331.3645 | AR193: =AR74 -> 205331.3645 | AS193: =AS74 -> 205331.3645 | AT193: =AT74 -> 205331.3645 | AU193: =AU74 -> 205331.3645 | AV193: =AV74 -> 205331.3645 | AW193: =AW74 -> 205331.3645 | AX193: =AX74 -> 205331.3645 | AY193: =AY74 -> 205331.3645 | AZ193: =AZ74 -> 205331.3645 | BA193: =BA74 -> 205331.3645 | BB193: =BB74 -> 205331.3645 | BC193: =BC74 -> 205331.3645 | BD193: =BD74 -> 205331.3645 | BE193: =BE74 -> 205331.3645 | BF193: =BF74 -> 205331.3645 | BG193: =BG74 -> 205331.3645 | BH193: =BH74 -> 205331.3645 | BI193: =BI74 -> 205331.3645 | BJ193: =BJ74 -> 205331.3645 | BK193: =BK74 -> 205331.3645 | BL193: =BL74 -> 205331.3645 | BM193: =BM74 -> 205331.3645 | BN193: =BN74 -> 205331.3645 | BO193: =BO74 -> 205331.3645 | BP193: =BP74 -> 205331.3645
B194: Weighted Average Fruits Price with Inflation | G194: Euro/Ton | H194: =Inputs!I79 -> 509.161934 | M194: =$H194*M$139*M147 -> 509.161934 | N194: =$H194*N$139*N147 -> 511.7077437 | O194: =$H194*O$139*O147 -> 514.2662824 | P194: =$H194*P$139*P147 -> 516.8376138 | Q194: =$H194*Q$139*Q147 -> 520.713896 | R194: =$H194*R$139*R147 -> 524.6192502 | S194: =$H194*S$139*S147 -> 528.5538945 | T194: =$H194*T$139*T147 -> 532.5180488 | U194: =$H194*U$139*U147 -> 536.5119341 | V194: =$H194*V$139*V147 -> 540.5357736 | W194: =$H194*W$139*W147 -> 544.5897919 | X194: =$H194*X$139*X147 -> 548.6742154 | Y194: =$H194*Y$139*Y147 -> 552.789272 | Z194: =$H194*Z$139*Z147 -> 556.9351915 | AA194: =$H194*AA$139*AA147 -> 561.1122055 | AB194: =$H194*AB$139*AB147 -> 565.320547 | AC194: =$H194*AC$139*AC147 -> 569.5604511 | AD194: =$H194*AD$139*AD147 -> 573.8321545 | AE194: =$H194*AE$139*AE147 -> 578.1358956 | AF194: =$H194*AF$139*AF147 -> 582.4719149 | AG194: =$H194*AG$139*AG147 -> 586.8404542 | AH194: =$H194*AH$139*AH147 -> 591.2417576 | AI194: =$H194*AI$139*AI147 -> 595.6760708 | AJ194: =$H194*AJ$139*AJ147 -> 600.1436413 | AK194: =$H194*AK$139*AK147 -> 604.6447187 | AL194: =$H194*AL$139*AL147 -> 609.179554 | AM194: =$H194*AM$139*AM147 -> 613.7484007 | AN194: =$H194*AN$139*AN147 -> 618.3515137 | AO194: =$H194*AO$139*AO147 -> 622.9891501 | AP194: =$H194*AP$139*AP147 -> 627.6615687 | AQ194: =$H194*AQ$139*AQ147 -> 632.3690304 | AR194: =$H194*AR$139*AR147 -> 637.1117982 | AS194: =$H194*AS$139*AS147 -> 641.8901367 | AT194: =$H194*AT$139*AT147 -> 646.7043127 | AU194: =$H194*AU$139*AU147 -> 651.554595 | AV194: =$H194*AV$139*AV147 -> 656.4412545 | AW194: =$H194*AW$139*AW147 -> 661.3645639 | AX194: =$H194*AX$139*AX147 -> 666.3247981 | AY194: =$H194*AY$139*AY147 -> 671.3222341 | AZ194: =$H194*AZ$139*AZ147 -> 676.3571509 | BA194: =$H194*BA$139*BA147 -> 681.4298295 | BB194: =$H194*BB$139*BB147 -> 686.5405532 | BC194: =$H194*BC$139*BC147 -> 691.6896074 | BD194: =$H194*BD$139*BD147 -> 696.8772794 | BE194: =$H194*BE$139*BE147 -> 702.103859 | BF194: =$H194*BF$139*BF147 -> 707.369638 | BG194: =$H194*BG$139*BG147 -> 712.6749103 | BH194: =$H194*BH$139*BH147 -> 718.0199721 | BI194: =$H194*BI$139*BI147 -> 723.4051219 | BJ194: =$H194*BJ$139*BJ147 -> 728.8306603 | BK194: =$H194*BK$139*BK147 -> 734.2968902 | BL194: =$H194*BL$139*BL147 -> 739.8041169 | BM194: =$H194*BM$139*BM147 -> 745.3526478 | BN194: =$H194*BN$139*BN147 -> 750.9427927 | BO194: =$H194*BO$139*BO147 -> 756.5748636 | BP194: =$H194*BP$139*BP147 -> 762.2491751
C195: Fruits Revenue | G195: Euro 000's | M195: =PRODUCT(M193:M194)/1000 -> 31475.75431 | N195: =PRODUCT(N193:N194)/1000 -> 36146.67279 | O195: 41510.74319 | P195: 47670.82741 | Q195: 54881.23352 | R195: 63182.24282 | S195: 72738.81345 | T195: 83740.85418 | U195: 96406.99823 | V195: 110988.948 | W195: 111821.3651 | X195: 112660.0253 | Y195: 113504.9755 | Z195: 114356.2628 | AA195: 115213.9348 | AB195: 116078.0393 | AC195: 116948.6246 | AD195: 117825.7393 | AE195: 118709.4323 | AF195: 119599.7531 | AG195: 120496.7512 | AH195: 121400.4768 | AI195: 122310.9804 | AJ195: 123228.3128 | AK195: 124152.5251 | AL195: 125083.6691 | AM195: 126021.7966 | AN195: 126966.96 | AO195: 127919.2122 | AP195: 128878.6063 | AQ195: 129845.1959 | AR195: 130819.0349 | AS195: 131800.1776 | AT195: 132788.6789 | AU195: 133784.594 | AV195: 134787.9785 | AW195: 135798.8883 | AX195: 136817.38 | AY195: 137843.5103 | AZ195: 138877.3367 | BA195: 139918.9167 | BB195: 140968.3086 | BC195: 142025.5709 | BD195: 143090.7627 | BE195: 144163.9434 | BF195: 145245.173 | BG195: 146334.5118 | BH195: 147432.0206 | BI195: 148537.7608 | BJ195: 149651.794 | BK195: 150774.1824 | BL195: 151904.9888 | BM195: 153044.2762 | BN195: 154192.1083 | BO195: 155348.5491 | BP195: 156513.6632
B197: Maize and Forages Production | G197: Tons | M197: =M79 -> 20100 | N197: =N79 -> 22967.94697 | O197: =O79 -> 26245.10388 | P197: =P79 -> 29989.85841 | Q197: =Q79 -> 34268.92924 | R197: =R79 -> 39158.5547 | S197: =S79 -> 44745.85113 | T197: =T79 -> 51130.36497 | U197: =U79 -> 58425.84633 | V197: =V79 -> 66762.27563 | W197: =W79 -> 66762.27563 | X197: =X79 -> 66762.27563 | Y197: =Y79 -> 66762.27563 | Z197: =Z79 -> 66762.27563 | AA197: =AA79 -> 66762.27563 | AB197: =AB79 -> 66762.27563 | AC197: =AC79 -> 66762.27563 | AD197: =AD79 -> 66762.27563 | AE197: =AE79 -> 66762.27563 | AF197: =AF79 -> 66762.27563 | AG197: =AG79 -> 66762.27563 | AH197: =AH79 -> 66762.27563 | AI197: =AI79 -> 66762.27563 | AJ197: =AJ79 -> 66762.27563 | AK197: =AK79 -> 66762.27563 | AL197: =AL79 -> 66762.27563 | AM197: =AM79 -> 66762.27563 | AN197: =AN79 -> 66762.27563 | AO197: =AO79 -> 66762.27563 | AP197: =AP79 -> 66762.27563 | AQ197: =AQ79 -> 66762.27563 | AR197: =AR79 -> 66762.27563 | AS197: =AS79 -> 66762.27563 | AT197: =AT79 -> 66762.27563 | AU197: =AU79 -> 66762.27563 | AV197: =AV79 -> 66762.27563 | AW197: =AW79 -> 66762.27563 | AX197: =AX79 -> 66762.27563 | AY197: =AY79 -> 66762.27563 | AZ197: =AZ79 -> 66762.27563 | BA197: =BA79 -> 66762.27563 | BB197: =BB79 -> 66762.27563 | BC197: =BC79 -> 66762.27563 | BD197: =BD79 -> 66762.27563 | BE197: =BE79 -> 66762.27563 | BF197: =BF79 -> 66762.27563 | BG197: =BG79 -> 66762.27563 | BH197: =BH79 -> 66762.27563 | BI197: =BI79 -> 66762.27563 | BJ197: =BJ79 -> 66762.27563 | BK197: =BK79 -> 66762.27563 | BL197: =BL79 -> 66762.27563 | BM197: =BM79 -> 66762.27563 | BN197: =BN79 -> 66762.27563 | BO197: =BO79 -> 66762.27563 | BP197: =BP79 -> 66762.27563
B198: Weighted Maize and Forages Fruits Price with Inflation | G198: Euro/Ton | H198: =Inputs!I84 -> 4.985846629 | M198: =$H198*M$139*M148 -> 4.985846629 | N198: =$H198*N$139*N148 -> 5.010775862 | O198: =$H198*O$139*O148 -> 5.035829741 | P198: =$H198*P$139*P148 -> 5.06100889 | Q198: =$H198*Q$139*Q148 -> 5.098966457 | R198: =$H198*R$139*R148 -> 5.137208705 | S198: =$H198*S$139*S148 -> 5.17573777 | T198: =$H198*T$139*T148 -> 5.214555804 | U198: =$H198*U$139*U148 -> 5.253664972 | V198: =$H198*V$139*V148 -> 5.29306746 | W198: =$H198*W$139*W148 -> 5.332765466 | X198: =$H198*X$139*X148 -> 5.372761207 | Y198: =$H198*Y$139*Y148 -> 5.413056916 | Z198: =$H198*Z$139*Z148 -> 5.453654842 | AA198: =$H198*AA$139*AA148 -> 5.494557254 | AB198: =$H198*AB$139*AB148 -> 5.535766433 | AC198: =$H198*AC$139*AC148 -> 5.577284681 | AD198: =$H198*AD$139*AD148 -> 5.619114317 | AE198: =$H198*AE$139*AE148 -> 5.661257674 | AF198: =$H198*AF$139*AF148 -> 5.703717106 | AG198: =$H198*AG$139*AG148 -> 5.746494985 | AH198: =$H198*AH$139*AH148 -> 5.789593697 | AI198: =$H198*AI$139*AI148 -> 5.83301565 | AJ198: =$H198*AJ$139*AJ148 -> 5.876763267 | AK198: =$H198*AK$139*AK148 -> 5.920838992 | AL198: =$H198*AL$139*AL148 -> 5.965245284 | AM198: =$H198*AM$139*AM148 -> 6.009984624 | AN198: =$H198*AN$139*AN148 -> 6.055059508 | AO198: =$H198*AO$139*AO148 -> 6.100472455 | AP198: =$H198*AP$139*AP148 -> 6.146225998 | AQ198: =$H198*AQ$139*AQ148 -> 6.192322693 | AR198: =$H198*AR$139*AR148 -> 6.238765113 | AS198: =$H198*AS$139*AS148 -> 6.285555852 | AT198: =$H198*AT$139*AT148 -> 6.332697521 | AU198: =$H198*AU$139*AU148 -> 6.380192752 | AV198: =$H198*AV$139*AV148 -> 6.428044198 | AW198: =$H198*AW$139*AW148 -> 6.476254529 | AX198: =$H198*AX$139*AX148 -> 6.524826438 | AY198: =$H198*AY$139*AY148 -> 6.573762636 | AZ198: =$H198*AZ$139*AZ148 -> 6.623065856 | BA198: =$H198*BA$139*BA148 -> 6.67273885 | BB198: =$H198*BB$139*BB148 -> 6.722784391 | BC198: =$H198*BC$139*BC148 -> 6.773205274 | BD198: =$H198*BD$139*BD148 -> 6.824004314 | BE198: =$H198*BE$139*BE148 -> 6.875184346 | BF198: =$H198*BF$139*BF148 -> 6.926748229 | BG198: =$H198*BG$139*BG148 -> 6.978698841 | BH198: =$H198*BH$139*BH148 -> 7.031039082 | BI198: =$H198*BI$139*BI148 -> 7.083771875 | BJ198: =$H198*BJ$139*BJ148 -> 7.136900164 | BK198: =$H198*BK$139*BK148 -> 7.190426915 | BL198: =$H198*BL$139*BL148 -> 7.244355117 | BM198: =$H198*BM$139*BM148 -> 7.298687781 | BN198: =$H198*BN$139*BN148 -> 7.353427939 | BO198: =$H198*BO$139*BO148 -> 7.408578648 | BP198: =$H198*BP$139*BP148 -> 7.464142988
C199: Maize and Forages Revenues | G199: Euro 000's | M199: =PRODUCT(M197:M198)/1000 -> 100.2155172 | N199: =PRODUCT(N197:N198)/1000 -> 115.0872343 | O199: 132.1658747 | P199: 151.77894 | Q199: 174.7361207 | R199: 201.1656681 | S199: 231.5927918 | T199: 266.6221414 | U199: 306.9498223 | V199: 353.3772286 | W199: 356.0275579 | X199: 358.6977645 | Y199: 361.3879978 | Z199: 364.0984078 | AA199: 366.8291458 | AB199: 369.5803644 | AC199: 372.3522171 | AD199: 375.1448588 | AE199: 377.9584452 | AF199: 380.7931335 | AG199: 383.649082 | AH199: 386.5264502 | AI199: 389.4253985 | AJ199: 392.346089 | AK199: 395.2886847 | AL199: 398.2533498 | AM199: 401.24025 | AN199: 404.2495518 | AO199: 407.2814235 | AP199: 410.3360341 | AQ199: 413.4135544 | AR199: 416.5141561 | AS199: 419.6380122 | AT199: 422.7852973 | AU199: 425.9561871 | AV199: 429.1508585 | AW199: 432.3694899 | AX199: 435.6122611 | AY199: 438.879353 | AZ199: 442.1709482 | BA199: 445.4872303 | BB199: 448.8283845 | BC199: 452.1945974 | BD199: 455.5860569 | BE199: 459.0029523 | BF199: 462.4454744 | BG199: 465.9138155 | BH199: 469.4081691 | BI199: 472.9287304 | BJ199: 476.4756959 | BK199: 480.0492636 | BL199: 483.6496331 | BM199: 487.2770053 | BN199: 490.9315828 | BO199: 494.6135697 | BP199: 498.3231715
C200: Total Agricultural Revenue | G200: Euro 000's | M200: =M199+M195+M191 -> 106815.0323 | N200: 122666.0999 | O200: 140869.4239 | P200: 161774.0729 | Q200: 186243.0579 | R200: 214413.0762 | S200: 246843.9242 | T200: 284180.0695 | U200: 327163.4583 | V200: 376648.2591 | W200: 379473.121 | X200: 382319.1694 | Y200: 385186.5632 | Z200: 388075.4624 | AA200: 390986.0284 | AB200: 393918.4236 | AC200: 396872.8118 | AD200: 399849.3579 | AE200: 402848.228 | AF200: 405869.5898 | AG200: 408913.6117 | AH200: 411980.4638 | AI200: 415070.3172 | AJ200: 418183.3446 | AK200: 421319.7197 | AL200: 424479.6176 | AM200: 427663.2147 | AN200: 430870.6888 | AO200: 434102.219 | AP200: 437357.9857 | AQ200: 440638.1706 | AR200: 443942.9568 | AS200: =AS199+AS195+AS191 -> 447272.529 | AT200: 450627.073 | AU200: 454006.776 | AV200: 457411.8268 | AW200: 460842.4155 | AX200: 464298.7337 | AY200: 467780.9742 | AZ200: 471289.3315 | BA200: 474824.0015 | BB200: 478385.1815 | BC200: 481973.0703 | BD200: 485587.8684 | BE200: 489229.7774 | BF200: 492899.0007 | BG200: 496595.7432 | BH200: 500320.2113 | BI200: 504072.6129 | BJ200: 507853.1575 | BK200: 511662.0561 | BL200: 515499.5216 | BM200: 519365.768 | BN200: 523261.0112 | BO200: 527185.4688 | BP200: 531139.3598
B202: Cows Production | G202: Number | N202: =N88 -> 310 | O202: =O88 -> 310 | P202: =P88 -> 180 | Q202: =Q88 -> 190 | R202: =R88 -> 195 | S202: =S88 -> 198 | T202: =T88 -> 200 | U202: =U88 -> 200 | V202: =V88 -> 200 | W202: =W88 -> 200 | X202: =X88 -> 200 | Y202: =Y88 -> 200 | Z202: =Z88 -> 200 | AA202: =AA88 -> 200 | AB202: =AB88 -> 200 | AC202: =AC88 -> 200 | AD202: =AD88 -> 200 | AE202: =AE88 -> 200 | AF202: =AF88 -> 200 | AG202: =AG88 -> 200 | AH202: =AH88 -> 200 | AI202: =AI88 -> 200 | AJ202: =AJ88 -> 200 | AK202: =AK88 -> 200 | AL202: =AL88 -> 200 | AM202: =AM88 -> 200 | AN202: =AN88 -> 200 | AO202: =AO88 -> 200 | AP202: =AP88 -> 200 | AQ202: =AQ88 -> 200 | AR202: =AR88 -> 200 | AS202: =AS88 -> 200 | AT202: =AT88 -> 200 | AU202: =AU88 -> 200 | AV202: =AV88 -> 200 | AW202: =AW88 -> 200 | AX202: =AX88 -> 200 | AY202: =AY88 -> 200 | AZ202: =AZ88 -> 200 | BA202: =BA88 -> 200 | BB202: =BB88 -> 200 | BC202: =BC88 -> 200 | BD202: =BD88 -> 200 | BE202: =BE88 -> 200 | BF202: =BF88 -> 200 | BG202: =BG88 -> 200 | BH202: =BH88 -> 200 | BI202: =BI88 -> 200 | BJ202: =BJ88 -> 200 | BK202: =BK88 -> 200 | BL202: =BL88 -> 200 | BM202: =BM88 -> 200 | BN202: =BN88 -> 200 | BO202: =BO88 -> 200 | BP202: =BP88 -> 200
B203: Cows Price | G203: Euro | H203: =Inputs!I93 -> 2481.296552 | N203: =$H203*N$139*N149 -> 2493.703034 | O203: =$H203*O$139*O149 -> 2506.17155 | P203: =$H203*P$139*P149 -> 2518.702407 | Q203: =$H203*Q$139*Q149 -> 2537.592675 | R203: =$H203*R$139*R149 -> 2556.624621 | S203: =$H203*S$139*S149 -> 2575.799305 | T203: =$H203*T$139*T149 -> 2595.1178 | U203: =$H203*U$139*U149 -> 2614.581183 | V203: =$H203*V$139*V149 -> 2634.190542 | W203: =$H203*W$139*W149 -> 2653.946971 | X203: =$H203*X$139*X149 -> 2673.851574 | Y203: =$H203*Y$139*Y149 -> 2693.90546 | Z203: =$H203*Z$139*Z149 -> 2714.109751 | AA203: =$H203*AA$139*AA149 -> 2734.465575 | AB203: =$H203*AB$139*AB149 -> 2754.974066 | AC203: =$H203*AC$139*AC149 -> 2775.636372 | AD203: =$H203*AD$139*AD149 -> 2796.453645 | AE203: =$H203*AE$139*AE149 -> 2817.427047 | AF203: =$H203*AF$139*AF149 -> 2838.55775 | AG203: =$H203*AG$139*AG149 -> 2859.846933 | AH203: =$H203*AH$139*AH149 -> 2881.295785 | AI203: =$H203*AI$139*AI149 -> 2902.905503 | AJ203: =$H203*AJ$139*AJ149 -> 2924.677295 | AK203: =$H203*AK$139*AK149 -> 2946.612374 | AL203: =$H203*AL$139*AL149 -> 2968.711967 | AM203: =$H203*AM$139*AM149 -> 2990.977307 | AN203: =$H203*AN$139*AN149 -> 3013.409637 | AO203: =$H203*AO$139*AO149 -> 3036.010209 | AP203: =$H203*AP$139*AP149 -> 3058.780286 | AQ203: =$H203*AQ$139*AQ149 -> 3081.721138 | AR203: =$H203*AR$139*AR149 -> 3104.834046 | AS203: =$H203*AS$139*AS149 -> 3128.120302 | AT203: =$H203*AT$139*AT149 -> 3151.581204 | AU203: =$H203*AU$139*AU149 -> 3175.218063 | AV203: =$H203*AV$139*AV149 -> 3199.032198 | AW203: =$H203*AW$139*AW149 -> 3223.02494 | AX203: =$H203*AX$139*AX149 -> 3247.197627 | AY203: =$H203*AY$139*AY149 -> 3271.551609 | AZ203: =$H203*AZ$139*AZ149 -> 3296.088246 | BA203: =$H203*BA$139*BA149 -> 3320.808908 | BB203: =$H203*BB$139*BB149 -> 3345.714975 | BC203: =$H203*BC$139*BC149 -> 3370.807837 | BD203: =$H203*BD$139*BD149 -> 3396.088896 | BE203: =$H203*BE$139*BE149 -> 3421.559563 | BF203: =$H203*BF$139*BF149 -> 3447.221259 | BG203: =$H203*BG$139*BG149 -> 3473.075419 | BH203: =$H203*BH$139*BH149 -> 3499.123484 | BI203: =$H203*BI$139*BI149 -> 3525.366911 | BJ203: =$H203*BJ$139*BJ149 -> 3551.807162 | BK203: =$H203*BK$139*BK149 -> 3578.445716 | BL203: =$H203*BL$139*BL149 -> 3605.284059 | BM203: =$H203*BM$139*BM149 -> 3632.323689 | BN203: =$H203*BN$139*BN149 -> 3659.566117 | BO203: =$H203*BO$139*BO149 -> 3687.012863 | BP203: =$H203*BP$139*BP149 -> 3714.665459
C204: Total Cows Revenue | G204: Euro 000's | N204: =N202*N203/1000 -> 773.0479407 | O204: =O202*O203/1000 -> 776.9131804 | P204: 453.3664333 | Q204: 482.1426083 | R204: 498.541801 | S204: 510.0082624 | T204: 519.02356 | U204: 522.9162367 | V204: 526.8381085 | W204: 530.7893943 | X204: 534.7703147 | Y204: 538.7810921 | Z204: 542.8219503 | AA204: 546.8931149 | AB204: 550.9948133 | AC204: 555.1272744 | AD204: 559.2907289 | AE204: 563.4854094 | AF204: 567.71155 | AG204: 571.9693866 | AH204: 576.259157 | AI204: 580.5811007 | AJ204: 584.9354589 | AK204: 589.3224749 | AL204: 593.7423934 | AM204: 598.1954614 | AN204: 602.6819273 | AO204: 607.2020418 | AP204: 611.7560571 | AQ204: 616.3442275 | AR204: 620.9668092 | AS204: 625.6240603 | AT204: 630.3162408 | AU204: 635.0436126 | AV204: 639.8064397 | AW204: 644.604988 | AX204: 649.4395254 | AY204: 654.3103218 | AZ204: 659.2176492 | BA204: 664.1617816 | BB204: 669.142995 | BC204: 674.1615674 | BD204: 679.2177792 | BE204: 684.3119125 | BF204: 689.4442519 | BG204: 694.6150838 | BH204: 699.8246969 | BI204: 705.0733821 | BJ204: 710.3614325 | BK204: 715.6891432 | BL204: 721.0568118 | BM204: 726.4647379 | BN204: 731.9132234 | BO204: 737.4025726 | BP204: 742.9330919
B206: Sheep Production | G206: Number | N206: =N94 -> 85 | O206: =O94 -> 120 | P206: =P94 -> 150 | Q206: =Q94 -> 170 | R206: =R94 -> 190 | S206: =S94 -> 200 | T206: =T94 -> 200 | U206: =U94 -> 200 | V206: =V94 -> 200 | W206: =W94 -> 200 | X206: =X94 -> 200 | Y206: =Y94 -> 200 | Z206: =Z94 -> 200 | AA206: =AA94 -> 200 | AB206: =AB94 -> 200 | AC206: =AC94 -> 200 | AD206: =AD94 -> 200 | AE206: =AE94 -> 200 | AF206: =AF94 -> 200 | AG206: =AG94 -> 200 | AH206: =AH94 -> 200 | AI206: =AI94 -> 200 | AJ206: =AJ94 -> 200 | AK206: =AK94 -> 200 | AL206: =AL94 -> 200 | AM206: =AM94 -> 200 | AN206: =AN94 -> 200 | AO206: =AO94 -> 200 | AP206: =AP94 -> 200 | AQ206: =AQ94 -> 200 | AR206: =AR94 -> 200 | AS206: =AS94 -> 200 | AT206: =AT94 -> 200 | AU206: =AU94 -> 200 | AV206: =AV94 -> 200 | AW206: =AW94 -> 200 | AX206: =AX94 -> 200 | AY206: =AY94 -> 200 | AZ206: =AZ94 -> 200 | BA206: =BA94 -> 200 | BB206: =BB94 -> 200 | BC206: =BC94 -> 200 | BD206: =BD94 -> 200 | BE206: =BE94 -> 200 | BF206: =BF94 -> 200 | BG206: =BG94 -> 200 | BH206: =BH94 -> 200 | BI206: =BI94 -> 200 | BJ206: =BJ94 -> 200 | BK206: =BK94 -> 200 | BL206: =BL94 -> 200 | BM206: =BM94 -> 200 | BN206: =BN94 -> 200 | BO206: =BO94 -> 200 | BP206: =BP94 -> 200
B207: Sheep Price | G207: Euro | H207: =Inputs!I94 -> 328 | N207: =$H207*N$139*N149 -> 329.64 | O207: =$H207*O$139*O149 -> 331.2882 | P207: =$H207*P$139*P149 -> 332.944641 | Q207: =$H207*Q$139*Q149 -> 335.4417258 | R207: =$H207*R$139*R149 -> 337.9575388 | S207: =$H207*S$139*S149 -> 340.4922203 | T207: =$H207*T$139*T149 -> 343.0459119 | U207: =$H207*U$139*U149 -> 345.6187563 | V207: =$H207*V$139*V149 -> 348.210897 | W207: =$H207*W$139*W149 -> 350.8224787 | X207: =$H207*X$139*X149 -> 353.4536473 | Y207: =$H207*Y$139*Y149 -> 356.1045496 | Z207: =$H207*Z$139*Z149 -> 358.7753337 | AA207: =$H207*AA$139*AA149 -> 361.4661488 | AB207: =$H207*AB$139*AB149 -> 364.1771449 | AC207: =$H207*AC$139*AC149 -> 366.9084735 | AD207: =$H207*AD$139*AD149 -> 369.660287 | AE207: =$H207*AE$139*AE149 -> 372.4327392 | AF207: =$H207*AF$139*AF149 -> 375.2259847 | AG207: =$H207*AG$139*AG149 -> 378.0401796 | AH207: =$H207*AH$139*AH149 -> 380.8754809 | AI207: =$H207*AI$139*AI149 -> 383.732047 | AJ207: =$H207*AJ$139*AJ149 -> 386.6100374 | AK207: =$H207*AK$139*AK149 -> 389.5096127 | AL207: =$H207*AL$139*AL149 -> 392.4309348 | AM207: =$H207*AM$139*AM149 -> 395.3741668 | AN207: =$H207*AN$139*AN149 -> 398.339473 | AO207: =$H207*AO$139*AO149 -> 401.3270191 | AP207: =$H207*AP$139*AP149 -> 404.3369717 | AQ207: =$H207*AQ$139*AQ149 -> 407.369499 | AR207: =$H207*AR$139*AR149 -> 410.4247703 | AS207: =$H207*AS$139*AS149 -> 413.502956 | AT207: =$H207*AT$139*AT149 -> 416.6042282 | AU207: =$H207*AU$139*AU149 -> 419.7287599 | AV207: =$H207*AV$139*AV149 -> 422.8767256 | AW207: =$H207*AW$139*AW149 -> 426.0483011 | AX207: =$H207*AX$139*AX149 -> 429.2436633 | AY207: =$H207*AY$139*AY149 -> 432.4629908 | AZ207: =$H207*AZ$139*AZ149 -> 435.7064632 | BA207: =$H207*BA$139*BA149 -> 438.9742617 | BB207: =$H207*BB$139*BB149 -> 442.2665687 | BC207: =$H207*BC$139*BC149 -> 445.5835679 | BD207: =$H207*BD$139*BD149 -> 448.9254447 | BE207: =$H207*BE$139*BE149 -> 452.2923855 | BF207: =$H207*BF$139*BF149 -> 455.6845784 | BG207: =$H207*BG$139*BG149 -> 459.1022127 | BH207: =$H207*BH$139*BH149 -> 462.5454793 | BI207: =$H207*BI$139*BI149 -> 466.0145704 | BJ207: =$H207*BJ$139*BJ149 -> 469.5096797 | BK207: =$H207*BK$139*BK149 -> 473.0310023 | BL207: =$H207*BL$139*BL149 -> 476.5787348 | BM207: =$H207*BM$139*BM149 -> 480.1530753 | BN207: =$H207*BN$139*BN149 -> 483.7542234 | BO207: =$H207*BO$139*BO149 -> 487.3823801 | BP207: =$H207*BP$139*BP149 -> 491.0377479
C208: Total Sheep Revenue | G208: Euro 000's | N208: =N206*N207/1000 -> 28.0194 | O208: =O206*O207/1000 -> 39.754584 | P208: 49.94169615 | Q208: 57.02509339 | R208: 64.21193236 | S208: 68.09844406 | T208: 68.60918239 | U208: 69.12375126 | V208: 69.64217939 | W208: 70.16449574 | X208: 70.69072945 | Y208: 71.22090993 | Z208: 71.75506675 | AA208: 72.29322975 | AB208: 72.83542897 | AC208: 73.38169469 | AD208: 73.9320574 | AE208: 74.48654783 | AF208: 75.04519694 | AG208: 75.60803592 | AH208: 76.17509619 | AI208: 76.74640941 | AJ208: 77.32200748 | AK208: 77.90192253 | AL208: 78.48618695 | AM208: 79.07483336 | AN208: 79.66789461 | AO208: 80.26540382 | AP208: 80.86739434 | AQ208: 81.4738998 | AR208: 82.08495405 | AS208: 82.70059121 | AT208: 83.32084564 | AU208: 83.94575198 | AV208: 84.57534512 | AW208: 85.20966021 | AX208: 85.84873266 | AY208: 86.49259816 | AZ208: 87.14129264 | BA208: 87.79485234 | BB208: 88.45331373 | BC208: 89.11671358 | BD208: 89.78508894 | BE208: 90.4584771 | BF208: 91.13691568 | BG208: 91.82044255 | BH208: 92.50909587 | BI208: 93.20291409 | BJ208: 93.90193594 | BK208: 94.60620046 | BL208: 95.31574697 | BM208: 96.03061507 | BN208: 96.75084468 | BO208: 97.47647602 | BP208: 98.20754959
B210: Goat Production | G210: Number | N210: =N100 -> 167.5 | O210: =O100 -> 130 | P210: =P100 -> 150 | Q210: =Q100 -> 190 | R210: =R100 -> 210 | S210: =S100 -> 220 | T210: =T100 -> 220 | U210: =U100 -> 220 | V210: =V100 -> 220 | W210: =W100 -> 220 | X210: =X100 -> 220 | Y210: =Y100 -> 220 | Z210: =Z100 -> 220 | AA210: =AA100 -> 220 | AB210: =AB100 -> 220 | AC210: =AC100 -> 220 | AD210: =AD100 -> 220 | AE210: =AE100 -> 220 | AF210: =AF100 -> 220 | AG210: =AG100 -> 220 | AH210: =AH100 -> 220 | AI210: =AI100 -> 220 | AJ210: =AJ100 -> 220 | AK210: =AK100 -> 220 | AL210: =AL100 -> 220 | AM210: =AM100 -> 220 | AN210: =AN100 -> 220 | AO210: =AO100 -> 220 | AP210: =AP100 -> 220 | AQ210: =AQ100 -> 220 | AR210: =AR100 -> 220 | AS210: =AS100 -> 220 | AT210: =AT100 -> 220 | AU210: =AU100 -> 220 | AV210: =AV100 -> 220 | AW210: =AW100 -> 220 | AX210: =AX100 -> 220 | AY210: =AY100 -> 220 | AZ210: =AZ100 -> 220 | BA210: =BA100 -> 220 | BB210: =BB100 -> 220 | BC210: =BC100 -> 220 | BD210: =BD100 -> 220 | BE210: =BE100 -> 220 | BF210: =BF100 -> 220 | BG210: =BG100 -> 220 | BH210: =BH100 -> 220 | BI210: =BI100 -> 220 | BJ210: =BJ100 -> 220 | BK210: =BK100 -> 220 | BL210: =BL100 -> 220 | BM210: =BM100 -> 220 | BN210: =BN100 -> 220 | BO210: =BO100 -> 220 | BP210: =BP100 -> 220
B211: Goat Price | G211: Euro | H211: =Inputs!I95 -> 328 | N211: =$H211*N$139*N149 -> 329.64 | O211: =$H211*O$139*O149 -> 331.2882 | P211: =$H211*P$139*P149 -> 332.944641 | Q211: =$H211*Q$139*Q149 -> 335.4417258 | R211: =$H211*R$139*R149 -> 337.9575388 | S211: =$H211*S$139*S149 -> 340.4922203 | T211: =$H211*T$139*T149 -> 343.0459119 | U211: =$H211*U$139*U149 -> 345.6187563 | V211: =$H211*V$139*V149 -> 348.210897 | W211: =$H211*W$139*W149 -> 350.8224787 | X211: =$H211*X$139*X149 -> 353.4536473 | Y211: =$H211*Y$139*Y149 -> 356.1045496 | Z211: =$H211*Z$139*Z149 -> 358.7753337 | AA211: =$H211*AA$139*AA149 -> 361.4661488 | AB211: =$H211*AB$139*AB149 -> 364.1771449 | AC211: =$H211*AC$139*AC149 -> 366.9084735 | AD211: =$H211*AD$139*AD149 -> 369.660287 | AE211: =$H211*AE$139*AE149 -> 372.4327392 | AF211: =$H211*AF$139*AF149 -> 375.2259847 | AG211: =$H211*AG$139*AG149 -> 378.0401796 | AH211: =$H211*AH$139*AH149 -> 380.8754809 | AI211: =$H211*AI$139*AI149 -> 383.732047 | AJ211: =$H211*AJ$139*AJ149 -> 386.6100374 | AK211: =$H211*AK$139*AK149 -> 389.5096127 | AL211: =$H211*AL$139*AL149 -> 392.4309348 | AM211: =$H211*AM$139*AM149 -> 395.3741668 | AN211: =$H211*AN$139*AN149 -> 398.339473 | AO211: =$H211*AO$139*AO149 -> 401.3270191 | AP211: =$H211*AP$139*AP149 -> 404.3369717 | AQ211: =$H211*AQ$139*AQ149 -> 407.369499 | AR211: =$H211*AR$139*AR149 -> 410.4247703 | AS211: =$H211*AS$139*AS149 -> 413.502956 | AT211: =$H211*AT$139*AT149 -> 416.6042282 | AU211: =$H211*AU$139*AU149 -> 419.7287599 | AV211: =$H211*AV$139*AV149 -> 422.8767256 | AW211: =$H211*AW$139*AW149 -> 426.0483011 | AX211: =$H211*AX$139*AX149 -> 429.2436633 | AY211: =$H211*AY$139*AY149 -> 432.4629908 | AZ211: =$H211*AZ$139*AZ149 -> 435.7064632 | BA211: =$H211*BA$139*BA149 -> 438.9742617 | BB211: =$H211*BB$139*BB149 -> 442.2665687 | BC211: =$H211*BC$139*BC149 -> 445.5835679 | BD211: =$H211*BD$139*BD149 -> 448.9254447 | BE211: =$H211*BE$139*BE149 -> 452.2923855 | BF211: =$H211*BF$139*BF149 -> 455.6845784 | BG211: =$H211*BG$139*BG149 -> 459.1022127 | BH211: =$H211*BH$139*BH149 -> 462.5454793 | BI211: =$H211*BI$139*BI149 -> 466.0145704 | BJ211: =$H211*BJ$139*BJ149 -> 469.5096797 | BK211: =$H211*BK$139*BK149 -> 473.0310023 | BL211: =$H211*BL$139*BL149 -> 476.5787348 | BM211: =$H211*BM$139*BM149 -> 480.1530753 | BN211: =$H211*BN$139*BN149 -> 483.7542234 | BO211: =$H211*BO$139*BO149 -> 487.3823801 | BP211: =$H211*BP$139*BP149 -> 491.0377479
C212: Total Goat Revenue | G212: Euro 000's | N212: =N210*N211/1000 -> 55.2147 | O212: =O210*O211/1000 -> 43.067466 | P212: 49.94169615 | Q212: 63.7339279 | R212: 70.97108314 | S212: 74.90828846 | T212: 75.47010063 | U212: 76.03612638 | V212: 76.60639733 | W212: 77.18094531 | X212: 77.7598024 | Y212: 78.34300092 | Z212: 78.93057342 | AA212: 79.52255273 | AB212: 80.11897187 | AC212: 80.71986416 | AD212: 81.32526314 | AE212: 81.93520261 | AF212: 82.54971663 | AG212: 83.16883951 | AH212: 83.79260581 | AI212: 84.42105035 | AJ212: 85.05420823 | AK212: 85.69211479 | AL212: 86.33480565 | AM212: 86.98231669 | AN212: 87.63468407 | AO212: 88.2919442 | AP212: 88.95413378 | AQ212: 89.62128978 | AR212: 90.29344946 | AS212: 90.97065033 | AT212: 91.6529302 | AU212: 92.34032718 | AV212: 93.03287963 | AW212: 93.73062623 | AX212: 94.43360593 | AY212: 95.14185797 | AZ212: 95.85542191 | BA212: 96.57433757 | BB212: 97.2986451 | BC212: 98.02838494 | BD212: 98.76359783 | BE212: 99.50432481 | BF212: 100.2506072 | BG212: 101.0024868 | BH212: 101.7600055 | BI212: 102.5232055 | BJ212: 103.2921295 | BK212: 104.0668205 | BL212: 104.8473217 | BM212: 105.6336766 | BN212: 106.4259291 | BO212: 107.2241236 | BP212: 108.0283045
B214: Pigs Production | G214: Number | N214: =N106 -> 20 | O214: =O106 -> 20 | P214: =P106 -> 30 | Q214: =Q106 -> 50 | R214: =R106 -> 60 | S214: =S106 -> 80 | T214: =T106 -> 90 | U214: =U106 -> 90 | V214: =V106 -> 90 | W214: =W106 -> 90 | X214: =X106 -> 90 | Y214: =Y106 -> 90 | Z214: =Z106 -> 90 | AA214: =AA106 -> 90 | AB214: =AB106 -> 90 | AC214: =AC106 -> 90 | AD214: =AD106 -> 90 | AE214: =AE106 -> 90 | AF214: =AF106 -> 90 | AG214: =AG106 -> 90 | AH214: =AH106 -> 90 | AI214: =AI106 -> 90 | AJ214: =AJ106 -> 90 | AK214: =AK106 -> 90 | AL214: =AL106 -> 90 | AM214: =AM106 -> 90 | AN214: =AN106 -> 90 | AO214: =AO106 -> 90 | AP214: =AP106 -> 90 | AQ214: =AQ106 -> 90 | AR214: =AR106 -> 90 | AS214: =AS106 -> 90 | AT214: =AT106 -> 90 | AU214: =AU106 -> 90 | AV214: =AV106 -> 90 | AW214: =AW106 -> 90 | AX214: =AX106 -> 90 | AY214: =AY106 -> 90 | AZ214: =AZ106 -> 90 | BA214: =BA106 -> 90 | BB214: =BB106 -> 90 | BC214: =BC106 -> 90 | BD214: =BD106 -> 90 | BE214: =BE106 -> 90 | BF214: =BF106 -> 90 | BG214: =BG106 -> 90 | BH214: =BH106 -> 90 | BI214: =BI106 -> 90 | BJ214: =BJ106 -> 90 | BK214: =BK106 -> 90 | BL214: =BL106 -> 90 | BM214: =BM106 -> 90 | BN214: =BN106 -> 90 | BO214: =BO106 -> 90 | BP214: =BP106 -> 90
B215: Pigs Price | G215: Euro | H215: =Inputs!I96 -> 798 | N215: =$H215*N$139*N149 -> 801.99 | O215: =$H215*O$139*O149 -> 805.99995 | P215: =$H215*P$139*P149 -> 810.0299497 | Q215: =$H215*Q$139*Q149 -> 816.1051744 | R215: =$H215*R$139*R149 -> 822.2259632 | S215: =$H215*S$139*S149 -> 828.3926579 | T215: =$H215*T$139*T149 -> 834.6056028 | U215: =$H215*U$139*U149 -> 840.8651449 | V215: =$H215*V$139*V149 -> 847.1716334 | W215: =$H215*W$139*W149 -> 853.5254207 | X215: =$H215*X$139*X149 -> 859.9268614 | Y215: =$H215*Y$139*Y149 -> 866.3763128 | Z215: =$H215*Z$139*Z149 -> 872.8741352 | AA215: =$H215*AA$139*AA149 -> 879.4206912 | AB215: =$H215*AB$139*AB149 -> 886.0163464 | AC215: =$H215*AC$139*AC149 -> 892.661469 | AD215: =$H215*AD$139*AD149 -> 899.35643 | AE215: =$H215*AE$139*AE149 -> 906.1016032 | AF215: =$H215*AF$139*AF149 -> 912.8973652 | AG215: =$H215*AG$139*AG149 -> 919.7440955 | AH215: =$H215*AH$139*AH149 -> 926.6421762 | AI215: =$H215*AI$139*AI149 -> 933.5919925 | AJ215: =$H215*AJ$139*AJ149 -> 940.5939324 | AK215: =$H215*AK$139*AK149 -> 947.6483869 | AL215: =$H215*AL$139*AL149 -> 954.7557498 | AM215: =$H215*AM$139*AM149 -> 961.916418 | AN215: =$H215*AN$139*AN149 -> 969.1307911 | AO215: =$H215*AO$139*AO149 -> 976.399272 | AP215: =$H215*AP$139*AP149 -> 983.7222666 | AQ215: =$H215*AQ$139*AQ149 -> 991.1001836 | AR215: =$H215*AR$139*AR149 -> 998.5334349 | AS215: =$H215*AS$139*AS149 -> 1006.022436 | AT215: =$H215*AT$139*AT149 -> 1013.567604 | AU215: =$H215*AU$139*AU149 -> 1021.169361 | AV215: =$H215*AV$139*AV149 -> 1028.828131 | AW215: =$H215*AW$139*AW149 -> 1036.544342 | AX215: =$H215*AX$139*AX149 -> 1044.318425 | AY215: =$H215*AY$139*AY149 -> 1052.150813 | AZ215: =$H215*AZ$139*AZ149 -> 1060.041944 | BA215: =$H215*BA$139*BA149 -> 1067.992259 | BB215: =$H215*BB$139*BB149 -> 1076.002201 | BC215: =$H215*BC$139*BC149 -> 1084.072217 | BD215: =$H215*BD$139*BD149 -> 1092.202759 | BE215: =$H215*BE$139*BE149 -> 1100.394279 | BF215: =$H215*BF$139*BF149 -> 1108.647236 | BG215: =$H215*BG$139*BG149 -> 1116.962091 | BH215: =$H215*BH$139*BH149 -> 1125.339306 | BI215: =$H215*BI$139*BI149 -> 1133.779351 | BJ215: =$H215*BJ$139*BJ149 -> 1142.282696 | BK215: =$H215*BK$139*BK149 -> 1150.849817 | BL215: =$H215*BL$139*BL149 -> 1159.48119 | BM215: =$H215*BM$139*BM149 -> 1168.177299 | BN215: =$H215*BN$139*BN149 -> 1176.938629 | BO215: =$H215*BO$139*BO149 -> 1185.765669 | BP215: =$H215*BP$139*BP149 -> 1194.658911
C216: Total Pigs Revenue | G216: Euro 000's | N216: =N214*N215/1000 -> 16.0398 | O216: =O214*O215/1000 -> 16.119999 | P216: 24.30089849 | Q216: 40.80525872 | R216: 49.33355779 | S216: 66.27141263 | T216: 75.11450426 | U216: 75.67786304 | V216: 76.24544701 | W216: 76.81728786 | X216: 77.39341752 | Y216: 77.97386815 | Z216: 78.55867216 | AA216: 79.14786221 | AB216: 79.74147117 | AC216: 80.33953221 | AD216: 80.9420787 | AE216: 81.54914429 | AF216: 82.16076287 | AG216: 82.77696859 | AH216: 83.39779586 | AI216: 84.02327932 | AJ216: 84.65345392 | AK216: 85.28835482 | AL216: 85.92801749 | AM216: 86.57247762 | AN216: 87.2217712 | AO216: 87.87593448 | AP216: 88.53500399 | AQ216: 89.19901652 | AR216: 89.86800914 | AS216: 90.54201921 | AT216: 91.22108436 | AU216: 91.90524249 | AV216: 92.59453181 | AW216: 93.2889908 | AX216: 93.98865823 | AY216: 94.69357317 | AZ216: 95.40377496 | BA216: 96.11930328 | BB216: 96.84019805 | BC216: 97.56649954 | BD216: 98.29824828 | BE216: 99.03548514 | BF216: 99.77825128 | BG216: 100.5265882 | BH216: 101.2805376 | BI216: 102.0401416 | BJ216: 102.8054427 | BK216: 103.5764835 | BL216: 104.3533071 | BM216: 105.1359569 | BN216: 105.9244766 | BO216: 106.7189102 | BP216: 107.519302
D217: Total Animal Revenue | N217: =N216+N212+N208+N204 -> 872.3218407 | O217: 875.8552294 | P217: 577.5507241 | Q217: 643.7068883 | R217: 683.0583743 | S217: 719.2864076 | T217: 738.2173473 | U217: 743.7539774 | V217: 749.3321322 | W217: 754.9521232 | X217: 760.6142641 | Y217: 766.3188711 | Z217: 772.0662626 | AA217: 777.8567596 | AB217: 783.6906853 | AC217: 789.5683654 | AD217: 795.4901282 | AE217: 801.4563041 | AF217: 807.4672264 | AG217: 813.5232306 | AH217: 819.6246548 | AI217: 825.7718398 | AJ217: 831.9651286 | AK217: 838.204867 | AL217: 844.4914035 | AM217: 850.825089 | AN217: 857.2062772 | AO217: 863.6353243 | AP217: 870.1125892 | AQ217: 876.6384336 | AR217: 883.2132219 | AS217: 889.8373211 | AT217: =AT216+AT212+AT208+AT204 -> 896.511101 | AU217: 903.2349342 | AV217: 910.0091962 | AW217: 916.8342652 | AX217: 923.7105222 | AY217: 930.6383511 | AZ217: 937.6181387 | BA217: 944.6502748 | BB217: 951.7351518 | BC217: 958.8731655 | BD217: 966.0647142 | BE217: 973.3101996 | BF217: 980.6100261 | BG217: 987.9646013 | BH217: 995.3743358 | BI217: 1002.839643 | BJ217: 1010.360941 | BK217: 1017.938648 | BL217: 1025.573188 | BM217: 1033.264986 | BN217: 1041.014474 | BO217: 1048.822082 | BP217: 1056.688248
B219: Dairy Production | G219: Gallons | N219: =N112 -> 0 | O219: =O112 -> 0 | P219: =P112 -> 1095000 | Q219: =Q112 -> 2562000 | R219: =R112 -> 3650000 | S219: =S112 -> 3650000 | T219: =T112 -> 3650000 | U219: =U112 -> 3660000 | V219: =V112 -> 3650000 | W219: =W112 -> 3650000 | X219: =X112 -> 3650000 | Y219: =Y112 -> 3660000 | Z219: =Z112 -> 3650000 | AA219: =AA112 -> 3650000 | AB219: =AB112 -> 3650000 | AC219: =AC112 -> 3660000 | AD219: =AD112 -> 3650000 | AE219: =AE112 -> 3650000 | AF219: =AF112 -> 3650000 | AG219: =AG112 -> 3660000 | AH219: =AH112 -> 3650000 | AI219: =AI112 -> 3650000 | AJ219: =AJ112 -> 3650000 | AK219: =AK112 -> 3660000 | AL219: =AL112 -> 3650000 | AM219: =AM112 -> 3650000 | AN219: =AN112 -> 3650000 | AO219: =AO112 -> 3660000 | AP219: =AP112 -> 3650000 | AQ219: =AQ112 -> 3650000 | AR219: =AR112 -> 3650000 | AS219: =AS112 -> 3660000 | AT219: =AT112 -> 3650000 | AU219: =AU112 -> 3650000 | AV219: =AV112 -> 3650000 | AW219: =AW112 -> 3660000 | AX219: =AX112 -> 3650000 | AY219: =AY112 -> 3650000 | AZ219: =AZ112 -> 3650000 | BA219: =BA112 -> 3660000 | BB219: =BB112 -> 3650000 | BC219: =BC112 -> 3650000 | BD219: =BD112 -> 3650000 | BE219: =BE112 -> 3660000 | BF219: =BF112 -> 3650000 | BG219: =BG112 -> 3650000 | BH219: =BH112 -> 3650000 | BI219: =BI112 -> 3660000 | BJ219: =BJ112 -> 3650000 | BK219: =BK112 -> 3650000 | BL219: =BL112 -> 3650000 | BM219: =BM112 -> 3660000 | BN219: =BN112 -> 3650000 | BO219: =BO112 -> 3650000 | BP219: =BP112 -> 3650000
B220: Dairy Price | G220: Euro/Gallon | H220: =Inputs!G100 -> 3.15 | N220: =$H$220*N139*N150 -> 3.16575 | O220: =$H$220*O139*O150 -> 3.18157875 | P220: =$H$220*P139*P150 -> 3.197486644 | Q220: =$H$220*Q139*Q150 -> 3.221467794 | R220: =$H$220*R139*R150 -> 3.245628802 | S220: =$H$220*S139*S150 -> 3.269971018 | T220: =$H$220*T139*T150 -> 3.294495801 | U220: =$H$220*U139*U150 -> 3.319204519 | V220: =$H$220*V139*V150 -> 3.344098553 | W220: =$H$220*W139*W150 -> 3.369179292 | X220: =$H$220*X139*X150 -> 3.394448137 | Y220: =$H$220*Y139*Y150 -> 3.419906498 | Z220: =$H$220*Z139*Z150 -> 3.445555797 | AA220: =$H$220*AA139*AA150 -> 3.471397465 | AB220: =$H$220*AB139*AB150 -> 3.497432946 | AC220: =$H$220*AC139*AC150 -> 3.523663693 | AD220: =$H$220*AD139*AD150 -> 3.550091171 | AE220: =$H$220*AE139*AE150 -> 3.576716855 | AF220: =$H$220*AF139*AF150 -> 3.603542231 | AG220: =$H$220*AG139*AG150 -> 3.630568798 | AH220: =$H$220*AH139*AH150 -> 3.657798064 | AI220: =$H$220*AI139*AI150 -> 3.685231549 | AJ220: =$H$220*AJ139*AJ150 -> 3.712870786 | AK220: =$H$220*AK139*AK150 -> 3.740717317 | AL220: =$H$220*AL139*AL150 -> 3.768772697 | AM220: =$H$220*AM139*AM150 -> 3.797038492 | AN220: =$H$220*AN139*AN150 -> 3.825516281 | AO220: =$H$220*AO139*AO150 -> 3.854207653 | AP220: =$H$220*AP139*AP150 -> 3.88311421 | AQ220: =$H$220*AQ139*AQ150 -> 3.912237567 | AR220: =$H$220*AR139*AR150 -> 3.941579348 | AS220: =$H$220*AS139*AS150 -> 3.971141194 | AT220: =$H$220*AT139*AT150 -> 4.000924753 | AU220: =$H$220*AU139*AU150 -> 4.030931688 | AV220: =$H$220*AV139*AV150 -> 4.061163676 | AW220: =$H$220*AW139*AW150 -> 4.091622403 | AX220: =$H$220*AX139*AX150 -> 4.122309571 | AY220: =$H$220*AY139*AY150 -> 4.153226893 | AZ220: =$H$220*AZ139*AZ150 -> 4.184376095 | BA220: =$H$220*BA139*BA150 -> 4.215758916 | BB220: =$H$220*BB139*BB150 -> 4.247377107 | BC220: =$H$220*BC139*BC150 -> 4.279232436 | BD220: =$H$220*BD139*BD150 -> 4.311326679 | BE220: =$H$220*BE139*BE150 -> 4.343661629 | BF220: =$H$220*BF139*BF150 -> 4.376239091 | BG220: =$H$220*BG139*BG150 -> 4.409060885 | BH220: =$H$220*BH139*BH150 -> 4.442128841 | BI220: =$H$220*BI139*BI150 -> 4.475444808 | BJ220: =$H$220*BJ139*BJ150 -> 4.509010644 | BK220: =$H$220*BK139*BK150 -> 4.542828223 | BL220: =$H$220*BL139*BL150 -> 4.576899435 | BM220: =$H$220*BM139*BM150 -> 4.611226181 | BN220: =$H$220*BN139*BN150 -> 4.645810377 | BO220: =$H$220*BO139*BO150 -> 4.680653955 | BP220: =$H$220*BP139*BP150 -> 4.71575886
C221: Total Dairy Revenue | G221: Euro 000's | N221: =N219*N220/1000 -> 0 | O221: =O219*O220/1000 -> 0 | P221: 3501.247875 | Q221: 8253.400487 | R221: 11846.54513 | S221: 11935.39422 | T221: 12024.90967 | U221: 12148.28854 | V221: 12205.95972 | W221: 12297.50442 | X221: 12389.7357 | Y221: 12516.85778 | Z221: 12576.27866 | AA221: 12670.60075 | AB221: 12765.63025 | AC221: 12896.60912 | AD221: 12957.83277 | AE221: 13055.01652 | AF221: 13152.92914 | AG221: 13287.8818 | AH221: 13350.96293 | AI221: 13451.09516 | AJ221: 13551.97837 | AK221: 13691.02538 | AL221: 13756.02034 | AM221: 13859.1905 | AN221: 13963.13442 | AO221: 14106.40001 | AP221: 14173.36687 | AQ221: 14279.66712 | AR221: 14386.76462 | AS221: 14534.37677 | AT221: 14603.37535 | AU221: 14712.90066 | AV221: 14823.24742 | AW221: 14975.338 | AX221: 15046.42994 | AY221: 15159.27816 | AZ221: 15272.97275 | BA221: 15429.67763 | BB221: 15502.92644 | BC221: 15619.19839 | BD221: 15736.34238 | BE221: 15897.80156 | BF221: 15973.27268 | BG221: 16093.07223 | BH221: 16213.77027 | BI221: 16380.128 | BJ221: 16457.88885 | BK221: 16581.32302 | BL221: 16705.68294 | BM221: 16877.08782 | BN221: 16957.20788 | BO221: 17084.38694 | BP221: 17212.51984
B223: Chips and Fries | G223: Units | M223: =M121 -> 120282 | N223: =N121 -> 120283 | O223: =O121 -> 120284 | P223: =P121 -> 120285 | Q223: =Q121 -> 120286 | R223: =R121 -> 120287 | S223: =S121 -> 120288 | T223: =T121 -> 120289 | U223: =U121 -> 120290 | V223: =V121 -> 120291 | W223: =W121 -> 120292 | X223: =X121 -> 120293 | Y223: =Y121 -> 120294 | Z223: =Z121 -> 120295 | AA223: =AA121 -> 120296 | AB223: =AB121 -> 120297 | AC223: =AC121 -> 120298 | AD223: =AD121 -> 120299 | AE223: =AE121 -> 120300 | AF223: =AF121 -> 120301 | AG223: =AG121 -> 120302 | AH223: =AH121 -> 120303 | AI223: =AI121 -> 120304 | AJ223: =AJ121 -> 120305 | AK223: =AK121 -> 120306 | AL223: =AL121 -> 120307 | AM223: =AM121 -> 120308 | AN223: =AN121 -> 120309 | AO223: =AO121 -> 120310 | AP223: =AP121 -> 120311 | AQ223: =AQ121 -> 120312 | AR223: =AR121 -> 120313 | AS223: =AS121 -> 120314 | AT223: =AT121 -> 120315 | AU223: =AU121 -> 120316 | AV223: =AV121 -> 120317 | AW223: =AW121 -> 120318 | AX223: =AX121 -> 120319 | AY223: =AY121 -> 120320 | AZ223: =AZ121 -> 120321 | BA223: =BA121 -> 120322 | BB223: =BB121 -> 120323 | BC223: =BC121 -> 120324 | BD223: =BD121 -> 120325 | BE223: =BE121 -> 120326 | BF223: =BF121 -> 120327 | BG223: =BG121 -> 120328 | BH223: =BH121 -> 120329 | BI223: =BI121 -> 120330 | BJ223: =BJ121 -> 120331 | BK223: =BK121 -> 120332 | BL223: =BL121 -> 120333 | BM223: =BM121 -> 120334 | BN223: =BN121 -> 120335 | BO223: =BO121 -> 120336 | BP223: =BP121 -> 120337
B224: Chips and Fries Price | G224: Euro/Unit | H224: =Inputs!H111 -> 5.818965517 | M224: =$H$224*M139 -> 5.818965517 | N224: =$H$224*N139 -> 5.848060345 | O224: =$H$224*O139 -> 5.877300647 | P224: =$H$224*P139 -> 5.90668715 | Q224: =$H$224*Q139 -> 5.950987303 | R224: =$H$224*R139 -> 5.995619708 | S224: =$H$224*S139 -> 6.040586856 | T224: =$H$224*T139 -> 6.085891257 | U224: =$H$224*U139 -> 6.131535442 | V224: =$H$224*V139 -> 6.177521958 | W224: =$H$224*W139 -> 6.223853372 | X224: =$H$224*X139 -> 6.270532273 | Y224: =$H$224*Y139 -> 6.317561265 | Z224: =$H$224*Z139 -> 6.364942974 | AA224: =$H$224*AA139 -> 6.412680046 | AB224: =$H$224*AB139 -> 6.460775147 | AC224: =$H$224*AC139 -> 6.50923096 | AD224: =$H$224*AD139 -> 6.558050193 | AE224: =$H$224*AE139 -> 6.607235569 | AF224: =$H$224*AF139 -> 6.656789836 | AG224: =$H$224*AG139 -> 6.70671576 | AH224: =$H$224*AH139 -> 6.757016128 | AI224: =$H$224*AI139 -> 6.807693749 | AJ224: =$H$224*AJ139 -> 6.858751452 | AK224: =$H$224*AK139 -> 6.910192088 | AL224: =$H$224*AL139 -> 6.962018528 | AM224: =$H$224*AM139 -> 7.014233667 | AN224: =$H$224*AN139 -> 7.06684042 | AO224: =$H$224*AO139 -> 7.119841723 | AP224: =$H$224*AP139 -> 7.173240536 | AQ224: =$H$224*AQ139 -> 7.22703984 | AR224: =$H$224*AR139 -> 7.281242639 | AS224: =$H$224*AS139 -> 7.335851959 | AT224: =$H$224*AT139 -> 7.390870848 | AU224: =$H$224*AU139 -> 7.44630238 | AV224: =$H$224*AV139 -> 7.502149647 | AW224: =$H$224*AW139 -> 7.55841577 | AX224: =$H$224*AX139 -> 7.615103888 | AY224: =$H$224*AY139 -> 7.672217167 | AZ224: =$H$224*AZ139 -> 7.729758796 | BA224: =$H$224*BA139 -> 7.787731987 | BB224: =$H$224*BB139 -> 7.846139977 | BC224: =$H$224*BC139 -> 7.904986027 | BD224: =$H$224*BD139 -> 7.964273422 | BE224: =$H$224*BE139 -> 8.024005473 | BF224: =$H$224*BF139 -> 8.084185514 | BG224: =$H$224*BG139 -> 8.144816905 | BH224: =$H$224*BH139 -> 8.205903032 | BI224: =$H$224*BI139 -> 8.267447305 | BJ224: =$H$224*BJ139 -> 8.329453159 | BK224: =$H$224*BK139 -> 8.391924058 | BL224: =$H$224*BL139 -> 8.454863488 | BM224: =$H$224*BM139 -> 8.518274965 | BN224: =$H$224*BN139 -> 8.582162027 | BO224: =$H$224*BO139 -> 8.646528242 | BP224: =$H$224*BP139 -> 8.711377204
C225: Total Chips and Fries Revenue | G225: Euro 000's | M225: =M223*M224/1000 -> 699.9168103 | N225: =N223*N224/1000 -> 703.4222425 | O225: =O223*O224/1000 -> 706.945231 | P225: 710.4858638 | Q225: 715.8204588 | R225: 721.1951078 | S225: 726.6101117 | T225: 732.0657735 | U225: 737.5623983 | V225: 743.1002938 | W225: 748.6797699 | X225: 754.3011387 | Y225: 759.9647148 | Z225: 765.6708151 | AA225: 771.4197589 | AB225: 777.2118678 | AC225: 783.0474661 | AD225: 788.9268801 | AE225: 794.850439 | AF225: 800.818474 | AG225: 806.8313193 | AH225: 812.8893112 | AI225: 818.9927888 | AJ225: 825.1420934 | AK225: 831.3375693 | AL225: 837.5795631 | AM225: 843.8684241 | AN225: 850.2045041 | AO225: 856.5881577 | AP225: 863.0197421 | AQ225: 869.4996172 | AR225: 876.0281456 | AS225: 882.6056925 | AT225: 889.2326261 | AU225: 895.9093171 | AV225: 902.6361391 | AW225: 909.4134686 | AX225: 916.2416847 | AY225: 923.1211696 | AZ225: 930.0523081 | BA225: 937.0354881 | BB225: 944.0711004 | BC225: 951.1595387 | BD225: 958.3011995 | BE225: 965.4964825 | BF225: 972.7457903 | BG225: 980.0495285 | BH225: 987.4081059 | BI225: 994.8219342 | BJ225: 1002.291428 | BK225: 1009.817006 | BL225: 1017.399088 | BM225: 1025.0381 | BN225: 1032.734467 | BO225: 1040.488623 | BP225: 1048.300999
B227: Other Revenues | G227: Tons
C228: Cereal Production from Cereal Production Project
C229: Biological Coffee Production from Coffee Production Project
C230: Seafood Production from Seafood Production Project
C231: Dehydrated fruits and tomato derivatives production Project
C233: Total Dairy and Other | M233: =M221+M225 -> 699.9168103 | N233: =N221+N225 -> 703.4222425 | O233: =O221+O225 -> 706.945231 | P233: 4211.733739 | Q233: 8969.220946 | R233: 12567.74024 | S233: 12662.00433 | T233: 12756.97545 | U233: 12885.85094 | V233: 12949.06001 | W233: 13046.18419 | X233: 13144.03684 | Y233: 13276.8225 | Z233: 13341.94947 | AA233: 13442.02051 | AB233: 13542.84212 | AC233: 13679.65658 | AD233: 13746.75965 | AE233: 13849.86696 | AF233: 13953.74762 | AG233: 14094.71312 | AH233: 14163.85224 | AI233: 14270.08794 | AJ233: 14377.12046 | AK233: 14522.36295 | AL233: 14593.59991 | AM233: 14703.05892 | AN233: 14813.33893 | AO233: 14962.98817 | AP233: 15036.38661 | AQ233: 15149.16674 | AR233: 15262.79277 | AS233: 15416.98246 | AT233: 15492.60797 | AU233: 15608.80998 | AV233: 15725.88356 | AW233: 15884.75147 | AX233: 15962.67162 | AY233: 16082.39933 | AZ233: 16203.02505 | BA233: 16366.71312 | BB233: 16446.99754 | BC233: 16570.35793 | BD233: 16694.64358 | BE233: 16863.29805 | BF233: 16946.01847 | BG233: 17073.12176 | BH233: 17201.17838 | BI233: 17374.94993 | BJ233: 17460.18028 | BK233: 17591.14002 | BL233: 17723.08203 | BM233: 17902.12592 | BN233: 17989.94234 | BO233: 18124.87556 | BP233: 18260.82084
B235: Total Revenues | G235: =G184 -> Euro 000's | M235: =M233+M217+M200 -> 107514.9491 | N235: =N233+N217+N200 -> 124241.844 | O235: 142452.2243 | P235: 166563.3573 | Q235: 195855.9857 | R235: 227663.8749 | S235: 260225.2149 | T235: 297675.2623 | U235: 340793.0632 | V235: 390346.6512 | W235: 393274.2573 | X235: 396223.8205 | Y235: 399229.7046 | Z235: 402189.4782 | AA235: 405205.9056 | AB235: 408244.9564 | AC235: 411342.0367 | AD235: 414391.6076 | AE235: 417499.5513 | AF235: 420630.8046 | AG235: 423821.848 | AH235: 426963.9407 | AI235: 430166.177 | AJ235: 433392.4302 | AK235: 436680.2875 | AL235: 439917.7089 | AM235: 443217.0987 | AN235: 446541.2341 | AO235: 449928.8425 | AP235: 453264.4849 | AQ235: 456663.9757 | AR235: 460088.9628 | AS235: 463579.3488 | AT235: 467016.192 | AU235: 470518.8209 | AV235: 474047.7196 | AW235: 477644.0013 | AX235: 481185.1158 | AY235: 484794.0118 | AZ235: 488429.9747 | BA235: 492135.3648 | BB235: 495783.9142 | BC235: 499502.3014 | BD235: 503248.5766 | BE235: 507066.3856 | BF235: 510825.6292 | BG235: 514656.8296 | BH235: 518516.764 | BI235: 522450.4024 | BJ235: 526323.6987 | BK235: 530271.1348 | BL235: 534248.1768 | BM235: 538301.1589 | BN235: 542291.968 | BO235: 546359.1665 | BP235: 550456.8689
B236: Total Revenues | G236: =G185 -> USD 000's | M236: =M235*M144 -> 119920.5202 | N236: =N235*N144 -> 140645.7614 | O236: =O235*O144 -> 163667.3704 | P236: =P235*P144 -> 194225.5885 | Q236: =Q235*Q144 -> 231216.5655 | R236: =R235*R144 -> 272101.7514 | S236: =S235*S144 -> 314877.5566 | T236: =T235*T144 -> 364661.7339 | U236: =U235*U144 -> 422662.1042 | V236: =V235*V144 -> 490126.4493 | W236: =W235*W144 -> 499928.9862 | X236: =X235*X144 -> 509927.574 | Y236: =Y235*Y144 -> 520170.6929 | Z236: =Z235*Z144 -> 530528.6648 | AA236: =AA235*AA144 -> 541139.2467 | AB236: =AB235*AB144 -> 551962.0403 | AC236: =AC235*AC144 -> 563049.5223 | AD236: =AD235*AD144 -> 574261.3249 | AE236: =AE235*AE144 -> 585746.5607 | AF236: =AF235*AF144 -> 597461.5014 | AG236: =AG235*AG144 -> 609462.9492 | AH236: =AH235*AH144 -> 621598.9657 | AI236: =AI235*AI144 -> 634030.9551 | AJ236: =AJ235*AJ144 -> 646711.5844 | AK236: =AK235*AK144 -> 659702.3383 | AL236: =AL235*AL144 -> 672838.7537 | AM236: =AM235*AM144 -> 686295.5396 | AN236: =AN235*AN144 -> 700021.4615 | AO236: =AO235*AO144 -> 714083.0722 | AP236: =AP235*AP144 -> 728302.3516 | AQ236: =AQ235*AQ144 -> 742868.4104 | AR236: =AR235*AR144 -> 757725.7906 | AS236: =AS235*AS144 -> 772946.5312 | AT236: =AT235*AT144 -> 788337.9375 | AU236: =AU235*AU144 -> 804104.709 | AV236: =AV235*AV144 -> 820186.8161 | AW236: =AW235*AW144 -> 836662.2363 | AX236: =AX235*AX144 -> 853322.3905 | AY236: =AY235*AY144 -> 870388.8521 | AZ236: =AZ235*AZ144 -> 887796.6432 | BA236: =BA235*BA144 -> 905630.169 | BB236: =BB235*BB144 -> 923663.6568 | BC236: =BC235*BC144 -> 942136.9448 | BD236: =BD235*BD144 -> 960979.6989 | BE236: =BE235*BE144 -> 980283.282 | BF236: =BF235*BF144 -> 999803.3104 | BG236: =BG235*BG144 -> 1019799.393 | BH236: =BH235*BH144 -> 1040195.397 | BI236: =BI235*BI144 -> 1061090.218 | BJ236: =BJ235*BJ144 -> 1082219.325 | BK236: =BK235*BK144 -> 1103863.729 | BL236: =BL235*BL144 -> 1125941.022 | BM236: =BM235*BM144 -> 1148558.249 | BN236: =BN235*BN144 -> 1171429.076 | BO236: =BO235*BO144 -> 1194857.677 | BP236: =BP235*BP144 -> 1218754.849
B237: Total Revenues | G237: =G186 -> AOA Millions | M237: =M235*M142/1000 -> 24943.4682 | N237: =N235*N142/1000 -> 74569.83114 | O237: =O235*O142/1000 -> 170148.6235 | P237: =P235*P142/1000 -> 296936.6936 | Q237: =Q235*Q142/1000 -> 433197.7672 | R237: =R235*R142/1000 -> 549782.7562 | S237: =S235*S142/1000 -> 686110.3916 | T237: =T235*T142/1000 -> 856909.5767 | U237: =U235*U142/1000 -> 1071101.501 | V237: =V235*V142/1000 -> 1339485.356 | W237: =W235*W142/1000 -> 1473433.915 | X237: =X235*X142/1000 -> 1620777.332 | Y237: =Y235*Y142/1000 -> 1783007.831 | Z237: =Z235*Z142/1000 -> 1961140.634 | AA237: =AA235*AA142/1000 -> 2157254.732 | AB237: =AB235*AB142/1000 -> 2372980.243 | AC237: =AC235*AC142/1000 -> 2610501.931 | AD237: =AD235*AD142/1000 -> 2871306.185 | AE237: =AE235*AE142/1000 -> 3158436.853 | AF237: =AF235*AF142/1000 -> 3474280.593 | AG237: =AG235*AG142/1000 -> 3822036.119 | AH237: =AH235*AH142/1000 -> 4203879.651 | AI237: =AI235*AI142/1000 -> 4624267.689 | AJ237: =AJ235*AJ142/1000 -> 5086694.539 | AK237: =AK235*AK142/1000 -> 5595843.436 | AL237: =AL235*AL142/1000 -> 6154900.587 | AM237: =AM235*AM142/1000 -> 6770390.752 | AN237: =AN235*AN142/1000 -> 7447429.945 | AO237: =AO235*AO142/1000 -> 8192874.893 | AP237: =AP235*AP142/1000 -> 9011390.519 | AQ237: =AQ235*AQ142/1000 -> 9912529.728 | AR237: =AR235*AR142/1000 -> 10903782.87 | AS237: =AS235*AS142/1000 -> 11995188.89 | AT237: =AT235*AT142/1000 -> 13193577.69 | AU237: =AU235*AU142/1000 -> 14512935.69 | AV237: =AV235*AV142/1000 -> 15964229.52 | AW237: =AW235*AW142/1000 -> 17562157.16 | AX237: =AX235*AX142/1000 -> 19316718.33 | AY237: =AY235*AY142/1000 -> 21248390.49 | AZ237: =AZ235*AZ142/1000 -> 23373229.91 | BA237: =BA235*BA142/1000 -> 25712755.93 | BB237: =BB235*BB142/1000 -> 28281609.09 | BC237: =BC235*BC142/1000 -> 31109770.49 | BD237: =BD235*BD142/1000 -> 34220748.08 | BE237: =BE235*BE142/1000 -> 37646048.34 | BF237: =BF235*BF142/1000 -> 41407106.49 | BG237: =BG235*BG142/1000 -> 45547817.86 | BH237: =BH235*BH142/1000 -> 50102600.44 | BI237: =BI235*BI142/1000 -> 55117582.87 | BJ237: =BJ235*BJ142/1000 -> 60624148.45 | BK237: =BK235*BK142/1000 -> 66686564.35 | BL237: =BL235*BL142/1000 -> 73355221.95 | BM237: =BM235*BM142/1000 -> 80697658.19 | BN237: =BN235*BN142/1000 -> 88759821.36 | BO237: =BO235*BO142/1000 -> 97635805.05 | BP237: =BP235*BP142/1000 -> 107399387.2
A239: Operating Expenses
B240: Transport Cost
... 292 more rows

Sheet Financials
G2: Period | I2: 1 | J2: 2 | K2: 3 | L2: 4 | M2: 5 | N2: 6 | O2: 7 | P2: 8 | Q2: 9 | R2: 10 | S2: 11 | T2: 12 | U2: 13 | V2: 14 | W2: 15 | X2: 16 | Y2: 17 | Z2: 18 | AA2: 19 | AB2: 20 | AC2: 21 | AD2: 22 | AE2: 23 | AF2: 24 | AG2: 25 | AH2: 26 | AI2: 27 | AJ2: 28 | AK2: 29 | AL2: 30 | AM2: 31 | AN2: 32 | AO2: 33 | AP2: 34 | AQ2: 35 | AR2: 36 | AS2: 37 | AT2: 38 | AU2: 39 | AV2: 40 | AW2: 41 | AX2: 42 | AY2: 43 | AZ2: 44 | BA2: 45 | BB2: 46 | BC2: 47 | BD2: 48 | BE2: 49 | BF2: 50 | BG2: 51 | BH2: 52 | BI2: 53 | BJ2: 54 | BK2: 55
G3: Start of Period | I3: =H4+1 -> 2017-01-01 | J3: =I4+1 -> 2018-01-01 | K3: 2019-01-01 | L3: 2020-01-01 | M3: 2021-01-01 | N3: 2022-01-01 | O3: 2023-01-01 | P3: 2024-01-01 | Q3: 2025-01-01 | R3: 2026-01-01 | S3: 2027-01-01 | T3: 2028-01-01 | U3: 2029-01-01 | V3: 2030-01-01 | W3: 2031-01-01 | X3: 2032-01-01 | Y3: 2033-01-01 | Z3: 2034-01-01 | AA3: 2035-01-01 | AB3: 2036-01-01 | AC3: 2037-01-01 | AD3: 2038-01-01 | AE3: 2039-01-01 | AF3: 2040-01-01 | AG3: 2041-01-01 | AH3: 2042-01-01 | AI3: 2043-01-01 | AJ3: 2044-01-01 | AK3: 2045-01-01 | AL3: 2046-01-01 | AM3: 2047-01-01 | AN3: 2048-01-01 | AO3: 2049-01-01 | AP3: 2050-01-01 | AQ3: 2051-01-01 | AR3: 2052-01-01 | AS3: 2053-01-01 | AT3: 2054-01-01 | AU3: 2055-01-01 | AV3: 2056-01-01 | AW3: 2057-01-01 | AX3: 2058-01-01 | AY3: 2059-01-01 | AZ3: 2060-01-01 | BA3: 2061-01-01 | BB3: 2062-01-01 | BC3: 2063-01-01 | BD3: 2064-01-01 | BE3: 2065-01-01 | BF3: 2066-01-01 | BG3: 2067-01-01 | BH3: 2068-01-01 | BI3: 2069-01-01 | BJ3: 2070-01-01 | BK3: 2071-01-01
G4: End of Period | H4: =Inputs!G3-1 -> 2016-12-31 | I4: =EDATE(I3,12)-1 -> 2017-12-31 | J4: =EDATE(J3,12)-1 -> 2018-12-31 | K4: 2019-12-31 | L4: 2020-12-31 | M4: 2021-12-31 | N4: 2022-12-31 | O4: 2023-12-31 | P4: 2024-12-31 | Q4: 2025-12-31 | R4: 2026-12-31 | S4: 2027-12-31 | T4: 2028-12-31 | U4: 2029-12-31 | V4: 2030-12-31 | W4: 2031-12-31 | X4: 2032-12-31 | Y4: 2033-12-31 | Z4: 2034-12-31 | AA4: 2035-12-31 | AB4: 2036-12-31 | AC4: 2037-12-31 | AD4: 2038-12-31 | AE4: 2039-12-31 | AF4: 2040-12-31 | AG4: 2041-12-31 | AH4: 2042-12-31 | AI4: 2043-12-31 | AJ4: 2044-12-31 | AK4: 2045-12-31 | AL4: 2046-12-31 | AM4: 2047-12-31 | AN4: 2048-12-31 | AO4: 2049-12-31 | AP4: 2050-12-31 | AQ4: 2051-12-31 | AR4: 2052-12-31 | AS4: 2053-12-31 | AT4: 2054-12-31 | AU4: 2055-12-31 | AV4: 2056-12-31 | AW4: 2057-12-31 | AX4: 2058-12-31 | AY4: 2059-12-31 | AZ4: 2060-12-31 | BA4: 2061-12-31 | BB4: 2062-12-31 | BC4: 2063-12-31 | BD4: 2064-12-31 | BE4: 2065-12-31 | BF4: 2066-12-31 | BG4: 2067-12-31 | BH4: 2068-12-31 | BI4: 2069-12-31 | BJ4: 2070-12-31 | BK4: 2071-12-31
G5: Year | I5: =YEAR(I4) -> 2017 | J5: =YEAR(J4) -> 2018 | K5: 2019 | L5: 2020 | M5: 2021 | N5: 2022 | O5: 2023 | P5: 2024 | Q5: 2025 | R5: 2026 | S5: 2027 | T5: 2028 | U5: 2029 | V5: 2030 | W5: 2031 | X5: 2032 | Y5: 2033 | Z5: 2034 | AA5: 2035 | AB5: 2036 | AC5: 2037 | AD5: 2038 | AE5: 2039 | AF5: 2040 | AG5: 2041 | AH5: 2042 | AI5: 2043 | AJ5: 2044 | AK5: 2045 | AL5: 2046 | AM5: 2047 | AN5: 2048 | AO5: 2049 | AP5: 2050 | AQ5: 2051 | AR5: 2052 | AS5: 2053 | AT5: 2054 | AU5: 2055 | AV5: 2056 | AW5: 2057 | AX5: 2058 | AY5: 2059 | AZ5: 2060 | BA5: 2061 | BB5: 2062 | BC5: 2063 | BD5: 2064 | BE5: 2065 | BF5: 2066 | BG5: 2067 | BH5: 2068 | BI5: 2069 | BJ5: 2070 | BK5: 2071
A7: =IF('Detailed Analysis'!A470<>0,'Detailed Analysis'!A470,"") -> Income Statement | B7: =IF('Detailed Analysis'!B470<>0,'Detailed Analysis'!B470,"") ->  | C7: =IF('Detailed Analysis'!C470<>0,'Detailed Analysis'!C470,"") ->  | D7: =IF('Detailed Analysis'!D470<>0,'Detailed Analysis'!D470,"") ->  | E7: =IF('Detailed Analysis'!E470<>0,'Detailed Analysis'!E470,"") ->  | F7: =IF('Detailed Analysis'!F470<>0,'Detailed Analysis'!F470,"") ->  | G7: =add_text(A7:F7) -> Income Statement
A8: =IF('Detailed Analysis'!A471<>0,'Detailed Analysis'!A471,"") ->  | B8: =IF('Detailed Analysis'!B471<>0,'Detailed Analysis'!B471,"") -> Hectars of Land | C8: =IF('Detailed Analysis'!C471<>0,'Detailed Analysis'!C471,"") ->  | D8: =IF('Detailed Analysis'!D471<>0,'Detailed Analysis'!D471,"") ->  | E8: =IF('Detailed Analysis'!E471<>0,'Detailed Analysis'!E471,"") ->  | F8: =IF('Detailed Analysis'!F471<>0,'Detailed Analysis'!F471,"") ->  | G8: =add_text(A8:F8) -> Hectars of Land | I8: ='Detailed Analysis'!M471 -> 7300 | J8: ='Detailed Analysis'!N471 -> 7300 | K8: ='Detailed Analysis'!O471 -> 7300 | L8: ='Detailed Analysis'!P471 -> 7300 | M8: ='Detailed Analysis'!Q471 -> 7300 | N8: ='Detailed Analysis'!R471 -> 7300 | O8: ='Detailed Analysis'!S471 -> 7300 | P8: ='Detailed Analysis'!T471 -> 7300 | Q8: ='Detailed Analysis'!U471 -> 7300 | R8: ='Detailed Analysis'!V471 -> 7300 | S8: ='Detailed Analysis'!W471 -> 7300 | T8: ='Detailed Analysis'!X471 -> 7300 | U8: ='Detailed Analysis'!Y471 -> 7300 | V8: ='Detailed Analysis'!Z471 -> 7300 | W8: ='Detailed Analysis'!AA471 -> 7300 | X8: ='Detailed Analysis'!AB471 -> 7300 | Y8: ='Detailed Analysis'!AC471 -> 7300 | Z8: ='Detailed Analysis'!AD471 -> 7300 | AA8: ='Detailed Analysis'!AE471 -> 7300
A9: =IF('Detailed Analysis'!A472<>0,'Detailed Analysis'!A472,"") ->  | B9: =IF('Detailed Analysis'!B472<>0,'Detailed Analysis'!B472,"") -> Hectars of Productive Land | C9: =IF('Detailed Analysis'!C472<>0,'Detailed Analysis'!C472,"") ->  | D9: =IF('Detailed Analysis'!D472<>0,'Detailed Analysis'!D472,"") ->  | E9: =IF('Detailed Analysis'!E472<>0,'Detailed Analysis'!E472,"") ->  | F9: =IF('Detailed Analysis'!F472<>0,'Detailed Analysis'!F472,"") ->  | G9: Hectars of Productive Land | I9: ='Detailed Analysis'!M472 -> 3435 | J9: ='Detailed Analysis'!N472 -> 3735.115947 | K9: ='Detailed Analysis'!O472 -> 4061.453024 | L9: ='Detailed Analysis'!P472 -> 4416.302172 | M9: ='Detailed Analysis'!Q472 -> 4802.154489 | N9: ='Detailed Analysis'!R472 -> 5221.718722 | O9: ='Detailed Analysis'!S472 -> 5677.940283 | P9: ='Detailed Analysis'!T472 -> 6174.02192 | Q9: ='Detailed Analysis'!U472 -> 6713.44621 | R9: ='Detailed Analysis'!V472 -> 7300 | S9: ='Detailed Analysis'!W472 -> 7300 | T9: ='Detailed Analysis'!X472 -> 7300 | U9: ='Detailed Analysis'!Y472 -> 7300 | V9: ='Detailed Analysis'!Z472 -> 7300 | W9: ='Detailed Analysis'!AA472 -> 7300 | X9: ='Detailed Analysis'!AB472 -> 7300 | Y9: ='Detailed Analysis'!AC472 -> 7300 | Z9: ='Detailed Analysis'!AD472 -> 7300 | AA9: ='Detailed Analysis'!AE472 -> 7300
A10: =IF('Detailed Analysis'!A473<>0,'Detailed Analysis'!A473,"") ->  | B10: =IF('Detailed Analysis'!B473<>0,'Detailed Analysis'!B473,"") -> Tons of Agricultural Production | C10: =IF('Detailed Analysis'!C473<>0,'Detailed Analysis'!C473,"") ->  | D10: =IF('Detailed Analysis'!D473<>0,'Detailed Analysis'!D473,"") ->  | E10: =IF('Detailed Analysis'!E473<>0,'Detailed Analysis'!E473,"") ->  | F10: =IF('Detailed Analysis'!F473<>0,'Detailed Analysis'!F473,"") ->  | G10: Tons of Agricultural Production | I10: ='Detailed Analysis'!M473 -> 195337.5 | J10: ='Detailed Analysis'!N473 -> 223209.0219 | K10: ='Detailed Analysis'!O473 -> 255057.3622 | L10: ='Detailed Analysis'!P473 -> 291449.9487 | M10: ='Detailed Analysis'!Q473 -> 333035.1724 | N10: ='Detailed Analysis'!R473 -> 380553.9392 | O10: ='Detailed Analysis'!S473 -> 434852.8704 | P10: ='Detailed Analysis'!T473 -> 496899.3864 | Q10: ='Detailed Analysis'!U473 -> 567798.9431 | R10: ='Detailed Analysis'!V473 -> 648814.7271 | S10: ='Detailed Analysis'!W473 -> 648814.7271 | T10: ='Detailed Analysis'!X473 -> 648814.7271 | U10: ='Detailed Analysis'!Y473 -> 648814.7271 | V10: ='Detailed Analysis'!Z473 -> 648814.7271 | W10: ='Detailed Analysis'!AA473 -> 648814.7271 | X10: ='Detailed Analysis'!AB473 -> 648814.7271 | Y10: ='Detailed Analysis'!AC473 -> 648814.7271 | Z10: ='Detailed Analysis'!AD473 -> 648814.7271 | AA10: ='Detailed Analysis'!AE473 -> 648814.7271
A11: =IF('Detailed Analysis'!A474<>0,'Detailed Analysis'!A474,"") ->  | B11: =IF('Detailed Analysis'!B474<>0,'Detailed Analysis'!B474,"") -> Revenues from Horticulture | C11: =IF('Detailed Analysis'!C474<>0,'Detailed Analysis'!C474,"") ->  | D11: =IF('Detailed Analysis'!D474<>0,'Detailed Analysis'!D474,"") ->  | E11: =IF('Detailed Analysis'!E474<>0,'Detailed Analysis'!E474,"") ->  | F11: =IF('Detailed Analysis'!F474<>0,'Detailed Analysis'!F474,"") ->  | G11: Revenues from Horticulture | I11: ='Detailed Analysis'!M474 -> 75239.0625 | J11: ='Detailed Analysis'!N474 -> 86404.33988 | K11: ='Detailed Analysis'!O474 -> 99226.51481 | L11: ='Detailed Analysis'!P474 -> 113951.4665 | M11: ='Detailed Analysis'!Q474 -> 131187.0883 | N11: ='Detailed Analysis'!R474 -> 151029.6678 | O11: ='Detailed Analysis'!S474 -> 173873.5179 | P11: ='Detailed Analysis'!T474 -> 200172.5932 | Q11: ='Detailed Analysis'!U474 -> 230449.5102 | R11: ='Detailed Analysis'!V474 -> 265305.9339 | S11: ='Detailed Analysis'!W474 -> 267295.7284 | T11: ='Detailed Analysis'!X474 -> 269300.4464 | U11: ='Detailed Analysis'!Y474 -> 271320.1997 | V11: ='Detailed Analysis'!Z474 -> 273355.1012 | W11: ='Detailed Analysis'!AA474 -> 275405.2645 | X11: ='Detailed Analysis'!AB474 -> 277470.8039 | Y11: ='Detailed Analysis'!AC474 -> 279551.835 | Z11: ='Detailed Analysis'!AD474 -> 281648.4737 | AA11: ='Detailed Analysis'!AE474 -> 283760.8373
A12: =IF('Detailed Analysis'!A475<>0,'Detailed Analysis'!A475,"") ->  | B12: =IF('Detailed Analysis'!B475<>0,'Detailed Analysis'!B475,"") -> Revenues from Fruits | C12: =IF('Detailed Analysis'!C475<>0,'Detailed Analysis'!C475,"") ->  | D12: =IF('Detailed Analysis'!D475<>0,'Detailed Analysis'!D475,"") ->  | E12: =IF('Detailed Analysis'!E475<>0,'Detailed Analysis'!E475,"") ->  | F12: =IF('Detailed Analysis'!F475<>0,'Detailed Analysis'!F475,"") ->  | G12: Revenues from Fruits | I12: ='Detailed Analysis'!M475 -> 31475.75431 | J12: ='Detailed Analysis'!N475 -> 36146.67279 | K12: ='Detailed Analysis'!O475 -> 41510.74319 | L12: ='Detailed Analysis'!P475 -> 47670.82741 | M12: ='Detailed Analysis'!Q475 -> 54881.23352 | N12: ='Detailed Analysis'!R475 -> 63182.24282 | O12: ='Detailed Analysis'!S475 -> 72738.81345 | P12: ='Detailed Analysis'!T475 -> 83740.85418 | Q12: ='Detailed Analysis'!U475 -> 96406.99823 | R12: ='Detailed Analysis'!V475 -> 110988.948 | S12: ='Detailed Analysis'!W475 -> 111821.3651 | T12: ='Detailed Analysis'!X475 -> 112660.0253 | U12: ='Detailed Analysis'!Y475 -> 113504.9755 | V12: ='Detailed Analysis'!Z475 -> 114356.2628 | W12: ='Detailed Analysis'!AA475 -> 115213.9348 | X12: ='Detailed Analysis'!AB475 -> 116078.0393 | Y12: ='Detailed Analysis'!AC475 -> 116948.6246 | Z12: ='Detailed Analysis'!AD475 -> 117825.7393 | AA12: ='Detailed Analysis'!AE475 -> 118709.4323
A13: =IF('Detailed Analysis'!A476<>0,'Detailed Analysis'!A476,"") ->  | B13: =IF('Detailed Analysis'!B476<>0,'Detailed Analysis'!B476,"") -> Revenues from Maize and Other | C13: =IF('Detailed Analysis'!C476<>0,'Detailed Analysis'!C476,"") ->  | D13: =IF('Detailed Analysis'!D476<>0,'Detailed Analysis'!D476,"") ->  | E13: =IF('Detailed Analysis'!E476<>0,'Detailed Analysis'!E476,"") ->  | F13: =IF('Detailed Analysis'!F476<>0,'Detailed Analysis'!F476,"") ->  | G13: Revenues from Maize and Other | I13: ='Detailed Analysis'!M476 -> 100.2155172 | J13: ='Detailed Analysis'!N476 -> 115.0872343 | K13: ='Detailed Analysis'!O476 -> 132.1658747 | L13: ='Detailed Analysis'!P476 -> 151.77894 | M13: ='Detailed Analysis'!Q476 -> 174.7361207 | N13: ='Detailed Analysis'!R476 -> 201.1656681 | O13: ='Detailed Analysis'!S476 -> 231.5927918 | P13: ='Detailed Analysis'!T476 -> 266.6221414 | Q13: ='Detailed Analysis'!U476 -> 306.9498223 | R13: ='Detailed Analysis'!V476 -> 353.3772286 | S13: ='Detailed Analysis'!W476 -> 356.0275579 | T13: ='Detailed Analysis'!X476 -> 358.6977645 | U13: ='Detailed Analysis'!Y476 -> 361.3879978 | V13: ='Detailed Analysis'!Z476 -> 364.0984078 | W13: ='Detailed Analysis'!AA476 -> 366.8291458 | X13: ='Detailed Analysis'!AB476 -> 369.5803644 | Y13: ='Detailed Analysis'!AC476 -> 372.3522171 | Z13: ='Detailed Analysis'!AD476 -> 375.1448588 | AA13: ='Detailed Analysis'!AE476 -> 377.9584452
A14: =IF('Detailed Analysis'!A477<>0,'Detailed Analysis'!A477,"") ->  | B14: =IF('Detailed Analysis'!B477<>0,'Detailed Analysis'!B477,"") -> Revenues from Animals | C14: =IF('Detailed Analysis'!C477<>0,'Detailed Analysis'!C477,"") ->  | D14: =IF('Detailed Analysis'!D477<>0,'Detailed Analysis'!D477,"") ->  | E14: =IF('Detailed Analysis'!E477<>0,'Detailed Analysis'!E477,"") ->  | F14: =IF('Detailed Analysis'!F477<>0,'Detailed Analysis'!F477,"") ->  | G14: Revenues from Animals | I14: ='Detailed Analysis'!M477 -> 0 | J14: ='Detailed Analysis'!N477 -> 872.3218407 | K14: ='Detailed Analysis'!O477 -> 875.8552294 | L14: ='Detailed Analysis'!P477 -> 577.5507241 | M14: ='Detailed Analysis'!Q477 -> 643.7068883 | N14: ='Detailed Analysis'!R477 -> 683.0583743 | O14: ='Detailed Analysis'!S477 -> 719.2864076 | P14: ='Detailed Analysis'!T477 -> 738.2173473 | Q14: ='Detailed Analysis'!U477 -> 743.7539774 | R14: ='Detailed Analysis'!V477 -> 749.3321322 | S14: ='Detailed Analysis'!W477 -> 754.9521232 | T14: ='Detailed Analysis'!X477 -> 760.6142641 | U14: ='Detailed Analysis'!Y477 -> 766.3188711 | V14: ='Detailed Analysis'!Z477 -> 772.0662626 | W14: ='Detailed Analysis'!AA477 -> 777.8567596 | X14: ='Detailed Analysis'!AB477 -> 783.6906853 | Y14: ='Detailed Analysis'!AC477 -> 789.5683654 | Z14: ='Detailed Analysis'!AD477 -> 795.4901282 | AA14: ='Detailed Analysis'!AE477 -> 801.4563041
A15: =IF('Detailed Analysis'!A478<>0,'Detailed Analysis'!A478,"") ->  | B15: =IF('Detailed Analysis'!B478<>0,'Detailed Analysis'!B478,"") -> Revenues from Dairy | C15: =IF('Detailed Analysis'!C478<>0,'Detailed Analysis'!C478,"") ->  | D15: =IF('Detailed Analysis'!D478<>0,'Detailed Analysis'!D478,"") ->  | E15: =IF('Detailed Analysis'!E478<>0,'Detailed Analysis'!E478,"") ->  | F15: =IF('Detailed Analysis'!F478<>0,'Detailed Analysis'!F478,"") ->  | G15: Revenues from Dairy | I15: ='Detailed Analysis'!M478 -> 0 | J15: ='Detailed Analysis'!N478 -> 0 | K15: ='Detailed Analysis'!O478 -> 0 | L15: ='Detailed Analysis'!P478 -> 3501.247875 | M15: ='Detailed Analysis'!Q478 -> 8253.400487 | N15: ='Detailed Analysis'!R478 -> 11846.54513 | O15: ='Detailed Analysis'!S478 -> 11935.39422 | P15: ='Detailed Analysis'!T478 -> 12024.90967 | Q15: ='Detailed Analysis'!U478 -> 12148.28854 | R15: ='Detailed Analysis'!V478 -> 12205.95972 | S15: ='Detailed Analysis'!W478 -> 12297.50442 | T15: ='Detailed Analysis'!X478 -> 12389.7357 | U15: ='Detailed Analysis'!Y478 -> 12516.85778 | V15: ='Detailed Analysis'!Z478 -> 12576.27866 | W15: ='Detailed Analysis'!AA478 -> 12670.60075 | X15: ='Detailed Analysis'!AB478 -> 12765.63025 | Y15: ='Detailed Analysis'!AC478 -> 12896.60912 | Z15: ='Detailed Analysis'!AD478 -> 12957.83277 | AA15: ='Detailed Analysis'!AE478 -> 13055.01652
A16: =IF('Detailed Analysis'!A479<>0,'Detailed Analysis'!A479,"") ->  | B16: =IF('Detailed Analysis'!B479<>0,'Detailed Analysis'!B479,"") -> Revenues from Chips and Other | C16: =IF('Detailed Analysis'!C479<>0,'Detailed Analysis'!C479,"") ->  | D16: =IF('Detailed Analysis'!D479<>0,'Detailed Analysis'!D479,"") ->  | E16: =IF('Detailed Analysis'!E479<>0,'Detailed Analysis'!E479,"") ->  | F16: =IF('Detailed Analysis'!F479<>0,'Detailed Analysis'!F479,"") ->  | G16: Revenues from Chips and Other | I16: ='Detailed Analysis'!M479 -> 699.9168103 | J16: ='Detailed Analysis'!N479 -> 703.4222425 | K16: ='Detailed Analysis'!O479 -> 706.945231 | L16: ='Detailed Analysis'!P479 -> 710.4858638 | M16: ='Detailed Analysis'!Q479 -> 715.8204588 | N16: ='Detailed Analysis'!R479 -> 721.1951078 | O16: ='Detailed Analysis'!S479 -> 726.6101117 | P16: ='Detailed Analysis'!T479 -> 732.0657735 | Q16: ='Detailed Analysis'!U479 -> 737.5623983 | R16: ='Detailed Analysis'!V479 -> 743.1002938 | S16: ='Detailed Analysis'!W479 -> 748.6797699 | T16: ='Detailed Analysis'!X479 -> 754.3011387 | U16: ='Detailed Analysis'!Y479 -> 759.9647148 | V16: ='Detailed Analysis'!Z479 -> 765.6708151 | W16: ='Detailed Analysis'!AA479 -> 771.4197589 | X16: ='Detailed Analysis'!AB479 -> 777.2118678 | Y16: ='Detailed Analysis'!AC479 -> 783.0474661 | Z16: ='Detailed Analysis'!AD479 -> 788.9268801 | AA16: ='Detailed Analysis'!AE479 -> 794.850439
A17: =IF('Detailed Analysis'!A480<>0,'Detailed Analysis'!A480,"") ->  | B17: =IF('Detailed Analysis'!B480<>0,'Detailed Analysis'!B480,"") ->  | C17: =IF('Detailed Analysis'!C480<>0,'Detailed Analysis'!C480,"") -> Total Revenues | D17: =IF('Detailed Analysis'!D480<>0,'Detailed Analysis'!D480,"") ->  | E17: =IF('Detailed Analysis'!E480<>0,'Detailed Analysis'!E480,"") ->  | F17: =IF('Detailed Analysis'!F480<>0,'Detailed Analysis'!F480,"") ->  | G17: Total Revenues | I17: ='Detailed Analysis'!M480 -> 107514.9491 | J17: ='Detailed Analysis'!N480 -> 124241.844 | K17: ='Detailed Analysis'!O480 -> 142452.2243 | L17: ='Detailed Analysis'!P480 -> 166563.3573 | M17: ='Detailed Analysis'!Q480 -> 195855.9857 | N17: ='Detailed Analysis'!R480 -> 227663.8749 | O17: ='Detailed Analysis'!S480 -> 260225.2149 | P17: ='Detailed Analysis'!T480 -> 297675.2623 | Q17: ='Detailed Analysis'!U480 -> 340793.0632 | R17: ='Detailed Analysis'!V480 -> 390346.6512 | S17: ='Detailed Analysis'!W480 -> 393274.2573 | T17: ='Detailed Analysis'!X480 -> 396223.8205 | U17: ='Detailed Analysis'!Y480 -> 399229.7046 | V17: ='Detailed Analysis'!Z480 -> 402189.4782 | W17: ='Detailed Analysis'!AA480 -> 405205.9056 | X17: ='Detailed Analysis'!AB480 -> 408244.9564 | Y17: ='Detailed Analysis'!AC480 -> 411342.0367 | Z17: ='Detailed Analysis'!AD480 -> 414391.6076 | AA17: ='Detailed Analysis'!AE480 -> 417499.5513
A18: =IF('Detailed Analysis'!A481<>0,'Detailed Analysis'!A481,"") ->  | B18: =IF('Detailed Analysis'!B481<>0,'Detailed Analysis'!B481,"") -> Transport Cost | C18: =IF('Detailed Analysis'!C481<>0,'Detailed Analysis'!C481,"") ->  | D18: =IF('Detailed Analysis'!D481<>0,'Detailed Analysis'!D481,"") ->  | E18: =IF('Detailed Analysis'!E481<>0,'Detailed Analysis'!E481,"") ->  | F18: =IF('Detailed Analysis'!F481<>0,'Detailed Analysis'!F481,"") ->  | G18: Transport Cost | I18: ='Detailed Analysis'!M481 -> 10103.66379 | J18: ='Detailed Analysis'!N481 -> 11603.02071 | K18: ='Detailed Analysis'!O481 -> 13324.87822 | L18: ='Detailed Analysis'!P481 -> 15302.25481 | M18: ='Detailed Analysis'!Q481 -> 17616.78296 | N18: ='Detailed Analysis'!R481 -> 20281.39287 | O18: ='Detailed Analysis'!S481 -> 23349.03585 | P18: ='Detailed Analysis'!T481 -> 26880.67228 | Q18: ='Detailed Analysis'!U481 -> 30946.48305 | R18: ='Detailed Analysis'!V481 -> 35627.26421 | S18: ='Detailed Analysis'!W481 -> 35894.46869 | T18: ='Detailed Analysis'!X481 -> 36163.6772 | U18: ='Detailed Analysis'!Y481 -> 36434.90478 | V18: ='Detailed Analysis'!Z481 -> 36708.16657 | W18: ='Detailed Analysis'!AA481 -> 36983.47782 | X18: ='Detailed Analysis'!AB481 -> 37260.8539 | Y18: ='Detailed Analysis'!AC481 -> 37540.3103 | Z18: ='Detailed Analysis'!AD481 -> 37821.86263 | AA18: ='Detailed Analysis'!AE481 -> 38105.5266
A19: =IF('Detailed Analysis'!A482<>0,'Detailed Analysis'!A482,"") ->  | B19: =IF('Detailed Analysis'!B482<>0,'Detailed Analysis'!B482,"") -> Tractor Oil Expense | C19: =IF('Detailed Analysis'!C482<>0,'Detailed Analysis'!C482,"") ->  | D19: =IF('Detailed Analysis'!D482<>0,'Detailed Analysis'!D482,"") ->  | E19: =IF('Detailed Analysis'!E482<>0,'Detailed Analysis'!E482,"") ->  | F19: =IF('Detailed Analysis'!F482<>0,'Detailed Analysis'!F482,"") ->  | G19: Tractor Oil Expense | I19: ='Detailed Analysis'!M482 -> 5124.45198 | J19: ='Detailed Analysis'!N482 -> 5884.907066 | K19: ='Detailed Analysis'!O482 -> 6758.211671 | L19: ='Detailed Analysis'!P482 -> 7761.112363 | M19: ='Detailed Analysis'!Q482 -> 8935.012105 | N19: ='Detailed Analysis'!R482 -> 10286.46895 | O19: ='Detailed Analysis'!S482 -> 11842.33912 | P19: ='Detailed Analysis'!T482 -> 13633.54097 | Q19: ='Detailed Analysis'!U482 -> 15695.66937 | R19: ='Detailed Analysis'!V482 -> 18069.70306 | S19: ='Detailed Analysis'!W482 -> 18205.22584 | T19: ='Detailed Analysis'!X482 -> 18341.76503 | U19: ='Detailed Analysis'!Y482 -> 18479.32827 | V19: ='Detailed Analysis'!Z482 -> 18617.92323 | W19: ='Detailed Analysis'!AA482 -> 18757.55766 | X19: ='Detailed Analysis'!AB482 -> 18898.23934 | Y19: ='Detailed Analysis'!AC482 -> 19039.97613 | Z19: ='Detailed Analysis'!AD482 -> 19182.77595 | AA19: ='Detailed Analysis'!AE482 -> 19326.64677
A20: =IF('Detailed Analysis'!A483<>0,'Detailed Analysis'!A483,"") ->  | B20: =IF('Detailed Analysis'!B483<>0,'Detailed Analysis'!B483,"") -> Fertilizer | C20: =IF('Detailed Analysis'!C483<>0,'Detailed Analysis'!C483,"") ->  | D20: =IF('Detailed Analysis'!D483<>0,'Detailed Analysis'!D483,"") ->  | E20: =IF('Detailed Analysis'!E483<>0,'Detailed Analysis'!E483,"") ->  | F20: =IF('Detailed Analysis'!F483<>0,'Detailed Analysis'!F483,"") ->  | G20: Fertilizer | I20: ='Detailed Analysis'!M483 -> 42524.97375 | J20: ='Detailed Analysis'!N483 -> 49078.53012 | K20: ='Detailed Analysis'!O483 -> 56642.06009 | L20: ='Detailed Analysis'!P483 -> 65371.21148 | M20: ='Detailed Analysis'!Q483 -> 75445.6191 | N20: ='Detailed Analysis'!R483 -> 87072.60141 | O20: ='Detailed Analysis'!S483 -> 100491.4269 | P20: ='Detailed Analysis'!T483 -> 115978.2379 | Q20: ='Detailed Analysis'!U483 -> 133851.7332 | R20: ='Detailed Analysis'!V483 -> 154479.7266 | S20: ='Detailed Analysis'!W483 -> 156024.5239 | T20: ='Detailed Analysis'!X483 -> 157584.7691 | U20: ='Detailed Analysis'!Y483 -> 159160.6168 | V20: ='Detailed Analysis'!Z483 -> 160752.223 | W20: ='Detailed Analysis'!AA483 -> 162359.7452 | X20: ='Detailed Analysis'!AB483 -> 163983.3427 | Y20: ='Detailed Analysis'!AC483 -> 165623.1761 | Z20: ='Detailed Analysis'!AD483 -> 167279.4079 | AA20: ='Detailed Analysis'!AE483 -> 168952.2019
A21: =IF('Detailed Analysis'!A484<>0,'Detailed Analysis'!A484,"") ->  | B21: =IF('Detailed Analysis'!B484<>0,'Detailed Analysis'!B484,"") -> Herbicids | C21: =IF('Detailed Analysis'!C484<>0,'Detailed Analysis'!C484,"") ->  | D21: =IF('Detailed Analysis'!D484<>0,'Detailed Analysis'!D484,"") ->  | E21: =IF('Detailed Analysis'!E484<>0,'Detailed Analysis'!E484,"") ->  | F21: =IF('Detailed Analysis'!F484<>0,'Detailed Analysis'!F484,"") ->  | G21: Herbicids | I21: ='Detailed Analysis'!M484 -> 3847.1 | J21: ='Detailed Analysis'!N484 -> 3847.1 | K21: ='Detailed Analysis'!O484 -> 3847.1 | L21: ='Detailed Analysis'!P484 -> 3847.1 | M21: ='Detailed Analysis'!Q484 -> 3847.1 | N21: ='Detailed Analysis'!R484 -> 3847.1 | O21: ='Detailed Analysis'!S484 -> 3847.1 | P21: ='Detailed Analysis'!T484 -> 3847.1 | Q21: ='Detailed Analysis'!U484 -> 3847.1 | R21: ='Detailed Analysis'!V484 -> 3847.1 | S21: ='Detailed Analysis'!W484 -> 3847.1 | T21: ='Detailed Analysis'!X484 -> 3847.1 | U21: ='Detailed Analysis'!Y484 -> 3847.1 | V21: ='Detailed Analysis'!Z484 -> 3847.1 | W21: ='Detailed Analysis'!AA484 -> 3847.1 | X21: ='Detailed Analysis'!AB484 -> 3847.1 | Y21: ='Detailed Analysis'!AC484 -> 3847.1 | Z21: ='Detailed Analysis'!AD484 -> 3847.1 | AA21: ='Detailed Analysis'!AE484 -> 3847.1
A22: =IF('Detailed Analysis'!A485<>0,'Detailed Analysis'!A485,"") ->  | B22: =IF('Detailed Analysis'!B485<>0,'Detailed Analysis'!B485,"") -> Animal Feed Costs | C22: =IF('Detailed Analysis'!C485<>0,'Detailed Analysis'!C485,"") ->  | D22: =IF('Detailed Analysis'!D485<>0,'Detailed Analysis'!D485,"") ->  | E22: =IF('Detailed Analysis'!E485<>0,'Detailed Analysis'!E485,"") ->  | F22: =IF('Detailed Analysis'!F485<>0,'Detailed Analysis'!F485,"") ->  | G22: Animal Feed Costs | I22: ='Detailed Analysis'!M485 -> 0 | J22: ='Detailed Analysis'!N485 -> 1302.017241 | K22: ='Detailed Analysis'!O485 -> 1142.431034 | L22: ='Detailed Analysis'!P485 -> 1090.87931 | M22: ='Detailed Analysis'!Q485 -> 1124.275862 | N22: ='Detailed Analysis'!R485 -> 1145.793103 | O22: ='Detailed Analysis'!S485 -> 1156.551724 | P22: ='Detailed Analysis'!T485 -> 1158.793103 | Q22: ='Detailed Analysis'!U485 -> 1158.793103 | R22: ='Detailed Analysis'!V485 -> 1158.793103 | S22: ='Detailed Analysis'!W485 -> 1158.793103 | T22: ='Detailed Analysis'!X485 -> 1158.793103 | U22: ='Detailed Analysis'!Y485 -> 1158.793103 | V22: ='Detailed Analysis'!Z485 -> 1158.793103 | W22: ='Detailed Analysis'!AA485 -> 1158.793103 | X22: ='Detailed Analysis'!AB485 -> 1158.793103 | Y22: ='Detailed Analysis'!AC485 -> 1158.793103 | Z22: ='Detailed Analysis'!AD485 -> 1158.793103 | AA22: ='Detailed Analysis'!AE485 -> 1158.793103
A23: =IF('Detailed Analysis'!A486<>0,'Detailed Analysis'!A486,"") ->  | B23: =IF('Detailed Analysis'!B486<>0,'Detailed Analysis'!B486,"") -> Dairy Cost | C23: =IF('Detailed Analysis'!C486<>0,'Detailed Analysis'!C486,"") ->  | D23: =IF('Detailed Analysis'!D486<>0,'Detailed Analysis'!D486,"") ->  | E23: =IF('Detailed Analysis'!E486<>0,'Detailed Analysis'!E486,"") ->  | F23: =IF('Detailed Analysis'!F486<>0,'Detailed Analysis'!F486,"") ->  | G23: Dairy Cost | I23: ='Detailed Analysis'!M486 -> 0 | J23: ='Detailed Analysis'!N486 -> 0 | K23: ='Detailed Analysis'!O486 -> 0 | L23: ='Detailed Analysis'!P486 -> 1667.260893 | M23: ='Detailed Analysis'!Q486 -> 3930.190708 | N23: ='Detailed Analysis'!R486 -> 5641.211965 | O23: ='Detailed Analysis'!S486 -> 5683.521055 | P23: ='Detailed Analysis'!T486 -> 5726.147463 | Q23: ='Detailed Analysis'!U486 -> 5784.899305 | R23: ='Detailed Analysis'!V486 -> 5812.361771 | S23: ='Detailed Analysis'!W486 -> 5855.954484 | T23: ='Detailed Analysis'!X486 -> 5899.874143 | U23: ='Detailed Analysis'!Y486 -> 5960.408468 | V23: ='Detailed Analysis'!Z486 -> 5988.704123 | W23: ='Detailed Analysis'!AA486 -> 6033.619404 | X23: ='Detailed Analysis'!AB486 -> 6078.871549 | Y23: ='Detailed Analysis'!AC486 -> 6141.242437 | Z23: ='Detailed Analysis'!AD486 -> 6170.396559 | AA23: ='Detailed Analysis'!AE486 -> 6216.674533
